Workbook

Sheet CONTROLS
B4: Change Model Inputs & Assumptions | C4: Model Management
B5: Inputs | C5: Run
B6: Define Classifiers | C6: Error Locator
B7: Define External Allocators | C7: Collapse Model
B8: Define Internal Allocators | C8: Expand Model
B9: Alter Account Data & Select Factors | C9: Print Summary
C10: Print Preview Reports

Sheet INPUTS
A1: Global Inputs
B3: Model Choice | E3: Functions
A5: 1 | B5: Historic Test Year Twelve Months ended December 2010
A6: 2 | B6: Adjusted Test Year Twelve Months ended December 2010 @ Proforma Rev Requirement
A7: 3 | B7: Adjusted Test Year Twelve Months ended December 2010 ~ Proposed Rate Increase
A8: 4 | B8: Reserved 1
A9: 5 | B9: Reserved 2
E10: Name | F10: Description
B11: Model Choice | C11: 2 | E11: F_PRODU | F11: Production
E12: F_TRANS | F12: Transmission
E13: F_DISTR | F13: Distribution
E14: ~ | F14: ~
B15: Rate Classes | E15: ~ | F15: ~
E16: ~ | F16: ~
B17: Rate Class | C17: Description | E17: ~ | F17: ~
A18: 1 | B18: Res Svc | C18: Residential Sch 7 | E18: ~ | F18: ~
A19: 2 | B19: Sec Svc 24 | C19: Sec Volt Sch 24 (kW< 50) | E19: ~ | F19: ~
A20: 3 | B20: Sec Svc 25 / 29 / 7A | C20: Sec Volt Sch 25 (kW > 50 & < 350) | E20: ~ | F20: ~
A21: 4 | B21: Sec Svc 26 /26P | C21: Sec Volt Sch 26 (kW > 350)
A22: 5 | B22: Pri Svc 31 | C22: Pri Volt Sch 31 (General Service) | F22: Factor Name
A23: 6 | B23: Pri Svc 35 | C23: Pri Volt Sch 35 (Irrigation) | E23: Unit Costs | F23: ENERGY_1
A24: 7 | B24: Pri Svc 43 | C24: Pri Volt Sch 43 (Interruptible) | F24: CUST_1
A25: 8 | B25: Campus 40 | C25: Campus Sch 40
A26: 9 | B26: High Volt 46/49 | C26: High Volt Sch 46 & 49 (Interruptible & Gen Svc)
A27: 10 | B27: Choice/Retail Wheeling PV | C27: Pri Volt Sch 449 (Transportation) | E27: Rate of Return
A28: 11 | B28: Choice/Retail Wheeling HV | C28: High Volt Sch 449 (Transportation) | F28: Percent
A29: 12 | B29: Lighting 50-59 | C29: Street & Area Lighting | E29: ROR | F29: =(ROUND(0.04*0.0268,4)+ROUND(0.48*0.0622,4)+ROUND(0.48*0.098,4)) -> 0.078
A30: 13 | B30: Special Contract | C30: Special Contract | E30: ROD | F30: =(ROUND(0.04*0.0268,4)+ROUND(0.48*0.0622,4)) -> 0.031
A31: 14 | B31: Firm Resale Small | C31: Firm Resale (Small) | E31: ROE | F31: =(+ROUND(0.48*0.098,4)) -> 0.047
A32: 15 | B32: ~ | C32: ~
A33: 16 | B33: ~ | C33: ~ | E33: Income Tax
A34: 17 | B34: ~ | C34: ~ | E34: State Income Tax | F34: 0
A35: 18 | B35: ~ | C35: ~ | E35: Federal Income Tax | F35: 0 | G35: 0.35
A36: 19 | B36: ~ | C36: ~ | E36: Effective Tax Rate | F36: =((1-STAX)*FTAX)+STAX -> 0
A37: 20 | B37: ~ | C37: ~
E38: Uncollectible
B39: Classifers | E39: Residential | F39: 0
E40: Other | F40: =+ResUnc -> 0
B41: Name | C41: Description | E41: Other | F41: =+ResUnc -> 0
B42: DEM | C42: Demand
B43: NRG | C43: Energy | E43: Revenue Conversion Factors
B44: CUS | C44: Customer | E44: Residential | F44: 0.620749
B45: ~ | C45: ~ | E45: Other | F45: =+ResRCF -> 0.620749
B46: ~ | C46: ~ | E46: Other | F46: =+ResRCF -> 0.620749
B47: ~ | C47: ~
B49: Revnue Targets by Rate Class and Case
D51: =+A5 -> 1 | E51: =+A6 -> 2 | F51: =+A7 -> 3
D52: =+B5 -> Historic Test Year Twelve Months ended December 2010 | E52: =+B6 -> Adjusted Test Year Twelve Months ended December 2010 @ Proforma Rev Requirement | F52: =+B7 -> Adjusted Test Year Twelve Months ended December 2010 ~ Proposed Rate Increase
B53: =+B17 -> Rate Class
A54: 1 | B54: =+B18 -> Res Svc | D54: 1075111752 | E54: 1083315596 | F54: 35995000
A55: 2 | B55: =+B19 -> Sec Svc 24 | D55: =262280208+0 -> 262280208 | E55: 245723262 | F55: =8164145+777-1 -> 8164921
A56: 3 | B56: Sec Svc 25 / 29 / 7A | D56: =278060438+1144630 -> 279205068 | E56: 259863208 | F56: =6414118+29464 -> 6443582
A57: 4 | B57: Sec Svc 26 /26P | D57: =179310698+3538265 -> 182848963 | E57: 162954816 | F57: =5265148+25836 -> 5290984
A58: 5 | B58: Pri Svc 31 | D58: 113325098 | E58: 103852808 | F58: =3451015-337+2 -> 3450680
A59: 6 | B59: Pri Svc 35 | D59: 243696 | E59: 256357 | F59: 8516
A60: 7 | B60: Pri Svc 43 | D60: 13307639 | E60: 12686207 | F60: 421529
A61: 8 | B61: Campus 40 | D61: 48264885 | E61: 53013428 | F61: 1012158
A62: 9 | B62: High Volt 46/49 | D62: 38789975 | E62: 36438105 | F62: 1210718
A63: 10 | B63: Choice/Retail Wheeling PV | D63: 1373852 | E63: 881593 | F63: 15272
A64: 11 | B64: Choice/Retail Wheeling HV | D64: 9625904 | E64: 6151926 | F64: =233701-F63 -> 218429
A65: 12 | B65: Lighting 50-59 | D65: 17957278 | E65: 16975573 | F65: 564042
A66: 13 | B66: Special Contract | D66: 0 | E66: 879870 | F66: 323648
A67: 14 | B67: Firm Resale Small | D67: 350182 | E67: 337885 | F67: =199891-1 -> 199890
A68: 15 | B68: ~
A69: 16 | B69: ~
A70: 17 | B70: ~
A71: 18 | B71: ~
A72: 19 | B72: ~
A73: 20 | B73: ~
D74: =SUM(D54:D73) -> 2042684500 | E74: =SUM(E54:E73) -> 1983330634 | F74: =SUM(F54:F73) -> 63319369

Sheet CLASSIFIERS
A1: Classifiers
A3: Name | B3: Description | C3: Total | D3: =INPUTS!$B$42 -> DEM | E3: =INPUTS!$B$43 -> NRG | F3: =INPUTS!$B$44 -> CUS | G3: =INPUTS!$B$45 -> ~ | H3: =INPUTS!$B$46 -> ~ | I3: =INPUTS!$B$47 -> ~
A4: DEM | B4: Demand | C4: =SUM(D4:I4) -> 1 | D4: 1
A5: NRG | B5: Energy | C5: 1 | E5: 1
A6: CUS | B6: Customer | C6: 1 | F6: 1
A7: PC1 | B7: Peak Credit - All Customers Top 200 CP, No Int | C7: 1 | D7: 0.19 | E7: =1-D7 -> 0.81
A8: PC2 | B8: Peak Credit - All Customers Top 200CP, No Int or Transp | C8: =SUM(D8:I8) -> 1 | D8: =+D7 -> 0.19 | E8: =1-D8 -> 0.81
A9: TFR | B9: Transformers | C9: =SUM(D9:I9) -> 1 | D9: 0 | F9: 1
A10: PC3 | B10: Peak Credit - All Customers Top 75 CP, No Int | C10: =SUM(D10:I10) -> 1 | D10: =+D7 -> 0.19 | E10: =1-D10 -> 0.81
A11: PC4 | B11: Peak Credit - All Customers Top 75 CP, No Int or Transp | C11: =SUM(D11:I11) -> 1 | D11: =+D7 -> 0.19 | E11: =1-D11 -> 0.81
A12: ~ | B12: ~ | C12: 0
A13: ~ | B13: ~ | C13: =SUM(D13:I13) -> 0
A14: ~ | B14: ~ | C14: =SUM(D14:I14) -> 0
A15: ~ | B15: ~ | C15: 0
A16: ~ | B16: ~ | C16: 0
A17: ~ | B17: ~ | C17: 0
A18: ~ | B18: ~ | C18: 0
A19: ~ | B19: ~ | C19: 0
A20: ~ | B20: ~ | C20: 0

Sheet EXTERNAL
A1: External Allocators
A3: Name | B3: Description | C3: Classifier | D3: Total | E3: =INPUTS!$B$18 -> Res Svc | F3: =INPUTS!$B$19 -> Sec Svc 24 | G3: =INPUTS!$B$20 -> Sec Svc 25 / 29 / 7A | H3: =INPUTS!$B$21 -> Sec Svc 26 /26P | I3: =INPUTS!$B$22 -> Pri Svc 31 | J3: =INPUTS!$B$23 -> Pri Svc 35 | K3: =INPUTS!$B$24 -> Pri Svc 43 | L3: =INPUTS!$B$25 -> Campus 40 | M3: =INPUTS!$B$26 -> High Volt 46/49 | N3: =INPUTS!$B$27 -> Choice/Retail Wheeling PV | O3: =INPUTS!$B$28 -> Choice/Retail Wheeling HV | P3: =INPUTS!$B$29 -> Lighting 50-59 | Q3: =INPUTS!$B$30 -> Special Contract | R3: =INPUTS!$B$31 -> Firm Resale Small | S3: =INPUTS!$B$32 -> ~ | T3: =INPUTS!$B$33 -> ~ | U3: =INPUTS!$B$34 -> ~ | V3: =INPUTS!$B$35 -> ~ | W3: =INPUTS!$B$36 -> ~ | X3: =INPUTS!$B$37 -> ~
B5: CUSTOMER EXTERNAL ALLOCATORS
A7: CUST_1 | B7: Ave. No. Cust. | C7: CUS | E7: =IF($D8=0,0,E8/$D8) -> 0.883447921 | F7: 0.1044176893 | G7: 0.007515959592 | H7: 0.0007807103351 | I7: 0.0004515509896 | J7: 9.272094242e-07 | K7: 0.0001631888587 | L7: 8.993931414e-05 | M7: 2.132581676e-05 | N7: 2.781628272e-06 | O7: 1.298093194e-05 | P7: 0.003083898545 | Q7: 3.708837697e-06 | R7: 7.417675393e-06 | S7: 0 | T7: 0 | U7: 0 | V7: 0 | W7: 0 | X7: 0
A8: =IF(A7="~","~","") ->  | B8: =INPUTS!$B$5 -> Historic Test Year Twelve Months ended December 2010 | D8: =SUM(E8:X8) -> 1078505 | E8: 952803 | F8: 112615 | G8: 8106 | H8: =841+1 -> 842 | I8: 487 | J8: 1 | K8: 176 | L8: 97 | M8: 23 | N8: 3 | O8: 14 | P8: 3326 | Q8: 4 | R8: 8
A9: =IF(A8="~","~","") -> 
A10: CUST_2 | B10: Ave. No. Cust Incl. RES & SEC Only, No Sch 40 | C10: CUS | E10: =IF($D11=0,0,E11/$D11) -> 0.8868514082 | F10: 0.1048199589 | G10: 0.007544914861 | H10: 0.0007837180253 | I10: 0 | J10: 0 | K10: 0 | L10: 0 | M10: 0 | N10: 0 | O10: 0 | P10: 0 | Q10: 0 | R10: 0 | S10: 0 | T10: 0 | U10: 0 | V10: 0 | W10: 0 | X10: 0
A11: =IF(A10="~","~","") ->  | B11: =INPUTS!$B$5 -> Historic Test Year Twelve Months ended December 2010 | D11: =SUM(E11:X11) -> 1074366 | E11: =+E8 -> 952803 | F11: =+F8 -> 112615 | G11: =+G8 -> 8106 | H11: =+H8 -> 842 | I11: 0 | J11: 0 | K11: 0 | L11: 0 | M11: 0 | N11: 0 | O11: 0 | P11: 0 | Q11: 0 | R11: 0
A12: =IF(A11="~","~","") -> 
A13: CUST_3 | B13: Wtd. Ave. No. Cust. A/C 903 Customer Records Direct Assignment [NEEDS PROFORMA ADJUSTMENT] | C13: CUS | E13: =IF($D14=0,0,E14/$D14) -> 0.8048167725 | F13: 0.1217321485 | G13: 0.01306794999 | H13: 0.01022576769 | I13: 0.005914462485 | J13: 1.216772753e-05 | K13: 0.002137448355 | L13: 0.02573048266 | M13: 0.008136990242 | N13: 0.0004398373104 | O13: 0.003078861173 | P13: 0.003730284375 | Q13: 0.0008796746208 | R13: 9.715243928e-05 | S13: 0 | T13: 0 | U13: 0 | V13: 0 | W13: 0 | X13: 0
A14: =IF(A13="~","~","") ->  | B14: =INPUTS!$B$5 -> Historic Test Year Twelve Months ended December 2010 | D14: =SUM(E14:X14) -> 21121446 | E14: 16998894 | F14: 2571159 | G14: 276014 | H14: =215726+257 -> 215983 | I14: 124922 | J14: 257 | K14: 45146 | L14: 543465 | M14: 171865 | N14: 9290 | O14: 65030 | P14: 78789 | Q14: 18580 | R14: 2052
A15: =IF(A14="~","~","") -> 
A16: CUST_4 | B16: Wtd. Ave. No. Cust. A/C 902 Meter Reading Direct Assignment [NEEDS PROFORMA ADJUSTMENT] | C16: CUS | E16: =IF($D17=0,0,E17/$D17) -> 0.8360263593 | F16: 0.1244037025 | G16: 0.02831809819 | H16: 0.00344639313 | I16: 0.002043533648 | J16: 4.038832101e-06 | K16: 0.0004593883027 | L16: 0.0007078341746 | M16: 0.002958386817 | N16: 0.0001599377512 | O16: 0.001119391166 | P16: 0 | Q16: 0.0003198178048 | R16: 3.311842323e-05 | S16: 0 | T16: 0 | U16: 0 | V16: 0 | W16: 0 | X16: 0
A17: =IF(A16="~","~","") ->  | B17: =INPUTS!$B$5 -> Historic Test Year Twelve Months ended December 2010 | D17: =SUM(E17:X17) -> 17331743 | E17: 14489794 | F17: 2156133 | G17: 490802 | H17: =59662+70 -> 59732 | I17: 35418 | J17: 70 | K17: 7962 | L17: 12268 | M17: 51274 | N17: 2772 | O17: 19401 | P17: 0 | Q17: 5543 | R17: 574
A18: =IF(A17="~","~","") -> 
A19: DIR_40 | B19: Direct Assignment Schedule 40 | C19: CUS | E19: =IF($D20=0,0,E20/$D20) -> 0 | F19: 0 | G19: 0 | H19: 0 | I19: 0 | J19: 0 | K19: 0 | L19: 1 | M19: 0 | N19: 0 | O19: 0 | P19: 0 | Q19: 0 | R19: 0 | S19: 0 | T19: 0 | U19: 0 | V19: 0 | W19: 0 | X19: 0
A20: =IF(A19="~","~","") ->  | B20: =INPUTS!$B$5 -> Historic Test Year Twelve Months ended December 2010 | D20: =SUM(E20:X20) -> 1 | E20: 0 | F20: 0 | G20: 0 | H20: 0 | I20: 0 | J20: 0 | K20: 0 | L20: 1 | M20: 0 | N20: 0 | O20: 0 | P20: 0 | Q20: 0 | R20: 0
A21: =IF(A20="~","~","") -> 
A22: DIR_449 | B22: Schedule 449 / 459 Retail Billed Revenue | C22: CUS | E22: =IF($D23=0,0,E23/$D23) -> 0 | F22: 0 | G22: 0 | H22: 0 | I22: 0 | J22: 0 | K22: 0 | L22: 0 | M22: 0 | N22: 0.1339794209 | O22: 0.8660205791 | P22: 0 | Q22: 0 | R22: 0 | S22: 0 | T22: 0 | U22: 0 | V22: 0 | W22: 0 | X22: 0
A23: =IF(A22="~","~","") ->  | B23: =INPUTS!$B$5 -> Historic Test Year Twelve Months ended December 2010 | D23: =SUM(E23:X23) -> 6076060 | E23: 0 | F23: 0 | G23: 0 | H23: 0 | I23: 0 | J23: 0 | K23: 0 | L23: 0 | M23: 0 | N23: 814067 | O23: =4687285+574708 -> 5261993 | P23: 0 | Q23: 0 | R23: 0
A25: DIR_449_OATT | B25: Transportation OATT Revenue | C25: CUS | E25: =IF($D26=0,0,E26/$D26) -> 0 | F25: 0 | G25: 0 | H25: 0 | I25: 0 | J25: 0 | K25: 0 | L25: 0 | M25: 0 | N25: 0.06944335747 | O25: 0.9305566425 | P25: 0 | Q25: 0 | R25: 0 | S25: 0 | T25: 0 | U25: 0 | V25: 0 | W25: 0 | X25: 0
A26: =IF(A25="~","~","") ->  | B26: =INPUTS!$B$5 -> Historic Test Year Twelve Months ended December 2010 | D26: =SUM(E26:X26) -> 1009427 | E26: 0 | F26: 0 | G26: 0 | H26: 0 | I26: 0 | J26: 0 | K26: 0 | L26: 0 | M26: 0 | N26: 70098 | O26: =858779+80550 -> 939329 | P26: 0 | Q26: 0 | R26: 0
A27: =IF(A26="~","~","") -> 
A28: DIR_RESALE_SMALL | B28: Small Firm Resale Allocation Only | C28: CUS | E28: =IF($D29=0,0,E29/$D29) -> 0 | F28: 0 | G28: 0 | H28: 0 | I28: 0 | J28: 0 | K28: 0 | L28: 0 | M28: 0 | N28: 0 | O28: 0 | P28: 0 | Q28: 0 | R28: 1 | S28: 0 | T28: 0 | U28: 0 | V28: 0 | W28: 0 | X28: 0
A29: =IF(A28="~","~","") ->  | B29: =INPUTS!$B$5 -> Historic Test Year Twelve Months ended December 2010 | D29: =SUM(E29:X29) -> 1 | E29: 0 | F29: 0 | G29: 0 | H29: 0 | I29: 0 | J29: 0 | K29: 0 | L29: 0 | M29: 0 | N29: 0 | O29: 0 | P29: 0 | Q29: 0 | R29: 1
A30: =IF(A29="~","~","") -> 
A31: DIR_SPEC_CONT | B31: Special Contract Allocation Only | C31: CUS | E31: =IF($D32=0,0,E32/$D32) -> 0 | F31: 0 | G31: 0 | H31: 0 | I31: 0 | J31: 0 | K31: 0 | L31: 0 | M31: 0 | N31: 0 | O31: 0 | P31: 0 | Q31: 1 | R31: 0 | S31: 0 | T31: 0 | U31: 0 | V31: 0 | W31: 0 | X31: 0
A32: =IF(A31="~","~","") ->  | B32: =INPUTS!$B$5 -> Historic Test Year Twelve Months ended December 2010 | D32: =SUM(E32:X32) -> 1 | E32: 0 | F32: 0 | G32: 0 | H32: 0 | I32: 0 | J32: 0 | K32: 0 | L32: 0 | M32: 0 | N32: 0 | O32: 0 | P32: 0 | Q32: 1 | R32: 0
A33: =IF(A100="~","~","") -> 
A34: DIR235.00 | B34: Customer Deposits | C34: CUS | E34: =IF($D35=0,0,E35/$D35) -> 0.8663772979 | F34: 0.1007503599 | G34: 0.0318952102 | H34: 0 | I34: 0.0009771320389 | J34: 0 | K34: 0 | L34: 0 | M34: 0 | N34: 0 | O34: 0 | P34: 0 | Q34: 0 | R34: 0 | S34: 0 | T34: 0 | U34: 0 | V34: 0 | W34: 0 | X34: 0
A35: =IF(A34="~","~","") ->  | B35: =INPUTS!$B$5 -> Historic Test Year Twelve Months ended December 2010 | D35: =SUM(E35:X35) -> 14391095 | E35: 12468118 | F35: 1449908 | G35: 459007 | H35: 0 | I35: 14062 | J35: 0 | K35: 0 | L35: 0 | M35: 0 | N35: 0 | O35: 0 | P35: 0 | Q35: 0 | R35: 0
A36: =IF(A35="~","~","") -> 
A37: DIR252.00 | B37: Customer Advances | C37: CUS | E37: =IF($D38=0,0,E38/$D38) -> 0.6823842169 | F37: 0.2942391728 | G37: 0.02117926159 | H37: 0.002197348631 | I37: 0 | J37: 0 | K37: 0 | L37: 0 | M37: 0 | N37: 0 | O37: 0 | P37: 0 | Q37: 0 | R37: 0 | S37: 0 | T37: 0 | U37: 0 | V37: 0 | W37: 0 | X37: 0
A38: =IF(A37="~","~","") ->  | B38: =INPUTS!$B$5 -> Historic Test Year Twelve Months ended December 2010 | D38: =SUM(E38:X38) -> -67513638 | E38: -46070241 | F38: -19865157 | G38: -1429889 | H38: -148351 | I38: 0 | J38: 0 | K38: 0 | L38: 0 | M38: 0 | N38: 0 | O38: 0 | P38: 0 | Q38: 0 | R38: 0
A39: =IF(A38="~","~","") -> 
A40: DIR368.03C | B40: Line Transformers - Customer Related | C40: CUS | E40: =IF($D41=0,0,E41/$D41) -> 0 | F40: 0 | G40: 0 | H40: 0 | I40: 0.2590495964 | J40: 0 | K40: 0.01702715777 | L40: 0.7187588942 | M40: 0 | N40: 0 | O40: 0 | P40: 0 | Q40: 0 | R40: 0.005164351623 | S40: 0 | T40: 0 | U40: 0 | V40: 0 | W40: 0 | X40: 0
A41: =IF(A40="~","~","") ->  | B41: =INPUTS!$B$5 -> Historic Test Year Twelve Months ended December 2010 | D41: =SUM(E41:X41) -> 3755941 | E41: =+E148 -> 0 | F41: 0 | G41: 0 | H41: 0 | I41: 972975 | J41: 0 | K41: 63953 | L41: 2699616 | M41: 0 | N41: 0 | O41: 0 | P41: 0 | Q41: 0 | R41: 19397
A42: =IF(A41="~","~","") -> 
A43: DIR372.00 | B43: Leased Wtr. Htrs. | C43: CUS | E43: =IF($D44=0,0,E44/$D44) -> 0.9912559011 | F43: 0.008744098943 | G43: 0 | H43: 0 | I43: 0 | J43: 0 | K43: 0 | L43: 0 | M43: 0 | N43: 0 | O43: 0 | P43: 0 | Q43: 0 | R43: 0 | S43: 0 | T43: 0 | U43: 0 | V43: 0 | W43: 0 | X43: 0
A44: =IF(A43="~","~","") ->  | B44: =INPUTS!$B$5 -> Historic Test Year Twelve Months ended December 2010 | D44: =SUM(E44:X44) -> 640775 | E44: =581511+95+53566 -> 635172 | F44: 5603 | G44: 0 | H44: 0 | I44: 0 | J44: 0 | K44: 0 | L44: 0 | M44: 0 | N44: 0 | O44: 0 | P44: 0 | Q44: 0 | R44: 0
A45: =IF(A44="~","~","") -> 
A46: DIR373.00 | B46: Str. & Signal Systems | C46: CUS | E46: =IF($D47=0,0,E47/$D47) -> 0 | F46: 0 | G46: 0 | H46: 0 | I46: 0 | J46: 0 | K46: 0 | L46: 0 | M46: 0 | N46: 0 | O46: 0 | P46: 1 | Q46: 0 | R46: 0 | S46: 0 | T46: 0 | U46: 0 | V46: 0 | W46: 0 | X46: 0
A47: =IF(A46="~","~","") ->  | B47: =INPUTS!$B$5 -> Historic Test Year Twelve Months ended December 2010 | D47: =SUM(E47:X47) -> 1 | E47: 0 | F47: 0 | G47: 0 | H47: 0 | I47: 0 | J47: 0 | K47: 0 | L47: 0 | M47: 0 | N47: 0 | O47: 0 | P47: 1 | Q47: 0 | R47: 0
A48: =IF(A47="~","~","") -> 
A49: DIR450.01 | B49: Late Payment Interest Rev | C49: CUS | E49: =IF($D50=0,0,E50/$D50) -> 0.8184415085 | F49: 0.109689256 | G49: 0.04210576272 | H49: 0.01340967587 | I49: 0.00656828869 | J49: 0 | K49: 0.0005621111508 | L49: 0.001108308134 | M49: 0.001680934003 | N49: 0 | O49: 0.005380125534 | P49: 0.001054029453 | Q49: 0 | R49: 0 | S49: 0 | T49: 0 | U49: 0 | V49: 0 | W49: 0 | X49: 0
A50: =IF(A49="~","~","") ->  | B50: =INPUTS!$B$5 -> Historic Test Year Twelve Months ended December 2010 | D50: =SUM(E50:X50) -> 3518877 | E50: 2879995 | F50: 385983 | G50: 148165 | H50: 47187 | I50: 23113 | J50: 0 | K50: 1978 | L50: 3900 | M50: 5915 | N50: 0 | O50: 18932 | P50: 3709 | Q50: 0 | R50: 0
A52: DIR450.02 | B52: Direct Assign Disconnect Call - A/C 450.02 | C52: CUS | E52: =IF($D53=0,0,E53/$D53) -> 0.8812726206 | F52: 0.1138853565 | G52: 0.004083928397 | H52: 0 | I52: 4.890932212e-05 | J52: 0 | K52: 0 | L52: 0 | M52: 0 | N52: 0 | O52: 0 | P52: 0.0007091851707 | Q52: 0 | R52: 0 | S52: 0 | T52: 0 | U52: 0 | V52: 0 | W52: 0 | X52: 0
A53: =IF(A52="~","~","") ->  | B53: =INPUTS!$B$5 -> Historic Test Year Twelve Months ended December 2010 | D53: =SUM(E53:X53) -> 531596 | E53: 468481 | F53: 60541 | G53: 2171 | H53: 0 | I53: 26 | J53: 0 | K53: 0 | L53: 0 | M53: 0 | N53: 0 | O53: 0 | P53: 377 | Q53: 0 | R53: 0
A55: DIR451.02 | B55: Connect/Reconnect Revenue | C55: CUS | E55: =IF($D56=0,0,E56/$D56) -> 0.9741495075 | F55: 0.02489459923 | G55: 0.0009412901455 | H55: 1.460307918e-05 | I55: 0 | J55: 0 | K55: 0 | L55: 0 | M55: 0 | N55: 0 | O55: 0 | P55: 0 | Q55: 0 | R55: 0 | S55: 0 | T55: 0 | U55: 0 | V55: 0 | W55: 0 | X55: 0
A56: =IF(A55="~","~","") ->  | B56: =INPUTS!$B$5 -> Historic Test Year Twelve Months ended December 2010 | D56: =SUM(E56:X56) -> 1643489 | E56: 1601004 | F56: 40914 | G56: 1547 | H56: 24 | I56: 0 | J56: 0 | K56: 0 | L56: 0 | M56: 0 | N56: 0 | O56: 0 | P56: 0 | Q56: 0 | R56: 0
A57: =IF(A56="~","~","") -> 
A58: DIR451.05 | B58: Billing Initiation Charge | C58: CUS | E58: =IF($D59=0,0,E59/$D59) -> 0.9410289004 | F58: 0.0565605371 | G58: 0.002238833771 | H58: 7.450664336e-05 | I58: 7.541526096e-05 | J58: 0 | K58: 0 | L58: 0 | M58: 2.180682245e-05 | N58: 0 | O58: 0 | P58: 0 | Q58: 0 | R58: 0 | S58: 0 | T58: 0 | U58: 0 | V58: 0 | W58: 0 | X58: 0
A59: =IF(A58="~","~","") ->  | B59: =INPUTS!$B$5 -> Historic Test Year Twelve Months ended December 2010 | D59: =SUM(E59:X59) -> 1100573 | E59: 1035671 | F59: 62249 | G59: 2464 | H59: 82 | I59: 83 | J59: 0 | K59: 0 | L59: 0 | M59: 24 | N59: 0 | O59: 0 | P59: 0 | Q59: 0 | R59: 0
A60: =IF(A59="~","~","") -> 
A61: DIR451.06 | B61: NSF Check Charge Revenue | C61: CUS | E61: =IF($D62=0,0,E62/$D62) -> 0.9582278818 | F61: 0.03466801645 | G61: 0.002202271537 | H61: 7.104101731e-05 | I61: 0.0002131230519 | J61: 0 | K61: 0 | L61: 0 | M61: 0 | N61: 0 | O61: 0 | P61: 0.004617666125 | Q61: 0 | R61: 0 | S61: 0 | T61: 0 | U61: 0 | V61: 0 | W61: 0 | X61: 0
A62: =IF(A61="~","~","") ->  | B62: =INPUTS!$B$5 -> Historic Test Year Twelve Months ended December 2010 | D62: =SUM(E62:X62) -> 225222 | E62: 215814 | F62: 7808 | G62: 496 | H62: 16 | I62: 48 | J62: 0 | K62: 0 | L62: 0 | M62: 0 | N62: 0 | O62: 0 | P62: 1040 | Q62: 0 | R62: 0
A63: =IF(A62="~","~","") -> 
A64: DIR454.05 | B64: Equip. (Transformer & Substation) Rentals | C64: CUS | E64: =IF($D65=0,0,E65/$D65) -> 0 | F64: 9.805494018e-06 | G64: 0.001935417748 | H64: 0 | I64: 0.1137915908 | J64: 0 | K64: 0.003654180771 | L64: 0.01744233961 | M64: 0.6476993393 | N64: 0 | O64: 0.2146681786 | P64: 0 | Q64: 0 | R64: 0.0007991477625 | S64: 0 | T64: 0 | U64: 0 | V64: 0 | W64: 0 | X64: 0
A65: =IF(A64="~","~","") ->  | B65: =INPUTS!$B$5 -> Historic Test Year Twelve Months ended December 2010 | D65: =SUM(E65:X65) -> 4283313 | E65: 0 | F65: 42 | G65: 8290 | H65: 0 | I65: 487405 | J65: 0 | K65: 15652 | L65: 74711 | M65: 2774299 | N65: 0 | O65: 919491 | P65: 0 | Q65: 0 | R65: 3423
A66: =IF(A65="~","~","") -> 
A67: DIR904.00 | B67: Direct Assign 904 Uncollectibles | C67: CUS | E67: =IF($D68=0,0,E68/$D68) -> 0.8770601274 | F67: 0.07649490949 | G67: 0.03277636273 | H67: 0.007080941248 | I67: 0.004358219065 | J67: 0 | K67: 0 | L67: 0 | M67: 0.000768723771 | N67: 0 | O67: 0 | P67: 0.001460716345 | Q67: 0 | R67: 0 | S67: 0 | T67: 0 | U67: 0 | V67: 0 | W67: 0 | X67: 0
A68: =IF(A67="~","~","") ->  | B68: =INPUTS!$B$5 -> Historic Test Year Twelve Months ended December 2010 | D68: =SUM(E68:X68) -> 42499011 | E68: 37274188 | F68: 3250958 | G68: 1392963 | H68: 300933 | I68: 185220 | J68: 0 | K68: 0 | L68: 0 | M68: 32670 | N68: 0 | O68: 0 | P68: 62079 | Q68: 0 | R68: 0
A69: =IF(A68="~","~","") -> 
A70: DIR908.01 | B70: Direct Assign A/C 908 [NEEDS PROFORMA ADJUSTMENT] | C70: CUS | E70: =IF($D71=0,0,E71/$D71) -> 0.8916093761 | F70: 0.09710457777 | G70: 0.006992186583 | H70: 0.0007273751144 | I70: 0.0004223468406 | J70: 0 | K70: 0.0001525141369 | L70: 8.212299679e-05 | M70: 2.346371337e-05 | N70: 0 | O70: 1.173185668e-05 | P70: 0.002862573031 | Q70: 0 | R70: 1.173185668e-05 | S70: 0 | T70: 0 | U70: 0 | V70: 0 | W70: 0 | X70: 0
A71: =IF(A70="~","~","") ->  | B71: =INPUTS!$B$5 -> Historic Test Year Twelve Months ended December 2010 | D71: =SUM(E71:X71) -> 85238 | E71: 75999 | F71: 8277 | G71: 596 | H71: 62 | I71: 36 | J71: 0 | K71: 13 | L71: 7 | M71: 2 | N71: 0 | O71: 1 | P71: 244 | Q71: 0 | R71: 1
A72: =IF(A71="~","~","") -> 
A73: METER | B73: Meter Investment | C73: CUS | E73: =IF($D74=0,0,E74/$D74) -> 0.5319163073 | F73: 0.2320675638 | G73: 0.09114442432 | H73: 0.01005312041 | I73: 0.08934501052 | J73: 0.0001822922894 | K73: 0.03061367264 | L73: 0.005825594312 | M73: 0.004375014946 | N73: 0.0003645845788 | O73: 0.001914069039 | P73: 0 | Q73: 0.0006764220682 | R73: 0.001521923848 | S73: 0 | T73: 0 | U73: 0 | V73: 0 | W73: 0 | X73: 0
A74: =IF(A73="~","~","") ->  | B74: =INPUTS!$B$5 -> Historic Test Year Twelve Months ended December 2010 | D74: =SUM(E74:X74) -> 116252860 | E74: 61836792 | F74: 26978518 | G74: =10325584+270216 -> 10595800 | H74: 1168704 | I74: 10386613 | J74: 21192 | K74: 3558927 | L74: =32034+51832+593376 -> 677242 | M74: =79470+429138 -> 508608 | N74: 42384 | O74: =174834+47682 -> 222516 | P74: 0 | Q74: =19659*4 -> 78636 | R74: 176928
A75: =IF(A74="~","~","") -> 
A76: OH_SVC | B76: Dist OH Services (Sec Voltage Only) | C76: CUS | E76: =IF($D77=0,0,E77/$D77) -> 0.8669838478 | F76: 0.1279019067 | G76: 0.005058839117 | H76: 5.540633318e-05 | I76: 0 | J76: 0 | K76: 0 | L76: 0 | M76: 0 | N76: 0 | O76: 0 | P76: 0 | Q76: 0 | R76: 0 | S76: 0 | T76: 0 | U76: 0 | V76: 0 | W76: 0 | X76: 0
A77: =IF(A76="~","~","") ->  | B77: =INPUTS!$B$5 -> Historic Test Year Twelve Months ended December 2010 | D77: =SUM(E77:X77) -> 415115 | E77: 359898 | F77: 53094 | G77: 2100 | H77: 23 | I77: 0 | J77: 0 | K77: 0 | L77: 0 | M77: 0 | N77: 0 | O77: 0 | P77: 0 | Q77: 0 | R77: 0
A78: =IF(A109="~","~","") -> 
A79: OH_TFMRC | B79: Allocate Overhead Transformers | C79: CUS | E79: =IF($D80=0,0,E80/$D80) -> 0.8400199737 | F79: 0.1392133682 | G79: 0.01949869347 | H79: 0.0001966878676 | I79: 0 | J79: 0 | K79: 0 | L79: 0 | M79: 0 | N79: 0 | O79: 0 | P79: 0.001071276795 | Q79: 0 | R79: 0 | S79: 0 | T79: 0 | U79: 0 | V79: 0 | W79: 0 | X79: 0
A80: =IF(A79="~","~","") ->  | B80: =INPUTS!$B$5 -> Historic Test Year Twelve Months ended December 2010 | D80: =SUM(E80:X80) -> 283967693 | E80: =+E166 -> 238538534 | F80: 39532099 | G80: 5536999 | H80: 55853 | I80: 0 | J80: 0 | K80: 0 | L80: 0 | M80: 0 | N80: 0 | O80: 0 | P80: 304208 | Q80: 0 | R80: 0
A81: =IF(A166="~","~","") -> 
A82: PROFORMA | B82: Proforma Revenue | C82: CUS | E82: =IF($D83=0,0,E83/$D83) -> 0.5465145679 | F82: 0.1238531028 | G82: 0.1309593573 | H82: 0.08210390017 | I82: 0.05232775651 | J82: 0.0001284975422 | K82: 0.006401210519 | L82: 0.02668128427 | M82: 0.01836088874 | N82: 0.0004431322338 | O82: 0.003108027598 | P82: 0.008507950543 | Q82: 0.0004409801333 | R82: 0.0001693438489 | S82: 0 | T82: 0 | U82: 0 | V82: 0 | W82: 0 | X82: 0
A83: =IF(A82="~","~","") ->  | B83: =INPUTS!$B$5 -> Historic Test Year Twelve Months ended December 2010 | D83: =SUM(E83:X83) -> 1995259953 | E83: 1090438631 | F83: 247119136 | G83: 261297961 | H83: 163818624 | I83: 104407477 | J83: 256386 | K83: 12772079 | L83: 53236098 | M83: 36634746 | N83: 884164 | O83: =5546065+655258 -> 6201323 | P83: 16975573 | Q83: 879870 | R83: 337885
A84: =IF(A83="~","~","") -> 
A85: PROFORMA_RETAIL | B85: Proforma Retail Revenue - No Transportation | C85: CUS | E85: =IF($D86=0,0,E86/$D86) -> 0.5487983835 | F85: 0.1243706693 | G85: 0.1315066199 | H85: 0.08244700204 | I85: 0.05254642762 | J85: 0.0001290345172 | K85: 0.006427960372 | L85: 0.026792782 | M85: 0.01843761658 | N85: 0 | O85: 0 | P85: 0.008543504197 | Q85: 0 | R85: 0 | S85: 0 | T85: 0 | U85: 0 | V85: 0 | W85: 0 | X85: 0
A86: =IF(A85="~","~","") ->  | B86: =INPUTS!$B$5 -> Historic Test Year Twelve Months ended December 2010 | D86: =SUM(E86:X86) -> 1986956711 | E86: =+E83 -> 1090438631 | F86: 247119136 | G86: 261297961 | H86: 163818624 | I86: 104407477 | J86: 256386 | K86: 12772079 | L86: 53236098 | M86: 36634746 | N86: 0 | O86: 0 | P86: =+P83 -> 16975573 | Q86: 0 | R86: 0
A87: =IF(A86="~","~","") -> 
A88: RESID | B88: Residential Allocation Only | C88: CUS | E88: =IF($D89=0,0,E89/$D89) -> 1 | F88: 0 | G88: 0 | H88: 0 | I88: 0 | J88: 0 | K88: 0 | L88: 0 | M88: 0 | N88: 0 | O88: 0 | P88: 0 | Q88: 0 | R88: 0 | S88: 0 | T88: 0 | U88: 0 | V88: 0 | W88: 0 | X88: 0
A89: =IF(A88="~","~","") ->  | B89: =INPUTS!$B$5 -> Historic Test Year Twelve Months ended December 2010 | D89: =SUM(E89:X89) -> 1 | E89: 1 | F89: 0 | G89: 0 | H89: 0 | I89: 0 | J89: 0 | K89: 0 | L89: 0 | M89: 0 | N89: 0 | O89: 0 | P89: 0 | Q89: 0 | R89: 0
A90: =IF(A89="~","~","") -> 
A91: UG_TFMRC | B91: Allocate Underground Transformers | C91: CUS | E91: =IF($D92=0,0,E92/$D92) -> 0.6483223268 | F91: 0.191204561 | G91: 0.1272129842 | H91: 0.03300175293 | I91: 0 | J91: 0 | K91: 0 | L91: 0 | M91: 0 | N91: 0 | O91: 0 | P91: 0.0002583750972 | Q91: 0 | R91: 0 | S91: 0 | T91: 0 | U91: 0 | V91: 0 | W91: 0 | X91: 0
A92: =IF(A91="~","~","") ->  | B92: =INPUTS!$B$5 -> Historic Test Year Twelve Months ended December 2010 | D92: =SUM(E92:X92) -> 530689689 | E92: =+E172 -> 344057974 | F92: 101470289 | G92: 67510619 | H92: 17513690 | I92: 0 | J92: 0 | K92: 0 | L92: 0 | M92: 0 | N92: 0 | O92: 0 | P92: 137117 | Q92: 0 | R92: 0
A94: UNBILLED | B94: Direct Assignment of Unbilled Revenue | C94: CUS | E94: =IF($D95=0,0,E95/$D95) -> 0.5971032378 | F94: 0.117012044 | G94: 0.1202711571 | H94: 0.0724105039 | I94: 0.04649628365 | J94: 2.430985373e-06 | K94: 0.007198399171 | L94: 0.01866577631 | M94: 0.0164838412 | N94: 0.0002155194274 | O94: 0.004140806361 | P94: 0 | Q94: 0 | R94: 0 | S94: 0 | T94: 0 | U94: 0 | V94: 0 | W94: 0 | X94: 0
A95: =IF(A94="~","~","") ->  | B95: =INPUTS!$B$5 -> Historic Test Year Twelve Months ended December 2010 | D95: =SUM(E95:X95) -> -11929319 | E95: -7123035 | F95: -1395874 | G95: =-1431907-2846 -> -1434753 | H95: =-859252-4556 -> -863808 | I95: -554669 | J95: -29 | K95: -85872 | L95: -222670 | M95: -196641 | N95: -2571 | O95: =-43330-6067 -> -49397 | P95: 0 | Q95: 0 | R95: 0
A96: =IF(A95="~","~","") -> 
B97: DEMAND EXTERNAL ALLOCATORS
A99: ANCIL | B99: Transportation Ancillary Exp | C99: DEM | E99: =IF($D100=0,0,E100/$D100) -> 0 | F99: 0 | G99: 0 | H99: 0 | I99: 0 | J99: 0 | K99: 0 | L99: 0 | M99: 0 | N99: 0.07610913425 | O99: 0.8268580091 | P99: 0 | Q99: 0.09703285668 | R99: 0 | S99: 0 | T99: 0 | U99: 0 | V99: 0 | W99: 0 | X99: 0
A100: =IF(A99="~","~","") ->  | B100: =INPUTS!$B$5 -> Historic Test Year Twelve Months ended December 2010 | D100: =SUM(E100:X100) -> 469037 | E100: 0 | F100: 0 | G100: 0 | H100: 0 | I100: 0 | J100: 0 | K100: 0 | L100: 0 | M100: 0 | N100: 35698 | O100: =356158+31669 -> 387827 | P100: 0 | Q100: =3671+2135+37390+2316 -> 45512 | R100: 0
A102: DEM_1 | B102: Top 200 CP Hours | C102: DEM | E102: =IF($D103=0,0,E103/$D103) -> 0.5742488097 | F102: 0.1009595478 | G102: 0.1040967901 | H102: 0.06641692151 | I102: 0.03965862669 | J102: 9.62362716e-07 | K102: 0.007317324911 | L102: 0.02275721169 | M102: 0.01778590653 | N102: 0.002762221585 | O102: 0.05606051529 | P102: 0.003281416271 | Q102: 0.004285882355 | R102: 0.0003678631482 | S102: 0 | T102: 0 | U102: 0 | V102: 0 | W102: 0 | X102: 0
A103: =IF(A102="~","~","") ->  | B103: =INPUTS!$B$5 -> Historic Test Year Twelve Months ended December 2010 | D103: =SUM(E103:X103) -> 4156437 | E103: 2386829 | F103: 419632 | G103: 432671.75 | H103: 276057.75 | I103: 164838.5833 | J103: 4 | K103: 30414 | L103: 94588.91667 | M103: 73926 | N103: 11481 | O103: 233012 | P103: 13639 | Q103: 17814 | R103: 1529
A104: =IF(A103="~","~","") -> 
A105: DEM_1A | B105: Top 200 CP Hours Excl. Interruptible | C105: DEM | E105: =IF($D106=0,0,E106/$D106) -> 0.5793147723 | F105: 0.1018502023 | G105: 0.105015121 | H105: 0.0670028446 | I105: 0.04000849091 | J105: 9.708525785e-07 | K105: 0 | L105: 0.02295797341 | M105: 0.01650279484 | N105: 0.002786589613 | O105: 0.05655507525 | P105: 0.003310364579 | Q105: 0.004323691958 | R105: 0.0003711083981 | S105: 0 | T105: 0 | U105: 0 | V105: 0 | W105: 0 | X105: 0
A106: =IF(A105="~","~","") ->  | B106: =INPUTS!$B$5 -> Historic Test Year Twelve Months ended December 2010 | D106: =SUM(E106:X106) -> 4120090 | E106: =+E103 -> 2386829 | F106: 419632 | G106: 432671.75 | H106: 276057.75 | I106: 164838.5833 | J106: 4 | K106: 0 | L106: =+L103 -> 94588.91667 | M106: 67993 | N106: =+N103 -> 11481 | O106: =+O103 -> 233012 | P106: =+P103 -> 13639 | Q106: =+Q103 -> 17814 | R106: =+R103 -> 1529
A107: =IF(A106="~","~","") -> 
A108: DEM_1B | B108: Top 200 CP - No Interruptibles or Transportation | C108: DEM | E108: =IF($D109=0,0,E109/$D109) -> 0.6187048364 | F108: 0.1087754288 | G108: 0.1121555437 | H108: 0.07155865169 | I108: 0.04272883761 | J108: 1.036864956e-06 | K108: 0 | L108: 0.02451898323 | M108: 0.01762488974 | N108: 0 | O108: 0 | P108: 0.003535450283 | Q108: 0 | R108: 0.0003963416294 | S108: 0 | T108: 0 | U108: 0 | V108: 0 | W108: 0 | X108: 0
A109: =IF(A108="~","~","") ->  | B109: =INPUTS!$B$5 -> Historic Test Year Twelve Months ended December 2010 | D109: =SUM(E109:X109) -> 3857783 | E109: =+E106 -> 2386829 | F109: 419632 | G109: 432671.75 | H109: 276057.75 | I109: 164838.5833 | J109: 4 | K109: 0 | L109: 94588.91667 | M109: 67993 | N109: 0 | O109: 0 | P109: =+P106 -> 13639 | Q109: 0 | R109: =+R106 -> 1529
A111: DEM_2A | B111: Top 75 CP - No Interruptibles | C111: DEM | E111: =IF($D112=0,0,E112/$D112) -> 0.5890101024 | F111: 0.1021104275 | G111: 0.1036806119 | H111: 0.06545618343 | I111: 0.03823677281 | J111: 9.215035621e-07 | K111: 0 | L111: 0.02230497452 | M111: 0.01602033943 | N111: 0.002553486371 | O111: 0.05363473258 | P111: 0.002520542618 | Q111: 0.004098387092 | R111: 0.000372517815 | S111: 0 | T111: 0 | U111: 0 | V111: 0 | W111: 0 | X111: 0
A112: =IF(A111="~","~","") ->  | B112: =INPUTS!$B$5 -> Historic Test Year Twelve Months ended December 2010 | D112: =SUM(E112:X112) -> 4340732 | E112: 2556735 | F112: 443234 | G112: 450049.75 | H112: 284127.75 | I112: 165975.5833 | J112: 4 | K112: 0 | L112: 96819.91667 | M112: 69540 | N112: 11084 | O112: 232814 | P112: 10941 | Q112: 17790 | R112: 1617
A113: =IF(A112="~","~","") -> 
A114: DEM_2B | B114: Top 75 CP - No Interruptibles or Transportation | C114: DEM | E114: =IF($D115=0,0,E115/$D115) -> 0.6267976026 | F114: 0.1086612451 | G114: 0.1103321636 | H114: 0.06965547565 | I114: 0.04068982422 | J114: 9.8062193e-07 | K114: 0 | L114: 0.02373593339 | M114: 0.01704811225 | N114: 0 | O114: 0 | P114: 0.002682246134 | Q114: 0 | R114: 0.0003964164152 | S114: 0 | T114: 0 | U114: 0 | V114: 0 | W114: 0 | X114: 0
A115: =IF(A114="~","~","") ->  | B115: =INPUTS!$B$5 -> Historic Test Year Twelve Months ended December 2010 | D115: =SUM(E115:X115) -> 4079044 | E115: =+E112 -> 2556735 | F115: 443234 | G115: 450049.75 | H115: 284127.75 | I115: 165975.5833 | J115: 4 | K115: 0 | L115: 96819.91667 | M115: 69540 | N115: 0 | O115: 0 | P115: =+P112 -> 10941 | Q115: 0 | R115: =+R112 -> 1617
A116: =IF(A115="~","~","") -> 
A117: DIR108.360 | B117: Direct Assign Substation Ease - Accum Depr | C117: DEM | E117: =IF($D118=0,0,E118/$D118) -> 0 | F117: 0 | G117: 0 | H117: 0 | I117: 0 | J117: 0 | K117: 0 | L117: 1 | M117: 0 | N117: 0 | O117: 0 | P117: 0 | Q117: 0 | R117: 0 | S117: 0 | T117: 0 | U117: 0 | V117: 0 | W117: 0 | X117: 0
A118: =IF(A117="~","~","") ->  | B118: =INPUTS!$B$5 -> Historic Test Year Twelve Months ended December 2010 | D118: =SUM(E118:X118) -> -116 | E118: 0 | F118: 0 | G118: 0 | H118: 0 | I118: 0 | J118: 0 | K118: 0 | L118: -116 | M118: 0 | N118: 0 | O118: 0 | P118: 0 | Q118: 0 | R118: 0
A119: =IF(A118="~","~","") -> 
A120: DIR108.361 | B120: Direct Assign Substation Structures - Accum Depr | C120: DEM | E120: =IF($D121=0,0,E121/$D121) -> 0 | F120: 0 | G120: 0 | H120: 0 | I120: 0 | J120: 0 | K120: 0 | L120: 0.3058382274 | M120: 0.4045347029 | N120: 0 | O120: 0.2692304858 | P120: 0 | Q120: 0.02039658387 | R120: 0 | S120: 0 | T120: 0 | U120: 0 | V120: 0 | W120: 0 | X120: 0
A121: =IF(A120="~","~","") ->  | B121: =INPUTS!$B$5 -> Historic Test Year Twelve Months ended December 2010 | D121: =SUM(E121:X121) -> -135709 | E121: 0 | F121: 0 | G121: 0 | H121: 0 | I121: 0 | J121: 0 | K121: 0 | L121: -41505 | M121: -54899 | N121: 0 | O121: -36537 | P121: 0 | Q121: -2768 | R121: 0
A122: =IF(A121="~","~","") -> 
A123: DIR108.362 | B123: Direct Assign Substation Equipment - Accum Depr | C123: DEM | E123: =IF($D124=0,0,E124/$D124) -> 0 | F123: 0 | G123: 0 | H123: 0 | I123: 0 | J123: 0 | K123: 0 | L123: 0.2850619584 | M123: 0.3318725838 | N123: 0 | O123: 0.3204826738 | P123: 0 | Q123: 0.06258278401 | R123: 0 | S123: 0 | T123: 0 | U123: 0 | V123: 0 | W123: 0 | X123: 0
A124: =IF(A123="~","~","") ->  | B124: =INPUTS!$B$5 -> Historic Test Year Twelve Months ended December 2010 | D124: =SUM(E124:X124) -> -10263909 | E124: 0 | F124: 0 | G124: 0 | H124: 0 | I124: 0 | J124: 0 | K124: 0 | L124: -2925850 | M124: -3406310 | N124: 0 | O124: -3289405 | P124: 0 | Q124: -642344 | R124: 0
A125: =IF(A124="~","~","") -> 
A126: DIR108.364 | B126: Direct Assign OH Dist Lines - Accum Depr | C126: DEM | E126: =IF($D127=0,0,E127/$D127) -> 0 | F126: 0 | G126: 0 | H126: 0 | I126: 0 | J126: 0 | K126: 0 | L126: 0.6819980253 | M126: 0 | N126: 0 | O126: 0 | P126: 0 | Q126: 0.3180019747 | R126: 0 | S126: 0 | T126: 0 | U126: 0 | V126: 0 | W126: 0 | X126: 0
A127: =IF(A126="~","~","") ->  | B127: =INPUTS!$B$5 -> Historic Test Year Twelve Months ended December 2010 | D127: =SUM(E127:X127) -> -2218090 | E127: 0 | F127: 0 | G127: 0 | H127: 0 | I127: 0 | J127: 0 | K127: 0 | L127: =-1512734+1 -> -1512733 | M127: 0 | N127: 0 | O127: 0 | P127: 0 | Q127: -705357 | R127: 0
A128: =IF(A127="~","~","") -> 
A129: DIR108.366 | B129: Direct Assign UG Dist Lines | C129: DEM | E129: =IF($D130=0,0,E130/$D130) -> 0 | F129: 0 | G129: 0 | H129: 0 | I129: 0 | J129: 0 | K129: 0 | L129: 0.8641703509 | M129: 0.06630555668 | N129: 0 | O129: 0.02679737092 | P129: 0 | Q129: 0.04272672148 | R129: 0 | S129: 0 | T129: 0 | U129: 0 | V129: 0 | W129: 0 | X129: 0
A130: =IF(A129="~","~","") ->  | B130: =INPUTS!$B$5 -> Historic Test Year Twelve Months ended December 2010 | D130: =SUM(E130:X130) -> -9245198 | E130: 0 | F130: 0 | G130: 0 | H130: 0 | I130: 0 | J130: 0 | K130: 0 | L130: -7989426 | M130: -613008 | N130: 0 | O130: -247747 | P130: 0 | Q130: -395017 | R130: 0
A131: =IF(A130="~","~","") -> 
A132: DIR360.01 | B132: Direct Assign Substation Land | C132: DEM | E132: =IF($D133=0,0,E133/$D133) -> 0 | F132: 0 | G132: 0 | H132: 0 | I132: 0 | J132: 0 | K132: 0 | L132: 0.5212094314 | M132: 0.4606733064 | N132: 0 | O132: 0 | P132: 0 | Q132: 0.01811726221 | R132: 0 | S132: 0 | T132: 0 | U132: 0 | V132: 0 | W132: 0 | X132: 0
A133: =IF(A132="~","~","") ->  | B133: =INPUTS!$B$5 -> Historic Test Year Twelve Months ended December 2010 | D133: =SUM(E133:X133) -> 1611005 | E133: 0 | F133: 0 | G133: 0 | H133: 0 | I133: 0 | J133: 0 | K133: 0 | L133: 839671 | M133: 742147 | N133: 0 | O133: 0 | P133: 0 | Q133: 29187 | R133: 0
A134: =IF(A133="~","~","") -> 
A135: DIR361.01 | B135: Direct Assign Substation Structures | C135: DEM | E135: =IF($D136=0,0,E136/$D136) -> 0 | F135: 0 | G135: 0 | H135: 0 | I135: 0 | J135: 0 | K135: 0 | L135: 0.3051432305 | M135: 0.3895867587 | N135: 0 | O135: 0.2609399933 | P135: 0 | Q135: 0.04433001747 | R135: 0 | S135: 0 | T135: 0 | U135: 0 | V135: 0 | W135: 0 | X135: 0
A136: =IF(A135="~","~","") ->  | B136: =INPUTS!$B$5 -> Historic Test Year Twelve Months ended December 2010 | D136: =SUM(E136:X136) -> 418046.3049 | E136: 0 | F136: 0 | G136: 0 | H136: 0 | I136: 0 | J136: 0 | K136: 0 | L136: 127564 | M136: 162865.3049 | N136: 0 | O136: 109085 | P136: 0 | Q136: 18532 | R136: 0
A137: =IF(A136="~","~","") -> 
A138: DIR362.01 | B138: Direct Assign Substation Equipment | C138: DEM | E138: =IF($D139=0,0,E139/$D139) -> 0 | F138: 0 | G138: 0 | H138: 0 | I138: 0 | J138: 0 | K138: 0 | L138: 0.341271881 | M138: 0.3617386701 | N138: 0 | O138: 0.2417019918 | P138: 0 | Q138: 0.05528745717 | R138: 0 | S138: 0 | T138: 0 | U138: 0 | V138: 0 | W138: 0 | X138: 0
A139: =IF(A138="~","~","") ->  | B139: =INPUTS!$B$5 -> Historic Test Year Twelve Months ended December 2010 | D139: =SUM(E139:X139) -> 24960779 | E139: 0 | F139: 0 | G139: 0 | H139: 0 | I139: 0 | J139: 0 | K139: 0 | L139: 8518412 | M139: 9029279 | N139: 0 | O139: 6033070 | P139: 0 | Q139: 1380018 | R139: 0
A140: =IF(A139="~","~","") -> 
A141: DIR364.01 | B141: Direct Assign OH Dist Lines | C141: DEM | E141: =IF($D142=0,0,E142/$D142) -> 0 | F141: 0 | G141: 0 | H141: 0 | I141: 0 | J141: 0 | K141: 0 | L141: 0.6991177752 | M141: 0 | N141: 0 | O141: 0 | P141: 0 | Q141: 0.3008822248 | R141: 0 | S141: 0 | T141: 0 | U141: 0 | V141: 0 | W141: 0 | X141: 0
A142: =IF(A141="~","~","") ->  | B142: =INPUTS!$B$5 -> Historic Test Year Twelve Months ended December 2010 | D142: =SUM(E142:X142) -> 2527587 | E142: 0 | F142: 0 | G142: 0 | H142: 0 | I142: 0 | J142: 0 | K142: 0 | L142: 1767081 | M142: 0 | N142: 0 | O142: 0 | P142: 0 | Q142: 760506 | R142: 0
A143: =IF(A142="~","~","") -> 
A144: DIR366.01 | B144: Direct Assign UG Dist Lines | C144: DEM | E144: =IF($D145=0,0,E145/$D145) -> 0 | F144: 0 | G144: 0 | H144: 0 | I144: 0 | J144: 0 | K144: 0 | L144: 0.8787747428 | M144: 0.07130702175 | N144: 0 | O144: 0.0267001294 | P144: 0 | Q144: 0.02321810603 | R144: 0 | S144: 0 | T144: 0 | U144: 0 | V144: 0 | W144: 0 | X144: 0
A145: =IF(A144="~","~","") ->  | B145: =INPUTS!$B$5 -> Historic Test Year Twelve Months ended December 2010 | D145: =SUM(E145:X145) -> 25269503 | E145: 0 | F145: 0 | G145: 0 | H145: 0 | I145: 0 | J145: 0 | K145: 0 | L145: 22206201 | M145: 1801893 | N145: 0 | O145: 674699 | P145: 0 | Q145: 586710 | R145: 0
A146: =IF(A145="~","~","") -> 
A147: DIR368.03 | B147: Line Transformers | C147: DEM | E147: =IF($D148=0,0,E148/$D148) -> 0 | F147: 0 | G147: 0 | H147: 0 | I147: 0.2590495964 | J147: 0 | K147: 0.01702715777 | L147: 0.7187588942 | M147: 0 | N147: 0 | O147: 0 | P147: 0 | Q147: 0 | R147: 0.005164351623 | S147: 0 | T147: 0 | U147: 0 | V147: 0 | W147: 0 | X147: 0
A148: =IF(A147="~","~","") ->  | B148: =INPUTS!$B$5 -> Historic Test Year Twelve Months ended December 2010 | D148: =SUM(E148:X148) -> 3755941 | E148: 0 | F148: 0 | G148: 0 | H148: 0 | I148: 972975 | J148: 0 | K148: 63953 | L148: 2699616 | M148: 0 | N148: 0 | O148: 0 | P148: 0 | Q148: 0 | R148: 19397
A149: =IF(A148="~","~","") -> 
A150: IMBAL | B150: Transportation Imbalance Exp | C150: DEM | E150: =IF($D151=0,0,E151/$D151) -> 0 | F150: 0 | G150: 0 | H150: 0 | I150: 0 | J150: 0 | K150: 0 | L150: 0 | M150: 0 | N150: 0.1618725179 | O150: 0.8183306702 | P150: 0 | Q150: 0.01979681193 | R150: 0 | S150: 0 | T150: 0 | U150: 0 | V150: 0 | W150: 0 | X150: 0
A151: =IF(A150="~","~","") ->  | B151: =INPUTS!$B$5 -> Historic Test Year Twelve Months ended December 2010 | D151: =SUM(E151:X151) -> 1975116 | E151: 0 | F151: 0 | G151: 0 | H151: 0 | I151: 0 | J151: 0 | K151: 0 | L151: 0 | M151: 0 | N151: 319717 | O151: =2330664-714366 -> 1616298 | P151: 0 | Q151: 39101 | R151: 0
A153: NCP_360 | B153: Allocate Substation Land - 12 NCP | C153: DEM | E153: =IF($D154=0,0,E154/$D154) -> 0.4587102155 | F153: 0.1376451162 | G153: 0.1611212194 | H153: 0.1209865816 | I153: 0.09348066872 | J153: 3.366265834e-05 | K153: 0.00952285129 | L153: 0 | M153: 0 | N153: 0.008481656199 | O153: 0 | P153: 0.009919974632 | Q153: 0 | R153: 9.805382888e-05 | S153: 0 | T153: 0 | U153: 0 | V153: 0 | W153: 0 | X153: 0
A154: =IF(A153="~","~","") ->  | B154: =INPUTS!$B$5 -> Historic Test Year Twelve Months ended December 2010 | D154: =SUM(E154:X154) -> 18744806 | E154: 8598434 | F154: 2580131 | G154: =3019782+404 -> 3020186 | H154: 2267870 | I154: 1752277 | J154: 631 | K154: 178504 | L154: 0 | M154: 0 | N154: 158987 | O154: 0 | P154: 185948 | Q154: 0 | R154: 1838
A155: =IF(A154="~","~","") -> 
A156: NCP_361 | B156: Allocate Substation Structures - 12 NCP | C156: DEM | E156: =IF($D157=0,0,E157/$D157) -> 0.4989968123 | F156: 0.1380644251 | G156: 0.1598411076 | H156: 0.1113934984 | I156: 0.06704996228 | J156: 0 | K156: 0.01171356991 | L156: 0 | M156: 0 | N156: 0.004323049053 | O156: 0 | P156: 0.008562831346 | Q156: 0 | R156: 5.474399006e-05 | S156: 0 | T156: 0 | U156: 0 | V156: 0 | W156: 0 | X156: 0
A157: =IF(A156="~","~","") ->  | B157: =INPUTS!$B$5 -> Historic Test Year Twelve Months ended December 2010 | D157: =SUM(E157:X157) -> 12165719 | E157: 6070655 | F157: 1679653 | G157: =1941257+3325 -> 1944582 | H157: 1355182 | I157: 815711 | J157: 0 | K157: 142504 | L157: 0 | M157: 0 | N157: 52593 | O157: 0 | P157: 104173 | Q157: 0 | R157: 666
A158: =IF(A157="~","~","") -> 
A159: NCP_362 | B159: Allocate Substation Equipment - 12 NCP | C159: DEM | E159: =IF($D160=0,0,E160/$D160) -> 0.535910104 | F159: 0.1414877841 | G159: 0.1403281463 | H159: 0.08987634979 | I159: 0.06936652474 | J159: 0.0003924801241 | K159: 0.009704873601 | L159: 0 | M159: 0 | N159: 0.004546629103 | O159: 0 | P159: 0.008171250629 | Q159: 0 | R159: 0.0002158576391 | S159: 0 | T159: 0 | U159: 0 | V159: 0 | W159: 0 | X159: 0
A160: =IF(A159="~","~","") ->  | B160: =INPUTS!$B$5 -> Historic Test Year Twelve Months ended December 2010 | D160: =SUM(E160:X160) -> 808815480 | E160: 433452388 | F160: 114437510 | G160: =113293374+206203 -> 113499577 | H160: 72693383 | I160: 56104719 | J160: 317444 | K160: 7849452 | L160: 0 | M160: 0 | N160: 3677384 | O160: 0 | P160: 6609034 | Q160: 0 | R160: 174589
A161: =IF(A160="~","~","") -> 
A162: OH_NCP | B162: Allocate Overhead Lines - 12 NCP | C162: DEM | E162: =IF($D163=0,0,E163/$D163) -> 0.6925727733 | F162: 0.1189264406 | G162: 0.0937777691 | H162: 0.03798959056 | I162: 0.03858818245 | J162: 0.001060474382 | K162: 0.01138301093 | L162: 0 | M162: 0 | N162: 1.952991495e-06 | O162: 0 | P162: 0.005279912506 | Q162: 0 | R162: 0.0004198931714 | S162: 0 | T162: 0 | U162: 0 | V162: 0 | W162: 0 | X162: 0
A163: =IF(A162="~","~","") ->  | B163: =INPUTS!$B$5 -> Historic Test Year Twelve Months ended December 2010 | D163: =SUM(E163:X163) -> 10240.7 | E163: 7092.43 | F163: 1217.89 | G163: 960.35 | H163: 389.04 | I163: 395.17 | J163: 10.86 | K163: 116.57 | L163: 0 | M163: 0 | N163: 0.02 | O163: 0 | P163: 54.07 | Q163: 0 | R163: 4.3
A164: =IF(A163="~","~","") -> 
A165: OH_TFMR | B165: Allocate Overhead Transformers | C165: DEM | E165: =IF($D166=0,0,E166/$D166) -> 0.8400199737 | F165: 0.1392133682 | G165: 0.01949869347 | H165: 0.0001966878676 | I165: 0 | J165: 0 | K165: 0 | L165: 0 | M165: 0 | N165: 0 | O165: 0 | P165: 0.001071276795 | Q165: 0 | R165: 0 | S165: 0 | T165: 0 | U165: 0 | V165: 0 | W165: 0 | X165: 0
A166: =IF(A165="~","~","") ->  | B166: =INPUTS!$B$5 -> Historic Test Year Twelve Months ended December 2010 | D166: =SUM(E166:X166) -> 283967693 | E166: 238538534 | F166: =7355654+32176445 -> 39532099 | G166: =374314+4024546+1138139 -> 5536999 | H166: 55853 | I166: 0 | J166: 0 | K166: 0 | L166: 0 | M166: 0 | N166: 0 | O166: 0 | P166: =133459+6401+164348 -> 304208 | Q166: 0 | R166: 0
A168: UG_NCP | B168: Allocate Underground Lines - 12 NCP | C168: DEM | E168: =IF($D169=0,0,E169/$D169) -> 0.6788510189 | F168: 0.116608293 | G168: 0.1039055511 | H168: 0.04698028735 | I168: 0.03411240376 | J168: 0.0004133608772 | K168: 0.0126703214 | L168: 0 | M168: 0 | N168: 0.0001529840501 | O168: 0 | P168: 0.006130506539 | Q168: 0 | R168: 0.0001752731171 | S168: 0 | T168: 0 | U168: 0 | V168: 0 | W168: 0 | X168: 0
A169: =IF(A168="~","~","") ->  | B169: =INPUTS!$B$5 -> Historic Test Year Twelve Months ended December 2010 | D169: =SUM(E169:X169) -> 9870.31 | E169: 6700.47 | F169: 1150.96 | G169: 1025.58 | H169: 463.71 | I169: 336.7 | J169: 4.08 | K169: 125.06 | L169: 0 | M169: 0 | N169: 1.51 | O169: 0 | P169: 60.51 | Q169: 0 | R169: 1.73
A170: =IF(A169="~","~","") -> 
A171: UG_TFMR | B171: Allocate Underground Transformers | C171: DEM | E171: =IF($D172=0,0,E172/$D172) -> 0.6483223268 | F171: 0.191204561 | G171: 0.1272129842 | H171: 0.03300175293 | I171: 0 | J171: 0 | K171: 0 | L171: 0 | M171: 0 | N171: 0 | O171: 0 | P171: 0.0002583750972 | Q171: 0 | R171: 0 | S171: 0 | T171: 0 | U171: 0 | V171: 0 | W171: 0 | X171: 0
A172: =IF(A171="~","~","") ->  | B172: =INPUTS!$B$5 -> Historic Test Year Twelve Months ended December 2010 | D172: =SUM(E172:X172) -> 530689689 | E172: 344057974 | F172: =10942070+90528219 -> 101470289 | G172: =3517211+63499905+493503 -> 67510619 | H172: =17193461+320229 -> 17513690 | I172: 0 | J172: 0 | K172: 0 | L172: 0 | M172: 0 | N172: 0 | O172: 0 | P172: =13181+1033+122903 -> 137117 | Q172: 0 | R172: 0
A173: =IF(A172="~","~","") -> 
B174: ENERGY EXTERNAL ALLOCATORS
A176: BPAX | B176: BPA Residential Exchange kWh | C176: NRG | E176: =IF($D177=0,0,E177/$D177) -> 0.9503114988 | F176: 0.02552183519 | G176: 0.01755474065 | H176: 0.002256301082 | I176: 0.003750283192 | J176: 0.0004138212168 | K176: 0 | L176: 0 | M176: 0 | N176: 0 | O176: 0 | P176: 0.0001915198421 | Q176: 0 | R176: 0 | S176: 0 | T176: 0 | U176: 0 | V176: 0 | W176: 0 | X176: 0
A177: =IF(A176="~","~","") ->  | B177: =INPUTS!$B$5 -> Historic Test Year Twelve Months ended December 2010 | D177: =SUM(E177:X177) -> 11209188440 | E177: 10652220667 | F177: 286079060 | G177: 196774396 | H177: 25291304 | I177: 42037631 | J177: 4638600 | K177: 0 | L177: 0 | M177: 0 | N177: 0 | O177: 0 | P177: 2146782 | Q177: 0 | R177: 0
A179: ENERGY_1 | B179: Annual kWhs | C179: NRG | E179: =IF($D180=0,0,E180/$D180) -> 0.4660327531 | F179: 0.1128195417 | G179: 0.1272862451 | H179: 0.08623511589 | I179: 0.05467213757 | J179: 0.0001921007494 | K179: 0.006159224206 | L179: 0.03204797359 | M179: 0.0237032717 | N179: 0.004412574228 | O179: 0.07642898904 | P179: 0.003632684934 | Q179: 0.006073399688 | R179: 0.0003039885404 | S179: 0 | T179: 0 | U179: 0 | V179: 0 | W179: 0 | X179: 0
A180: =IF(A179="~","~","") ->  | B180: =INPUTS!$B$5 -> Historic Test Year Twelve Months ended December 2010 | D180: =SUM(E180:X180) -> 25021032008 | E180: 11660620432 | F180: 2822861364 | G180: 3184833212 | H180: 2157691595 | I180: 1367953304 | J180: 4806559 | K180: 154110146 | L180: 801873373 | M180: 593080320 | N180: 110407161 | O180: 1912332181 | P180: 90893526 | Q180: 151962728 | R180: 7606107
A182: ENERGY_2 | B182: Energy - NO RETAIL WHEELING | C182: NRG | E182: =IF($D183=0,0,E183/$D183) -> 0.5103935934 | F182: 0.123558636 | G182: 0.1394023995 | H182: 0.0944436853 | I182: 0.05987628244 | J182: 0.0002103864828 | K182: 0.006745509954 | L182: 0.03509856398 | M182: 0.02595954456 | N182: 0 | O182: 0 | P182: 0.00397847384 | Q182: 0 | R182: 0.0003329246763 | S182: 0 | T182: 0 | U182: 0 | V182: 0 | W182: 0 | X182: 0
A183: =IF(A182="~","~","") ->  | B183: =INPUTS!$B$5 -> Historic Test Year Twelve Months ended December 2010 | D183: =SUM(E183:X183) -> 22846329938 | E183: =+E180 -> 11660620432 | F183: 2822861364 | G183: 3184833212 | H183: 2157691595 | I183: 1367953304 | J183: 4806559 | K183: 154110146 | L183: 801873373 | M183: 593080320 | N183: 0 | O183: 0 | P183: =+P180 -> 90893526 | Q183: 0 | R183: =+R180 -> 7606107

Sheet INTERNAL
A1: Internal Allocators
C2: Line Ref. | D2: =FUNCALLOC!E2 -> 4 | E2: =FUNCALLOC!F2 -> 5 | F2: =FUNCALLOC!G2 -> 6 | G2: =FUNCALLOC!H2 -> 7 | H2: =FUNCALLOC!I2 -> 8 | I2: =FUNCALLOC!J2 -> 9 | J2: =FUNCALLOC!K2 -> 10 | K2: =FUNCALLOC!L2 -> 11 | L2: =FUNCALLOC!M2 -> 12 | M2: =FUNCALLOC!N2 -> 13 | N2: =FUNCALLOC!O2 -> 14 | O2: =FUNCALLOC!P2 -> 15 | P2: =FUNCALLOC!Q2 -> 16 | Q2: =FUNCALLOC!R2 -> 17 | R2: =FUNCALLOC!S2 -> 18 | S2: =FUNCALLOC!T2 -> 19 | T2: =FUNCALLOC!U2 -> 20 | U2: =FUNCALLOC!V2 -> 21 | V2: =FUNCALLOC!W2 -> 22 | W2: =FUNCALLOC!X2 -> 23 | X2: =FUNCALLOC!Y2 -> 24 | Y2: =FUNCALLOC!Z2 -> 25 | Z2: =FUNCALLOC!AA2 -> 26 | AA2: =FUNCALLOC!AB2 -> 27 | AB2: =FUNCALLOC!AC2 -> 28 | AC2: =FUNCALLOC!AD2 -> 29 | AD2: =FUNCALLOC!AE2 -> 30 | AE2: =FUNCALLOC!AF2 -> 31 | AF2: =FUNCALLOC!AG2 -> 32 | AG2: =FUNCALLOC!AH2 -> 33 | AH2: =FUNCALLOC!AI2 -> 34 | AI2: =FUNCALLOC!AJ2 -> 35 | AJ2: =FUNCALLOC!AK2 -> 36 | AK2: =FUNCALLOC!AL2 -> 37 | AL2: =FUNCALLOC!AM2 -> 38 | AM2: =FUNCALLOC!AN2 -> 39 | AN2: =FUNCALLOC!AO2 -> 40 | AO2: =FUNCALLOC!AP2 -> 41 | AP2: =FUNCALLOC!AQ2 -> 42 | AQ2: =FUNCALLOC!AR2 -> 43 | AR2: =FUNCALLOC!AS2 -> 44 | AS2: =FUNCALLOC!AT2 -> 45 | AT2: =FUNCALLOC!AU2 -> 46 | AU2: =FUNCALLOC!AV2 -> 47 | AV2: =FUNCALLOC!AW2 -> 48 | AW2: =FUNCALLOC!AX2 -> 49 | AX2: =FUNCALLOC!AY2 -> 50 | AY2: =FUNCALLOC!AZ2 -> 51 | AZ2: =FUNCALLOC!BA2 -> 52 | BA2: =FUNCALLOC!BB2 -> 53 | BB2: =FUNCALLOC!BC2 -> 54 | BC2: =FUNCALLOC!BD2 -> 55 | BD2: =FUNCALLOC!BE2 -> 56 | BE2: =FUNCALLOC!BF2 -> 57 | BF2: =FUNCALLOC!BG2 -> 58 | BG2: =FUNCALLOC!BH2 -> 59 | BH2: =FUNCALLOC!BI2 -> 60 | BI2: =FUNCALLOC!BJ2 -> 61 | BJ2: =FUNCALLOC!BK2 -> 62 | BK2: =FUNCALLOC!BL2 -> 63 | BL2: =FUNCALLOC!BM2 -> 64 | BM2: =FUNCALLOC!BN2 -> 65 | BN2: =FUNCALLOC!BO2 -> 66 | BO2: =FUNCALLOC!BP2 -> 67 | BP2: =FUNCALLOC!BQ2 -> 68 | BQ2: =FUNCALLOC!BR2 -> 69 | BR2: =FUNCALLOC!BS2 -> 70 | BS2: =FUNCALLOC!BT2 -> 71 | BT2: =FUNCALLOC!BU2 -> 72 | BU2: =FUNCALLOC!BV2 -> 73 | BV2: =FUNCALLOC!BW2 -> 74 | BW2: =FUNCALLOC!BX2 -> 75 | BX2: =FUNCALLOC!BY2 -> 76 | BY2: =FUNCALLOC!BZ2 -> 77
A3: Name | B3: Description | C3: Total | D3: =FUNCALLOC!E3 -> F_PRODU_DEM_2A | E3: =FUNCALLOC!F3 -> F_PRODU_DEM_2B | F3: =FUNCALLOC!G3 -> F_TRANS_DEM_2B | G3: =FUNCALLOC!H3 -> F_TRANS_DEM_2A | H3: =FUNCALLOC!I3 -> F_DISTR_DIR360.01 | I3: =FUNCALLOC!J3 -> F_DISTR_NCP_360 | J3: =FUNCALLOC!K3 -> F_DISTR_DEM_2A | K3: =FUNCALLOC!L3 -> F_DISTR_DIR361.01 | L3: =FUNCALLOC!M3 -> F_DISTR_NCP_361 | M3: =FUNCALLOC!N3 -> F_DISTR_DIR362.01 | N3: =FUNCALLOC!O3 -> F_DISTR_NCP_362 | O3: =FUNCALLOC!P3 -> F_DISTR_OH_NCP | P3: =FUNCALLOC!Q3 -> F_DISTR_DIR364.01 | Q3: =FUNCALLOC!R3 -> F_DISTR_UG_NCP | R3: =FUNCALLOC!S3 -> F_DISTR_DIR366.01 | S3: =FUNCALLOC!T3 -> F_DISTR_OH_TFMR | T3: =FUNCALLOC!U3 -> F_DISTR_UG_TFMR | U3: =FUNCALLOC!V3 -> F_DISTR_DIR368.03 | V3: =FUNCALLOC!W3 -> F_DISTR_DIR108.360 | W3: =FUNCALLOC!X3 -> F_DISTR_DIR108.361 | X3: =FUNCALLOC!Y3 -> F_DISTR_DIR108.362 | Y3: =FUNCALLOC!Z3 -> F_DISTR_DIR108.364 | Z3: =FUNCALLOC!AA3 -> F_DISTR_DIR108.366 | AA3: =FUNCALLOC!AB3 -> F_PRODU_ANCIL | AB3: =FUNCALLOC!AC3 -> F_PRODU_IMBAL | AC3: =FUNCALLOC!AD3 -> F_PRODU_ENERGY_2 | AD3: =FUNCALLOC!AE3 -> F_TRANS_ENERGY_2 | AE3: =FUNCALLOC!AF3 -> F_TRANS_ENERGY_1 | AF3: =FUNCALLOC!AG3 -> F_DISTR_ENERGY_1 | AG3: =FUNCALLOC!AH3 -> F_PRODU_BPAX | AH3: =FUNCALLOC!AI3 -> F_PRODU_ENERGY_1 | AI3: =FUNCALLOC!AJ3 -> F_DISTR_ENERGY_2 | AJ3: =FUNCALLOC!AK3 -> F_DISTR_OH_TFMRC | AK3: =FUNCALLOC!AL3 -> F_DISTR_UG_TFMRC | AL3: =FUNCALLOC!AM3 -> F_DISTR_DIR368.03C | AM3: =FUNCALLOC!AN3 -> F_DISTR_OH_SVC | AN3: =FUNCALLOC!AO3 -> F_DISTR_RESID | AO3: =FUNCALLOC!AP3 -> F_DISTR_METER | AP3: =FUNCALLOC!AQ3 -> F_DISTR_DIR372.00 | AQ3: =FUNCALLOC!AR3 -> F_DISTR_DIR373.00 | AR3: =FUNCALLOC!AS3 -> F_DISTR_DIR235.00 | AS3: =FUNCALLOC!AT3 -> F_DISTR_DIR252.00 | AT3: =FUNCALLOC!AU3 -> F_DISTR_CUST_4 | AU3: =FUNCALLOC!AV3 -> F_DISTR_CUST_3 | AV3: =FUNCALLOC!AW3 -> F_DISTR_DIR904.00 | AW3: =FUNCALLOC!AX3 -> F_DISTR_CUST_1 | AX3: =FUNCALLOC!AY3 -> F_DISTR_DIR908.01 | AY3: =FUNCALLOC!AZ3 -> F_DISTR_DIR450.01 | AZ3: =FUNCALLOC!BA3 -> F_DISTR_DIR450.02 | BA3: =FUNCALLOC!BB3 -> F_DISTR_CUST_2 | BB3: =FUNCALLOC!BC3 -> F_DISTR_DIR451.02 | BC3: =FUNCALLOC!BD3 -> F_DISTR_DIR451.05 | BD3: =FUNCALLOC!BE3 -> F_DISTR_DIR451.06 | BE3: =FUNCALLOC!BF3 -> F_DISTR_DIR454.05 | BF3: =FUNCALLOC!BG3 -> ~ | BG3: =FUNCALLOC!BH3 -> ~ | BH3: =FUNCALLOC!BI3 -> ~ | BI3: =FUNCALLOC!BJ3 -> ~ | BJ3: =FUNCALLOC!BK3 -> ~ | BK3: =FUNCALLOC!BL3 -> ~ | BL3: =FUNCALLOC!BM3 -> ~ | BM3: =FUNCALLOC!BN3 -> ~ | BN3: =FUNCALLOC!BO3 -> ~ | BO3: =FUNCALLOC!BP3 -> ~ | BP3: =FUNCALLOC!BQ3 -> ~ | BQ3: =FUNCALLOC!BR3 -> ~ | BR3: =FUNCALLOC!BS3 -> ~ | BS3: =FUNCALLOC!BT3 -> ~ | BT3: =FUNCALLOC!BU3 -> ~ | BU3: =FUNCALLOC!BV3 -> ~ | BV3: =FUNCALLOC!BW3 -> ~ | BW3: =FUNCALLOC!BX3 -> ~ | BX3: =FUNCALLOC!BY3 -> ~ | BY3: =FUNCALLOC!BZ3 -> ~
A4: D360.T | B4: Total Struct and Improvements | C4: =SUM(D4:BA4) -> 78607576.23 | D4: =SUM(FUNCALLOC!E42:E44) -> 0 | E4: =SUM(FUNCALLOC!F42:F44) -> 0 | F4: =SUM(FUNCALLOC!G42:G44) -> 0 | G4: =SUM(FUNCALLOC!H42:H44) -> 0 | H4: =SUM(FUNCALLOC!I42:I44) -> 1611005.222 | I4: =SUM(FUNCALLOC!J42:J44) -> 25360743.86 | J4: =SUM(FUNCALLOC!K42:K44) -> 9810807.158 | K4: =SUM(FUNCALLOC!L42:L44) -> 0 | L4: =SUM(FUNCALLOC!M42:M44) -> 0 | M4: =SUM(FUNCALLOC!N42:N44) -> 0 | N4: =SUM(FUNCALLOC!O42:O44) -> 0 | O4: =SUM(FUNCALLOC!P42:P44) -> 0 | P4: =SUM(FUNCALLOC!Q42:Q44) -> 0 | Q4: =SUM(FUNCALLOC!R42:R44) -> 0 | R4: =SUM(FUNCALLOC!S42:S44) -> 0 | S4: =SUM(FUNCALLOC!T42:T44) -> 0 | T4: =SUM(FUNCALLOC!U42:U44) -> 0 | U4: =SUM(FUNCALLOC!V42:V44) -> 0 | V4: =SUM(FUNCALLOC!W42:W44) -> 0 | W4: =SUM(FUNCALLOC!X42:X44) -> 0 | X4: =SUM(FUNCALLOC!Y42:Y44) -> 0 | Y4: =SUM(FUNCALLOC!Z42:Z44) -> 0 | Z4: =SUM(FUNCALLOC!AA42:AA44) -> 0 | AA4: =SUM(FUNCALLOC!AB42:AB44) -> 0 | AB4: =SUM(FUNCALLOC!AC42:AC44) -> 0 | AC4: =SUM(FUNCALLOC!AD42:AD44) -> 0 | AD4: =SUM(FUNCALLOC!AE42:AE44) -> 0 | AE4: =SUM(FUNCALLOC!AF42:AF44) -> 0 | AF4: =SUM(FUNCALLOC!AG42:AG44) -> 41825019.99 | AG4: =SUM(FUNCALLOC!AH42:AH44) -> 0 | AH4: =SUM(FUNCALLOC!AI42:AI44) -> 0 | AI4: =SUM(FUNCALLOC!AJ42:AJ44) -> 0 | AJ4: =SUM(FUNCALLOC!AK42:AK44) -> 0 | AK4: =SUM(FUNCALLOC!AL42:AL44) -> 0 | AL4: =SUM(FUNCALLOC!AM42:AM44) -> 0 | AM4: =SUM(FUNCALLOC!AN42:AN44) -> 0 | AN4: =SUM(FUNCALLOC!AO42:AO44) -> 0 | AO4: =SUM(FUNCALLOC!AP42:AP44) -> 0 | AP4: =SUM(FUNCALLOC!AQ42:AQ44) -> 0 | AQ4: =SUM(FUNCALLOC!AR42:AR44) -> 0 | AR4: =SUM(FUNCALLOC!AS42:AS44) -> 0 | AS4: =SUM(FUNCALLOC!AT42:AT44) -> 0 | AT4: =SUM(FUNCALLOC!AU42:AU44) -> 0 | AU4: =SUM(FUNCALLOC!AV42:AV44) -> 0 | AV4: =SUM(FUNCALLOC!AW42:AW44) -> 0 | AW4: =SUM(FUNCALLOC!AX42:AX44) -> 0 | AX4: =SUM(FUNCALLOC!AY42:AY44) -> 0 | AY4: =SUM(FUNCALLOC!AZ42:AZ44) -> 0 | AZ4: =SUM(FUNCALLOC!BA42:BA44) -> 0 | BA4: =SUM(FUNCALLOC!BB42:BB44) -> 0 | BB4: =SUM(FUNCALLOC!BC42:BC44) -> 0 | BC4: =SUM(FUNCALLOC!BD42:BD44) -> 0 | BD4: =SUM(FUNCALLOC!BE42:BE44) -> 0 | BE4: =SUM(FUNCALLOC!BF42:BF44) -> 0 | BF4: =SUM(FUNCALLOC!BG42:BG44) -> 0 | BG4: =SUM(FUNCALLOC!BH42:BH44) -> 0 | BH4: =SUM(FUNCALLOC!BI42:BI44) -> 0 | BI4: =SUM(FUNCALLOC!BJ42:BJ44) -> 0 | BJ4: =SUM(FUNCALLOC!BK42:BK44) -> 0 | BK4: =SUM(FUNCALLOC!BL42:BL44) -> 0 | BL4: =SUM(FUNCALLOC!BM42:BM44) -> 0 | BM4: =SUM(FUNCALLOC!BN42:BN44) -> 0 | BN4: =SUM(FUNCALLOC!BO42:BO44) -> 0 | BO4: =SUM(FUNCALLOC!BP42:BP44) -> 0 | BP4: =SUM(FUNCALLOC!BQ42:BQ44) -> 0 | BQ4: =SUM(FUNCALLOC!BR42:BR44) -> 0 | BR4: =SUM(FUNCALLOC!BS42:BS44) -> 0 | BS4: =SUM(FUNCALLOC!BT42:BT44) -> 0 | BT4: =SUM(FUNCALLOC!BU42:BU44) -> 0 | BU4: =SUM(FUNCALLOC!BV42:BV44) -> 0 | BV4: =SUM(FUNCALLOC!BW42:BW44) -> 0 | BW4: =SUM(FUNCALLOC!BX42:BX44) -> 0 | BX4: =SUM(FUNCALLOC!BY42:BY44) -> 0 | BY4: =SUM(FUNCALLOC!BZ42:BZ44) -> 0
D5: =IF((D4=0)*OR($C4=0),0,D4/$C4) -> 0 | E5: 0 | F5: 0 | G5: 0 | H5: 0.0204942742 | I5: 0.3226246766 | J5: 0.1248073993 | K5: 0 | L5: 0 | M5: 0 | N5: 0 | O5: 0 | P5: 0 | Q5: 0 | R5: 0 | S5: 0 | T5: 0 | U5: 0 | V5: 0 | W5: 0 | X5: 0 | Y5: 0 | Z5: 0 | AA5: 0 | AB5: 0 | AC5: 0 | AD5: 0 | AE5: 0 | AF5: 0.5320736498 | AG5: 0 | AH5: 0 | AI5: 0 | AJ5: 0 | AK5: 0 | AL5: 0 | AM5: 0 | AN5: 0 | AO5: 0 | AP5: 0 | AQ5: 0 | AR5: =IF((AR4=0)*OR($C4=0),0,AR4/$C4) -> 0 | AS5: 0 | AT5: 0 | AU5: 0 | AV5: 0 | AW5: 0 | AX5: 0 | AY5: 0 | AZ5: 0 | BA5: =IF((BA4=0)*OR($C4=0),0,BA4/$C4) -> 0 | BB5: 0 | BC5: 0 | BD5: 0 | BE5: 0 | BF5: 0 | BG5: 0 | BH5: 0 | BI5: 0 | BJ5: 0 | BK5: 0 | BL5: 0 | BM5: 0 | BN5: 0 | BO5: 0 | BP5: 0 | BQ5: 0 | BR5: 0 | BS5: 0 | BT5: 0 | BU5: 0 | BV5: 0 | BW5: 0 | BX5: 0 | BY5: 0
A7: D361.T | B7: Total Struct and Improvements | C7: =SUM(D7:BA7) -> 8046082.448 | D7: =SUM(FUNCALLOC!E45:E47) -> 0 | E7: =SUM(FUNCALLOC!F45:F47) -> 0 | F7: =SUM(FUNCALLOC!G45:G47) -> 0 | G7: =SUM(FUNCALLOC!H45:H47) -> 0 | H7: =SUM(FUNCALLOC!I45:I47) -> 0 | I7: =SUM(FUNCALLOC!J45:J47) -> 0 | J7: =SUM(FUNCALLOC!K45:K47) -> 467533.8569 | K7: =SUM(FUNCALLOC!L45:L47) -> 418047.0237 | L7: =SUM(FUNCALLOC!M45:M47) -> 5167330.914 | M7: =SUM(FUNCALLOC!N45:N47) -> 0 | N7: =SUM(FUNCALLOC!O45:O47) -> 0 | O7: =SUM(FUNCALLOC!P45:P47) -> 0 | P7: =SUM(FUNCALLOC!Q45:Q47) -> 0 | Q7: =SUM(FUNCALLOC!R45:R47) -> 0 | R7: =SUM(FUNCALLOC!S45:S47) -> 0 | S7: =SUM(FUNCALLOC!T45:T47) -> 0 | T7: =SUM(FUNCALLOC!U45:U47) -> 0 | U7: =SUM(FUNCALLOC!V45:V47) -> 0 | V7: =SUM(FUNCALLOC!W45:W47) -> 0 | W7: =SUM(FUNCALLOC!X45:X47) -> 0 | X7: =SUM(FUNCALLOC!Y45:Y47) -> 0 | Y7: =SUM(FUNCALLOC!Z45:Z47) -> 0 | Z7: =SUM(FUNCALLOC!AA45:AA47) -> 0 | AA7: =SUM(FUNCALLOC!AB45:AB47) -> 0 | AB7: =SUM(FUNCALLOC!AC45:AC47) -> 0 | AC7: =SUM(FUNCALLOC!AD45:AD47) -> 0 | AD7: =SUM(FUNCALLOC!AE45:AE47) -> 0 | AE7: =SUM(FUNCALLOC!AF45:AF47) -> 0 | AF7: =SUM(FUNCALLOC!AG45:AG47) -> 1993170.653 | AG7: =SUM(FUNCALLOC!AH45:AH47) -> 0 | AH7: =SUM(FUNCALLOC!AI45:AI47) -> 0 | AI7: =SUM(FUNCALLOC!AJ45:AJ47) -> 0 | AJ7: =SUM(FUNCALLOC!AK45:AK47) -> 0 | AK7: =SUM(FUNCALLOC!AL45:AL47) -> 0 | AL7: =SUM(FUNCALLOC!AM45:AM47) -> 0 | AM7: =SUM(FUNCALLOC!AN45:AN47) -> 0 | AN7: =SUM(FUNCALLOC!AO45:AO47) -> 0 | AO7: =SUM(FUNCALLOC!AP45:AP47) -> 0 | AP7: =SUM(FUNCALLOC!AQ45:AQ47) -> 0 | AQ7: =SUM(FUNCALLOC!AR45:AR47) -> 0 | AR7: =SUM(FUNCALLOC!AS45:AS47) -> 0 | AS7: =SUM(FUNCALLOC!AT45:AT47) -> 0 | AT7: =SUM(FUNCALLOC!AU45:AU47) -> 0 | AU7: =SUM(FUNCALLOC!AV45:AV47) -> 0 | AV7: =SUM(FUNCALLOC!AW45:AW47) -> 0 | AW7: =SUM(FUNCALLOC!AX45:AX47) -> 0 | AX7: =SUM(FUNCALLOC!AY45:AY47) -> 0 | AY7: =SUM(FUNCALLOC!AZ45:AZ47) -> 0 | AZ7: =SUM(FUNCALLOC!BA45:BA47) -> 0 | BA7: =SUM(FUNCALLOC!BB45:BB47) -> 0 | BB7: =SUM(FUNCALLOC!BC45:BC47) -> 0 | BC7: =SUM(FUNCALLOC!BD45:BD47) -> 0 | BD7: =SUM(FUNCALLOC!BE45:BE47) -> 0 | BE7: =SUM(FUNCALLOC!BF45:BF47) -> 0 | BF7: =SUM(FUNCALLOC!BG45:BG47) -> 0 | BG7: =SUM(FUNCALLOC!BH45:BH47) -> 0 | BH7: =SUM(FUNCALLOC!BI45:BI47) -> 0 | BI7: =SUM(FUNCALLOC!BJ45:BJ47) -> 0 | BJ7: =SUM(FUNCALLOC!BK45:BK47) -> 0 | BK7: =SUM(FUNCALLOC!BL45:BL47) -> 0 | BL7: =SUM(FUNCALLOC!BM45:BM47) -> 0 | BM7: =SUM(FUNCALLOC!BN45:BN47) -> 0 | BN7: =SUM(FUNCALLOC!BO45:BO47) -> 0 | BO7: =SUM(FUNCALLOC!BP45:BP47) -> 0 | BP7: =SUM(FUNCALLOC!BQ45:BQ47) -> 0 | BQ7: =SUM(FUNCALLOC!BR45:BR47) -> 0 | BR7: =SUM(FUNCALLOC!BS45:BS47) -> 0 | BS7: =SUM(FUNCALLOC!BT45:BT47) -> 0 | BT7: =SUM(FUNCALLOC!BU45:BU47) -> 0 | BU7: =SUM(FUNCALLOC!BV45:BV47) -> 0 | BV7: =SUM(FUNCALLOC!BW45:BW47) -> 0 | BW7: =SUM(FUNCALLOC!BX45:BX47) -> 0 | BX7: =SUM(FUNCALLOC!BY45:BY47) -> 0 | BY7: =SUM(FUNCALLOC!BZ45:BZ47) -> 0
D8: =IF((D7=0)*OR($C7=0),0,D7/$C7) -> 0 | E8: 0 | F8: 0 | G8: 0 | H8: 0 | I8: 0 | J8: 0.05810701791 | K8: 0.0519565921 | L8: 0.6422169979 | M8: 0 | N8: 0 | O8: 0 | P8: 0 | Q8: 0 | R8: 0 | S8: 0 | T8: 0 | U8: 0 | V8: 0 | W8: 0 | X8: 0 | Y8: 0 | Z8: 0 | AA8: 0 | AB8: 0 | AC8: 0 | AD8: 0 | AE8: 0 | AF8: 0.2477193921 | AG8: 0 | AH8: 0 | AI8: 0 | AJ8: =IF((AJ7=0)*OR($C7=0),0,AJ7/$C7) -> 0 | AK8: 0 | AL8: 0 | AM8: 0 | AN8: 0 | AO8: 0 | AP8: 0 | AQ8: 0 | AR8: 0 | AS8: 0 | AT8: 0 | AU8: 0 | AV8: 0 | AW8: 0 | AX8: 0 | AY8: 0 | AZ8: 0 | BA8: 0 | BB8: 0 | BC8: 0 | BD8: 0 | BE8: 0 | BF8: 0 | BG8: 0 | BH8: 0 | BI8: 0 | BJ8: 0 | BK8: 0 | BL8: 0 | BM8: 0 | BN8: 0 | BO8: 0 | BP8: =IF((BP7=0)*OR($C7=0),0,BP7/$C7) -> 0 | BQ8: 0 | BR8: 0 | BS8: 0 | BT8: 0 | BU8: 0 | BV8: 0 | BW8: 0 | BX8: 0 | BY8: 0
A10: D362.T | B10: Total Station Equip | C10: =SUM(D10:BA10) -> 554628557.2 | D10: =SUM(FUNCALLOC!E48:E50) -> 0 | E10: =SUM(FUNCALLOC!F48:F50) -> 0 | F10: =SUM(FUNCALLOC!G48:G50) -> 0 | G10: =SUM(FUNCALLOC!H48:H50) -> 0 | H10: =SUM(FUNCALLOC!I48:I50) -> 0 | I10: =SUM(FUNCALLOC!J48:J50) -> 0 | J10: =SUM(FUNCALLOC!K48:K50) -> 42236964.95 | K10: =SUM(FUNCALLOC!L48:L50) -> 0 | L10: =SUM(FUNCALLOC!M48:M50) -> 0 | M10: =SUM(FUNCALLOC!N48:N50) -> 24960779.12 | N10: =SUM(FUNCALLOC!O48:O50) -> 307367962.6 | O10: =SUM(FUNCALLOC!P48:P50) -> 0 | P10: =SUM(FUNCALLOC!Q48:Q50) -> 0 | Q10: =SUM(FUNCALLOC!R48:R50) -> 0 | R10: =SUM(FUNCALLOC!S48:S50) -> 0 | S10: =SUM(FUNCALLOC!T48:T50) -> 0 | T10: =SUM(FUNCALLOC!U48:U50) -> 0 | U10: =SUM(FUNCALLOC!V48:V50) -> 0 | V10: =SUM(FUNCALLOC!W48:W50) -> 0 | W10: =SUM(FUNCALLOC!X48:X50) -> 0 | X10: =SUM(FUNCALLOC!Y48:Y50) -> 0 | Y10: =SUM(FUNCALLOC!Z48:Z50) -> 0 | Z10: =SUM(FUNCALLOC!AA48:AA50) -> 0 | AA10: =SUM(FUNCALLOC!AB48:AB50) -> 0 | AB10: =SUM(FUNCALLOC!AC48:AC50) -> 0 | AC10: =SUM(FUNCALLOC!AD48:AD50) -> 0 | AD10: =SUM(FUNCALLOC!AE48:AE50) -> 0 | AE10: =SUM(FUNCALLOC!AF48:AF50) -> 0 | AF10: =SUM(FUNCALLOC!AG48:AG50) -> 180062850.6 | AG10: =SUM(FUNCALLOC!AH48:AH50) -> 0 | AH10: =SUM(FUNCALLOC!AI48:AI50) -> 0 | AI10: =SUM(FUNCALLOC!AJ48:AJ50) -> 0 | AJ10: =SUM(FUNCALLOC!AK48:AK50) -> 0 | AK10: =SUM(FUNCALLOC!AL48:AL50) -> 0 | AL10: =SUM(FUNCALLOC!AM48:AM50) -> 0 | AM10: =SUM(FUNCALLOC!AN48:AN50) -> 0 | AN10: =SUM(FUNCALLOC!AO48:AO50) -> 0 | AO10: =SUM(FUNCALLOC!AP48:AP50) -> 0 | AP10: =SUM(FUNCALLOC!AQ48:AQ50) -> 0 | AQ10: =SUM(FUNCALLOC!AR48:AR50) -> 0 | AR10: =SUM(FUNCALLOC!AS48:AS50) -> 0 | AS10: =SUM(FUNCALLOC!AT48:AT50) -> 0 | AT10: =SUM(FUNCALLOC!AU48:AU50) -> 0 | AU10: =SUM(FUNCALLOC!AV48:AV50) -> 0 | AV10: =SUM(FUNCALLOC!AW48:AW50) -> 0 | AW10: =SUM(FUNCALLOC!AX48:AX50) -> 0 | AX10: =SUM(FUNCALLOC!AY48:AY50) -> 0 | AY10: =SUM(FUNCALLOC!AZ48:AZ50) -> 0 | AZ10: =SUM(FUNCALLOC!BA48:BA50) -> 0 | BA10: =SUM(FUNCALLOC!BB48:BB50) -> 0 | BB10: =SUM(FUNCALLOC!BC48:BC50) -> 0 | BC10: =SUM(FUNCALLOC!BD48:BD50) -> 0 | BD10: =SUM(FUNCALLOC!BE48:BE50) -> 0 | BE10: =SUM(FUNCALLOC!BF48:BF50) -> 0 | BF10: =SUM(FUNCALLOC!BG48:BG50) -> 0 | BG10: =SUM(FUNCALLOC!BH48:BH50) -> 0 | BH10: =SUM(FUNCALLOC!BI48:BI50) -> 0 | BI10: =SUM(FUNCALLOC!BJ48:BJ50) -> 0 | BJ10: =SUM(FUNCALLOC!BK48:BK50) -> 0 | BK10: =SUM(FUNCALLOC!BL48:BL50) -> 0 | BL10: =SUM(FUNCALLOC!BM48:BM50) -> 0 | BM10: =SUM(FUNCALLOC!BN48:BN50) -> 0 | BN10: =SUM(FUNCALLOC!BO48:BO50) -> 0 | BO10: =SUM(FUNCALLOC!BP48:BP50) -> 0 | BP10: =SUM(FUNCALLOC!BQ48:BQ50) -> 0 | BQ10: =SUM(FUNCALLOC!BR48:BR50) -> 0 | BR10: =SUM(FUNCALLOC!BS48:BS50) -> 0 | BS10: =SUM(FUNCALLOC!BT48:BT50) -> 0 | BT10: =SUM(FUNCALLOC!BU48:BU50) -> 0 | BU10: =SUM(FUNCALLOC!BV48:BV50) -> 0 | BV10: =SUM(FUNCALLOC!BW48:BW50) -> 0 | BW10: =SUM(FUNCALLOC!BX48:BX50) -> 0 | BX10: =SUM(FUNCALLOC!BY48:BY50) -> 0 | BY10: =SUM(FUNCALLOC!BZ48:BZ50) -> 0
D11: =IF((D10=0)*OR($C10=0),0,D10/$C10) -> 0 | E11: 0 | F11: 0 | G11: 0 | H11: 0 | I11: 0 | J11: 0.07615360659 | K11: 0 | L11: 0 | M11: 0.04500449678 | N11: 0.5541870475 | O11: 0 | P11: 0 | Q11: 0 | R11: 0 | S11: 0 | T11: 0 | U11: 0 | V11: 0 | W11: 0 | X11: 0 | Y11: 0 | Z11: 0 | AA11: 0 | AB11: 0 | AC11: 0 | AD11: 0 | AE11: 0 | AF11: 0.3246548492 | AG11: 0 | AH11: 0 | AI11: 0 | AJ11: 0 | AK11: 0 | AL11: 0 | AM11: 0 | AN11: 0 | AO11: 0 | AP11: 0 | AQ11: 0 | AR11: =IF((AR10=0)*OR($C10=0),0,AR10/$C10) -> 0 | AS11: 0 | AT11: 0 | AU11: 0 | AV11: 0 | AW11: 0 | AX11: 0 | AY11: 0 | AZ11: 0 | BA11: =IF((BA10=0)*OR($C10=0),0,BA10/$C10) -> 0 | BB11: 0 | BC11: 0 | BD11: 0 | BE11: 0 | BF11: 0 | BG11: 0 | BH11: 0 | BI11: 0 | BJ11: 0 | BK11: 0 | BL11: 0 | BM11: 0 | BN11: 0 | BO11: 0 | BP11: 0 | BQ11: 0 | BR11: 0 | BS11: 0 | BT11: 0 | BU11: 0 | BV11: 0 | BW11: 0 | BX11: 0 | BY11: 0
A13: D364.T | B13: Total OVHD Lines | C13: =SUM(D13:BA13) -> 818755720.3 | D13: =SUM(FUNCALLOC!E51:E55) -> 0 | E13: =SUM(FUNCALLOC!F51:F55) -> 0 | F13: =SUM(FUNCALLOC!G51:G55) -> 0 | G13: =SUM(FUNCALLOC!H51:H55) -> 0 | H13: =SUM(FUNCALLOC!I51:I55) -> 0 | I13: =SUM(FUNCALLOC!J51:J55) -> 0 | J13: =SUM(FUNCALLOC!K51:K55) -> 57533514.15 | K13: =SUM(FUNCALLOC!L51:L55) -> 0 | L13: =SUM(FUNCALLOC!M51:M55) -> 0 | M13: =SUM(FUNCALLOC!N51:N55) -> 0 | N13: =SUM(FUNCALLOC!O51:O55) -> 0 | O13: =SUM(FUNCALLOC!P51:P55) -> 513420163.7 | P13: =SUM(FUNCALLOC!Q51:Q55) -> 2527587.36 | Q13: =SUM(FUNCALLOC!R51:R55) -> 0 | R13: =SUM(FUNCALLOC!S51:S55) -> 0 | S13: =SUM(FUNCALLOC!T51:T55) -> 0 | T13: =SUM(FUNCALLOC!U51:U55) -> 0 | U13: =SUM(FUNCALLOC!V51:V55) -> 0 | V13: =SUM(FUNCALLOC!W51:W55) -> 0 | W13: =SUM(FUNCALLOC!X51:X55) -> 0 | X13: =SUM(FUNCALLOC!Y51:Y55) -> 0 | Y13: =SUM(FUNCALLOC!Z51:Z55) -> 0 | Z13: =SUM(FUNCALLOC!AA51:AA55) -> 0 | AA13: =SUM(FUNCALLOC!AB51:AB55) -> 0 | AB13: =SUM(FUNCALLOC!AC51:AC55) -> 0 | AC13: =SUM(FUNCALLOC!AD51:AD55) -> 0 | AD13: =SUM(FUNCALLOC!AE51:AE55) -> 0 | AE13: =SUM(FUNCALLOC!AF51:AF55) -> 0 | AF13: =SUM(FUNCALLOC!AG51:AG55) -> 245274455.1 | AG13: =SUM(FUNCALLOC!AH51:AH55) -> 0 | AH13: =SUM(FUNCALLOC!AI51:AI55) -> 0 | AI13: =SUM(FUNCALLOC!AJ51:AJ55) -> 0 | AJ13: =SUM(FUNCALLOC!AK51:AK55) -> 0 | AK13: =SUM(FUNCALLOC!AL51:AL55) -> 0 | AL13: =SUM(FUNCALLOC!AM51:AM55) -> 0 | AM13: =SUM(FUNCALLOC!AN51:AN55) -> 0 | AN13: =SUM(FUNCALLOC!AO51:AO55) -> 0 | AO13: =SUM(FUNCALLOC!AP51:AP55) -> 0 | AP13: =SUM(FUNCALLOC!AQ51:AQ55) -> 0 | AQ13: =SUM(FUNCALLOC!AR51:AR55) -> 0 | AR13: =SUM(FUNCALLOC!AS51:AS55) -> 0 | AS13: =SUM(FUNCALLOC!AT51:AT55) -> 0 | AT13: =SUM(FUNCALLOC!AU51:AU55) -> 0 | AU13: =SUM(FUNCALLOC!AV51:AV55) -> 0 | AV13: =SUM(FUNCALLOC!AW51:AW55) -> 0 | AW13: =SUM(FUNCALLOC!AX51:AX55) -> 0 | AX13: =SUM(FUNCALLOC!AY51:AY55) -> 0 | AY13: =SUM(FUNCALLOC!AZ51:AZ55) -> 0 | AZ13: =SUM(FUNCALLOC!BA51:BA55) -> 0 | BA13: =SUM(FUNCALLOC!BB51:BB55) -> 0 | BB13: =SUM(FUNCALLOC!BC51:BC55) -> 0 | BC13: =SUM(FUNCALLOC!BD51:BD55) -> 0 | BD13: =SUM(FUNCALLOC!BE51:BE55) -> 0 | BE13: =SUM(FUNCALLOC!BF51:BF55) -> 0 | BF13: =SUM(FUNCALLOC!BG51:BG55) -> 0 | BG13: =SUM(FUNCALLOC!BH51:BH55) -> 0 | BH13: =SUM(FUNCALLOC!BI51:BI55) -> 0 | BI13: =SUM(FUNCALLOC!BJ51:BJ55) -> 0 | BJ13: =SUM(FUNCALLOC!BK51:BK55) -> 0 | BK13: =SUM(FUNCALLOC!BL51:BL55) -> 0 | BL13: =SUM(FUNCALLOC!BM51:BM55) -> 0 | BM13: =SUM(FUNCALLOC!BN51:BN55) -> 0 | BN13: =SUM(FUNCALLOC!BO51:BO55) -> 0 | BO13: =SUM(FUNCALLOC!BP51:BP55) -> 0 | BP13: =SUM(FUNCALLOC!BQ51:BQ55) -> 0 | BQ13: =SUM(FUNCALLOC!BR51:BR55) -> 0 | BR13: =SUM(FUNCALLOC!BS51:BS55) -> 0 | BS13: =SUM(FUNCALLOC!BT51:BT55) -> 0 | BT13: =SUM(FUNCALLOC!BU51:BU55) -> 0 | BU13: =SUM(FUNCALLOC!BV51:BV55) -> 0 | BV13: =SUM(FUNCALLOC!BW51:BW55) -> 0 | BW13: =SUM(FUNCALLOC!BX51:BX55) -> 0 | BX13: =SUM(FUNCALLOC!BY51:BY55) -> 0 | BY13: =SUM(FUNCALLOC!BZ51:BZ55) -> 0
D14: =IF((D13=0)*OR($C13=0),0,D13/$C13) -> 0 | E14: 0 | F14: 0 | G14: 0 | H14: 0 | I14: 0 | J14: 0.07026945 | K14: 0 | L14: 0 | M14: 0 | N14: 0 | O14: 0.6270736814 | P14: 0.003087108032 | Q14: 0 | R14: 0 | S14: 0 | T14: 0 | U14: 0 | V14: 0 | W14: 0 | X14: 0 | Y14: 0 | Z14: 0 | AA14: 0 | AB14: 0 | AC14: 0 | AD14: 0 | AE14: 0 | AF14: 0.2995697605 | AG14: 0 | AH14: 0 | AI14: 0 | AJ14: 0 | AK14: 0 | AL14: 0 | AM14: 0 | AN14: 0 | AO14: 0 | AP14: 0 | AQ14: 0 | AR14: =IF((AR13=0)*OR($C13=0),0,AR13/$C13) -> 0 | AS14: 0 | AT14: 0 | AU14: 0 | AV14: 0 | AW14: 0 | AX14: 0 | AY14: 0 | AZ14: 0 | BA14: =IF((BA13=0)*OR($C13=0),0,BA13/$C13) -> 0 | BB14: 0 | BC14: 0 | BD14: 0 | BE14: 0 | BF14: 0 | BG14: 0 | BH14: 0 | BI14: 0 | BJ14: 0 | BK14: 0 | BL14: 0 | BM14: 0 | BN14: 0 | BO14: 0 | BP14: 0 | BQ14: 0 | BR14: 0 | BS14: 0 | BT14: 0 | BU14: 0 | BV14: 0 | BW14: 0 | BX14: 0 | BY14: 0
A16: D366.T | B16: Total UNGD Lines | C16: =SUM(D16:BA16) -> 1228382125 | D16: =SUM(FUNCALLOC!E56:E60) -> 0 | E16: =SUM(FUNCALLOC!F56:F60) -> 0 | F16: =SUM(FUNCALLOC!G56:G60) -> 0 | G16: =SUM(FUNCALLOC!H56:H60) -> 0 | H16: =SUM(FUNCALLOC!I56:I60) -> 0 | I16: =SUM(FUNCALLOC!J56:J60) -> 0 | J16: =SUM(FUNCALLOC!K56:K60) -> 691154.2733 | K16: =SUM(FUNCALLOC!L56:L60) -> 0 | L16: =SUM(FUNCALLOC!M56:M60) -> 0 | M16: =SUM(FUNCALLOC!N56:N60) -> 0 | N16: =SUM(FUNCALLOC!O56:O60) -> 0 | O16: =SUM(FUNCALLOC!P56:P60) -> 0 | P16: =SUM(FUNCALLOC!Q56:Q60) -> 0 | Q16: =SUM(FUNCALLOC!R56:R60) -> 1199474969 | R16: =SUM(FUNCALLOC!S56:S60) -> 25269502.76 | S16: =SUM(FUNCALLOC!T56:T60) -> 0 | T16: =SUM(FUNCALLOC!U56:U60) -> 0 | U16: =SUM(FUNCALLOC!V56:V60) -> 0 | V16: =SUM(FUNCALLOC!W56:W60) -> 0 | W16: =SUM(FUNCALLOC!X56:X60) -> 0 | X16: =SUM(FUNCALLOC!Y56:Y60) -> 0 | Y16: =SUM(FUNCALLOC!Z56:Z60) -> 0 | Z16: =SUM(FUNCALLOC!AA56:AA60) -> 0 | AA16: =SUM(FUNCALLOC!AB56:AB60) -> 0 | AB16: =SUM(FUNCALLOC!AC56:AC60) -> 0 | AC16: =SUM(FUNCALLOC!AD56:AD60) -> 0 | AD16: =SUM(FUNCALLOC!AE56:AE60) -> 0 | AE16: =SUM(FUNCALLOC!AF56:AF60) -> 0 | AF16: =SUM(FUNCALLOC!AG56:AG60) -> 2946499.797 | AG16: =SUM(FUNCALLOC!AH56:AH60) -> 0 | AH16: =SUM(FUNCALLOC!AI56:AI60) -> 0 | AI16: =SUM(FUNCALLOC!AJ56:AJ60) -> 0 | AJ16: =SUM(FUNCALLOC!AK56:AK60) -> 0 | AK16: =SUM(FUNCALLOC!AL56:AL60) -> 0 | AL16: =SUM(FUNCALLOC!AM56:AM60) -> 0 | AM16: =SUM(FUNCALLOC!AN56:AN60) -> 0 | AN16: =SUM(FUNCALLOC!AO56:AO60) -> 0 | AO16: =SUM(FUNCALLOC!AP56:AP60) -> 0 | AP16: =SUM(FUNCALLOC!AQ56:AQ60) -> 0 | AQ16: =SUM(FUNCALLOC!AR56:AR60) -> 0 | AR16: =SUM(FUNCALLOC!AS56:AS60) -> 0 | AS16: =SUM(FUNCALLOC!AT56:AT60) -> 0 | AT16: =SUM(FUNCALLOC!AU56:AU60) -> 0 | AU16: =SUM(FUNCALLOC!AV56:AV60) -> 0 | AV16: =SUM(FUNCALLOC!AW56:AW60) -> 0 | AW16: =SUM(FUNCALLOC!AX56:AX60) -> 0 | AX16: =SUM(FUNCALLOC!AY56:AY60) -> 0 | AY16: =SUM(FUNCALLOC!AZ56:AZ60) -> 0 | AZ16: =SUM(FUNCALLOC!BA56:BA60) -> 0 | BA16: =SUM(FUNCALLOC!BB56:BB60) -> 0 | BB16: =SUM(FUNCALLOC!BC56:BC60) -> 0 | BC16: =SUM(FUNCALLOC!BD56:BD60) -> 0 | BD16: =SUM(FUNCALLOC!BE56:BE60) -> 0 | BE16: =SUM(FUNCALLOC!BF56:BF60) -> 0 | BF16: =SUM(FUNCALLOC!BG56:BG60) -> 0 | BG16: =SUM(FUNCALLOC!BH56:BH60) -> 0 | BH16: =SUM(FUNCALLOC!BI56:BI60) -> 0 | BI16: =SUM(FUNCALLOC!BJ56:BJ60) -> 0 | BJ16: =SUM(FUNCALLOC!BK56:BK60) -> 0 | BK16: =SUM(FUNCALLOC!BL56:BL60) -> 0 | BL16: =SUM(FUNCALLOC!BM56:BM60) -> 0 | BM16: =SUM(FUNCALLOC!BN56:BN60) -> 0 | BN16: =SUM(FUNCALLOC!BO56:BO60) -> 0 | BO16: =SUM(FUNCALLOC!BP56:BP60) -> 0 | BP16: =SUM(FUNCALLOC!BQ56:BQ60) -> 0 | BQ16: =SUM(FUNCALLOC!BR56:BR60) -> 0 | BR16: =SUM(FUNCALLOC!BS56:BS60) -> 0 | BS16: =SUM(FUNCALLOC!BT56:BT60) -> 0 | BT16: =SUM(FUNCALLOC!BU56:BU60) -> 0 | BU16: =SUM(FUNCALLOC!BV56:BV60) -> 0 | BV16: =SUM(FUNCALLOC!BW56:BW60) -> 0 | BW16: =SUM(FUNCALLOC!BX56:BX60) -> 0 | BX16: =SUM(FUNCALLOC!BY56:BY60) -> 0 | BY16: =SUM(FUNCALLOC!BZ56:BZ60) -> 0
D17: =IF((D16=0)*OR($C16=0),0,D16/$C16) -> 0 | E17: 0 | F17: 0 | G17: 0 | H17: 0 | I17: 0 | J17: 0.0005626541277 | K17: 0 | L17: 0 | M17: 0 | N17: 0 | O17: 0 | P17: 0 | Q17: 0.9764672928 | R17: 0.02057136964 | S17: 0 | T17: 0 | U17: 0 | V17: 0 | W17: 0 | X17: 0 | Y17: 0 | Z17: 0 | AA17: 0 | AB17: 0 | AC17: 0 | AD17: 0 | AE17: 0 | AF17: 0.002398683387 | AG17: 0 | AH17: 0 | AI17: 0 | AJ17: 0 | AK17: 0 | AL17: 0 | AM17: 0 | AN17: 0 | AO17: 0 | AP17: 0 | AQ17: 0 | AR17: =IF((AR16=0)*OR($C16=0),0,AR16/$C16) -> 0 | AS17: 0 | AT17: 0 | AU17: 0 | AV17: 0 | AW17: 0 | AX17: 0 | AY17: 0 | AZ17: 0 | BA17: =IF((BA16=0)*OR($C16=0),0,BA16/$C16) -> 0 | BB17: 0 | BC17: 0 | BD17: 0 | BE17: 0 | BF17: 0 | BG17: 0 | BH17: 0 | BI17: 0 | BJ17: 0 | BK17: 0 | BL17: 0 | BM17: 0 | BN17: 0 | BO17: 0 | BP17: 0 | BQ17: 0 | BR17: 0 | BS17: 0 | BT17: 0 | BU17: 0 | BV17: 0 | BW17: 0 | BX17: 0 | BY17: 0
A19: D368.T | B19: Total Transformers | C19: =SUM(D19:BA19) -> 403061336.7 | D19: =SUM(FUNCALLOC!E61:E63) -> 0 | E19: =SUM(FUNCALLOC!F61:F63) -> 0 | F19: =SUM(FUNCALLOC!G61:G63) -> 0 | G19: =SUM(FUNCALLOC!H61:H63) -> 0 | H19: =SUM(FUNCALLOC!I61:I63) -> 0 | I19: =SUM(FUNCALLOC!J61:J63) -> 0 | J19: =SUM(FUNCALLOC!K61:K63) -> 0 | K19: =SUM(FUNCALLOC!L61:L63) -> 0 | L19: =SUM(FUNCALLOC!M61:M63) -> 0 | M19: =SUM(FUNCALLOC!N61:N63) -> 0 | N19: =SUM(FUNCALLOC!O61:O63) -> 0 | O19: =SUM(FUNCALLOC!P61:P63) -> 0 | P19: =SUM(FUNCALLOC!Q61:Q63) -> 0 | Q19: =SUM(FUNCALLOC!R61:R63) -> 0 | R19: =SUM(FUNCALLOC!S61:S63) -> 0 | S19: =SUM(FUNCALLOC!T61:T63) -> 0 | T19: =SUM(FUNCALLOC!U61:U63) -> 0 | U19: =SUM(FUNCALLOC!V61:V63) -> 0 | V19: =SUM(FUNCALLOC!W61:W63) -> 0 | W19: =SUM(FUNCALLOC!X61:X63) -> 0 | X19: =SUM(FUNCALLOC!Y61:Y63) -> 0 | Y19: =SUM(FUNCALLOC!Z61:Z63) -> 0 | Z19: =SUM(FUNCALLOC!AA61:AA63) -> 0 | AA19: =SUM(FUNCALLOC!AB61:AB63) -> 0 | AB19: =SUM(FUNCALLOC!AC61:AC63) -> 0 | AC19: =SUM(FUNCALLOC!AD61:AD63) -> 0 | AD19: =SUM(FUNCALLOC!AE61:AE63) -> 0 | AE19: =SUM(FUNCALLOC!AF61:AF63) -> 0 | AF19: =SUM(FUNCALLOC!AG61:AG63) -> 0 | AG19: =SUM(FUNCALLOC!AH61:AH63) -> 0 | AH19: =SUM(FUNCALLOC!AI61:AI63) -> 0 | AI19: =SUM(FUNCALLOC!AJ61:AJ63) -> 0 | AJ19: =SUM(FUNCALLOC!AK61:AK63) -> 138085648.8 | AK19: =SUM(FUNCALLOC!AL61:AL63) -> 261219746.9 | AL19: =SUM(FUNCALLOC!AM61:AM63) -> 3755940.975 | AM19: =SUM(FUNCALLOC!AN61:AN63) -> 0 | AN19: =SUM(FUNCALLOC!AO61:AO63) -> 0 | AO19: =SUM(FUNCALLOC!AP61:AP63) -> 0 | AP19: =SUM(FUNCALLOC!AQ61:AQ63) -> 0 | AQ19: =SUM(FUNCALLOC!AR61:AR63) -> 0 | AR19: =SUM(FUNCALLOC!AS61:AS63) -> 0 | AS19: =SUM(FUNCALLOC!AT61:AT63) -> 0 | AT19: =SUM(FUNCALLOC!AU61:AU63) -> 0 | AU19: =SUM(FUNCALLOC!AV61:AV63) -> 0 | AV19: =SUM(FUNCALLOC!AW61:AW63) -> 0 | AW19: =SUM(FUNCALLOC!AX61:AX63) -> 0 | AX19: =SUM(FUNCALLOC!AY61:AY63) -> 0 | AY19: =SUM(FUNCALLOC!AZ61:AZ63) -> 0 | AZ19: =SUM(FUNCALLOC!BA61:BA63) -> 0 | BA19: =SUM(FUNCALLOC!BB61:BB63) -> 0 | BB19: =SUM(FUNCALLOC!BC61:BC63) -> 0 | BC19: =SUM(FUNCALLOC!BD61:BD63) -> 0 | BD19: =SUM(FUNCALLOC!BE61:BE63) -> 0 | BE19: =SUM(FUNCALLOC!BF61:BF63) -> 0 | BF19: =SUM(FUNCALLOC!BG61:BG63) -> 0 | BG19: =SUM(FUNCALLOC!BH61:BH63) -> 0 | BH19: =SUM(FUNCALLOC!BI61:BI63) -> 0 | BI19: =SUM(FUNCALLOC!BJ61:BJ63) -> 0 | BJ19: =SUM(FUNCALLOC!BK61:BK63) -> 0 | BK19: =SUM(FUNCALLOC!BL61:BL63) -> 0 | BL19: =SUM(FUNCALLOC!BM61:BM63) -> 0 | BM19: =SUM(FUNCALLOC!BN61:BN63) -> 0 | BN19: =SUM(FUNCALLOC!BO61:BO63) -> 0 | BO19: =SUM(FUNCALLOC!BP61:BP63) -> 0 | BP19: =SUM(FUNCALLOC!BQ61:BQ63) -> 0 | BQ19: =SUM(FUNCALLOC!BR61:BR63) -> 0 | BR19: =SUM(FUNCALLOC!BS61:BS63) -> 0 | BS19: =SUM(FUNCALLOC!BT61:BT63) -> 0 | BT19: =SUM(FUNCALLOC!BU61:BU63) -> 0 | BU19: =SUM(FUNCALLOC!BV61:BV63) -> 0 | BV19: =SUM(FUNCALLOC!BW61:BW63) -> 0 | BW19: =SUM(FUNCALLOC!BX61:BX63) -> 0 | BX19: =SUM(FUNCALLOC!BY61:BY63) -> 0 | BY19: =SUM(FUNCALLOC!BZ61:BZ63) -> 0
D20: =IF((D19=0)*OR($C19=0),0,D19/$C19) -> 0 | E20: 0 | F20: 0 | G20: 0 | H20: 0 | I20: 0 | J20: 0 | K20: 0 | L20: 0 | M20: 0 | N20: 0 | O20: 0 | P20: 0 | Q20: 0 | R20: 0 | S20: 0 | T20: 0 | U20: 0 | V20: 0 | W20: 0 | X20: 0 | Y20: 0 | Z20: 0 | AA20: 0 | AB20: 0 | AC20: 0 | AD20: 0 | AE20: 0 | AF20: 0 | AG20: 0 | AH20: 0 | AI20: 0 | AJ20: 0.3425921473 | AK20: 0.6480893182 | AL20: 0.009318534509 | AM20: 0 | AN20: 0 | AO20: 0 | AP20: 0 | AQ20: 0 | AR20: =IF((AR19=0)*OR($C19=0),0,AR19/$C19) -> 0 | AS20: 0 | AT20: 0 | AU20: 0 | AV20: 0 | AW20: 0 | AX20: 0 | AY20: 0 | AZ20: 0 | BA20: =IF((BA19=0)*OR($C19=0),0,BA19/$C19) -> 0 | BB20: 0 | BC20: 0 | BD20: 0 | BE20: 0 | BF20: 0 | BG20: 0 | BH20: 0 | BI20: 0 | BJ20: 0 | BK20: 0 | BL20: 0 | BM20: 0 | BN20: 0 | BO20: 0 | BP20: 0 | BQ20: 0 | BR20: 0 | BS20: 0 | BT20: 0 | BU20: 0 | BV20: 0 | BW20: 0 | BX20: 0 | BY20: 0
A22: D369.T | B22: Total Services | C22: =SUM(D22:BA22) -> 178138842.3 | D22: =SUM(FUNCALLOC!E64:E65) -> 0 | E22: =SUM(FUNCALLOC!F64:F65) -> 0 | F22: =SUM(FUNCALLOC!G64:G65) -> 0 | G22: =SUM(FUNCALLOC!H64:H65) -> 0 | H22: =SUM(FUNCALLOC!I64:I65) -> 0 | I22: =SUM(FUNCALLOC!J64:J65) -> 0 | J22: =SUM(FUNCALLOC!K64:K65) -> 0 | K22: =SUM(FUNCALLOC!L64:L65) -> 0 | L22: =SUM(FUNCALLOC!M64:M65) -> 0 | M22: =SUM(FUNCALLOC!N64:N65) -> 0 | N22: =SUM(FUNCALLOC!O64:O65) -> 0 | O22: =SUM(FUNCALLOC!P64:P65) -> 0 | P22: =SUM(FUNCALLOC!Q64:Q65) -> 0 | Q22: =SUM(FUNCALLOC!R64:R65) -> 0 | R22: =SUM(FUNCALLOC!S64:S65) -> 0 | S22: =SUM(FUNCALLOC!T64:T65) -> 0 | T22: =SUM(FUNCALLOC!U64:U65) -> 0 | U22: =SUM(FUNCALLOC!V64:V65) -> 0 | V22: =SUM(FUNCALLOC!W64:W65) -> 0 | W22: =SUM(FUNCALLOC!X64:X65) -> 0 | X22: =SUM(FUNCALLOC!Y64:Y65) -> 0 | Y22: =SUM(FUNCALLOC!Z64:Z65) -> 0 | Z22: =SUM(FUNCALLOC!AA64:AA65) -> 0 | AA22: =SUM(FUNCALLOC!AB64:AB65) -> 0 | AB22: =SUM(FUNCALLOC!AC64:AC65) -> 0 | AC22: =SUM(FUNCALLOC!AD64:AD65) -> 0 | AD22: =SUM(FUNCALLOC!AE64:AE65) -> 0 | AE22: =SUM(FUNCALLOC!AF64:AF65) -> 0 | AF22: =SUM(FUNCALLOC!AG64:AG65) -> 0 | AG22: =SUM(FUNCALLOC!AH64:AH65) -> 0 | AH22: =SUM(FUNCALLOC!AI64:AI65) -> 0 | AI22: =SUM(FUNCALLOC!AJ64:AJ65) -> 0 | AJ22: =SUM(FUNCALLOC!AK64:AK65) -> 0 | AK22: =SUM(FUNCALLOC!AL64:AL65) -> 0 | AL22: =SUM(FUNCALLOC!AM64:AM65) -> 0 | AM22: =SUM(FUNCALLOC!AN64:AN65) -> 41858523.86 | AN22: =SUM(FUNCALLOC!AO64:AO65) -> 136280318.4 | AO22: =SUM(FUNCALLOC!AP64:AP65) -> 0 | AP22: =SUM(FUNCALLOC!AQ64:AQ65) -> 0 | AQ22: =SUM(FUNCALLOC!AR64:AR65) -> 0 | AR22: =SUM(FUNCALLOC!AS64:AS65) -> 0 | AS22: =SUM(FUNCALLOC!AT64:AT65) -> 0 | AT22: =SUM(FUNCALLOC!AU64:AU65) -> 0 | AU22: =SUM(FUNCALLOC!AV64:AV65) -> 0 | AV22: =SUM(FUNCALLOC!AW64:AW65) -> 0 | AW22: =SUM(FUNCALLOC!AX64:AX65) -> 0 | AX22: =SUM(FUNCALLOC!AY64:AY65) -> 0 | AY22: =SUM(FUNCALLOC!AZ64:AZ65) -> 0 | AZ22: =SUM(FUNCALLOC!BA64:BA65) -> 0 | BA22: =SUM(FUNCALLOC!BB64:BB65) -> 0 | BB22: =SUM(FUNCALLOC!BC64:BC65) -> 0 | BC22: =SUM(FUNCALLOC!BD64:BD65) -> 0 | BD22: =SUM(FUNCALLOC!BE64:BE65) -> 0 | BE22: =SUM(FUNCALLOC!BF64:BF65) -> 0 | BF22: =SUM(FUNCALLOC!BG64:BG65) -> 0 | BG22: =SUM(FUNCALLOC!BH64:BH65) -> 0 | BH22: =SUM(FUNCALLOC!BI64:BI65) -> 0 | BI22: =SUM(FUNCALLOC!BJ64:BJ65) -> 0 | BJ22: =SUM(FUNCALLOC!BK64:BK65) -> 0 | BK22: =SUM(FUNCALLOC!BL64:BL65) -> 0 | BL22: =SUM(FUNCALLOC!BM64:BM65) -> 0 | BM22: =SUM(FUNCALLOC!BN64:BN65) -> 0 | BN22: =SUM(FUNCALLOC!BO64:BO65) -> 0 | BO22: =SUM(FUNCALLOC!BP64:BP65) -> 0 | BP22: =SUM(FUNCALLOC!BQ64:BQ65) -> 0 | BQ22: =SUM(FUNCALLOC!BR64:BR65) -> 0 | BR22: =SUM(FUNCALLOC!BS64:BS65) -> 0 | BS22: =SUM(FUNCALLOC!BT64:BT65) -> 0 | BT22: =SUM(FUNCALLOC!BU64:BU65) -> 0 | BU22: =SUM(FUNCALLOC!BV64:BV65) -> 0 | BV22: =SUM(FUNCALLOC!BW64:BW65) -> 0 | BW22: =SUM(FUNCALLOC!BX64:BX65) -> 0 | BX22: =SUM(FUNCALLOC!BY64:BY65) -> 0 | BY22: =SUM(FUNCALLOC!BZ64:BZ65) -> 0
D23: =IF((D22=0)*OR($C22=0),0,D22/$C22) -> 0 | E23: 0 | F23: 0 | G23: 0 | H23: 0 | I23: 0 | J23: 0 | K23: 0 | L23: 0 | M23: 0 | N23: 0 | O23: 0 | P23: 0 | Q23: 0 | R23: 0 | S23: 0 | T23: 0 | U23: 0 | V23: 0 | W23: 0 | X23: 0 | Y23: 0 | Z23: 0 | AA23: 0 | AB23: 0 | AC23: 0 | AD23: 0 | AE23: 0 | AF23: 0 | AG23: 0 | AH23: 0 | AI23: 0 | AJ23: =IF((AJ22=0)*OR($C22=0),0,AJ22/$C22) -> 0 | AK23: 0 | AL23: 0 | AM23: 0.2349769614 | AN23: 0.7650230386 | AO23: 0 | AP23: 0 | AQ23: 0 | AR23: 0 | AS23: 0 | AT23: 0 | AU23: 0 | AV23: 0 | AW23: 0 | AX23: 0 | AY23: 0 | AZ23: 0 | BA23: 0 | BB23: 0 | BC23: 0 | BD23: 0 | BE23: 0 | BF23: 0 | BG23: 0 | BH23: 0 | BI23: 0 | BJ23: 0 | BK23: 0 | BL23: 0 | BM23: 0 | BN23: 0 | BO23: 0 | BP23: =IF((BP22=0)*OR($C22=0),0,BP22/$C22) -> 0 | BQ23: 0 | BR23: 0 | BS23: 0 | BT23: 0 | BU23: 0 | BV23: 0 | BW23: 0 | BX23: 0 | BY23: 0
A25: D370.T | B25: Total Meters | C25: =SUM(D25:BA25) -> 127180593.2 | D25: =SUM(FUNCALLOC!E66) -> 0 | E25: =SUM(FUNCALLOC!F66) -> 0 | F25: =SUM(FUNCALLOC!G66) -> 0 | G25: =SUM(FUNCALLOC!H66) -> 0 | H25: =SUM(FUNCALLOC!I66) -> 0 | I25: =SUM(FUNCALLOC!J66) -> 0 | J25: =SUM(FUNCALLOC!K66) -> 0 | K25: =SUM(FUNCALLOC!L66) -> 0 | L25: =SUM(FUNCALLOC!M66) -> 0 | M25: =SUM(FUNCALLOC!N66) -> 0 | N25: =SUM(FUNCALLOC!O66) -> 0 | O25: =SUM(FUNCALLOC!P66) -> 0 | P25: =SUM(FUNCALLOC!Q66) -> 0 | Q25: =SUM(FUNCALLOC!R66) -> 0 | R25: =SUM(FUNCALLOC!S66) -> 0 | S25: =SUM(FUNCALLOC!T66) -> 0 | T25: =SUM(FUNCALLOC!U66) -> 0 | U25: =SUM(FUNCALLOC!V66) -> 0 | V25: =SUM(FUNCALLOC!W66) -> 0 | W25: =SUM(FUNCALLOC!X66) -> 0 | X25: =SUM(FUNCALLOC!Y66) -> 0 | Y25: =SUM(FUNCALLOC!Z66) -> 0 | Z25: =SUM(FUNCALLOC!AA66) -> 0 | AA25: =SUM(FUNCALLOC!AB66) -> 0 | AB25: =SUM(FUNCALLOC!AC66) -> 0 | AC25: =SUM(FUNCALLOC!AD66) -> 0 | AD25: =SUM(FUNCALLOC!AE66) -> 0 | AE25: =SUM(FUNCALLOC!AF66) -> 0 | AF25: =SUM(FUNCALLOC!AG66) -> 0 | AG25: =SUM(FUNCALLOC!AH66) -> 0 | AH25: =SUM(FUNCALLOC!AI66) -> 0 | AI25: =SUM(FUNCALLOC!AJ66) -> 0 | AJ25: =SUM(FUNCALLOC!AK66) -> 0 | AK25: =SUM(FUNCALLOC!AL66) -> 0 | AL25: =SUM(FUNCALLOC!AM66) -> 0 | AM25: =SUM(FUNCALLOC!AN66) -> 0 | AN25: =SUM(FUNCALLOC!AO66) -> 0 | AO25: =SUM(FUNCALLOC!AP66) -> 127180593.2 | AP25: =SUM(FUNCALLOC!AQ66) -> 0 | AQ25: =SUM(FUNCALLOC!AR66) -> 0 | AR25: =SUM(FUNCALLOC!AS66) -> 0 | AS25: =SUM(FUNCALLOC!AT66) -> 0 | AT25: =SUM(FUNCALLOC!AU66) -> 0 | AU25: =SUM(FUNCALLOC!AV66) -> 0 | AV25: =SUM(FUNCALLOC!AW66) -> 0 | AW25: =SUM(FUNCALLOC!AX66) -> 0 | AX25: =SUM(FUNCALLOC!AY66) -> 0 | AY25: =SUM(FUNCALLOC!AZ66) -> 0 | AZ25: =SUM(FUNCALLOC!BA66) -> 0 | BA25: =SUM(FUNCALLOC!BB66) -> 0 | BB25: =SUM(FUNCALLOC!BC66) -> 0 | BC25: =SUM(FUNCALLOC!BD66) -> 0 | BD25: =SUM(FUNCALLOC!BE66) -> 0 | BE25: =SUM(FUNCALLOC!BF66) -> 0 | BF25: =SUM(FUNCALLOC!BG66) -> 0 | BG25: =SUM(FUNCALLOC!BH66) -> 0 | BH25: =SUM(FUNCALLOC!BI66) -> 0 | BI25: =SUM(FUNCALLOC!BJ66) -> 0 | BJ25: =SUM(FUNCALLOC!BK66) -> 0 | BK25: =SUM(FUNCALLOC!BL66) -> 0 | BL25: =SUM(FUNCALLOC!BM66) -> 0 | BM25: =SUM(FUNCALLOC!BN66) -> 0 | BN25: =SUM(FUNCALLOC!BO66) -> 0 | BO25: =SUM(FUNCALLOC!BP66) -> 0 | BP25: =SUM(FUNCALLOC!BQ66) -> 0 | BQ25: =SUM(FUNCALLOC!BR66) -> 0 | BR25: =SUM(FUNCALLOC!BS66) -> 0 | BS25: =SUM(FUNCALLOC!BT66) -> 0 | BT25: =SUM(FUNCALLOC!BU66) -> 0 | BU25: =SUM(FUNCALLOC!BV66) -> 0 | BV25: =SUM(FUNCALLOC!BW66) -> 0 | BW25: =SUM(FUNCALLOC!BX66) -> 0 | BX25: =SUM(FUNCALLOC!BY66) -> 0 | BY25: =SUM(FUNCALLOC!BZ66) -> 0
D26: =IF((D25=0)*OR($C25=0),0,D25/$C25) -> 0 | E26: 0 | F26: 0 | G26: 0 | H26: 0 | I26: 0 | J26: 0 | K26: 0 | L26: 0 | M26: 0 | N26: 0 | O26: 0 | P26: 0 | Q26: 0 | R26: 0 | S26: 0 | T26: 0 | U26: 0 | V26: 0 | W26: 0 | X26: 0 | Y26: 0 | Z26: 0 | AA26: 0 | AB26: 0 | AC26: 0 | AD26: 0 | AE26: 0 | AF26: 0 | AG26: 0 | AH26: 0 | AI26: 0 | AJ26: 0 | AK26: 0 | AL26: 0 | AM26: 0 | AN26: 0 | AO26: 1 | AP26: 0 | AQ26: 0 | AR26: =IF((AR25=0)*OR($C25=0),0,AR25/$C25) -> 0 | AS26: 0 | AT26: 0 | AU26: 0 | AV26: 0 | AW26: 0 | AX26: 0 | AY26: 0 | AZ26: 0 | BA26: =IF((BA25=0)*OR($C25=0),0,BA25/$C25) -> 0 | BB26: 0 | BC26: 0 | BD26: 0 | BE26: 0 | BF26: 0 | BG26: 0 | BH26: 0 | BI26: 0 | BJ26: 0 | BK26: 0 | BL26: 0 | BM26: 0 | BN26: 0 | BO26: 0 | BP26: 0 | BQ26: 0 | BR26: 0 | BS26: 0 | BT26: 0 | BU26: 0 | BV26: 0 | BW26: 0 | BX26: 0 | BY26: 0
A28: D372.T | B28: Leased Property Assignment Factor | C28: =SUM(D28:BA28) -> 640774.6012 | D28: =SUM(FUNCALLOC!E67) -> 0 | E28: =SUM(FUNCALLOC!F67) -> 0 | F28: =SUM(FUNCALLOC!G67) -> 0 | G28: =SUM(FUNCALLOC!H67) -> 0 | H28: =SUM(FUNCALLOC!I67) -> 0 | I28: =SUM(FUNCALLOC!J67) -> 0 | J28: =SUM(FUNCALLOC!K67) -> 0 | K28: =SUM(FUNCALLOC!L67) -> 0 | L28: =SUM(FUNCALLOC!M67) -> 0 | M28: =SUM(FUNCALLOC!N67) -> 0 | N28: =SUM(FUNCALLOC!O67) -> 0 | O28: =SUM(FUNCALLOC!P67) -> 0 | P28: =SUM(FUNCALLOC!Q67) -> 0 | Q28: =SUM(FUNCALLOC!R67) -> 0 | R28: =SUM(FUNCALLOC!S67) -> 0 | S28: =SUM(FUNCALLOC!T67) -> 0 | T28: =SUM(FUNCALLOC!U67) -> 0 | U28: =SUM(FUNCALLOC!V67) -> 0 | V28: =SUM(FUNCALLOC!W67) -> 0 | W28: =SUM(FUNCALLOC!X67) -> 0 | X28: =SUM(FUNCALLOC!Y67) -> 0 | Y28: =SUM(FUNCALLOC!Z67) -> 0 | Z28: =SUM(FUNCALLOC!AA67) -> 0 | AA28: =SUM(FUNCALLOC!AB67) -> 0 | AB28: =SUM(FUNCALLOC!AC67) -> 0 | AC28: =SUM(FUNCALLOC!AD67) -> 0 | AD28: =SUM(FUNCALLOC!AE67) -> 0 | AE28: =SUM(FUNCALLOC!AF67) -> 0 | AF28: =SUM(FUNCALLOC!AG67) -> 0 | AG28: =SUM(FUNCALLOC!AH67) -> 0 | AH28: =SUM(FUNCALLOC!AI67) -> 0 | AI28: =SUM(FUNCALLOC!AJ67) -> 0 | AJ28: =SUM(FUNCALLOC!AK67) -> 0 | AK28: =SUM(FUNCALLOC!AL67) -> 0 | AL28: =SUM(FUNCALLOC!AM67) -> 0 | AM28: =SUM(FUNCALLOC!AN67) -> 0 | AN28: =SUM(FUNCALLOC!AO67) -> 0 | AO28: =SUM(FUNCALLOC!AP67) -> 0 | AP28: =SUM(FUNCALLOC!AQ67) -> 640774.6012 | AQ28: =SUM(FUNCALLOC!AR67) -> 0 | AR28: =SUM(FUNCALLOC!AS67) -> 0 | AS28: =SUM(FUNCALLOC!AT67) -> 0 | AT28: =SUM(FUNCALLOC!AU67) -> 0 | AU28: =SUM(FUNCALLOC!AV67) -> 0 | AV28: =SUM(FUNCALLOC!AW67) -> 0 | AW28: =SUM(FUNCALLOC!AX67) -> 0 | AX28: =SUM(FUNCALLOC!AY67) -> 0 | AY28: =SUM(FUNCALLOC!AZ67) -> 0 | AZ28: =SUM(FUNCALLOC!BA67) -> 0 | BA28: =SUM(FUNCALLOC!BB67) -> 0 | BB28: =SUM(FUNCALLOC!BC67) -> 0 | BC28: =SUM(FUNCALLOC!BD67) -> 0 | BD28: =SUM(FUNCALLOC!BE67) -> 0 | BE28: =SUM(FUNCALLOC!BF67) -> 0 | BF28: =SUM(FUNCALLOC!BG67) -> 0 | BG28: =SUM(FUNCALLOC!BH67) -> 0 | BH28: =SUM(FUNCALLOC!BI67) -> 0 | BI28: =SUM(FUNCALLOC!BJ67) -> 0 | BJ28: =SUM(FUNCALLOC!BK67) -> 0 | BK28: =SUM(FUNCALLOC!BL67) -> 0 | BL28: =SUM(FUNCALLOC!BM67) -> 0 | BM28: =SUM(FUNCALLOC!BN67) -> 0 | BN28: =SUM(FUNCALLOC!BO67) -> 0 | BO28: =SUM(FUNCALLOC!BP67) -> 0 | BP28: =SUM(FUNCALLOC!BQ67) -> 0 | BQ28: =SUM(FUNCALLOC!BR67) -> 0 | BR28: =SUM(FUNCALLOC!BS67) -> 0 | BS28: =SUM(FUNCALLOC!BT67) -> 0 | BT28: =SUM(FUNCALLOC!BU67) -> 0 | BU28: =SUM(FUNCALLOC!BV67) -> 0 | BV28: =SUM(FUNCALLOC!BW67) -> 0 | BW28: =SUM(FUNCALLOC!BX67) -> 0 | BX28: =SUM(FUNCALLOC!BY67) -> 0 | BY28: =SUM(FUNCALLOC!BZ67) -> 0
D29: =IF((D28=0)*OR($C28=0),0,D28/$C28) -> 0 | E29: 0 | F29: 0 | G29: 0 | H29: 0 | I29: 0 | J29: 0 | K29: 0 | L29: 0 | M29: 0 | N29: 0 | O29: 0 | P29: 0 | Q29: 0 | R29: 0 | S29: 0 | T29: 0 | U29: 0 | V29: 0 | W29: 0 | X29: 0 | Y29: 0 | Z29: 0 | AA29: 0 | AB29: 0 | AC29: 0 | AD29: 0 | AE29: 0 | AF29: 0 | AG29: 0 | AH29: 0 | AI29: 0 | AJ29: 0 | AK29: 0 | AL29: 0 | AM29: 0 | AN29: 0 | AO29: 0 | AP29: 1 | AQ29: 0 | AR29: =IF((AR28=0)*OR($C28=0),0,AR28/$C28) -> 0 | AS29: 0 | AT29: 0 | AU29: 0 | AV29: 0 | AW29: 0 | AX29: 0 | AY29: 0 | AZ29: 0 | BA29: =IF((BA28=0)*OR($C28=0),0,BA28/$C28) -> 0 | BB29: 0 | BC29: 0 | BD29: 0 | BE29: 0 | BF29: 0 | BG29: 0 | BH29: 0 | BI29: 0 | BJ29: 0 | BK29: 0 | BL29: 0 | BM29: 0 | BN29: 0 | BO29: 0 | BP29: 0 | BQ29: 0 | BR29: 0 | BS29: 0 | BT29: 0 | BU29: 0 | BV29: 0 | BW29: 0 | BX29: 0 | BY29: 0
A31: ADJPTDCE.T | B31: Adj Total Prod Trans Dist & Cust Exp | C31: =SUM(D31:BA31) -> 274395714 | D31: =SUM(FUNCALLOC!E284,FUNCALLOC!E299,FUNCALLOC!E315,FUNCALLOC!E326,FUNCALLOC!E329,FUNCALLOC!E331:E337,FUNCALLOC!E266,FUNCALLOC!E392) -> 0 | E31: =SUM(FUNCALLOC!F284,FUNCALLOC!F299,FUNCALLOC!F315,FUNCALLOC!F326,FUNCALLOC!F329,FUNCALLOC!F331:F337,FUNCALLOC!F266,FUNCALLOC!F392) -> 25026427.41 | F31: =SUM(FUNCALLOC!G284,FUNCALLOC!G299,FUNCALLOC!G315,FUNCALLOC!G326,FUNCALLOC!G329,FUNCALLOC!G331:G337,FUNCALLOC!G266,FUNCALLOC!G392) -> 1236999.655 | G31: =SUM(FUNCALLOC!H284,FUNCALLOC!H299,FUNCALLOC!H315,FUNCALLOC!H326,FUNCALLOC!H329,FUNCALLOC!H331:H337,FUNCALLOC!H266,FUNCALLOC!H392) -> 1032950.865 | H31: =SUM(FUNCALLOC!I284,FUNCALLOC!I299,FUNCALLOC!I315,FUNCALLOC!I326,FUNCALLOC!I329,FUNCALLOC!I331:I337,FUNCALLOC!I266,FUNCALLOC!I392) -> 0 | I31: =SUM(FUNCALLOC!J284,FUNCALLOC!J299,FUNCALLOC!J315,FUNCALLOC!J326,FUNCALLOC!J329,FUNCALLOC!J331:J337,FUNCALLOC!J266,FUNCALLOC!J392) -> 0 | J31: =SUM(FUNCALLOC!K284,FUNCALLOC!K299,FUNCALLOC!K315,FUNCALLOC!K326,FUNCALLOC!K329,FUNCALLOC!K331:K337,FUNCALLOC!K266,FUNCALLOC!K392) -> 3721884.12 | K31: =SUM(FUNCALLOC!L284,FUNCALLOC!L299,FUNCALLOC!L315,FUNCALLOC!L326,FUNCALLOC!L329,FUNCALLOC!L331:L337,FUNCALLOC!L266,FUNCALLOC!L392) -> 0 | L31: =SUM(FUNCALLOC!M284,FUNCALLOC!M299,FUNCALLOC!M315,FUNCALLOC!M326,FUNCALLOC!M329,FUNCALLOC!M331:M337,FUNCALLOC!M266,FUNCALLOC!M392) -> 0 | M31: =SUM(FUNCALLOC!N284,FUNCALLOC!N299,FUNCALLOC!N315,FUNCALLOC!N326,FUNCALLOC!N329,FUNCALLOC!N331:N337,FUNCALLOC!N266,FUNCALLOC!N392) -> 331101.8097 | N31: =SUM(FUNCALLOC!O284,FUNCALLOC!O299,FUNCALLOC!O315,FUNCALLOC!O326,FUNCALLOC!O329,FUNCALLOC!O331:O337,FUNCALLOC!O266,FUNCALLOC!O392) -> 4077200.001 | O31: =SUM(FUNCALLOC!P284,FUNCALLOC!P299,FUNCALLOC!P315,FUNCALLOC!P326,FUNCALLOC!P329,FUNCALLOC!P331:P337,FUNCALLOC!P266,FUNCALLOC!P392) -> 28133984.5 | P31: =SUM(FUNCALLOC!Q284,FUNCALLOC!Q299,FUNCALLOC!Q315,FUNCALLOC!Q326,FUNCALLOC!Q329,FUNCALLOC!Q331:Q337,FUNCALLOC!Q266,FUNCALLOC!Q392) -> 138504.6958 | Q31: =SUM(FUNCALLOC!R284,FUNCALLOC!R299,FUNCALLOC!R315,FUNCALLOC!R326,FUNCALLOC!R329,FUNCALLOC!R331:R337,FUNCALLOC!R266,FUNCALLOC!R392) -> 15516063.11 | R31: =SUM(FUNCALLOC!S284,FUNCALLOC!S299,FUNCALLOC!S315,FUNCALLOC!S326,FUNCALLOC!S329,FUNCALLOC!S331:S337,FUNCALLOC!S266,FUNCALLOC!S392) -> 326879.0178 | S31: =SUM(FUNCALLOC!T284,FUNCALLOC!T299,FUNCALLOC!T315,FUNCALLOC!T326,FUNCALLOC!T329,FUNCALLOC!T331:T337,FUNCALLOC!T266,FUNCALLOC!T392) -> 0 | T31: =SUM(FUNCALLOC!U284,FUNCALLOC!U299,FUNCALLOC!U315,FUNCALLOC!U326,FUNCALLOC!U329,FUNCALLOC!U331:U337,FUNCALLOC!U266,FUNCALLOC!U392) -> 0 | U31: =SUM(FUNCALLOC!V284,FUNCALLOC!V299,FUNCALLOC!V315,FUNCALLOC!V326,FUNCALLOC!V329,FUNCALLOC!V331:V337,FUNCALLOC!V266,FUNCALLOC!V392) -> 0 | V31: =SUM(FUNCALLOC!W284,FUNCALLOC!W299,FUNCALLOC!W315,FUNCALLOC!W326,FUNCALLOC!W329,FUNCALLOC!W331:W337,FUNCALLOC!W266,FUNCALLOC!W392) -> 0 | W31: =SUM(FUNCALLOC!X284,FUNCALLOC!X299,FUNCALLOC!X315,FUNCALLOC!X326,FUNCALLOC!X329,FUNCALLOC!X331:X337,FUNCALLOC!X266,FUNCALLOC!X392) -> 0 | X31: =SUM(FUNCALLOC!Y284,FUNCALLOC!Y299,FUNCALLOC!Y315,FUNCALLOC!Y326,FUNCALLOC!Y329,FUNCALLOC!Y331:Y337,FUNCALLOC!Y266,FUNCALLOC!Y392) -> 0 | Y31: =SUM(FUNCALLOC!Z284,FUNCALLOC!Z299,FUNCALLOC!Z315,FUNCALLOC!Z326,FUNCALLOC!Z329,FUNCALLOC!Z331:Z337,FUNCALLOC!Z266,FUNCALLOC!Z392) -> 0 | Z31: =SUM(FUNCALLOC!AA284,FUNCALLOC!AA299,FUNCALLOC!AA315,FUNCALLOC!AA326,FUNCALLOC!AA329,FUNCALLOC!AA331:AA337,FUNCALLOC!AA266,FUNCALLOC!AA392) -> 0 | AA31: =SUM(FUNCALLOC!AB284,FUNCALLOC!AB299,FUNCALLOC!AB315,FUNCALLOC!AB326,FUNCALLOC!AB329,FUNCALLOC!AB331:AB337,FUNCALLOC!AB266,FUNCALLOC!AB392) -> 0 | AB31: =SUM(FUNCALLOC!AC284,FUNCALLOC!AC299,FUNCALLOC!AC315,FUNCALLOC!AC326,FUNCALLOC!AC329,FUNCALLOC!AC331:AC337,FUNCALLOC!AC266,FUNCALLOC!AC392) -> 0 | AC31: =SUM(FUNCALLOC!AD284,FUNCALLOC!AD299,FUNCALLOC!AD315,FUNCALLOC!AD326,FUNCALLOC!AD329,FUNCALLOC!AD331:AD337,FUNCALLOC!AD266,FUNCALLOC!AD392) -> 106691611.6 | AD31: =SUM(FUNCALLOC!AE284,FUNCALLOC!AE299,FUNCALLOC!AE315,FUNCALLOC!AE326,FUNCALLOC!AE329,FUNCALLOC!AE331:AE337,FUNCALLOC!AE266,FUNCALLOC!AE392) -> 5273524.846 | AE31: =SUM(FUNCALLOC!AF284,FUNCALLOC!AF299,FUNCALLOC!AF315,FUNCALLOC!AF326,FUNCALLOC!AF329,FUNCALLOC!AF331:AF337,FUNCALLOC!AF266,FUNCALLOC!AF392) -> 4403632.634 | AF31: =SUM(FUNCALLOC!AG284,FUNCALLOC!AG299,FUNCALLOC!AG315,FUNCALLOC!AG326,FUNCALLOC!AG329,FUNCALLOC!AG331:AG337,FUNCALLOC!AG266,FUNCALLOC!AG392) -> 15866979.67 | AG31: =SUM(FUNCALLOC!AH284,FUNCALLOC!AH299,FUNCALLOC!AH315,FUNCALLOC!AH326,FUNCALLOC!AH329,FUNCALLOC!AH331:AH337,FUNCALLOC!AH266,FUNCALLOC!AH392) -> 0 | AH31: =SUM(FUNCALLOC!AI284,FUNCALLOC!AI299,FUNCALLOC!AI315,FUNCALLOC!AI326,FUNCALLOC!AI329,FUNCALLOC!AI331:AI337,FUNCALLOC!AI266,FUNCALLOC!AI392) -> 0 | AI31: =SUM(FUNCALLOC!AJ284,FUNCALLOC!AJ299,FUNCALLOC!AJ315,FUNCALLOC!AJ326,FUNCALLOC!AJ329,FUNCALLOC!AJ331:AJ337,FUNCALLOC!AJ266,FUNCALLOC!AJ392) -> 0 | AJ31: =SUM(FUNCALLOC!AK284,FUNCALLOC!AK299,FUNCALLOC!AK315,FUNCALLOC!AK326,FUNCALLOC!AK329,FUNCALLOC!AK331:AK337,FUNCALLOC!AK266,FUNCALLOC!AK392) -> 85259.19473 | AK31: =SUM(FUNCALLOC!AL284,FUNCALLOC!AL299,FUNCALLOC!AL315,FUNCALLOC!AL326,FUNCALLOC!AL329,FUNCALLOC!AL331:AL337,FUNCALLOC!AL266,FUNCALLOC!AL392) -> 161286.7482 | AL31: =SUM(FUNCALLOC!AM284,FUNCALLOC!AM299,FUNCALLOC!AM315,FUNCALLOC!AM326,FUNCALLOC!AM329,FUNCALLOC!AM331:AM337,FUNCALLOC!AM266,FUNCALLOC!AM392) -> 2319.057091 | AM31: =SUM(FUNCALLOC!AN284,FUNCALLOC!AN299,FUNCALLOC!AN315,FUNCALLOC!AN326,FUNCALLOC!AN329,FUNCALLOC!AN331:AN337,FUNCALLOC!AN266,FUNCALLOC!AN392) -> 0 | AN31: =SUM(FUNCALLOC!AO284,FUNCALLOC!AO299,FUNCALLOC!AO315,FUNCALLOC!AO326,FUNCALLOC!AO329,FUNCALLOC!AO331:AO337,FUNCALLOC!AO266,FUNCALLOC!AO392) -> 0 | AO31: =SUM(FUNCALLOC!AP284,FUNCALLOC!AP299,FUNCALLOC!AP315,FUNCALLOC!AP326,FUNCALLOC!AP329,FUNCALLOC!AP331:AP337,FUNCALLOC!AP266,FUNCALLOC!AP392) -> 9250526.329 | AP31: =SUM(FUNCALLOC!AQ284,FUNCALLOC!AQ299,FUNCALLOC!AQ315,FUNCALLOC!AQ326,FUNCALLOC!AQ329,FUNCALLOC!AQ331:AQ337,FUNCALLOC!AQ266,FUNCALLOC!AQ392) -> 0 | AQ31: =SUM(FUNCALLOC!AR284,FUNCALLOC!AR299,FUNCALLOC!AR315,FUNCALLOC!AR326,FUNCALLOC!AR329,FUNCALLOC!AR331:AR337,FUNCALLOC!AR266,FUNCALLOC!AR392) -> 3948490.752 | AR31: =SUM(FUNCALLOC!AS284,FUNCALLOC!AS299,FUNCALLOC!AS315,FUNCALLOC!AS326,FUNCALLOC!AS329,FUNCALLOC!AS331:AS337,FUNCALLOC!AS266,FUNCALLOC!AS392) -> 0 | AS31: =SUM(FUNCALLOC!AT284,FUNCALLOC!AT299,FUNCALLOC!AT315,FUNCALLOC!AT326,FUNCALLOC!AT329,FUNCALLOC!AT331:AT337,FUNCALLOC!AT266,FUNCALLOC!AT392) -> 0 | AT31: =SUM(FUNCALLOC!AU284,FUNCALLOC!AU299,FUNCALLOC!AU315,FUNCALLOC!AU326,FUNCALLOC!AU329,FUNCALLOC!AU331:AU337,FUNCALLOC!AU266,FUNCALLOC!AU392) -> 17425785.76 | AU31: =SUM(FUNCALLOC!AV284,FUNCALLOC!AV299,FUNCALLOC!AV315,FUNCALLOC!AV326,FUNCALLOC!AV329,FUNCALLOC!AV331:AV337,FUNCALLOC!AV266,FUNCALLOC!AV392) -> 21428347.62 | AV31: =SUM(FUNCALLOC!AW284,FUNCALLOC!AW299,FUNCALLOC!AW315,FUNCALLOC!AW326,FUNCALLOC!AW329,FUNCALLOC!AW331:AW337,FUNCALLOC!AW266,FUNCALLOC!AW392) -> 8695438.396 | AW31: =SUM(FUNCALLOC!AX284,FUNCALLOC!AX299,FUNCALLOC!AX315,FUNCALLOC!AX326,FUNCALLOC!AX329,FUNCALLOC!AX331:AX337,FUNCALLOC!AX266,FUNCALLOC!AX392) -> 1549696.223 | AX31: =SUM(FUNCALLOC!AY284,FUNCALLOC!AY299,FUNCALLOC!AY315,FUNCALLOC!AY326,FUNCALLOC!AY329,FUNCALLOC!AY331:AY337,FUNCALLOC!AY266,FUNCALLOC!AY392) -> 70820 | AY31: =SUM(FUNCALLOC!AZ284,FUNCALLOC!AZ299,FUNCALLOC!AZ315,FUNCALLOC!AZ326,FUNCALLOC!AZ329,FUNCALLOC!AZ331:AZ337,FUNCALLOC!AZ266,FUNCALLOC!AZ392) -> 0 | AZ31: =SUM(FUNCALLOC!BA284,FUNCALLOC!BA299,FUNCALLOC!BA315,FUNCALLOC!BA326,FUNCALLOC!BA329,FUNCALLOC!BA331:BA337,FUNCALLOC!BA266,FUNCALLOC!BA392) -> 0 | BA31: =SUM(FUNCALLOC!BB284,FUNCALLOC!BB299,FUNCALLOC!BB315,FUNCALLOC!BB326,FUNCALLOC!BB329,FUNCALLOC!BB331:BB337,FUNCALLOC!BB266,FUNCALLOC!BB392) -> 0 | BB31: =SUM(FUNCALLOC!BC284,FUNCALLOC!BC299,FUNCALLOC!BC315,FUNCALLOC!BC326,FUNCALLOC!BC329,FUNCALLOC!BC331:BC337,FUNCALLOC!BC266,FUNCALLOC!BC392) -> 0 | BC31: =SUM(FUNCALLOC!BD284,FUNCALLOC!BD299,FUNCALLOC!BD315,FUNCALLOC!BD326,FUNCALLOC!BD329,FUNCALLOC!BD331:BD337,FUNCALLOC!BD266,FUNCALLOC!BD392) -> 0 | BD31: =SUM(FUNCALLOC!BE284,FUNCALLOC!BE299,FUNCALLOC!BE315,FUNCALLOC!BE326,FUNCALLOC!BE329,FUNCALLOC!BE331:BE337,FUNCALLOC!BE266,FUNCALLOC!BE392) -> 0 | BE31: =SUM(FUNCALLOC!BF284,FUNCALLOC!BF299,FUNCALLOC!BF315,FUNCALLOC!BF326,FUNCALLOC!BF329,FUNCALLOC!BF331:BF337,FUNCALLOC!BF266,FUNCALLOC!BF392) -> 0 | BF31: =SUM(FUNCALLOC!BG284,FUNCALLOC!BG299,FUNCALLOC!BG315,FUNCALLOC!BG326,FUNCALLOC!BG329,FUNCALLOC!BG331:BG337,FUNCALLOC!BG266,FUNCALLOC!BG392) -> 0 | BG31: =SUM(FUNCALLOC!BH284,FUNCALLOC!BH299,FUNCALLOC!BH315,FUNCALLOC!BH326,FUNCALLOC!BH329,FUNCALLOC!BH331:BH337,FUNCALLOC!BH266,FUNCALLOC!BH392) -> 0 | BH31: =SUM(FUNCALLOC!BI284,FUNCALLOC!BI299,FUNCALLOC!BI315,FUNCALLOC!BI326,FUNCALLOC!BI329,FUNCALLOC!BI331:BI337,FUNCALLOC!BI266,FUNCALLOC!BI392) -> 0 | BI31: =SUM(FUNCALLOC!BJ284,FUNCALLOC!BJ299,FUNCALLOC!BJ315,FUNCALLOC!BJ326,FUNCALLOC!BJ329,FUNCALLOC!BJ331:BJ337,FUNCALLOC!BJ266,FUNCALLOC!BJ392) -> 0 | BJ31: =SUM(FUNCALLOC!BK284,FUNCALLOC!BK299,FUNCALLOC!BK315,FUNCALLOC!BK326,FUNCALLOC!BK329,FUNCALLOC!BK331:BK337,FUNCALLOC!BK266,FUNCALLOC!BK392) -> 0 | BK31: =SUM(FUNCALLOC!BL284,FUNCALLOC!BL299,FUNCALLOC!BL315,FUNCALLOC!BL326,FUNCALLOC!BL329,FUNCALLOC!BL331:BL337,FUNCALLOC!BL266,FUNCALLOC!BL392) -> 0 | BL31: =SUM(FUNCALLOC!BM284,FUNCALLOC!BM299,FUNCALLOC!BM315,FUNCALLOC!BM326,FUNCALLOC!BM329,FUNCALLOC!BM331:BM337,FUNCALLOC!BM266,FUNCALLOC!BM392) -> 0 | BM31: =SUM(FUNCALLOC!BN284,FUNCALLOC!BN299,FUNCALLOC!BN315,FUNCALLOC!BN326,FUNCALLOC!BN329,FUNCALLOC!BN331:BN337,FUNCALLOC!BN266,FUNCALLOC!BN392) -> 0 | BN31: =SUM(FUNCALLOC!BO284,FUNCALLOC!BO299,FUNCALLOC!BO315,FUNCALLOC!BO326,FUNCALLOC!BO329,FUNCALLOC!BO331:BO337,FUNCALLOC!BO266,FUNCALLOC!BO392) -> 0 | BO31: =SUM(FUNCALLOC!BP284,FUNCALLOC!BP299,FUNCALLOC!BP315,FUNCALLOC!BP326,FUNCALLOC!BP329,FUNCALLOC!BP331:BP337,FUNCALLOC!BP266,FUNCALLOC!BP392) -> 0 | BP31: =SUM(FUNCALLOC!BQ284,FUNCALLOC!BQ299,FUNCALLOC!BQ315,FUNCALLOC!BQ326,FUNCALLOC!BQ329,FUNCALLOC!BQ331:BQ337,FUNCALLOC!BQ266,FUNCALLOC!BQ392) -> 0 | BQ31: =SUM(FUNCALLOC!BR284,FUNCALLOC!BR299,FUNCALLOC!BR315,FUNCALLOC!BR326,FUNCALLOC!BR329,FUNCALLOC!BR331:BR337,FUNCALLOC!BR266,FUNCALLOC!BR392) -> 0 | BR31: =SUM(FUNCALLOC!BS284,FUNCALLOC!BS299,FUNCALLOC!BS315,FUNCALLOC!BS326,FUNCALLOC!BS329,FUNCALLOC!BS331:BS337,FUNCALLOC!BS266,FUNCALLOC!BS392) -> 0 | BS31: =SUM(FUNCALLOC!BT284,FUNCALLOC!BT299,FUNCALLOC!BT315,FUNCALLOC!BT326,FUNCALLOC!BT329,FUNCALLOC!BT331:BT337,FUNCALLOC!BT266,FUNCALLOC!BT392) -> 0 | BT31: =SUM(FUNCALLOC!BU284,FUNCALLOC!BU299,FUNCALLOC!BU315,FUNCALLOC!BU326,FUNCALLOC!BU329,FUNCALLOC!BU331:BU337,FUNCALLOC!BU266,FUNCALLOC!BU392) -> 0 | BU31: =SUM(FUNCALLOC!BV284,FUNCALLOC!BV299,FUNCALLOC!BV315,FUNCALLOC!BV326,FUNCALLOC!BV329,FUNCALLOC!BV331:BV337,FUNCALLOC!BV266,FUNCALLOC!BV392) -> 0 | BV31: =SUM(FUNCALLOC!BW284,FUNCALLOC!BW299,FUNCALLOC!BW315,FUNCALLOC!BW326,FUNCALLOC!BW329,FUNCALLOC!BW331:BW337,FUNCALLOC!BW266,FUNCALLOC!BW392) -> 0 | BW31: =SUM(FUNCALLOC!BX284,FUNCALLOC!BX299,FUNCALLOC!BX315,FUNCALLOC!BX326,FUNCALLOC!BX329,FUNCALLOC!BX331:BX337,FUNCALLOC!BX266,FUNCALLOC!BX392) -> 0 | BX31: =SUM(FUNCALLOC!BY284,FUNCALLOC!BY299,FUNCALLOC!BY315,FUNCALLOC!BY326,FUNCALLOC!BY329,FUNCALLOC!BY331:BY337,FUNCALLOC!BY266,FUNCALLOC!BY392) -> 0 | BY31: =SUM(FUNCALLOC!BZ284,FUNCALLOC!BZ299,FUNCALLOC!BZ315,FUNCALLOC!BZ326,FUNCALLOC!BZ329,FUNCALLOC!BZ331:BZ337,FUNCALLOC!BZ266,FUNCALLOC!BZ392) -> 0
D32: =IF((D31=0)*OR($C31=0),0,D31/$C31) -> 0 | E32: 0.09120560611 | F32: 0.004508086651 | G32: 0.003764456994 | H32: 0 | I32: 0 | J32: 0.0135639295 | K32: 0 | L32: 0 | M32: 0.001206658095 | N32: 0.01485883267 | O32: 0.1025306995 | P32: 0.0005047626065 | Q32: 0.05654630272 | R32: 0.001191268672 | S32: 0 | T32: 0 | U32: 0 | V32: 0 | W32: 0 | X32: 0 | Y32: 0 | Z32: 0 | AA32: 0 | AB32: 0 | AC32: 0.3888238997 | AD32: 0.0192186852 | AE32: 0.01604847455 | AF32: 0.05782517313 | AG32: 0 | AH32: 0 | AI32: 0 | AJ32: 0.0003107162043 | AK32: 0.0005877888755 | AL32: 8.451506245e-06 | AM32: 0 | AN32: 0 | AO32: 0.03371235721 | AP32: 0 | AQ32: 0.01438976832 | AR32: =IF((AR31=0)*OR($C31=0),0,AR31/$C31) -> 0 | AS32: 0 | AT32: 0.0635060421 | AU32: 0.07809286561 | AV32: 0.03168941041 | AW32: 0.005647669201 | AX32: 0.0002580944103 | AY32: 0 | AZ32: 0 | BA32: =IF((BA31=0)*OR($C31=0),0,BA31/$C31) -> 0 | BB32: 0 | BC32: 0 | BD32: 0 | BE32: 0 | BF32: 0 | BG32: 0 | BH32: 0 | BI32: 0 | BJ32: 0 | BK32: 0 | BL32: 0 | BM32: 0 | BN32: 0 | BO32: 0 | BP32: 0 | BQ32: 0 | BR32: 0 | BS32: 0 | BT32: 0 | BU32: 0 | BV32: 0 | BW32: 0 | BX32: 0 | BY32: 0
A34: CAE.T | B34: Cust Accts Exp - Total | C34: =SUM(D34:BA34) -> 47476893 | D34: =SUM(FUNCALLOC!E326) -> 0 | E34: =SUM(FUNCALLOC!F326) -> 0 | F34: =SUM(FUNCALLOC!G326) -> 0 | G34: =SUM(FUNCALLOC!H326) -> 0 | H34: =SUM(FUNCALLOC!I326) -> 0 | I34: =SUM(FUNCALLOC!J326) -> 0 | J34: =SUM(FUNCALLOC!K326) -> 0 | K34: =SUM(FUNCALLOC!L326) -> 0 | L34: =SUM(FUNCALLOC!M326) -> 0 | M34: =SUM(FUNCALLOC!N326) -> 0 | N34: =SUM(FUNCALLOC!O326) -> 0 | O34: =SUM(FUNCALLOC!P326) -> 0 | P34: =SUM(FUNCALLOC!Q326) -> 0 | Q34: =SUM(FUNCALLOC!R326) -> 0 | R34: =SUM(FUNCALLOC!S326) -> 0 | S34: =SUM(FUNCALLOC!T326) -> 0 | T34: =SUM(FUNCALLOC!U326) -> 0 | U34: =SUM(FUNCALLOC!V326) -> 0 | V34: =SUM(FUNCALLOC!W326) -> 0 | W34: =SUM(FUNCALLOC!X326) -> 0 | X34: =SUM(FUNCALLOC!Y326) -> 0 | Y34: =SUM(FUNCALLOC!Z326) -> 0 | Z34: =SUM(FUNCALLOC!AA326) -> 0 | AA34: =SUM(FUNCALLOC!AB326) -> 0 | AB34: =SUM(FUNCALLOC!AC326) -> 0 | AC34: =SUM(FUNCALLOC!AD326) -> 0 | AD34: =SUM(FUNCALLOC!AE326) -> 0 | AE34: =SUM(FUNCALLOC!AF326) -> 0 | AF34: =SUM(FUNCALLOC!AG326) -> 0 | AG34: =SUM(FUNCALLOC!AH326) -> 0 | AH34: =SUM(FUNCALLOC!AI326) -> 0 | AI34: =SUM(FUNCALLOC!AJ326) -> 0 | AJ34: =SUM(FUNCALLOC!AK326) -> 0 | AK34: =SUM(FUNCALLOC!AL326) -> 0 | AL34: =SUM(FUNCALLOC!AM326) -> 0 | AM34: =SUM(FUNCALLOC!AN326) -> 0 | AN34: =SUM(FUNCALLOC!AO326) -> 0 | AO34: =SUM(FUNCALLOC!AP326) -> 0 | AP34: =SUM(FUNCALLOC!AQ326) -> 0 | AQ34: =SUM(FUNCALLOC!AR326) -> 0 | AR34: =SUM(FUNCALLOC!AS326) -> 0 | AS34: =SUM(FUNCALLOC!AT326) -> 0 | AT34: =SUM(FUNCALLOC!AU326) -> 17425785.76 | AU34: =SUM(FUNCALLOC!AV326) -> 21428347.62 | AV34: =SUM(FUNCALLOC!AW326) -> 8695438.396 | AW34: =SUM(FUNCALLOC!AX326) -> -72678.77717 | AX34: =SUM(FUNCALLOC!AY326) -> 0 | AY34: =SUM(FUNCALLOC!AZ326) -> 0 | AZ34: =SUM(FUNCALLOC!BA326) -> 0 | BA34: =SUM(FUNCALLOC!BB326) -> 0 | BB34: =SUM(FUNCALLOC!BC326) -> 0 | BC34: =SUM(FUNCALLOC!BD326) -> 0 | BD34: =SUM(FUNCALLOC!BE326) -> 0 | BE34: =SUM(FUNCALLOC!BF326) -> 0 | BF34: =SUM(FUNCALLOC!BG326) -> 0 | BG34: =SUM(FUNCALLOC!BH326) -> 0 | BH34: =SUM(FUNCALLOC!BI326) -> 0 | BI34: =SUM(FUNCALLOC!BJ326) -> 0 | BJ34: =SUM(FUNCALLOC!BK326) -> 0 | BK34: =SUM(FUNCALLOC!BL326) -> 0 | BL34: =SUM(FUNCALLOC!BM326) -> 0 | BM34: =SUM(FUNCALLOC!BN326) -> 0 | BN34: =SUM(FUNCALLOC!BO326) -> 0 | BO34: =SUM(FUNCALLOC!BP326) -> 0 | BP34: =SUM(FUNCALLOC!BQ326) -> 0 | BQ34: =SUM(FUNCALLOC!BR326) -> 0 | BR34: =SUM(FUNCALLOC!BS326) -> 0 | BS34: =SUM(FUNCALLOC!BT326) -> 0 | BT34: =SUM(FUNCALLOC!BU326) -> 0 | BU34: =SUM(FUNCALLOC!BV326) -> 0 | BV34: =SUM(FUNCALLOC!BW326) -> 0 | BW34: =SUM(FUNCALLOC!BX326) -> 0 | BX34: =SUM(FUNCALLOC!BY326) -> 0 | BY34: =SUM(FUNCALLOC!BZ326) -> 0
D35: =IF((D34=0)*OR($C34=0),0,D34/$C34) -> 0 | E35: 0 | F35: 0 | G35: 0 | H35: 0 | I35: 0 | J35: 0 | K35: 0 | L35: 0 | M35: 0 | N35: 0 | O35: 0 | P35: 0 | Q35: 0 | R35: 0 | S35: 0 | T35: 0 | U35: 0 | V35: 0 | W35: 0 | X35: 0 | Y35: 0 | Z35: 0 | AA35: 0 | AB35: 0 | AC35: 0 | AD35: 0 | AE35: 0 | AF35: 0 | AG35: 0 | AH35: 0 | AI35: 0 | AJ35: 0 | AK35: 0 | AL35: 0 | AM35: 0 | AN35: 0 | AO35: 0 | AP35: 0 | AQ35: 0 | AR35: =IF((AR34=0)*OR($C34=0),0,AR34/$C34) -> 0 | AS35: 0 | AT35: 0.3670371977 | AU35: 0.4513426693 | AV35: 0.1831509572 | AW35: -0.001530824209 | AX35: 0 | AY35: 0 | AZ35: 0 | BA35: =IF((BA34=0)*OR($C34=0),0,BA34/$C34) -> 0 | BB35: 0 | BC35: 0 | BD35: 0 | BE35: 0 | BF35: 0 | BG35: 0 | BH35: 0 | BI35: 0 | BJ35: 0 | BK35: 0 | BL35: 0 | BM35: 0 | BN35: 0 | BO35: 0 | BP35: 0 | BQ35: 0 | BR35: 0 | BS35: 0 | BT35: 0 | BU35: 0 | BV35: 0 | BW35: 0 | BX35: 0 | BY35: 0
A37: CAES1.T | B37: Cust Accts Exp - Subtotal ID902.00 to ID905.00 | C37: =SUM(D37:BA37) -> 47230766 | D37: =SUM(FUNCALLOC!E319:E322) -> 0 | E37: =SUM(FUNCALLOC!F319:F322) -> 0 | F37: =SUM(FUNCALLOC!G319:G322) -> 0 | G37: =SUM(FUNCALLOC!H319:H322) -> 0 | H37: =SUM(FUNCALLOC!I319:I322) -> 0 | I37: =SUM(FUNCALLOC!J319:J322) -> 0 | J37: =SUM(FUNCALLOC!K319:K322) -> 0 | K37: =SUM(FUNCALLOC!L319:L322) -> 0 | L37: =SUM(FUNCALLOC!M319:M322) -> 0 | M37: =SUM(FUNCALLOC!N319:N322) -> 0 | N37: =SUM(FUNCALLOC!O319:O322) -> 0 | O37: =SUM(FUNCALLOC!P319:P322) -> 0 | P37: =SUM(FUNCALLOC!Q319:Q322) -> 0 | Q37: =SUM(FUNCALLOC!R319:R322) -> 0 | R37: =SUM(FUNCALLOC!S319:S322) -> 0 | S37: =SUM(FUNCALLOC!T319:T322) -> 0 | T37: =SUM(FUNCALLOC!U319:U322) -> 0 | U37: =SUM(FUNCALLOC!V319:V322) -> 0 | V37: =SUM(FUNCALLOC!W319:W322) -> 0 | W37: =SUM(FUNCALLOC!X319:X322) -> 0 | X37: =SUM(FUNCALLOC!Y319:Y322) -> 0 | Y37: =SUM(FUNCALLOC!Z319:Z322) -> 0 | Z37: =SUM(FUNCALLOC!AA319:AA322) -> 0 | AA37: =SUM(FUNCALLOC!AB319:AB322) -> 0 | AB37: =SUM(FUNCALLOC!AC319:AC322) -> 0 | AC37: =SUM(FUNCALLOC!AD319:AD322) -> 0 | AD37: =SUM(FUNCALLOC!AE319:AE322) -> 0 | AE37: =SUM(FUNCALLOC!AF319:AF322) -> 0 | AF37: =SUM(FUNCALLOC!AG319:AG322) -> 0 | AG37: =SUM(FUNCALLOC!AH319:AH322) -> 0 | AH37: =SUM(FUNCALLOC!AI319:AI322) -> 0 | AI37: =SUM(FUNCALLOC!AJ319:AJ322) -> 0 | AJ37: =SUM(FUNCALLOC!AK319:AK322) -> 0 | AK37: =SUM(FUNCALLOC!AL319:AL322) -> 0 | AL37: =SUM(FUNCALLOC!AM319:AM322) -> 0 | AM37: =SUM(FUNCALLOC!AN319:AN322) -> 0 | AN37: =SUM(FUNCALLOC!AO319:AO322) -> 0 | AO37: =SUM(FUNCALLOC!AP319:AP322) -> 0 | AP37: =SUM(FUNCALLOC!AQ319:AQ322) -> 0 | AQ37: =SUM(FUNCALLOC!AR319:AR322) -> 0 | AR37: =SUM(FUNCALLOC!AS319:AS322) -> 0 | AS37: =SUM(FUNCALLOC!AT319:AT322) -> 0 | AT37: =SUM(FUNCALLOC!AU319:AU322) -> 17335448 | AU37: =SUM(FUNCALLOC!AV319:AV322) -> 21317260 | AV37: =SUM(FUNCALLOC!AW319:AW322) -> 8650360 | AW37: =SUM(FUNCALLOC!AX319:AX322) -> -72302 | AX37: =SUM(FUNCALLOC!AY319:AY322) -> 0 | AY37: =SUM(FUNCALLOC!AZ319:AZ322) -> 0 | AZ37: =SUM(FUNCALLOC!BA319:BA322) -> 0 | BA37: =SUM(FUNCALLOC!BB319:BB322) -> 0 | BB37: =SUM(FUNCALLOC!BC319:BC322) -> 0 | BC37: =SUM(FUNCALLOC!BD319:BD322) -> 0 | BD37: =SUM(FUNCALLOC!BE319:BE322) -> 0 | BE37: =SUM(FUNCALLOC!BF319:BF322) -> 0 | BF37: =SUM(FUNCALLOC!BG319:BG322) -> 0 | BG37: =SUM(FUNCALLOC!BH319:BH322) -> 0 | BH37: =SUM(FUNCALLOC!BI319:BI322) -> 0 | BI37: =SUM(FUNCALLOC!BJ319:BJ322) -> 0 | BJ37: =SUM(FUNCALLOC!BK319:BK322) -> 0 | BK37: =SUM(FUNCALLOC!BL319:BL322) -> 0 | BL37: =SUM(FUNCALLOC!BM319:BM322) -> 0 | BM37: =SUM(FUNCALLOC!BN319:BN322) -> 0 | BN37: =SUM(FUNCALLOC!BO319:BO322) -> 0 | BO37: =SUM(FUNCALLOC!BP319:BP322) -> 0 | BP37: =SUM(FUNCALLOC!BQ319:BQ322) -> 0 | BQ37: =SUM(FUNCALLOC!BR319:BR322) -> 0 | BR37: =SUM(FUNCALLOC!BS319:BS322) -> 0 | BS37: =SUM(FUNCALLOC!BT319:BT322) -> 0 | BT37: =SUM(FUNCALLOC!BU319:BU322) -> 0 | BU37: =SUM(FUNCALLOC!BV319:BV322) -> 0 | BV37: =SUM(FUNCALLOC!BW319:BW322) -> 0 | BW37: =SUM(FUNCALLOC!BX319:BX322) -> 0 | BX37: =SUM(FUNCALLOC!BY319:BY322) -> 0 | BY37: =SUM(FUNCALLOC!BZ319:BZ322) -> 0
D38: =IF((D37=0)*OR($C37=0),0,D37/$C37) -> 0 | E38: 0 | F38: 0 | G38: 0 | H38: 0 | I38: 0 | J38: 0 | K38: 0 | L38: 0 | M38: 0 | N38: 0 | O38: 0 | P38: 0 | Q38: 0 | R38: 0 | S38: 0 | T38: 0 | U38: 0 | V38: 0 | W38: 0 | X38: 0 | Y38: 0 | Z38: 0 | AA38: 0 | AB38: 0 | AC38: 0 | AD38: 0 | AE38: 0 | AF38: 0 | AG38: 0 | AH38: 0 | AI38: 0 | AJ38: 0 | AK38: 0 | AL38: 0 | AM38: 0 | AN38: 0 | AO38: 0 | AP38: 0 | AQ38: 0 | AR38: =IF((AR37=0)*OR($C37=0),0,AR37/$C37) -> 0 | AS38: 0 | AT38: 0.3670371977 | AU38: 0.4513426693 | AV38: 0.1831509572 | AW38: -0.001530824209 | AX38: 0 | AY38: 0 | AZ38: 0 | BA38: =IF((BA37=0)*OR($C37=0),0,BA37/$C37) -> 0 | BB38: 0 | BC38: 0 | BD38: 0 | BE38: 0 | BF38: 0 | BG38: 0 | BH38: 0 | BI38: 0 | BJ38: 0 | BK38: 0 | BL38: 0 | BM38: 0 | BN38: 0 | BO38: 0 | BP38: 0 | BQ38: 0 | BR38: 0 | BS38: 0 | BT38: 0 | BU38: 0 | BV38: 0 | BW38: 0 | BX38: 0 | BY38: 0
A40: DES1.T | B40: Dist O&M - ID581.00 to ID589.00 Subtotal | C40: =SUM(D40:BA40) -> 17946090 | D40: =SUM(FUNCALLOC!E302:E309) -> 0 | E40: =SUM(FUNCALLOC!F302:F309) -> 0 | F40: =SUM(FUNCALLOC!G302:G309) -> 0 | G40: =SUM(FUNCALLOC!H302:H309) -> 0 | H40: =SUM(FUNCALLOC!I302:I309) -> 0 | I40: =SUM(FUNCALLOC!J302:J309) -> 0 | J40: =SUM(FUNCALLOC!K302:K309) -> 484087.7883 | K40: =SUM(FUNCALLOC!L302:L309) -> 0 | L40: =SUM(FUNCALLOC!M302:M309) -> 0 | M40: =SUM(FUNCALLOC!N302:N309) -> 100910.3717 | N40: =SUM(FUNCALLOC!O302:O309) -> 1242614.071 | O40: =SUM(FUNCALLOC!P302:P309) -> 2781687.376 | P40: =SUM(FUNCALLOC!Q302:Q309) -> 13694.35474 | Q40: =SUM(FUNCALLOC!R302:R309) -> 2811448.589 | R40: =SUM(FUNCALLOC!S302:S309) -> 59229.17088 | S40: =SUM(FUNCALLOC!T302:T309) -> 0 | T40: =SUM(FUNCALLOC!U302:U309) -> 0 | U40: =SUM(FUNCALLOC!V302:V309) -> 0 | V40: =SUM(FUNCALLOC!W302:W309) -> 0 | W40: =SUM(FUNCALLOC!X302:X309) -> 0 | X40: =SUM(FUNCALLOC!Y302:Y309) -> 0 | Y40: =SUM(FUNCALLOC!Z302:Z309) -> 0 | Z40: =SUM(FUNCALLOC!AA302:AA309) -> 0 | AA40: =SUM(FUNCALLOC!AB302:AB309) -> 0 | AB40: =SUM(FUNCALLOC!AC302:AC309) -> 0 | AC40: =SUM(FUNCALLOC!AD302:AD309) -> 0 | AD40: =SUM(FUNCALLOC!AE302:AE309) -> 0 | AE40: =SUM(FUNCALLOC!AF302:AF309) -> 0 | AF40: =SUM(FUNCALLOC!AG302:AG309) -> 2063742.676 | AG40: =SUM(FUNCALLOC!AH302:AH309) -> 0 | AH40: =SUM(FUNCALLOC!AI302:AI309) -> 0 | AI40: =SUM(FUNCALLOC!AJ302:AJ309) -> 0 | AJ40: =SUM(FUNCALLOC!AK302:AK309) -> 0 | AK40: =SUM(FUNCALLOC!AL302:AL309) -> 0 | AL40: =SUM(FUNCALLOC!AM302:AM309) -> 0 | AM40: =SUM(FUNCALLOC!AN302:AN309) -> 0 | AN40: =SUM(FUNCALLOC!AO302:AO309) -> 0 | AO40: =SUM(FUNCALLOC!AP302:AP309) -> 6814926.325 | AP40: =SUM(FUNCALLOC!AQ302:AQ309) -> 0 | AQ40: =SUM(FUNCALLOC!AR302:AR309) -> 1573749.277 | AR40: =SUM(FUNCALLOC!AS302:AS309) -> 0 | AS40: =SUM(FUNCALLOC!AT302:AT309) -> 0 | AT40: =SUM(FUNCALLOC!AU302:AU309) -> 0 | AU40: =SUM(FUNCALLOC!AV302:AV309) -> 0 | AV40: =SUM(FUNCALLOC!AW302:AW309) -> 0 | AW40: =SUM(FUNCALLOC!AX302:AX309) -> 0 | AX40: =SUM(FUNCALLOC!AY302:AY309) -> 0 | AY40: =SUM(FUNCALLOC!AZ302:AZ309) -> 0 | AZ40: =SUM(FUNCALLOC!BA302:BA309) -> 0 | BA40: =SUM(FUNCALLOC!BB302:BB309) -> 0 | BB40: =SUM(FUNCALLOC!BC302:BC309) -> 0 | BC40: =SUM(FUNCALLOC!BD302:BD309) -> 0 | BD40: =SUM(FUNCALLOC!BE302:BE309) -> 0 | BE40: =SUM(FUNCALLOC!BF302:BF309) -> 0 | BF40: =SUM(FUNCALLOC!BG302:BG309) -> 0 | BG40: =SUM(FUNCALLOC!BH302:BH309) -> 0 | BH40: =SUM(FUNCALLOC!BI302:BI309) -> 0 | BI40: =SUM(FUNCALLOC!BJ302:BJ309) -> 0 | BJ40: =SUM(FUNCALLOC!BK302:BK309) -> 0 | BK40: =SUM(FUNCALLOC!BL302:BL309) -> 0 | BL40: =SUM(FUNCALLOC!BM302:BM309) -> 0 | BM40: =SUM(FUNCALLOC!BN302:BN309) -> 0 | BN40: =SUM(FUNCALLOC!BO302:BO309) -> 0 | BO40: =SUM(FUNCALLOC!BP302:BP309) -> 0 | BP40: =SUM(FUNCALLOC!BQ302:BQ309) -> 0 | BQ40: =SUM(FUNCALLOC!BR302:BR309) -> 0 | BR40: =SUM(FUNCALLOC!BS302:BS309) -> 0 | BS40: =SUM(FUNCALLOC!BT302:BT309) -> 0 | BT40: =SUM(FUNCALLOC!BU302:BU309) -> 0 | BU40: =SUM(FUNCALLOC!BV302:BV309) -> 0 | BV40: =SUM(FUNCALLOC!BW302:BW309) -> 0 | BW40: =SUM(FUNCALLOC!BX302:BX309) -> 0 | BX40: =SUM(FUNCALLOC!BY302:BY309) -> 0 | BY40: =SUM(FUNCALLOC!BZ302:BZ309) -> 0
D41: =IF((D40=0)*OR($C40=0),0,D40/$C40) -> 0 | E41: 0 | F41: 0 | G41: 0 | H41: 0 | I41: 0 | J41: 0.02697455481 | K41: 0 | L41: 0 | M41: 0.005622972563 | N41: 0.06924149331 | O41: 0.1550024198 | P41: 0.0007630829188 | Q41: 0.1566607873 | R41: 0.003300394174 | S41: 0 | T41: 0 | U41: 0 | V41: 0 | W41: 0 | X41: 0 | Y41: 0 | Z41: 0 | AA41: 0 | AB41: 0 | AC41: 0 | AD41: 0 | AE41: 0 | AF41: 0.1149967863 | AG41: 0 | AH41: 0 | AI41: 0 | AJ41: 0 | AK41: 0 | AL41: 0 | AM41: 0 | AN41: 0 | AO41: 0.3797443524 | AP41: 0 | AQ41: 0.08769315641 | AR41: =IF((AR40=0)*OR($C40=0),0,AR40/$C40) -> 0 | AS41: 0 | AT41: 0 | AU41: 0 | AV41: 0 | AW41: 0 | AX41: 0 | AY41: 0 | AZ41: 0 | BA41: =IF((BA40=0)*OR($C40=0),0,BA40/$C40) -> 0 | BB41: 0 | BC41: 0 | BD41: 0 | BE41: 0 | BF41: 0 | BG41: 0 | BH41: 0 | BI41: 0 | BJ41: 0 | BK41: 0 | BL41: 0 | BM41: 0 | BN41: 0 | BO41: 0 | BP41: 0 | BQ41: 0 | BR41: 0 | BS41: 0 | BT41: 0 | BU41: 0 | BV41: 0 | BW41: 0 | BX41: 0 | BY41: 0
A43: DES2.T | B43: Dist O&M - ID591.00 to ID597.00 Subtotal | C43: =SUM(D43:BA43) -> 58534638 | D43: =SUM(FUNCALLOC!E381:E387) -> 0 | E43: =SUM(FUNCALLOC!F381:F387) -> 0 | F43: =SUM(FUNCALLOC!G381:G387) -> 0 | G43: =SUM(FUNCALLOC!H381:H387) -> 0 | H43: =SUM(FUNCALLOC!I381:I387) -> 0 | I43: =SUM(FUNCALLOC!J381:J387) -> 0 | J43: =SUM(FUNCALLOC!K381:K387) -> 3100868.258 | K43: =SUM(FUNCALLOC!L381:L387) -> 0 | L43: =SUM(FUNCALLOC!M381:M387) -> 0 | M43: =SUM(FUNCALLOC!N381:N387) -> 201648.1384 | N43: =SUM(FUNCALLOC!O381:O387) -> 2483102.677 | O43: =SUM(FUNCALLOC!P381:P387) -> 24565474.77 | P43: =SUM(FUNCALLOC!Q381:Q387) -> 120936.7841 | Q43: =SUM(FUNCALLOC!R381:R387) -> 11909373.97 | R43: =SUM(FUNCALLOC!S381:S387) -> 250896.4059 | S43: =SUM(FUNCALLOC!T381:T387) -> 0 | T43: =SUM(FUNCALLOC!U381:U387) -> 0 | U43: =SUM(FUNCALLOC!V381:V387) -> 0 | V43: =SUM(FUNCALLOC!W381:W387) -> 0 | W43: =SUM(FUNCALLOC!X381:X387) -> 0 | X43: =SUM(FUNCALLOC!Y381:Y387) -> 0 | Y43: =SUM(FUNCALLOC!Z381:Z387) -> 0 | Z43: =SUM(FUNCALLOC!AA381:AA387) -> 0 | AA43: =SUM(FUNCALLOC!AB381:AB387) -> 0 | AB43: =SUM(FUNCALLOC!AC381:AC387) -> 0 | AC43: =SUM(FUNCALLOC!AD381:AD387) -> 0 | AD43: =SUM(FUNCALLOC!AE381:AE387) -> 0 | AE43: =SUM(FUNCALLOC!AF381:AF387) -> 0 | AF43: =SUM(FUNCALLOC!AG381:AG387) -> 13219491 | AG43: =SUM(FUNCALLOC!AH381:AH387) -> 0 | AH43: =SUM(FUNCALLOC!AI381:AI387) -> 0 | AI43: =SUM(FUNCALLOC!AJ381:AJ387) -> 0 | AJ43: =SUM(FUNCALLOC!AK381:AK387) -> 85259.19473 | AK43: =SUM(FUNCALLOC!AL381:AL387) -> 161286.7482 | AL43: =SUM(FUNCALLOC!AM381:AM387) -> 2319.057091 | AM43: =SUM(FUNCALLOC!AN381:AN387) -> 0 | AN43: =SUM(FUNCALLOC!AO381:AO387) -> 0 | AO43: =SUM(FUNCALLOC!AP381:AP387) -> 507944 | AP43: =SUM(FUNCALLOC!AQ381:AQ387) -> 0 | AQ43: =SUM(FUNCALLOC!AR381:AR387) -> 1926037 | AR43: =SUM(FUNCALLOC!AS381:AS387) -> 0 | AS43: =SUM(FUNCALLOC!AT381:AT387) -> 0 | AT43: =SUM(FUNCALLOC!AU381:AU387) -> 0 | AU43: =SUM(FUNCALLOC!AV381:AV387) -> 0 | AV43: =SUM(FUNCALLOC!AW381:AW387) -> 0 | AW43: =SUM(FUNCALLOC!AX381:AX387) -> 0 | AX43: =SUM(FUNCALLOC!AY381:AY387) -> 0 | AY43: =SUM(FUNCALLOC!AZ381:AZ387) -> 0 | AZ43: =SUM(FUNCALLOC!BA381:BA387) -> 0 | BA43: =SUM(FUNCALLOC!BB381:BB387) -> 0 | BB43: =SUM(FUNCALLOC!BC381:BC387) -> 0 | BC43: =SUM(FUNCALLOC!BD381:BD387) -> 0 | BD43: =SUM(FUNCALLOC!BE381:BE387) -> 0 | BE43: =SUM(FUNCALLOC!BF381:BF387) -> 0 | BF43: =SUM(FUNCALLOC!BG381:BG387) -> 0 | BG43: =SUM(FUNCALLOC!BH381:BH387) -> 0 | BH43: =SUM(FUNCALLOC!BI381:BI387) -> 0 | BI43: =SUM(FUNCALLOC!BJ381:BJ387) -> 0 | BJ43: =SUM(FUNCALLOC!BK381:BK387) -> 0 | BK43: =SUM(FUNCALLOC!BL381:BL387) -> 0 | BL43: =SUM(FUNCALLOC!BM381:BM387) -> 0 | BM43: =SUM(FUNCALLOC!BN381:BN387) -> 0 | BN43: =SUM(FUNCALLOC!BO381:BO387) -> 0 | BO43: =SUM(FUNCALLOC!BP381:BP387) -> 0 | BP43: =SUM(FUNCALLOC!BQ381:BQ387) -> 0 | BQ43: =SUM(FUNCALLOC!BR381:BR387) -> 0 | BR43: =SUM(FUNCALLOC!BS381:BS387) -> 0 | BS43: =SUM(FUNCALLOC!BT381:BT387) -> 0 | BT43: =SUM(FUNCALLOC!BU381:BU387) -> 0 | BU43: =SUM(FUNCALLOC!BV381:BV387) -> 0 | BV43: =SUM(FUNCALLOC!BW381:BW387) -> 0 | BW43: =SUM(FUNCALLOC!BX381:BX387) -> 0 | BX43: =SUM(FUNCALLOC!BY381:BY387) -> 0 | BY43: =SUM(FUNCALLOC!BZ381:BZ387) -> 0
D44: =IF((D43=0)*OR($C43=0),0,D43/$C43) -> 0 | E44: 0 | F44: 0 | G44: 0 | H44: 0 | I44: 0 | J44: 0.05297492842 | K44: 0 | L44: 0 | M44: 0.003444936968 | N44: 0.04242108198 | O44: 0.4196741555 | P44: 0.002066072129 | Q44: 0.2034585739 | R44: 0.004286289527 | S44: 0 | T44: 0 | U44: 0 | V44: 0 | W44: 0 | X44: 0 | Y44: 0 | Z44: 0 | AA44: 0 | AB44: 0 | AC44: 0 | AD44: 0 | AE44: 0 | AF44: 0.2258404843 | AG44: 0 | AH44: 0 | AI44: 0 | AJ44: 0.001456559699 | AK44: 0.002755406947 | AL44: 3.961854331e-05 | AM44: 0 | AN44: 0 | AO44: 0.008677665351 | AP44: 0 | AQ44: 0.03290422672 | AR44: =IF((AR43=0)*OR($C43=0),0,AR43/$C43) -> 0 | AS44: 0 | AT44: 0 | AU44: 0 | AV44: 0 | AW44: 0 | AX44: 0 | AY44: 0 | AZ44: 0 | BA44: =IF((BA43=0)*OR($C43=0),0,BA43/$C43) -> 0 | BB44: 0 | BC44: 0 | BD44: 0 | BE44: 0 | BF44: 0 | BG44: 0 | BH44: 0 | BI44: 0 | BJ44: 0 | BK44: 0 | BL44: 0 | BM44: 0 | BN44: 0 | BO44: 0 | BP44: 0 | BQ44: 0 | BR44: 0 | BS44: 0 | BT44: 0 | BU44: 0 | BV44: 0 | BW44: 0 | BX44: 0 | BY44: 0
A46: DES3.T | B46: Dist O&M - ID582.00 to ID587.00 Subtotal | C46: =SUM(D46:BA46) -> 14559574 | D46: =SUM(FUNCALLOC!E303:E308) -> 0 | E46: =SUM(FUNCALLOC!F303:F308) -> 0 | F46: =SUM(FUNCALLOC!G303:G308) -> 0 | G46: =SUM(FUNCALLOC!H303:H308) -> 0 | H46: =SUM(FUNCALLOC!I303:I308) -> 0 | I46: =SUM(FUNCALLOC!J303:J308) -> 0 | J46: =SUM(FUNCALLOC!K303:K308) -> 392738.0268 | K46: =SUM(FUNCALLOC!L303:L308) -> 0 | L46: =SUM(FUNCALLOC!M303:M308) -> 0 | M46: =SUM(FUNCALLOC!N303:N308) -> 81868.08513 | N46: =SUM(FUNCALLOC!O303:O308) -> 1008126.646 | O46: =SUM(FUNCALLOC!P303:P308) -> 2256769.201 | P46: =SUM(FUNCALLOC!Q303:Q308) -> 11110.16222 | Q46: =SUM(FUNCALLOC!R303:R308) -> 2280914.326 | R46: =SUM(FUNCALLOC!S303:S308) -> 48052.33321 | S46: =SUM(FUNCALLOC!T303:T308) -> 0 | T46: =SUM(FUNCALLOC!U303:U308) -> 0 | U46: =SUM(FUNCALLOC!V303:V308) -> 0 | V46: =SUM(FUNCALLOC!W303:W308) -> 0 | W46: =SUM(FUNCALLOC!X303:X308) -> 0 | X46: =SUM(FUNCALLOC!Y303:Y308) -> 0 | Y46: =SUM(FUNCALLOC!Z303:Z308) -> 0 | Z46: =SUM(FUNCALLOC!AA303:AA308) -> 0 | AA46: =SUM(FUNCALLOC!AB303:AB308) -> 0 | AB46: =SUM(FUNCALLOC!AC303:AC308) -> 0 | AC46: =SUM(FUNCALLOC!AD303:AD308) -> 0 | AD46: =SUM(FUNCALLOC!AE303:AE308) -> 0 | AE46: =SUM(FUNCALLOC!AF303:AF308) -> 0 | AF46: =SUM(FUNCALLOC!AG303:AG308) -> 1674304.22 | AG46: =SUM(FUNCALLOC!AH303:AH308) -> 0 | AH46: =SUM(FUNCALLOC!AI303:AI308) -> 0 | AI46: =SUM(FUNCALLOC!AJ303:AJ308) -> 0 | AJ46: =SUM(FUNCALLOC!AK303:AK308) -> 0 | AK46: =SUM(FUNCALLOC!AL303:AL308) -> 0 | AL46: =SUM(FUNCALLOC!AM303:AM308) -> 0 | AM46: =SUM(FUNCALLOC!AN303:AN308) -> 0 | AN46: =SUM(FUNCALLOC!AO303:AO308) -> 0 | AO46: =SUM(FUNCALLOC!AP303:AP308) -> 5528916 | AP46: =SUM(FUNCALLOC!AQ303:AQ308) -> 0 | AQ46: =SUM(FUNCALLOC!AR303:AR308) -> 1276775 | AR46: =SUM(FUNCALLOC!AS303:AS308) -> 0 | AS46: =SUM(FUNCALLOC!AT303:AT308) -> 0 | AT46: =SUM(FUNCALLOC!AU303:AU308) -> 0 | AU46: =SUM(FUNCALLOC!AV303:AV308) -> 0 | AV46: =SUM(FUNCALLOC!AW303:AW308) -> 0 | AW46: =SUM(FUNCALLOC!AX303:AX308) -> 0 | AX46: =SUM(FUNCALLOC!AY303:AY308) -> 0 | AY46: =SUM(FUNCALLOC!AZ303:AZ308) -> 0 | AZ46: =SUM(FUNCALLOC!BA303:BA308) -> 0 | BA46: =SUM(FUNCALLOC!BB303:BB308) -> 0 | BB46: =SUM(FUNCALLOC!BC303:BC308) -> 0 | BC46: =SUM(FUNCALLOC!BD303:BD308) -> 0 | BD46: =SUM(FUNCALLOC!BE303:BE308) -> 0 | BE46: =SUM(FUNCALLOC!BF303:BF308) -> 0 | BF46: =SUM(FUNCALLOC!BG303:BG308) -> 0 | BG46: =SUM(FUNCALLOC!BH303:BH308) -> 0 | BH46: =SUM(FUNCALLOC!BI303:BI308) -> 0 | BI46: =SUM(FUNCALLOC!BJ303:BJ308) -> 0 | BJ46: =SUM(FUNCALLOC!BK303:BK308) -> 0 | BK46: =SUM(FUNCALLOC!BL303:BL308) -> 0 | BL46: =SUM(FUNCALLOC!BM303:BM308) -> 0 | BM46: =SUM(FUNCALLOC!BN303:BN308) -> 0 | BN46: =SUM(FUNCALLOC!BO303:BO308) -> 0 | BO46: =SUM(FUNCALLOC!BP303:BP308) -> 0 | BP46: =SUM(FUNCALLOC!BQ303:BQ308) -> 0 | BQ46: =SUM(FUNCALLOC!BR303:BR308) -> 0 | BR46: =SUM(FUNCALLOC!BS303:BS308) -> 0 | BS46: =SUM(FUNCALLOC!BT303:BT308) -> 0 | BT46: =SUM(FUNCALLOC!BU303:BU308) -> 0 | BU46: =SUM(FUNCALLOC!BV303:BV308) -> 0 | BV46: =SUM(FUNCALLOC!BW303:BW308) -> 0 | BW46: =SUM(FUNCALLOC!BX303:BX308) -> 0 | BX46: =SUM(FUNCALLOC!BY303:BY308) -> 0 | BY46: =SUM(FUNCALLOC!BZ303:BZ308) -> 0
D47: =IF((D46=0)*OR($C46=0),0,D46/$C46) -> 0 | E47: 0 | F47: 0 | G47: 0 | H47: 0 | I47: 0 | J47: 0.02697455481 | K47: 0 | L47: 0 | M47: 0.005622972563 | N47: 0.06924149331 | O47: 0.1550024198 | P47: 0.0007630829188 | Q47: 0.1566607873 | R47: 0.003300394174 | S47: 0 | T47: 0 | U47: 0 | V47: 0 | W47: 0 | X47: 0 | Y47: 0 | Z47: 0 | AA47: 0 | AB47: 0 | AC47: 0 | AD47: 0 | AE47: 0 | AF47: 0.1149967863 | AG47: 0 | AH47: 0 | AI47: 0 | AJ47: =IF((AJ46=0)*OR($C46=0),0,AJ46/$C46) -> 0 | AK47: 0 | AL47: 0 | AM47: 0 | AN47: 0 | AO47: 0.3797443524 | AP47: 0 | AQ47: 0.08769315641 | AR47: 0 | AS47: 0 | AT47: 0 | AU47: 0 | AV47: 0 | AW47: 0 | AX47: 0 | AY47: 0 | AZ47: 0 | BA47: 0 | BB47: 0 | BC47: 0 | BD47: 0 | BE47: 0 | BF47: 0 | BG47: 0 | BH47: 0 | BI47: 0 | BJ47: 0 | BK47: 0 | BL47: 0 | BM47: 0 | BN47: 0 | BO47: 0 | BP47: =IF((BP46=0)*OR($C46=0),0,BP46/$C46) -> 0 | BQ47: 0 | BR47: 0 | BS47: 0 | BT47: 0 | BU47: 0 | BV47: 0 | BW47: 0 | BX47: 0 | BY47: 0
A49: DP.T | B49: Total Distribution Plant | C49: =SUM(D49:BA49) -> 3456399344 | D49: =SUM(FUNCALLOC!E71) -> 0 | E49: =SUM(FUNCALLOC!F71) -> 0 | F49: =SUM(FUNCALLOC!G71) -> 0 | G49: =SUM(FUNCALLOC!H71) -> 0 | H49: =SUM(FUNCALLOC!I71) -> 1611005.222 | I49: =SUM(FUNCALLOC!J71) -> 25360743.86 | J49: =SUM(FUNCALLOC!K71) -> 110859557.2 | K49: =SUM(FUNCALLOC!L71) -> 418047.0237 | L49: =SUM(FUNCALLOC!M71) -> 5167330.914 | M49: =SUM(FUNCALLOC!N71) -> 24960779.12 | N49: =SUM(FUNCALLOC!O71) -> 307367962.6 | O49: =SUM(FUNCALLOC!P71) -> 514474635.1 | P49: =SUM(FUNCALLOC!Q71) -> 2532778.563 | Q49: =SUM(FUNCALLOC!R71) -> 1201938471 | R49: =SUM(FUNCALLOC!S71) -> 25321401.71 | S49: =SUM(FUNCALLOC!T71) -> 0 | T49: =SUM(FUNCALLOC!U71) -> 0 | U49: =SUM(FUNCALLOC!V71) -> 0 | V49: =SUM(FUNCALLOC!W71) -> 0 | W49: =SUM(FUNCALLOC!X71) -> 0 | X49: =SUM(FUNCALLOC!Y71) -> 0 | Y49: =SUM(FUNCALLOC!Z71) -> 0 | Z49: =SUM(FUNCALLOC!AA71) -> 0 | AA49: =SUM(FUNCALLOC!AB71) -> 0 | AB49: =SUM(FUNCALLOC!AC71) -> 0 | AC49: =SUM(FUNCALLOC!AD71) -> 0 | AD49: =SUM(FUNCALLOC!AE71) -> 0 | AE49: =SUM(FUNCALLOC!AF71) -> 0 | AF49: =SUM(FUNCALLOC!AG71) -> 472611796.7 | AG49: =SUM(FUNCALLOC!AH71) -> 0 | AH49: =SUM(FUNCALLOC!AI71) -> 0 | AI49: =SUM(FUNCALLOC!AJ71) -> 0 | AJ49: =SUM(FUNCALLOC!AK71) -> 138085648.8 | AK49: =SUM(FUNCALLOC!AL71) -> 261219746.9 | AL49: =SUM(FUNCALLOC!AM71) -> 3755940.975 | AM49: =SUM(FUNCALLOC!AN71) -> 41858523.86 | AN49: =SUM(FUNCALLOC!AO71) -> 136280318.4 | AO49: =SUM(FUNCALLOC!AP71) -> 127180593.2 | AP49: =SUM(FUNCALLOC!AQ71) -> 640774.6012 | AQ49: =SUM(FUNCALLOC!AR71) -> 54753288.5 | AR49: =SUM(FUNCALLOC!AS71) -> 0 | AS49: =SUM(FUNCALLOC!AT71) -> 0 | AT49: =SUM(FUNCALLOC!AU71) -> 0 | AU49: =SUM(FUNCALLOC!AV71) -> 0 | AV49: =SUM(FUNCALLOC!AW71) -> 0 | AW49: =SUM(FUNCALLOC!AX71) -> 0 | AX49: =SUM(FUNCALLOC!AY71) -> 0 | AY49: =SUM(FUNCALLOC!AZ71) -> 0 | AZ49: =SUM(FUNCALLOC!BA71) -> 0 | BA49: =SUM(FUNCALLOC!BB71) -> 0 | BB49: =SUM(FUNCALLOC!BC71) -> 0 | BC49: =SUM(FUNCALLOC!BD71) -> 0 | BD49: =SUM(FUNCALLOC!BE71) -> 0 | BE49: =SUM(FUNCALLOC!BF71) -> 0 | BF49: =SUM(FUNCALLOC!BG71) -> 0 | BG49: =SUM(FUNCALLOC!BH71) -> 0 | BH49: =SUM(FUNCALLOC!BI71) -> 0 | BI49: =SUM(FUNCALLOC!BJ71) -> 0 | BJ49: =SUM(FUNCALLOC!BK71) -> 0 | BK49: =SUM(FUNCALLOC!BL71) -> 0 | BL49: =SUM(FUNCALLOC!BM71) -> 0 | BM49: =SUM(FUNCALLOC!BN71) -> 0 | BN49: =SUM(FUNCALLOC!BO71) -> 0 | BO49: =SUM(FUNCALLOC!BP71) -> 0 | BP49: =SUM(FUNCALLOC!BQ71) -> 0 | BQ49: =SUM(FUNCALLOC!BR71) -> 0 | BR49: =SUM(FUNCALLOC!BS71) -> 0 | BS49: =SUM(FUNCALLOC!BT71) -> 0 | BT49: =SUM(FUNCALLOC!BU71) -> 0 | BU49: =SUM(FUNCALLOC!BV71) -> 0 | BV49: =SUM(FUNCALLOC!BW71) -> 0 | BW49: =SUM(FUNCALLOC!BX71) -> 0 | BX49: =SUM(FUNCALLOC!BY71) -> 0 | BY49: =SUM(FUNCALLOC!BZ71) -> 0
D50: =IF((D49=0)*OR($C49=0),0,D49/$C49) -> 0 | E50: 0 | F50: 0 | G50: 0 | H50: 0.0004660934867 | I50: 0.007337330365 | J50: 0.03207371203 | K50: 0.0001209487047 | L50: 0.00149500402 | M50: 0.007221613197 | N50: 0.08892721354 | O50: 0.148846989 | P50: 0.0007327794942 | Q50: 0.3477429404 | R50: 0.007325947956 | S50: 0 | T50: 0 | U50: 0 | V50: 0 | W50: 0 | X50: 0 | Y50: 0 | Z50: 0 | AA50: 0 | AB50: 0 | AC50: 0 | AD50: 0 | AE50: 0 | AF50: 0.1367352987 | AG50: 0 | AH50: 0 | AI50: 0 | AJ50: 0.03995072185 | AK50: 0.07557568465 | AL50: 0.001086662911 | AM50: 0.01211044202 | AN50: 0.03942840651 | AO50: 0.03679568837 | AP50: 0.0001853878957 | AQ50: 0.01584113496 | AR50: =IF((AR49=0)*OR($C49=0),0,AR49/$C49) -> 0 | AS50: 0 | AT50: 0 | AU50: 0 | AV50: 0 | AW50: 0 | AX50: 0 | AY50: 0 | AZ50: 0 | BA50: =IF((BA49=0)*OR($C49=0),0,BA49/$C49) -> 0 | BB50: 0 | BC50: 0 | BD50: 0 | BE50: 0 | BF50: 0 | BG50: 0 | BH50: 0 | BI50: 0 | BJ50: 0 | BK50: 0 | BL50: 0 | BM50: 0 | BN50: 0 | BO50: 0 | BP50: 0 | BQ50: 0 | BR50: 0 | BS50: 0 | BT50: 0 | BU50: 0 | BV50: 0 | BW50: 0 | BX50: 0 | BY50: 0
A52: EPIS.T | B52: Total Elec Plant In Service | C52: =SUM(D52:BA52) -> 7629582517 | D52: =SUM(FUNCALLOC!E89,FUNCALLOC!E184) -> 0 | E52: =SUM(FUNCALLOC!F89,FUNCALLOC!F184) -> 662181086.8 | F52: =SUM(FUNCALLOC!G89,FUNCALLOC!G184) -> 46412198.98 | G52: =SUM(FUNCALLOC!H89,FUNCALLOC!H184) -> 38756292.99 | H52: =SUM(FUNCALLOC!I89,FUNCALLOC!I184) -> 1691031.603 | I52: =SUM(FUNCALLOC!J89,FUNCALLOC!J184) -> 26620534.04 | J52: =SUM(FUNCALLOC!K89,FUNCALLOC!K184) -> 116366484.9 | K52: =SUM(FUNCALLOC!L89,FUNCALLOC!L184) -> 438813.431 | L52: =SUM(FUNCALLOC!M89,FUNCALLOC!M184) -> 5424017.105 | M52: =SUM(FUNCALLOC!N89,FUNCALLOC!N184) -> 26200701.12 | N52: =SUM(FUNCALLOC!O89,FUNCALLOC!O184) -> 322636408.3 | O52: =SUM(FUNCALLOC!P89,FUNCALLOC!P184) -> 540031065.8 | P52: =SUM(FUNCALLOC!Q89,FUNCALLOC!Q184) -> 2658593.862 | Q52: =SUM(FUNCALLOC!R89,FUNCALLOC!R184) -> 1261644539 | R52: =SUM(FUNCALLOC!S89,FUNCALLOC!S184) -> 26579237.58 | S52: =SUM(FUNCALLOC!T89,FUNCALLOC!T184) -> 0 | T52: =SUM(FUNCALLOC!U89,FUNCALLOC!U184) -> 0 | U52: =SUM(FUNCALLOC!V89,FUNCALLOC!V184) -> 0 | V52: =SUM(FUNCALLOC!W89,FUNCALLOC!W184) -> 0 | W52: =SUM(FUNCALLOC!X89,FUNCALLOC!X184) -> 0 | X52: =SUM(FUNCALLOC!Y89,FUNCALLOC!Y184) -> 0 | Y52: =SUM(FUNCALLOC!Z89,FUNCALLOC!Z184) -> 0 | Z52: =SUM(FUNCALLOC!AA89,FUNCALLOC!AA184) -> 0 | AA52: =SUM(FUNCALLOC!AB89,FUNCALLOC!AB184) -> 0 | AB52: =SUM(FUNCALLOC!AC89,FUNCALLOC!AC184) -> 0 | AC52: =SUM(FUNCALLOC!AD89,FUNCALLOC!AD184) -> 2822982528 | AD52: =SUM(FUNCALLOC!AE89,FUNCALLOC!AE184) -> 197862532.5 | AE52: =SUM(FUNCALLOC!AF89,FUNCALLOC!AF184) -> 165224196.4 | AF52: =SUM(FUNCALLOC!AG89,FUNCALLOC!AG184) -> 496088698.7 | AG52: =SUM(FUNCALLOC!AH89,FUNCALLOC!AH184) -> 0 | AH52: =SUM(FUNCALLOC!AI89,FUNCALLOC!AI184) -> 0 | AI52: =SUM(FUNCALLOC!AJ89,FUNCALLOC!AJ184) -> 0 | AJ52: =SUM(FUNCALLOC!AK89,FUNCALLOC!AK184) -> 144945027.4 | AK52: =SUM(FUNCALLOC!AL89,FUNCALLOC!AL184) -> 274195788.6 | AL52: =SUM(FUNCALLOC!AM89,FUNCALLOC!AM184) -> 3942516.636 | AM52: =SUM(FUNCALLOC!AN89,FUNCALLOC!AN184) -> 43937838.16 | AN52: =SUM(FUNCALLOC!AO89,FUNCALLOC!AO184) -> 143050017.6 | AO52: =SUM(FUNCALLOC!AP89,FUNCALLOC!AP184) -> 133498265.2 | AP52: =SUM(FUNCALLOC!AQ89,FUNCALLOC!AQ184) -> 672604.9589 | AQ52: =SUM(FUNCALLOC!AR89,FUNCALLOC!AR184) -> 58014157.81 | AR52: =SUM(FUNCALLOC!AS89,FUNCALLOC!AS184) -> 0 | AS52: =SUM(FUNCALLOC!AT89,FUNCALLOC!AT184) -> 0 | AT52: =SUM(FUNCALLOC!AU89,FUNCALLOC!AU184) -> 22761621.73 | AU52: =SUM(FUNCALLOC!AV89,FUNCALLOC!AV184) -> 27989781.89 | AV52: =SUM(FUNCALLOC!AW89,FUNCALLOC!AW184) -> 11358011.76 | AW52: =SUM(FUNCALLOC!AX89,FUNCALLOC!AX184) -> 5417925.004 | AX52: =SUM(FUNCALLOC!AY89,FUNCALLOC!AY184) -> 0 | AY52: =SUM(FUNCALLOC!AZ89,FUNCALLOC!AZ184) -> 0 | AZ52: =SUM(FUNCALLOC!BA89,FUNCALLOC!BA184) -> 0 | BA52: =SUM(FUNCALLOC!BB89,FUNCALLOC!BB184) -> 0 | BB52: =SUM(FUNCALLOC!BC89,FUNCALLOC!BC184) -> 0 | BC52: =SUM(FUNCALLOC!BD89,FUNCALLOC!BD184) -> 0 | BD52: =SUM(FUNCALLOC!BE89,FUNCALLOC!BE184) -> 0 | BE52: =SUM(FUNCALLOC!BF89,FUNCALLOC!BF184) -> 0 | BF52: =SUM(FUNCALLOC!BG89,FUNCALLOC!BG184) -> 0 | BG52: =SUM(FUNCALLOC!BH89,FUNCALLOC!BH184) -> 0 | BH52: =SUM(FUNCALLOC!BI89,FUNCALLOC!BI184) -> 0 | BI52: =SUM(FUNCALLOC!BJ89,FUNCALLOC!BJ184) -> 0 | BJ52: =SUM(FUNCALLOC!BK89,FUNCALLOC!BK184) -> 0 | BK52: =SUM(FUNCALLOC!BL89,FUNCALLOC!BL184) -> 0 | BL52: =SUM(FUNCALLOC!BM89,FUNCALLOC!BM184) -> 0 | BM52: =SUM(FUNCALLOC!BN89,FUNCALLOC!BN184) -> 0 | BN52: =SUM(FUNCALLOC!BO89,FUNCALLOC!BO184) -> 0 | BO52: =SUM(FUNCALLOC!BP89,FUNCALLOC!BP184) -> 0 | BP52: =SUM(FUNCALLOC!BQ89,FUNCALLOC!BQ184) -> 0 | BQ52: =SUM(FUNCALLOC!BR89,FUNCALLOC!BR184) -> 0 | BR52: =SUM(FUNCALLOC!BS89,FUNCALLOC!BS184) -> 0 | BS52: =SUM(FUNCALLOC!BT89,FUNCALLOC!BT184) -> 0 | BT52: =SUM(FUNCALLOC!BU89,FUNCALLOC!BU184) -> 0 | BU52: =SUM(FUNCALLOC!BV89,FUNCALLOC!BV184) -> 0 | BV52: =SUM(FUNCALLOC!BW89,FUNCALLOC!BW184) -> 0 | BW52: =SUM(FUNCALLOC!BX89,FUNCALLOC!BX184) -> 0 | BX52: =SUM(FUNCALLOC!BY89,FUNCALLOC!BY184) -> 0 | BY52: =SUM(FUNCALLOC!BZ89,FUNCALLOC!BZ184) -> 0
D53: =IF((D52=0)*OR($C52=0),0,D52/$C52) -> 0 | E53: 0.0867912609 | F53: 0.006083189857 | G53: 0.005079739671 | H53: 0.0002216414331 | I53: 0.003489120667 | J53: 0.0152520121 | K53: 5.751473688e-05 | L53: 0.0007109192531 | M53: 0.003434093682 | N53: 0.04228755735 | O53: 0.07078120782 | P53: 0.0003484586287 | Q53: 0.1653621985 | R53: 0.00348370799 | S53: 0 | T53: 0 | U53: 0 | V53: 0 | W53: 0 | X53: 0 | Y53: 0 | Z53: 0 | AA53: 0 | AB53: 0 | AC53: 0.3700048491 | AD53: 0.02593359886 | AE53: 0.02165573228 | AF53: 0.0650217358 | AG53: 0 | AH53: 0 | AI53: 0 | AJ53: 0.01899776653 | AK53: 0.03593850489 | AL53: 0.0005167408081 | AM53: 0.005758878426 | AN53: 0.01874938992 | AO53: 0.01749745348 | AP53: 8.8157505e-05 | AQ53: 0.007603844335 | AR53: =IF((AR52=0)*OR($C52=0),0,AR52/$C52) -> 0 | AS53: 0 | AT53: 0.002983337775 | AU53: 0.003668586299 | AV53: 0.001488680636 | AW53: 0.000710120769 | AX53: 0 | AY53: 0 | AZ53: 0 | BA53: =IF((BA52=0)*OR($C52=0),0,BA52/$C52) -> 0 | BB53: 0 | BC53: 0 | BD53: 0 | BE53: 0 | BF53: 0 | BG53: 0 | BH53: 0 | BI53: 0 | BJ53: 0 | BK53: 0 | BL53: 0 | BM53: 0 | BN53: 0 | BO53: 0 | BP53: 0 | BQ53: 0 | BR53: 0 | BS53: 0 | BT53: 0 | BU53: 0 | BV53: 0 | BW53: 0 | BX53: 0 | BY53: 0
A55: GP.T | B55: Total General Plant | C55: =SUM(D55:BA55) -> 299479149 | D55: =+FUNCALLOC!E87 -> 0 | E55: =+FUNCALLOC!F87 -> 22605478.68 | F55: =+FUNCALLOC!G87 -> 1646819.491 | G55: =+FUNCALLOC!H87 -> 1375169.031 | H55: =+FUNCALLOC!I87 -> 54937.95219 | I55: =+FUNCALLOC!J87 -> 864843.4622 | J55: =+FUNCALLOC!K87 -> 3780494.918 | K55: =+FUNCALLOC!L87 -> 14256.09743 | L55: =+FUNCALLOC!M87 -> 176214.5615 | M55: =+FUNCALLOC!N87 -> 851204.0005 | N55: =+FUNCALLOC!O87 -> 10481757.73 | O55: =+FUNCALLOC!P87 -> 17544439.04 | P55: =+FUNCALLOC!Q87 -> 86371.95319 | Q55: =+FUNCALLOC!R87 -> 40988096.98 | R55: =+FUNCALLOC!S87 -> 863501.8295 | S55: =+FUNCALLOC!T87 -> 0 | T55: =+FUNCALLOC!U87 -> 0 | U55: =+FUNCALLOC!V87 -> 0 | V55: =+FUNCALLOC!W87 -> 0 | W55: =+FUNCALLOC!X87 -> 0 | X55: =+FUNCALLOC!Y87 -> 0 | Y55: =+FUNCALLOC!Z87 -> 0 | Z55: =+FUNCALLOC!AA87 -> 0 | AA55: =+FUNCALLOC!AB87 -> 0 | AB55: =+FUNCALLOC!AC87 -> 0 | AC55: =+FUNCALLOC!AD87 -> 96370724.88 | AD55: =+FUNCALLOC!AE87 -> 7020651.515 | AE55: =+FUNCALLOC!AF87 -> 5862562.711 | AF55: =+FUNCALLOC!AG87 -> 16116846.76 | AG55: =+FUNCALLOC!AH87 -> 0 | AH55: =+FUNCALLOC!AI87 -> 0 | AI55: =+FUNCALLOC!AJ87 -> 0 | AJ55: =+FUNCALLOC!AK87 -> 4708949.833 | AK55: =+FUNCALLOC!AL87 -> 8908026.969 | AL55: =+FUNCALLOC!AM87 -> 128083.8218 | AM55: =+FUNCALLOC!AN87 -> 1427445.145 | AN55: =+FUNCALLOC!AO87 -> 4647385.071 | AO55: =+FUNCALLOC!AP87 -> 4337069.335 | AP55: =+FUNCALLOC!AQ87 -> 21851.47753 | AQ55: =+FUNCALLOC!AR87 -> 2238580.322 | AR55: =+FUNCALLOC!AS87 -> 0 | AS55: =+FUNCALLOC!AT87 -> 0 | AT55: =+FUNCALLOC!AU87 -> 15625808.25 | AU55: =+FUNCALLOC!AV87 -> 19214929.84 | AV55: =+FUNCALLOC!AW87 -> 7797252.578 | AW55: =+FUNCALLOC!AX87 -> 3719394.787 | AX55: =+FUNCALLOC!AY87 -> 0 | AY55: =+FUNCALLOC!AZ87 -> 0 | AZ55: =+FUNCALLOC!BA87 -> 0 | BA55: =+FUNCALLOC!BB87 -> 0 | BB55: =+FUNCALLOC!BC87 -> 0 | BC55: =+FUNCALLOC!BD87 -> 0 | BD55: =+FUNCALLOC!BE87 -> 0 | BE55: =+FUNCALLOC!BF87 -> 0 | BF55: =+FUNCALLOC!BG87 -> 0 | BG55: =+FUNCALLOC!BH87 -> 0 | BH55: =+FUNCALLOC!BI87 -> 0 | BI55: =+FUNCALLOC!BJ87 -> 0 | BJ55: =+FUNCALLOC!BK87 -> 0 | BK55: =+FUNCALLOC!BL87 -> 0 | BL55: =+FUNCALLOC!BM87 -> 0 | BM55: =+FUNCALLOC!BN87 -> 0 | BN55: =+FUNCALLOC!BO87 -> 0 | BO55: =+FUNCALLOC!BP87 -> 0 | BP55: =+FUNCALLOC!BQ87 -> 0 | BQ55: =+FUNCALLOC!BR87 -> 0 | BR55: =+FUNCALLOC!BS87 -> 0 | BS55: =+FUNCALLOC!BT87 -> 0 | BT55: =+FUNCALLOC!BU87 -> 0 | BU55: =+FUNCALLOC!BV87 -> 0 | BV55: =+FUNCALLOC!BW87 -> 0 | BW55: =+FUNCALLOC!BX87 -> 0 | BX55: =+FUNCALLOC!BY87 -> 0 | BY55: =+FUNCALLOC!BZ87 -> 0
D56: =IF((D55=0)*OR($C55=0),0,D55/$C55) -> 0 | E56: 0.07548264629 | F56: 0.005498945408 | G56: 0.004591869035 | H56: 0.000183444999 | I56: 0.002887825296 | J56: 0.01262356639 | K56: 4.760297161e-05 | L56: 0.0005884034399 | M56: 0.002842281352 | N56: 0.0349999583 | O56: 0.0585831738 | P56: 0.0002884072346 | Q56: 0.1368646102 | R56: 0.00288334541 | S56: 0 | T56: 0 | U56: 0 | V56: 0 | W56: 0 | X56: 0 | Y56: 0 | Z56: 0 | AA56: 0 | AB56: 0 | AC56: 0.3217944395 | AD56: 0.02344287253 | AE56: 0.01957586273 | AF56: 0.0538162567 | AG56: 0 | AH56: 0 | AI56: 0 | AJ56: 0.01572379863 | AK56: 0.02974506572 | AL56: 0.0004276886126 | AM56: 0.004766425809 | AN56: 0.01551822585 | AO56: 0.01448204107 | AP56: 7.296493797e-05 | AQ56: 0.007474912125 | AR56: =IF((AR55=0)*OR($C55=0),0,AR55/$C55) -> 0 | AS56: 0 | AT56: 0.05217661496 | AU56: 0.06416116082 | AV56: 0.02603604493 | AW56: 0.01241954506 | AX56: 0 | AY56: 0 | AZ56: 0 | BA56: =IF((BA55=0)*OR($C55=0),0,BA55/$C55) -> 0 | BB56: 0 | BC56: 0 | BD56: 0 | BE56: 0 | BF56: 0 | BG56: 0 | BH56: 0 | BI56: 0 | BJ56: 0 | BK56: 0 | BL56: 0 | BM56: 0 | BN56: 0 | BO56: 0 | BP56: 0 | BQ56: 0 | BR56: 0 | BS56: 0 | BT56: 0 | BU56: 0 | BV56: 0 | BW56: 0 | BX56: 0 | BY56: 0
A58: LINE.T | B58: Total Distribution OH & UG Lines | C58: =SUM(D58:BA58) -> 2047137846 | D58: =SUM(D13,D16) -> 0 | E58: =SUM(E13,E16) -> 0 | F58: 0 | G58: 0 | H58: 0 | I58: 0 | J58: 58224668.43 | K58: 0 | L58: 0 | M58: 0 | N58: 0 | O58: 513420163.7 | P58: 2527587.36 | Q58: 1199474969 | R58: 25269502.76 | S58: 0 | T58: 0 | U58: 0 | V58: 0 | W58: 0 | X58: 0 | Y58: 0 | Z58: 0 | AA58: 0 | AB58: 0 | AC58: 0 | AD58: 0 | AE58: 0 | AF58: 248220954.9 | AG58: 0 | AH58: 0 | AI58: 0 | AJ58: 0 | AK58: 0 | AL58: 0 | AM58: 0 | AN58: 0 | AO58: 0 | AP58: 0 | AQ58: 0 | AR58: =SUM(AR13,AR16) -> 0 | AS58: 0 | AT58: 0 | AU58: 0 | AV58: 0 | AW58: 0 | AX58: 0 | AY58: =SUM(AY13,AY16) -> 0 | AZ58: =SUM(AZ13,AZ16) -> 0 | BA58: =SUM(BA13,BA16) -> 0 | BB58: 0 | BC58: 0 | BD58: 0 | BE58: 0 | BF58: 0 | BG58: 0 | BH58: 0 | BI58: 0 | BJ58: 0 | BK58: 0 | BL58: 0 | BM58: 0 | BN58: 0 | BO58: 0 | BP58: 0 | BQ58: 0 | BR58: 0 | BS58: 0 | BT58: 0 | BU58: 0 | BV58: 0 | BW58: 0 | BX58: 0 | BY58: 0
D59: =IF((D58=0)*OR($C58=0),0,D58/$C58) -> 0 | E59: 0 | F59: 0 | G59: 0 | H59: 0 | I59: 0 | J59: 0.02844198721 | K59: 0 | L59: 0 | M59: 0 | N59: 0 | O59: 0.2507990191 | P59: 0.001234693289 | Q59: 0.5859277972 | R59: 0.01234382082 | S59: 0 | T59: 0 | U59: 0 | V59: 0 | W59: 0 | X59: 0 | Y59: 0 | Z59: 0 | AA59: 0 | AB59: 0 | AC59: 0 | AD59: 0 | AE59: 0 | AF59: 0.1212526823 | AG59: 0 | AH59: 0 | AI59: 0 | AJ59: 0 | AK59: 0 | AL59: 0 | AM59: 0 | AN59: 0 | AO59: 0 | AP59: 0 | AQ59: 0 | AR59: =IF((AR58=0)*OR($C58=0),0,AR58/$C58) -> 0 | AS59: 0 | AT59: 0 | AU59: 0 | AV59: 0 | AW59: 0 | AX59: 0 | AY59: 0 | AZ59: 0 | BA59: =IF((BA58=0)*OR($C58=0),0,BA58/$C58) -> 0 | BB59: 0 | BC59: 0 | BD59: 0 | BE59: 0 | BF59: 0 | BG59: 0 | BH59: 0 | BI59: 0 | BJ59: 0 | BK59: 0 | BL59: 0 | BM59: 0 | BN59: 0 | BO59: 0 | BP59: 0 | BQ59: 0 | BR59: 0 | BS59: 0 | BT59: 0 | BU59: 0 | BV59: 0 | BW59: 0 | BX59: 0 | BY59: 0
A61: POWER.T | B61: Sales of Electricity - Non Firm | C61: =SUM(D61:BA61) -> 969736235 | D61: =SUM(FUNCALLOC!E299,FUNCALLOC!E284,FUNCALLOC!E275,FUNCALLOC!E269,FUNCALLOC!E260) -> 0 | E61: =SUM(FUNCALLOC!F299,FUNCALLOC!F284,FUNCALLOC!F275,FUNCALLOC!F269,FUNCALLOC!F260) -> 181890816.9 | F61: =SUM(FUNCALLOC!G299,FUNCALLOC!G284,FUNCALLOC!G275,FUNCALLOC!G269,FUNCALLOC!G260) -> 1236999.655 | G61: =SUM(FUNCALLOC!H299,FUNCALLOC!H284,FUNCALLOC!H275,FUNCALLOC!H269,FUNCALLOC!H260) -> 1032950.865 | H61: =SUM(FUNCALLOC!I299,FUNCALLOC!I284,FUNCALLOC!I275,FUNCALLOC!I269,FUNCALLOC!I260) -> 0 | I61: =SUM(FUNCALLOC!J299,FUNCALLOC!J284,FUNCALLOC!J275,FUNCALLOC!J269,FUNCALLOC!J260) -> 0 | J61: =SUM(FUNCALLOC!K299,FUNCALLOC!K284,FUNCALLOC!K275,FUNCALLOC!K269,FUNCALLOC!K260) -> 0 | K61: =SUM(FUNCALLOC!L299,FUNCALLOC!L284,FUNCALLOC!L275,FUNCALLOC!L269,FUNCALLOC!L260) -> 0 | L61: =SUM(FUNCALLOC!M299,FUNCALLOC!M284,FUNCALLOC!M275,FUNCALLOC!M269,FUNCALLOC!M260) -> 0 | M61: =SUM(FUNCALLOC!N299,FUNCALLOC!N284,FUNCALLOC!N275,FUNCALLOC!N269,FUNCALLOC!N260) -> 0 | N61: =SUM(FUNCALLOC!O299,FUNCALLOC!O284,FUNCALLOC!O275,FUNCALLOC!O269,FUNCALLOC!O260) -> 0 | O61: =SUM(FUNCALLOC!P299,FUNCALLOC!P284,FUNCALLOC!P275,FUNCALLOC!P269,FUNCALLOC!P260) -> 0 | P61: =SUM(FUNCALLOC!Q299,FUNCALLOC!Q284,FUNCALLOC!Q275,FUNCALLOC!Q269,FUNCALLOC!Q260) -> 0 | Q61: =SUM(FUNCALLOC!R299,FUNCALLOC!R284,FUNCALLOC!R275,FUNCALLOC!R269,FUNCALLOC!R260) -> 0 | R61: =SUM(FUNCALLOC!S299,FUNCALLOC!S284,FUNCALLOC!S275,FUNCALLOC!S269,FUNCALLOC!S260) -> 0 | S61: =SUM(FUNCALLOC!T299,FUNCALLOC!T284,FUNCALLOC!T275,FUNCALLOC!T269,FUNCALLOC!T260) -> 0 | T61: =SUM(FUNCALLOC!U299,FUNCALLOC!U284,FUNCALLOC!U275,FUNCALLOC!U269,FUNCALLOC!U260) -> 0 | U61: =SUM(FUNCALLOC!V299,FUNCALLOC!V284,FUNCALLOC!V275,FUNCALLOC!V269,FUNCALLOC!V260) -> 0 | V61: =SUM(FUNCALLOC!W299,FUNCALLOC!W284,FUNCALLOC!W275,FUNCALLOC!W269,FUNCALLOC!W260) -> 0 | W61: =SUM(FUNCALLOC!X299,FUNCALLOC!X284,FUNCALLOC!X275,FUNCALLOC!X269,FUNCALLOC!X260) -> 0 | X61: =SUM(FUNCALLOC!Y299,FUNCALLOC!Y284,FUNCALLOC!Y275,FUNCALLOC!Y269,FUNCALLOC!Y260) -> 0 | Y61: =SUM(FUNCALLOC!Z299,FUNCALLOC!Z284,FUNCALLOC!Z275,FUNCALLOC!Z269,FUNCALLOC!Z260) -> 0 | Z61: =SUM(FUNCALLOC!AA299,FUNCALLOC!AA284,FUNCALLOC!AA275,FUNCALLOC!AA269,FUNCALLOC!AA260) -> 0 | AA61: =SUM(FUNCALLOC!AB299,FUNCALLOC!AB284,FUNCALLOC!AB275,FUNCALLOC!AB269,FUNCALLOC!AB260) -> 469038 | AB61: =SUM(FUNCALLOC!AC299,FUNCALLOC!AC284,FUNCALLOC!AC275,FUNCALLOC!AC269,FUNCALLOC!AC260) -> 0 | AC61: =SUM(FUNCALLOC!AD299,FUNCALLOC!AD284,FUNCALLOC!AD275,FUNCALLOC!AD269,FUNCALLOC!AD260) -> 775429272.1 | AD61: =SUM(FUNCALLOC!AE299,FUNCALLOC!AE284,FUNCALLOC!AE275,FUNCALLOC!AE269,FUNCALLOC!AE260) -> 5273524.846 | AE61: =SUM(FUNCALLOC!AF299,FUNCALLOC!AF284,FUNCALLOC!AF275,FUNCALLOC!AF269,FUNCALLOC!AF260) -> 4403632.634 | AF61: =SUM(FUNCALLOC!AG299,FUNCALLOC!AG284,FUNCALLOC!AG275,FUNCALLOC!AG269,FUNCALLOC!AG260) -> 0 | AG61: =SUM(FUNCALLOC!AH299,FUNCALLOC!AH284,FUNCALLOC!AH275,FUNCALLOC!AH269,FUNCALLOC!AH260) -> 0 | AH61: =SUM(FUNCALLOC!AI299,FUNCALLOC!AI284,FUNCALLOC!AI275,FUNCALLOC!AI269,FUNCALLOC!AI260) -> 0 | AI61: =SUM(FUNCALLOC!AJ299,FUNCALLOC!AJ284,FUNCALLOC!AJ275,FUNCALLOC!AJ269,FUNCALLOC!AJ260) -> 0 | AJ61: =SUM(FUNCALLOC!AK299,FUNCALLOC!AK284,FUNCALLOC!AK275,FUNCALLOC!AK269,FUNCALLOC!AK260) -> 0 | AK61: =SUM(FUNCALLOC!AL299,FUNCALLOC!AL284,FUNCALLOC!AL275,FUNCALLOC!AL269,FUNCALLOC!AL260) -> 0 | AL61: =SUM(FUNCALLOC!AM299,FUNCALLOC!AM284,FUNCALLOC!AM275,FUNCALLOC!AM269,FUNCALLOC!AM260) -> 0 | AM61: =SUM(FUNCALLOC!AN299,FUNCALLOC!AN284,FUNCALLOC!AN275,FUNCALLOC!AN269,FUNCALLOC!AN260) -> 0 | AN61: =SUM(FUNCALLOC!AO299,FUNCALLOC!AO284,FUNCALLOC!AO275,FUNCALLOC!AO269,FUNCALLOC!AO260) -> 0 | AO61: =SUM(FUNCALLOC!AP299,FUNCALLOC!AP284,FUNCALLOC!AP275,FUNCALLOC!AP269,FUNCALLOC!AP260) -> 0 | AP61: =SUM(FUNCALLOC!AQ299,FUNCALLOC!AQ284,FUNCALLOC!AQ275,FUNCALLOC!AQ269,FUNCALLOC!AQ260) -> 0 | AQ61: =SUM(FUNCALLOC!AR299,FUNCALLOC!AR284,FUNCALLOC!AR275,FUNCALLOC!AR269,FUNCALLOC!AR260) -> 0 | AR61: =SUM(FUNCALLOC!AS299,FUNCALLOC!AS284,FUNCALLOC!AS275,FUNCALLOC!AS269,FUNCALLOC!AS260) -> 0 | AS61: =SUM(FUNCALLOC!AT299,FUNCALLOC!AT284,FUNCALLOC!AT275,FUNCALLOC!AT269,FUNCALLOC!AT260) -> 0 | AT61: =SUM(FUNCALLOC!AU299,FUNCALLOC!AU284,FUNCALLOC!AU275,FUNCALLOC!AU269,FUNCALLOC!AU260) -> 0 | AU61: =SUM(FUNCALLOC!AV299,FUNCALLOC!AV284,FUNCALLOC!AV275,FUNCALLOC!AV269,FUNCALLOC!AV260) -> 0 | AV61: =SUM(FUNCALLOC!AW299,FUNCALLOC!AW284,FUNCALLOC!AW275,FUNCALLOC!AW269,FUNCALLOC!AW260) -> 0 | AW61: =SUM(FUNCALLOC!AX299,FUNCALLOC!AX284,FUNCALLOC!AX275,FUNCALLOC!AX269,FUNCALLOC!AX260) -> 0 | AX61: =SUM(FUNCALLOC!AY299,FUNCALLOC!AY284,FUNCALLOC!AY275,FUNCALLOC!AY269,FUNCALLOC!AY260) -> 0 | AY61: =SUM(FUNCALLOC!AZ299,FUNCALLOC!AZ284,FUNCALLOC!AZ275,FUNCALLOC!AZ269,FUNCALLOC!AZ260) -> 0 | AZ61: =SUM(FUNCALLOC!BA299,FUNCALLOC!BA284,FUNCALLOC!BA275,FUNCALLOC!BA269,FUNCALLOC!BA260) -> 0 | BA61: =SUM(FUNCALLOC!BB299,FUNCALLOC!BB284,FUNCALLOC!BB275,FUNCALLOC!BB269,FUNCALLOC!BB260) -> 0 | BB61: =SUM(FUNCALLOC!BC299,FUNCALLOC!BC284,FUNCALLOC!BC275,FUNCALLOC!BC269,FUNCALLOC!BC260) -> 0 | BC61: =SUM(FUNCALLOC!BD299,FUNCALLOC!BD284,FUNCALLOC!BD275,FUNCALLOC!BD269,FUNCALLOC!BD260) -> 0 | BD61: =SUM(FUNCALLOC!BE299,FUNCALLOC!BE284,FUNCALLOC!BE275,FUNCALLOC!BE269,FUNCALLOC!BE260) -> 0 | BE61: =SUM(FUNCALLOC!BF299,FUNCALLOC!BF284,FUNCALLOC!BF275,FUNCALLOC!BF269,FUNCALLOC!BF260) -> 0 | BF61: =SUM(FUNCALLOC!BG299,FUNCALLOC!BG284,FUNCALLOC!BG275,FUNCALLOC!BG269,FUNCALLOC!BG260) -> 0 | BG61: =SUM(FUNCALLOC!BH299,FUNCALLOC!BH284,FUNCALLOC!BH275,FUNCALLOC!BH269,FUNCALLOC!BH260) -> 0 | BH61: =SUM(FUNCALLOC!BI299,FUNCALLOC!BI284,FUNCALLOC!BI275,FUNCALLOC!BI269,FUNCALLOC!BI260) -> 0 | BI61: =SUM(FUNCALLOC!BJ299,FUNCALLOC!BJ284,FUNCALLOC!BJ275,FUNCALLOC!BJ269,FUNCALLOC!BJ260) -> 0 | BJ61: =SUM(FUNCALLOC!BK299,FUNCALLOC!BK284,FUNCALLOC!BK275,FUNCALLOC!BK269,FUNCALLOC!BK260) -> 0 | BK61: =SUM(FUNCALLOC!BL299,FUNCALLOC!BL284,FUNCALLOC!BL275,FUNCALLOC!BL269,FUNCALLOC!BL260) -> 0 | BL61: =SUM(FUNCALLOC!BM299,FUNCALLOC!BM284,FUNCALLOC!BM275,FUNCALLOC!BM269,FUNCALLOC!BM260) -> 0 | BM61: =SUM(FUNCALLOC!BN299,FUNCALLOC!BN284,FUNCALLOC!BN275,FUNCALLOC!BN269,FUNCALLOC!BN260) -> 0 | BN61: =SUM(FUNCALLOC!BO299,FUNCALLOC!BO284,FUNCALLOC!BO275,FUNCALLOC!BO269,FUNCALLOC!BO260) -> 0 | BO61: =SUM(FUNCALLOC!BP299,FUNCALLOC!BP284,FUNCALLOC!BP275,FUNCALLOC!BP269,FUNCALLOC!BP260) -> 0 | BP61: =SUM(FUNCALLOC!BQ299,FUNCALLOC!BQ284,FUNCALLOC!BQ275,FUNCALLOC!BQ269,FUNCALLOC!BQ260) -> 0 | BQ61: =SUM(FUNCALLOC!BR299,FUNCALLOC!BR284,FUNCALLOC!BR275,FUNCALLOC!BR269,FUNCALLOC!BR260) -> 0 | BR61: =SUM(FUNCALLOC!BS299,FUNCALLOC!BS284,FUNCALLOC!BS275,FUNCALLOC!BS269,FUNCALLOC!BS260) -> 0 | BS61: =SUM(FUNCALLOC!BT299,FUNCALLOC!BT284,FUNCALLOC!BT275,FUNCALLOC!BT269,FUNCALLOC!BT260) -> 0 | BT61: =SUM(FUNCALLOC!BU299,FUNCALLOC!BU284,FUNCALLOC!BU275,FUNCALLOC!BU269,FUNCALLOC!BU260) -> 0 | BU61: =SUM(FUNCALLOC!BV299,FUNCALLOC!BV284,FUNCALLOC!BV275,FUNCALLOC!BV269,FUNCALLOC!BV260) -> 0 | BV61: =SUM(FUNCALLOC!BW299,FUNCALLOC!BW284,FUNCALLOC!BW275,FUNCALLOC!BW269,FUNCALLOC!BW260) -> 0 | BW61: =SUM(FUNCALLOC!BX299,FUNCALLOC!BX284,FUNCALLOC!BX275,FUNCALLOC!BX269,FUNCALLOC!BX260) -> 0 | BX61: =SUM(FUNCALLOC!BY299,FUNCALLOC!BY284,FUNCALLOC!BY275,FUNCALLOC!BY269,FUNCALLOC!BY260) -> 0 | BY61: =SUM(FUNCALLOC!BZ299,FUNCALLOC!BZ284,FUNCALLOC!BZ275,FUNCALLOC!BZ269,FUNCALLOC!BZ260) -> 0
D62: =IF((D61=0)*OR($C61=0),0,D61/$C61) -> 0 | E62: 0.1875673099 | F62: 0.001275604242 | G62: 0.001065187447 | H62: 0 | I62: 0 | J62: 0 | K62: 0 | L62: 0 | M62: 0 | N62: 0 | O62: 0 | P62: 0 | Q62: 0 | R62: 0 | S62: 0 | T62: 0 | U62: 0 | V62: 0 | W62: 0 | X62: 0 | Y62: 0 | Z62: 0 | AA62: 0.0004836758523 | AB62: 0 | AC62: 0.799629058 | AD62: 0.005438102296 | AE62: 0.004541062275 | AF62: 0 | AG62: 0 | AH62: 0 | AI62: 0 | AJ62: 0 | AK62: 0 | AL62: 0 | AM62: 0 | AN62: 0 | AO62: 0 | AP62: 0 | AQ62: 0 | AR62: =IF((AR61=0)*OR($C61=0),0,AR61/$C61) -> 0 | AS62: 0 | AT62: 0 | AU62: 0 | AV62: 0 | AW62: 0 | AX62: 0 | AY62: 0 | AZ62: 0 | BA62: =IF((BA61=0)*OR($C61=0),0,BA61/$C61) -> 0 | BB62: 0 | BC62: 0 | BD62: 0 | BE62: 0 | BF62: 0 | BG62: 0 | BH62: 0 | BI62: 0 | BJ62: 0 | BK62: 0 | BL62: 0 | BM62: 0 | BN62: 0 | BO62: 0 | BP62: 0 | BQ62: 0 | BR62: 0 | BS62: 0 | BT62: 0 | BU62: 0 | BV62: 0 | BW62: 0 | BX62: 0 | BY62: 0
A64: PP.T | B64: Total Production Plant | C64: =SUM(D64:BA64) -> 3259063923 | D64: =SUM(FUNCALLOC!E28) -> 0 | E64: =SUM(FUNCALLOC!F28) -> 619222145.4 | F64: =SUM(FUNCALLOC!G28) -> 0 | G64: =SUM(FUNCALLOC!H28) -> 0 | H64: =SUM(FUNCALLOC!I28) -> 0 | I64: =SUM(FUNCALLOC!J28) -> 0 | J64: =SUM(FUNCALLOC!K28) -> 0 | K64: =SUM(FUNCALLOC!L28) -> 0 | L64: =SUM(FUNCALLOC!M28) -> 0 | M64: =SUM(FUNCALLOC!N28) -> 0 | N64: =SUM(FUNCALLOC!O28) -> 0 | O64: =SUM(FUNCALLOC!P28) -> 0 | P64: =SUM(FUNCALLOC!Q28) -> 0 | Q64: =SUM(FUNCALLOC!R28) -> 0 | R64: =SUM(FUNCALLOC!S28) -> 0 | S64: =SUM(FUNCALLOC!T28) -> 0 | T64: =SUM(FUNCALLOC!U28) -> 0 | U64: =SUM(FUNCALLOC!V28) -> 0 | V64: =SUM(FUNCALLOC!W28) -> 0 | W64: =SUM(FUNCALLOC!X28) -> 0 | X64: =SUM(FUNCALLOC!Y28) -> 0 | Y64: =SUM(FUNCALLOC!Z28) -> 0 | Z64: =SUM(FUNCALLOC!AA28) -> 0 | AA64: =SUM(FUNCALLOC!AB28) -> 0 | AB64: =SUM(FUNCALLOC!AC28) -> 0 | AC64: =SUM(FUNCALLOC!AD28) -> 2639841778 | AD64: =SUM(FUNCALLOC!AE28) -> 0 | AE64: =SUM(FUNCALLOC!AF28) -> 0 | AF64: =SUM(FUNCALLOC!AG28) -> 0 | AG64: =SUM(FUNCALLOC!AH28) -> 0 | AH64: =SUM(FUNCALLOC!AI28) -> 0 | AI64: =SUM(FUNCALLOC!AJ28) -> 0 | AJ64: =SUM(FUNCALLOC!AK28) -> 0 | AK64: =SUM(FUNCALLOC!AL28) -> 0 | AL64: =SUM(FUNCALLOC!AM28) -> 0 | AM64: =SUM(FUNCALLOC!AN28) -> 0 | AN64: =SUM(FUNCALLOC!AO28) -> 0 | AO64: =SUM(FUNCALLOC!AP28) -> 0 | AP64: =SUM(FUNCALLOC!AQ28) -> 0 | AQ64: =SUM(FUNCALLOC!AR28) -> 0 | AR64: =SUM(FUNCALLOC!AS28) -> 0 | AS64: =SUM(FUNCALLOC!AT28) -> 0 | AT64: =SUM(FUNCALLOC!AU28) -> 0 | AU64: =SUM(FUNCALLOC!AV28) -> 0 | AV64: =SUM(FUNCALLOC!AW28) -> 0 | AW64: =SUM(FUNCALLOC!AX28) -> 0 | AX64: =SUM(FUNCALLOC!AY28) -> 0 | AY64: =SUM(FUNCALLOC!AZ28) -> 0 | AZ64: =SUM(FUNCALLOC!BA28) -> 0 | BA64: =SUM(FUNCALLOC!BB28) -> 0 | BB64: =SUM(FUNCALLOC!BC28) -> 0 | BC64: =SUM(FUNCALLOC!BD28) -> 0 | BD64: =SUM(FUNCALLOC!BE28) -> 0 | BE64: =SUM(FUNCALLOC!BF28) -> 0 | BF64: =SUM(FUNCALLOC!BG28) -> 0 | BG64: =SUM(FUNCALLOC!BH28) -> 0 | BH64: =SUM(FUNCALLOC!BI28) -> 0 | BI64: =SUM(FUNCALLOC!BJ28) -> 0 | BJ64: =SUM(FUNCALLOC!BK28) -> 0 | BK64: =SUM(FUNCALLOC!BL28) -> 0 | BL64: =SUM(FUNCALLOC!BM28) -> 0 | BM64: =SUM(FUNCALLOC!BN28) -> 0 | BN64: =SUM(FUNCALLOC!BO28) -> 0 | BO64: =SUM(FUNCALLOC!BP28) -> 0 | BP64: =SUM(FUNCALLOC!BQ28) -> 0 | BQ64: =SUM(FUNCALLOC!BR28) -> 0 | BR64: =SUM(FUNCALLOC!BS28) -> 0 | BS64: =SUM(FUNCALLOC!BT28) -> 0 | BT64: =SUM(FUNCALLOC!BU28) -> 0 | BU64: =SUM(FUNCALLOC!BV28) -> 0 | BV64: =SUM(FUNCALLOC!BW28) -> 0 | BW64: =SUM(FUNCALLOC!BX28) -> 0 | BX64: =SUM(FUNCALLOC!BY28) -> 0 | BY64: =SUM(FUNCALLOC!BZ28) -> 0
D65: =IF((D64=0)*OR($C64=0),0,D64/$C64) -> 0 | E65: 0.19 | F65: 0 | G65: 0 | H65: 0 | I65: 0 | J65: 0 | K65: 0 | L65: 0 | M65: 0 | N65: 0 | O65: 0 | P65: 0 | Q65: 0 | R65: 0 | S65: 0 | T65: 0 | U65: 0 | V65: 0 | W65: 0 | X65: 0 | Y65: 0 | Z65: 0 | AA65: 0 | AB65: 0 | AC65: 0.81 | AD65: 0 | AE65: 0 | AF65: 0 | AG65: 0 | AH65: 0 | AI65: 0 | AJ65: 0 | AK65: 0 | AL65: 0 | AM65: 0 | AN65: 0 | AO65: 0 | AP65: 0 | AQ65: 0 | AR65: =IF((AR64=0)*OR($C64=0),0,AR64/$C64) -> 0 | AS65: 0 | AT65: 0 | AU65: 0 | AV65: 0 | AW65: 0 | AX65: 0 | AY65: 0 | AZ65: 0 | BA65: =IF((BA64=0)*OR($C64=0),0,BA64/$C64) -> 0 | BB65: 0 | BC65: 0 | BD65: 0 | BE65: 0 | BF65: 0 | BG65: 0 | BH65: 0 | BI65: 0 | BJ65: 0 | BK65: 0 | BL65: 0 | BM65: 0 | BN65: 0 | BO65: 0 | BP65: 0 | BQ65: 0 | BR65: 0 | BS65: 0 | BT65: 0 | BU65: 0 | BV65: 0 | BW65: 0 | BX65: 0 | BY65: 0
A67: PTDGP.T | B67: Total Prod, Trans, Dist & Gen Plant | C67: =SUM(D67:BA67) -> 7440029030 | D67: =SUM(FUNCALLOC!E28,FUNCALLOC!E39,FUNCALLOC!E71,FUNCALLOC!E87) -> 0 | E67: =SUM(FUNCALLOC!F28,FUNCALLOC!F39,FUNCALLOC!F71,FUNCALLOC!F87) -> 641827624 | F67: =SUM(FUNCALLOC!G28,FUNCALLOC!G39,FUNCALLOC!G71,FUNCALLOC!G87) -> 45660148.49 | G67: =SUM(FUNCALLOC!H28,FUNCALLOC!H39,FUNCALLOC!H71,FUNCALLOC!H87) -> 38128296.69 | H67: =SUM(FUNCALLOC!I28,FUNCALLOC!I39,FUNCALLOC!I71,FUNCALLOC!I87) -> 1665943.174 | I67: =SUM(FUNCALLOC!J28,FUNCALLOC!J39,FUNCALLOC!J71,FUNCALLOC!J87) -> 26225587.32 | J67: =SUM(FUNCALLOC!K28,FUNCALLOC!K39,FUNCALLOC!K71,FUNCALLOC!K87) -> 114640052.2 | K67: =SUM(FUNCALLOC!L28,FUNCALLOC!L39,FUNCALLOC!L71,FUNCALLOC!L87) -> 432303.1212 | L67: =SUM(FUNCALLOC!M28,FUNCALLOC!M39,FUNCALLOC!M71,FUNCALLOC!M87) -> 5343545.476 | M67: =SUM(FUNCALLOC!N28,FUNCALLOC!N39,FUNCALLOC!N71,FUNCALLOC!N87) -> 25811983.12 | N67: =SUM(FUNCALLOC!O28,FUNCALLOC!O39,FUNCALLOC!O71,FUNCALLOC!O87) -> 317849720.3 | O67: =SUM(FUNCALLOC!P28,FUNCALLOC!P39,FUNCALLOC!P71,FUNCALLOC!P87) -> 532019074.1 | P67: =SUM(FUNCALLOC!Q28,FUNCALLOC!Q39,FUNCALLOC!Q71,FUNCALLOC!Q87) -> 2619150.517 | Q67: =SUM(FUNCALLOC!R28,FUNCALLOC!R39,FUNCALLOC!R71,FUNCALLOC!R87) -> 1242926568 | R67: =SUM(FUNCALLOC!S28,FUNCALLOC!S39,FUNCALLOC!S71,FUNCALLOC!S87) -> 26184903.54 | S67: =SUM(FUNCALLOC!T28,FUNCALLOC!T39,FUNCALLOC!T71,FUNCALLOC!T87) -> 0 | T67: =SUM(FUNCALLOC!U28,FUNCALLOC!U39,FUNCALLOC!U71,FUNCALLOC!U87) -> 0 | U67: =SUM(FUNCALLOC!V28,FUNCALLOC!V39,FUNCALLOC!V71,FUNCALLOC!V87) -> 0 | V67: =SUM(FUNCALLOC!W28,FUNCALLOC!W39,FUNCALLOC!W71,FUNCALLOC!W87) -> 0 | W67: =SUM(FUNCALLOC!X28,FUNCALLOC!X39,FUNCALLOC!X71,FUNCALLOC!X87) -> 0 | X67: =SUM(FUNCALLOC!Y28,FUNCALLOC!Y39,FUNCALLOC!Y71,FUNCALLOC!Y87) -> 0 | Y67: =SUM(FUNCALLOC!Z28,FUNCALLOC!Z39,FUNCALLOC!Z71,FUNCALLOC!Z87) -> 0 | Z67: =SUM(FUNCALLOC!AA28,FUNCALLOC!AA39,FUNCALLOC!AA71,FUNCALLOC!AA87) -> 0 | AA67: =SUM(FUNCALLOC!AB28,FUNCALLOC!AB39,FUNCALLOC!AB71,FUNCALLOC!AB87) -> 0 | AB67: =SUM(FUNCALLOC!AC28,FUNCALLOC!AC39,FUNCALLOC!AC71,FUNCALLOC!AC87) -> 0 | AC67: =SUM(FUNCALLOC!AD28,FUNCALLOC!AD39,FUNCALLOC!AD71,FUNCALLOC!AD87) -> 2736212503 | AD67: =SUM(FUNCALLOC!AE28,FUNCALLOC!AE39,FUNCALLOC!AE71,FUNCALLOC!AE87) -> 194656422.5 | AE67: =SUM(FUNCALLOC!AF28,FUNCALLOC!AF39,FUNCALLOC!AF71,FUNCALLOC!AF87) -> 162546949.1 | AF67: =SUM(FUNCALLOC!AG28,FUNCALLOC!AG39,FUNCALLOC!AG71,FUNCALLOC!AG87) -> 488728643.4 | AG67: =SUM(FUNCALLOC!AH28,FUNCALLOC!AH39,FUNCALLOC!AH71,FUNCALLOC!AH87) -> 0 | AH67: =SUM(FUNCALLOC!AI28,FUNCALLOC!AI39,FUNCALLOC!AI71,FUNCALLOC!AI87) -> 0 | AI67: =SUM(FUNCALLOC!AJ28,FUNCALLOC!AJ39,FUNCALLOC!AJ71,FUNCALLOC!AJ87) -> 0 | AJ67: =SUM(FUNCALLOC!AK28,FUNCALLOC!AK39,FUNCALLOC!AK71,FUNCALLOC!AK87) -> 142794598.6 | AK67: =SUM(FUNCALLOC!AL28,FUNCALLOC!AL39,FUNCALLOC!AL71,FUNCALLOC!AL87) -> 270127773.8 | AL67: =SUM(FUNCALLOC!AM28,FUNCALLOC!AM39,FUNCALLOC!AM71,FUNCALLOC!AM87) -> 3884024.797 | AM67: =SUM(FUNCALLOC!AN28,FUNCALLOC!AN39,FUNCALLOC!AN71,FUNCALLOC!AN87) -> 43285969.01 | AN67: =SUM(FUNCALLOC!AO28,FUNCALLOC!AO39,FUNCALLOC!AO71,FUNCALLOC!AO87) -> 140927703.5 | AO67: =SUM(FUNCALLOC!AP28,FUNCALLOC!AP39,FUNCALLOC!AP71,FUNCALLOC!AP87) -> 131517662.5 | AP67: =SUM(FUNCALLOC!AQ28,FUNCALLOC!AQ39,FUNCALLOC!AQ71,FUNCALLOC!AQ87) -> 662626.0788 | AQ67: =SUM(FUNCALLOC!AR28,FUNCALLOC!AR39,FUNCALLOC!AR71,FUNCALLOC!AR87) -> 56991868.82 | AR67: =SUM(FUNCALLOC!AS28,FUNCALLOC!AS39,FUNCALLOC!AS71,FUNCALLOC!AS87) -> 0 | AS67: =SUM(FUNCALLOC!AT28,FUNCALLOC!AT39,FUNCALLOC!AT71,FUNCALLOC!AT87) -> 0 | AT67: =SUM(FUNCALLOC!AU28,FUNCALLOC!AU39,FUNCALLOC!AU71,FUNCALLOC!AU87) -> 15625808.25 | AU67: =SUM(FUNCALLOC!AV28,FUNCALLOC!AV39,FUNCALLOC!AV71,FUNCALLOC!AV87) -> 19214929.84 | AV67: =SUM(FUNCALLOC!AW28,FUNCALLOC!AW39,FUNCALLOC!AW71,FUNCALLOC!AW87) -> 7797252.578 | AW67: =SUM(FUNCALLOC!AX28,FUNCALLOC!AX39,FUNCALLOC!AX71,FUNCALLOC!AX87) -> 3719394.787 | AX67: =SUM(FUNCALLOC!AY28,FUNCALLOC!AY39,FUNCALLOC!AY71,FUNCALLOC!AY87) -> 0 | AY67: =SUM(FUNCALLOC!AZ28,FUNCALLOC!AZ39,FUNCALLOC!AZ71,FUNCALLOC!AZ87) -> 0 | AZ67: =SUM(FUNCALLOC!BA28,FUNCALLOC!BA39,FUNCALLOC!BA71,FUNCALLOC!BA87) -> 0 | BA67: =SUM(FUNCALLOC!BB28,FUNCALLOC!BB39,FUNCALLOC!BB71,FUNCALLOC!BB87) -> 0 | BB67: =SUM(FUNCALLOC!BC28,FUNCALLOC!BC39,FUNCALLOC!BC71,FUNCALLOC!BC87) -> 0 | BC67: =SUM(FUNCALLOC!BD28,FUNCALLOC!BD39,FUNCALLOC!BD71,FUNCALLOC!BD87) -> 0 | BD67: =SUM(FUNCALLOC!BE28,FUNCALLOC!BE39,FUNCALLOC!BE71,FUNCALLOC!BE87) -> 0 | BE67: =SUM(FUNCALLOC!BF28,FUNCALLOC!BF39,FUNCALLOC!BF71,FUNCALLOC!BF87) -> 0 | BF67: =SUM(FUNCALLOC!BG28,FUNCALLOC!BG39,FUNCALLOC!BG71,FUNCALLOC!BG87) -> 0 | BG67: =SUM(FUNCALLOC!BH28,FUNCALLOC!BH39,FUNCALLOC!BH71,FUNCALLOC!BH87) -> 0 | BH67: =SUM(FUNCALLOC!BI28,FUNCALLOC!BI39,FUNCALLOC!BI71,FUNCALLOC!BI87) -> 0 | BI67: =SUM(FUNCALLOC!BJ28,FUNCALLOC!BJ39,FUNCALLOC!BJ71,FUNCALLOC!BJ87) -> 0 | BJ67: =SUM(FUNCALLOC!BK28,FUNCALLOC!BK39,FUNCALLOC!BK71,FUNCALLOC!BK87) -> 0 | BK67: =SUM(FUNCALLOC!BL28,FUNCALLOC!BL39,FUNCALLOC!BL71,FUNCALLOC!BL87) -> 0 | BL67: =SUM(FUNCALLOC!BM28,FUNCALLOC!BM39,FUNCALLOC!BM71,FUNCALLOC!BM87) -> 0 | BM67: =SUM(FUNCALLOC!BN28,FUNCALLOC!BN39,FUNCALLOC!BN71,FUNCALLOC!BN87) -> 0 | BN67: =SUM(FUNCALLOC!BO28,FUNCALLOC!BO39,FUNCALLOC!BO71,FUNCALLOC!BO87) -> 0 | BO67: =SUM(FUNCALLOC!BP28,FUNCALLOC!BP39,FUNCALLOC!BP71,FUNCALLOC!BP87) -> 0 | BP67: =SUM(FUNCALLOC!BQ28,FUNCALLOC!BQ39,FUNCALLOC!BQ71,FUNCALLOC!BQ87) -> 0 | BQ67: =SUM(FUNCALLOC!BR28,FUNCALLOC!BR39,FUNCALLOC!BR71,FUNCALLOC!BR87) -> 0 | BR67: =SUM(FUNCALLOC!BS28,FUNCALLOC!BS39,FUNCALLOC!BS71,FUNCALLOC!BS87) -> 0 | BS67: =SUM(FUNCALLOC!BT28,FUNCALLOC!BT39,FUNCALLOC!BT71,FUNCALLOC!BT87) -> 0 | BT67: =SUM(FUNCALLOC!BU28,FUNCALLOC!BU39,FUNCALLOC!BU71,FUNCALLOC!BU87) -> 0 | BU67: =SUM(FUNCALLOC!BV28,FUNCALLOC!BV39,FUNCALLOC!BV71,FUNCALLOC!BV87) -> 0 | BV67: =SUM(FUNCALLOC!BW28,FUNCALLOC!BW39,FUNCALLOC!BW71,FUNCALLOC!BW87) -> 0 | BW67: =SUM(FUNCALLOC!BX28,FUNCALLOC!BX39,FUNCALLOC!BX71,FUNCALLOC!BX87) -> 0 | BX67: =SUM(FUNCALLOC!BY28,FUNCALLOC!BY39,FUNCALLOC!BY71,FUNCALLOC!BY87) -> 0 | BY67: =SUM(FUNCALLOC!BZ28,FUNCALLOC!BZ39,FUNCALLOC!BZ71,FUNCALLOC!BZ87) -> 0
D68: =IF((D67=0)*OR($C67=0),0,D67/$C67) -> 0 | E68: 0.08626681716 | F68: 0.006137092786 | G68: 0.005124751064 | H68: 0.0002239162196 | I68: 0.003524930779 | J68: 0.01540854904 | K68: 5.81050315e-05 | L68: 0.0007182156755 | M68: 0.003469339033 | N68: 0.0427215699 | O68: 0.07150766105 | P68: 0.0003520349861 | Q68: 0.1670593708 | R68: 0.00351946255 | S68: 0 | T68: 0 | U68: 0 | V68: 0 | W68: 0 | X68: 0 | Y68: 0 | Z68: 0 | AA68: 0 | AB68: 0 | AC68: 0.3677690626 | AD68: 0.02616339556 | AE68: 0.02184762296 | AF68: 0.06568907748 | AG68: 0 | AH68: 0 | AI68: 0 | AJ68: 0.01919274751 | AK68: 0.03630735482 | AL68: 0.0005220443066 | AM68: 0.005817983886 | AN68: 0.01894182172 | AO68: 0.0176770362 | AP68: 8.906229748e-05 | AQ68: 0.007660167533 | AR68: =IF((AR67=0)*OR($C67=0),0,AR67/$C67) -> 0 | AS68: 0 | AT68: 0.002100234849 | AU68: 0.002582641783 | AV68: 0.00104801373 | AW68: 0.0004999167035 | AX68: 0 | AY68: 0 | AZ68: 0 | BA68: =IF((BA67=0)*OR($C67=0),0,BA67/$C67) -> 0 | BB68: 0 | BC68: 0 | BD68: 0 | BE68: 0 | BF68: 0 | BG68: 0 | BH68: 0 | BI68: 0 | BJ68: 0 | BK68: 0 | BL68: 0 | BM68: 0 | BN68: 0 | BO68: 0 | BP68: 0 | BQ68: 0 | BR68: 0 | BS68: 0 | BT68: 0 | BU68: 0 | BV68: 0 | BW68: 0 | BX68: 0 | BY68: 0
A70: PTDP.T | B70: Prod Trans Dist Allocation Factor | C70: =SUM(D70:BA70) -> 7140549881 | D70: =SUM(FUNCALLOC!E28,FUNCALLOC!E39,FUNCALLOC!E71) -> 0 | E70: =SUM(FUNCALLOC!F28,FUNCALLOC!F39,FUNCALLOC!F71) -> 619222145.4 | F70: =SUM(FUNCALLOC!G28,FUNCALLOC!G39,FUNCALLOC!G71) -> 44013329 | G70: =SUM(FUNCALLOC!H28,FUNCALLOC!H39,FUNCALLOC!H71) -> 36753127.66 | H70: =SUM(FUNCALLOC!I28,FUNCALLOC!I39,FUNCALLOC!I71) -> 1611005.222 | I70: =SUM(FUNCALLOC!J28,FUNCALLOC!J39,FUNCALLOC!J71) -> 25360743.86 | J70: =SUM(FUNCALLOC!K28,FUNCALLOC!K39,FUNCALLOC!K71) -> 110859557.2 | K70: =SUM(FUNCALLOC!L28,FUNCALLOC!L39,FUNCALLOC!L71) -> 418047.0237 | L70: =SUM(FUNCALLOC!M28,FUNCALLOC!M39,FUNCALLOC!M71) -> 5167330.914 | M70: =SUM(FUNCALLOC!N28,FUNCALLOC!N39,FUNCALLOC!N71) -> 24960779.12 | N70: =SUM(FUNCALLOC!O28,FUNCALLOC!O39,FUNCALLOC!O71) -> 307367962.6 | O70: =SUM(FUNCALLOC!P28,FUNCALLOC!P39,FUNCALLOC!P71) -> 514474635.1 | P70: =SUM(FUNCALLOC!Q28,FUNCALLOC!Q39,FUNCALLOC!Q71) -> 2532778.563 | Q70: =SUM(FUNCALLOC!R28,FUNCALLOC!R39,FUNCALLOC!R71) -> 1201938471 | R70: =SUM(FUNCALLOC!S28,FUNCALLOC!S39,FUNCALLOC!S71) -> 25321401.71 | S70: =SUM(FUNCALLOC!T28,FUNCALLOC!T39,FUNCALLOC!T71) -> 0 | T70: =SUM(FUNCALLOC!U28,FUNCALLOC!U39,FUNCALLOC!U71) -> 0 | U70: =SUM(FUNCALLOC!V28,FUNCALLOC!V39,FUNCALLOC!V71) -> 0 | V70: =SUM(FUNCALLOC!W28,FUNCALLOC!W39,FUNCALLOC!W71) -> 0 | W70: =SUM(FUNCALLOC!X28,FUNCALLOC!X39,FUNCALLOC!X71) -> 0 | X70: =SUM(FUNCALLOC!Y28,FUNCALLOC!Y39,FUNCALLOC!Y71) -> 0 | Y70: =SUM(FUNCALLOC!Z28,FUNCALLOC!Z39,FUNCALLOC!Z71) -> 0 | Z70: =SUM(FUNCALLOC!AA28,FUNCALLOC!AA39,FUNCALLOC!AA71) -> 0 | AA70: =SUM(FUNCALLOC!AB28,FUNCALLOC!AB39,FUNCALLOC!AB71) -> 0 | AB70: =SUM(FUNCALLOC!AC28,FUNCALLOC!AC39,FUNCALLOC!AC71) -> 0 | AC70: =SUM(FUNCALLOC!AD28,FUNCALLOC!AD39,FUNCALLOC!AD71) -> 2639841778 | AD70: =SUM(FUNCALLOC!AE28,FUNCALLOC!AE39,FUNCALLOC!AE71) -> 187635771 | AE70: =SUM(FUNCALLOC!AF28,FUNCALLOC!AF39,FUNCALLOC!AF71) -> 156684386.3 | AF70: =SUM(FUNCALLOC!AG28,FUNCALLOC!AG39,FUNCALLOC!AG71) -> 472611796.7 | AG70: =SUM(FUNCALLOC!AH28,FUNCALLOC!AH39,FUNCALLOC!AH71) -> 0 | AH70: =SUM(FUNCALLOC!AI28,FUNCALLOC!AI39,FUNCALLOC!AI71) -> 0 | AI70: =SUM(FUNCALLOC!AJ28,FUNCALLOC!AJ39,FUNCALLOC!AJ71) -> 0 | AJ70: =SUM(FUNCALLOC!AK28,FUNCALLOC!AK39,FUNCALLOC!AK71) -> 138085648.8 | AK70: =SUM(FUNCALLOC!AL28,FUNCALLOC!AL39,FUNCALLOC!AL71) -> 261219746.9 | AL70: =SUM(FUNCALLOC!AM28,FUNCALLOC!AM39,FUNCALLOC!AM71) -> 3755940.975 | AM70: =SUM(FUNCALLOC!AN28,FUNCALLOC!AN39,FUNCALLOC!AN71) -> 41858523.86 | AN70: =SUM(FUNCALLOC!AO28,FUNCALLOC!AO39,FUNCALLOC!AO71) -> 136280318.4 | AO70: =SUM(FUNCALLOC!AP28,FUNCALLOC!AP39,FUNCALLOC!AP71) -> 127180593.2 | AP70: =SUM(FUNCALLOC!AQ28,FUNCALLOC!AQ39,FUNCALLOC!AQ71) -> 640774.6012 | AQ70: =SUM(FUNCALLOC!AR28,FUNCALLOC!AR39,FUNCALLOC!AR71) -> 54753288.5 | AR70: =SUM(FUNCALLOC!AS28,FUNCALLOC!AS39,FUNCALLOC!AS71) -> 0 | AS70: =SUM(FUNCALLOC!AT28,FUNCALLOC!AT39,FUNCALLOC!AT71) -> 0 | AT70: =SUM(FUNCALLOC!AU28,FUNCALLOC!AU39,FUNCALLOC!AU71) -> 0 | AU70: =SUM(FUNCALLOC!AV28,FUNCALLOC!AV39,FUNCALLOC!AV71) -> 0 | AV70: =SUM(FUNCALLOC!AW28,FUNCALLOC!AW39,FUNCALLOC!AW71) -> 0 | AW70: =SUM(FUNCALLOC!AX28,FUNCALLOC!AX39,FUNCALLOC!AX71) -> 0 | AX70: =SUM(FUNCALLOC!AY28,FUNCALLOC!AY39,FUNCALLOC!AY71) -> 0 | AY70: =SUM(FUNCALLOC!AZ28,FUNCALLOC!AZ39,FUNCALLOC!AZ71) -> 0 | AZ70: =SUM(FUNCALLOC!BA28,FUNCALLOC!BA39,FUNCALLOC!BA71) -> 0 | BA70: =SUM(FUNCALLOC!BB28,FUNCALLOC!BB39,FUNCALLOC!BB71) -> 0 | BB70: =SUM(FUNCALLOC!BC28,FUNCALLOC!BC39,FUNCALLOC!BC71) -> 0 | BC70: =SUM(FUNCALLOC!BD28,FUNCALLOC!BD39,FUNCALLOC!BD71) -> 0 | BD70: =SUM(FUNCALLOC!BE28,FUNCALLOC!BE39,FUNCALLOC!BE71) -> 0 | BE70: =SUM(FUNCALLOC!BF28,FUNCALLOC!BF39,FUNCALLOC!BF71) -> 0 | BF70: =SUM(FUNCALLOC!BG28,FUNCALLOC!BG39,FUNCALLOC!BG71) -> 0 | BG70: =SUM(FUNCALLOC!BH28,FUNCALLOC!BH39,FUNCALLOC!BH71) -> 0 | BH70: =SUM(FUNCALLOC!BI28,FUNCALLOC!BI39,FUNCALLOC!BI71) -> 0 | BI70: =SUM(FUNCALLOC!BJ28,FUNCALLOC!BJ39,FUNCALLOC!BJ71) -> 0 | BJ70: =SUM(FUNCALLOC!BK28,FUNCALLOC!BK39,FUNCALLOC!BK71) -> 0 | BK70: =SUM(FUNCALLOC!BL28,FUNCALLOC!BL39,FUNCALLOC!BL71) -> 0 | BL70: =SUM(FUNCALLOC!BM28,FUNCALLOC!BM39,FUNCALLOC!BM71) -> 0 | BM70: =SUM(FUNCALLOC!BN28,FUNCALLOC!BN39,FUNCALLOC!BN71) -> 0 | BN70: =SUM(FUNCALLOC!BO28,FUNCALLOC!BO39,FUNCALLOC!BO71) -> 0 | BO70: =SUM(FUNCALLOC!BP28,FUNCALLOC!BP39,FUNCALLOC!BP71) -> 0 | BP70: =SUM(FUNCALLOC!BQ28,FUNCALLOC!BQ39,FUNCALLOC!BQ71) -> 0 | BQ70: =SUM(FUNCALLOC!BR28,FUNCALLOC!BR39,FUNCALLOC!BR71) -> 0 | BR70: =SUM(FUNCALLOC!BS28,FUNCALLOC!BS39,FUNCALLOC!BS71) -> 0 | BS70: =SUM(FUNCALLOC!BT28,FUNCALLOC!BT39,FUNCALLOC!BT71) -> 0 | BT70: =SUM(FUNCALLOC!BU28,FUNCALLOC!BU39,FUNCALLOC!BU71) -> 0 | BU70: =SUM(FUNCALLOC!BV28,FUNCALLOC!BV39,FUNCALLOC!BV71) -> 0 | BV70: =SUM(FUNCALLOC!BW28,FUNCALLOC!BW39,FUNCALLOC!BW71) -> 0 | BW70: =SUM(FUNCALLOC!BX28,FUNCALLOC!BX39,FUNCALLOC!BX71) -> 0 | BX70: =SUM(FUNCALLOC!BY28,FUNCALLOC!BY39,FUNCALLOC!BY71) -> 0 | BY70: =SUM(FUNCALLOC!BZ28,FUNCALLOC!BZ39,FUNCALLOC!BZ71) -> 0
D71: =IF((D70=0)*OR($C70=0),0,D70/$C70) -> 0 | E71: 0.08671911206 | F71: 0.006163857088 | G71: 0.005147100471 | H71: 0.000225613608 | I71: 0.003551651383 | J71: 0.01552535296 | K71: 5.854549449e-05 | L71: 0.0007236600822 | M71: 0.003495638226 | N71: 0.04304541915 | O71: 0.07204972217 | P71: 0.000354703574 | Q71: 0.168325758 | R71: 0.003546141702 | S71: 0 | T71: 0 | U71: 0 | V71: 0 | W71: 0 | X71: 0 | Y71: 0 | Z71: 0 | AA71: 0 | AB71: 0 | AC71: 0.3696972672 | AD71: 0.02627749601 | AE71: 0.02194290201 | AF71: 0.06618703104 | AG71: 0 | AH71: 0 | AI71: 0 | AJ71: 0.0193382374 | AK71: 0.03658258134 | AL71: 0.0005260016437 | AM71: 0.005862086892 | AN71: 0.01908540948 | AO71: 0.0178110363 | AP71: 8.973743085e-05 | AQ71: 0.007667937261 | AR71: =IF((AR70=0)*OR($C70=0),0,AR70/$C70) -> 0 | AS71: 0 | AT71: 0 | AU71: 0 | AV71: 0 | AW71: 0 | AX71: 0 | AY71: 0 | AZ71: 0 | BA71: =IF((BA70=0)*OR($C70=0),0,BA70/$C70) -> 0 | BB71: 0 | BC71: 0 | BD71: 0 | BE71: 0 | BF71: 0 | BG71: 0 | BH71: 0 | BI71: 0 | BJ71: 0 | BK71: 0 | BL71: 0 | BM71: 0 | BN71: 0 | BO71: 0 | BP71: 0 | BQ71: 0 | BR71: 0 | BS71: 0 | BT71: 0 | BU71: 0 | BV71: 0 | BW71: 0 | BX71: 0 | BY71: 0
A73: RB.T | B73: Total Ratebase | C73: =SUM(D73:BA73) -> 4853248427 | D73: =+FUNCALLOC!E244 -> 0 | E73: =+FUNCALLOC!F244 -> 451887823.7 | F73: =+FUNCALLOC!G244 -> 48037132.63 | G73: =+FUNCALLOC!H244 -> 25350822.8 | H73: =+FUNCALLOC!I244 -> 1561083.12 | I73: =+FUNCALLOC!J244 -> 21921661.25 | J73: =+FUNCALLOC!K244 -> 74755893.8 | K73: =+FUNCALLOC!L244 -> 405092.5121 | L73: =+FUNCALLOC!M244 -> 3891100.134 | M73: =+FUNCALLOC!N244 -> 24187290.29 | N73: =+FUNCALLOC!O244 -> 203626425.3 | O73: =+FUNCALLOC!P244 -> 298872800.6 | P73: =+FUNCALLOC!Q244 -> 2449890.318 | Q73: =+FUNCALLOC!R244 -> 748251842.8 | R73: =+FUNCALLOC!S244 -> 24492728.18 | S73: =+FUNCALLOC!T244 -> 0 | T73: =+FUNCALLOC!U244 -> 0 | U73: =+FUNCALLOC!V244 -> 0 | V73: =+FUNCALLOC!W244 -> -115.962295 | W73: =+FUNCALLOC!X244 -> -135708.5465 | X73: =+FUNCALLOC!Y244 -> -10263908.91 | Y73: =+FUNCALLOC!Z244 -> -2218090.224 | Z73: =+FUNCALLOC!AA244 -> -9245198.315 | AA73: =+FUNCALLOC!AB244 -> 0 | AB73: =+FUNCALLOC!AC244 -> 0 | AC73: =+FUNCALLOC!AD244 -> 1926469143 | AD73: =+FUNCALLOC!AE244 -> 204789881.2 | AE73: =+FUNCALLOC!AF244 -> 108074560.4 | AF73: =+FUNCALLOC!AG244 -> 318696178.8 | AG73: =+FUNCALLOC!AH244 -> 0 | AH73: =+FUNCALLOC!AI244 -> 0 | AI73: =+FUNCALLOC!AJ244 -> 0 | AJ73: =+FUNCALLOC!AK244 -> 85764608.35 | AK73: =+FUNCALLOC!AL244 -> 162242850.6 | AL73: =+FUNCALLOC!AM244 -> 2332804.383 | AM73: =+FUNCALLOC!AN244 -> 16475278.48 | AN73: =+FUNCALLOC!AO244 -> 53639163.32 | AO73: =+FUNCALLOC!AP244 -> 83685141.5 | AP73: =+FUNCALLOC!AQ244 -> -116124.9255 | AQ73: =+FUNCALLOC!AR244 -> 29385469.75 | AR73: =+FUNCALLOC!AS244 -> -20606765 | AS73: =+FUNCALLOC!AT244 -> -67513639 | AT73: =+FUNCALLOC!AU244 -> 14191201.79 | AU73: =+FUNCALLOC!AV244 -> 17450805.91 | AV73: =+FUNCALLOC!AW244 -> 7081386.321 | AW73: =+FUNCALLOC!AX244 -> 3377916.914 | AX73: =+FUNCALLOC!AY244 -> 0 | AY73: =+FUNCALLOC!AZ244 -> 0 | AZ73: =+FUNCALLOC!BA244 -> 0 | BA73: =+FUNCALLOC!BB244 -> 0 | BB73: =+FUNCALLOC!BC244 -> 0 | BC73: =+FUNCALLOC!BD244 -> 0 | BD73: =+FUNCALLOC!BE244 -> 0 | BE73: =+FUNCALLOC!BF244 -> 0 | BF73: =+FUNCALLOC!BG244 -> 0 | BG73: =+FUNCALLOC!BH244 -> 0 | BH73: =+FUNCALLOC!BI244 -> 0 | BI73: =+FUNCALLOC!BJ244 -> 0 | BJ73: =+FUNCALLOC!BK244 -> 0 | BK73: =+FUNCALLOC!BL244 -> 0 | BL73: =+FUNCALLOC!BM244 -> 0 | BM73: =+FUNCALLOC!BN244 -> 0 | BN73: =+FUNCALLOC!BO244 -> 0 | BO73: =+FUNCALLOC!BP244 -> 0 | BP73: =+FUNCALLOC!BQ244 -> 0 | BQ73: =+FUNCALLOC!BR244 -> 0 | BR73: =+FUNCALLOC!BS244 -> 0 | BS73: =+FUNCALLOC!BT244 -> 0 | BT73: =+FUNCALLOC!BU244 -> 0 | BU73: =+FUNCALLOC!BV244 -> 0 | BV73: =+FUNCALLOC!BW244 -> 0 | BW73: =+FUNCALLOC!BX244 -> 0 | BX73: =+FUNCALLOC!BY244 -> 0 | BY73: =+FUNCALLOC!BZ244 -> 0
D74: =IF((D73=0)*OR($C73=0),0,D73/$C73) -> 0 | E74: 0.09311038379 | F74: 0.009897934003 | G74: 0.0052234752 | H74: 0.000321657369 | I74: 0.004516904826 | J74: 0.01540326957 | K74: 8.346832398e-05 | L74: 0.0008017516911 | M74: 0.004983732164 | N74: 0.04195672823 | O74: 0.06158201152 | P74: 0.0005047939241 | Q74: 0.154175467 | R74: 0.005046666897 | S74: 0 | T74: 0 | U74: 0 | V74: -2.389374803e-08 | W74: -2.796241498e-05 | X74: -0.002114853395 | Y74: -0.00045703208 | Z74: -0.001904950561 | AA74: 0 | AB74: 0 | AC74: 0.3969442677 | AD74: 0.04219645549 | AE74: 0.02226849954 | AF74: 0.06566657026 | AG74: 0 | AH74: 0 | AI74: 0 | AJ74: 0.01767158835 | AK74: 0.0334297436 | AL74: 0.0004806686527 | AM74: 0.003394690944 | AN74: 0.01105221876 | AO74: 0.01724311927 | AP74: -2.392725765e-05 | AQ74: 0.006054804363 | AR74: =IF((AR73=0)*OR($C73=0),0,AR73/$C73) -> -0.004245973663 | AS74: -0.01391102063 | AT74: 0.002924062513 | AU74: 0.003595695989 | AV74: 0.001459102378 | AW74: 0.0006960115404 | AX74: 0 | AY74: 0 | AZ74: 0 | BA74: =IF((BA73=0)*OR($C73=0),0,BA73/$C73) -> 0 | BB74: 0 | BC74: 0 | BD74: 0 | BE74: 0 | BF74: 0 | BG74: 0 | BH74: 0 | BI74: 0 | BJ74: 0 | BK74: 0 | BL74: 0 | BM74: 0 | BN74: 0 | BO74: 0 | BP74: 0 | BQ74: 0 | BR74: 0 | BS74: 0 | BT74: 0 | BU74: 0 | BV74: 0 | BW74: 0 | BX74: 0 | BY74: 0
A76: REVFAC1.T | B76: REVFAC1 = (OME.T+DAE.T+RRB.T) | C76: =SUM(D76:BA76) -> 1863568443 | D76: =+FUNCALLOC!E408+FUNCALLOC!E569+FUNCALLOC!E244*ROR -> 4902 | E76: =+FUNCALLOC!F408+FUNCALLOC!F569+FUNCALLOC!F244*ROR -> 251642821.3 | F76: =+FUNCALLOC!G408+FUNCALLOC!G569+FUNCALLOC!G244*ROR -> 6883781.735 | G76: =+FUNCALLOC!H408+FUNCALLOC!H569+FUNCALLOC!H244*ROR -> 4596805.875 | H76: =+FUNCALLOC!I408+FUNCALLOC!I569+FUNCALLOC!I244*ROR -> 189865.6107 | I76: =+FUNCALLOC!J408+FUNCALLOC!J569+FUNCALLOC!J244*ROR -> 2781950.191 | J76: =+FUNCALLOC!K408+FUNCALLOC!K569+FUNCALLOC!K244*ROR -> 14961727.83 | K76: =+FUNCALLOC!L408+FUNCALLOC!L569+FUNCALLOC!L244*ROR -> 49269.08516 | L76: =+FUNCALLOC!M408+FUNCALLOC!M569+FUNCALLOC!M244*ROR -> 521941.5149 | M76: =+FUNCALLOC!N408+FUNCALLOC!N569+FUNCALLOC!N244*ROR -> 3337144.843 | N76: =+FUNCALLOC!O408+FUNCALLOC!O569+FUNCALLOC!O244*ROR -> 33744817.91 | O76: =+FUNCALLOC!P408+FUNCALLOC!P569+FUNCALLOC!P244*ROR -> 78656193.2 | P76: =+FUNCALLOC!Q408+FUNCALLOC!Q569+FUNCALLOC!Q244*ROR -> 463552.6662 | Q76: =+FUNCALLOC!R408+FUNCALLOC!R569+FUNCALLOC!R244*ROR -> 127700925.9 | R76: =+FUNCALLOC!S408+FUNCALLOC!S569+FUNCALLOC!S244*ROR -> 3371170.778 | S76: =+FUNCALLOC!T408+FUNCALLOC!T569+FUNCALLOC!T244*ROR -> 0 | T76: =+FUNCALLOC!U408+FUNCALLOC!U569+FUNCALLOC!U244*ROR -> 0 | U76: =+FUNCALLOC!V408+FUNCALLOC!V569+FUNCALLOC!V244*ROR -> 0 | V76: =+FUNCALLOC!W408+FUNCALLOC!W569+FUNCALLOC!W244*ROR -> -9.045059012 | W76: =+FUNCALLOC!X408+FUNCALLOC!X569+FUNCALLOC!X244*ROR -> -10585.26663 | X76: =+FUNCALLOC!Y408+FUNCALLOC!Y569+FUNCALLOC!Y244*ROR -> -800584.8951 | Y76: =+FUNCALLOC!Z408+FUNCALLOC!Z569+FUNCALLOC!Z244*ROR -> -173011.0374 | Z76: =+FUNCALLOC!AA408+FUNCALLOC!AA569+FUNCALLOC!AA244*ROR -> -721125.4686 | AA76: =+FUNCALLOC!AB408+FUNCALLOC!AB569+FUNCALLOC!AB244*ROR -> 471655.295 | AB76: =+FUNCALLOC!AC408+FUNCALLOC!AC569+FUNCALLOC!AC244*ROR -> 0 | AC76: =+FUNCALLOC!AD408+FUNCALLOC!AD569+FUNCALLOC!AD244*ROR -> 1072793080 | AD76: =+FUNCALLOC!AE408+FUNCALLOC!AE569+FUNCALLOC!AE244*ROR -> 29346648.45 | AE76: =+FUNCALLOC!AF408+FUNCALLOC!AF569+FUNCALLOC!AF244*ROR -> 19596909.26 | AF76: =+FUNCALLOC!AG408+FUNCALLOC!AG569+FUNCALLOC!AG244*ROR -> 63784208.12 | AG76: =+FUNCALLOC!AH408+FUNCALLOC!AH569+FUNCALLOC!AH244*ROR -> 0 | AH76: =+FUNCALLOC!AI408+FUNCALLOC!AI569+FUNCALLOC!AI244*ROR -> 20898 | AI76: =+FUNCALLOC!AJ408+FUNCALLOC!AJ569+FUNCALLOC!AJ244*ROR -> 0 | AJ76: =+FUNCALLOC!AK408+FUNCALLOC!AK569+FUNCALLOC!AK244*ROR -> 12628668.96 | AK76: =+FUNCALLOC!AL408+FUNCALLOC!AL569+FUNCALLOC!AL244*ROR -> 23889938.87 | AL76: =+FUNCALLOC!AM408+FUNCALLOC!AM569+FUNCALLOC!AM244*ROR -> 343500.8316 | AM76: =+FUNCALLOC!AN408+FUNCALLOC!AN569+FUNCALLOC!AN244*ROR -> 3054533.809 | AN76: =+FUNCALLOC!AO408+FUNCALLOC!AO569+FUNCALLOC!AO244*ROR -> 9944756.806 | AO76: =+FUNCALLOC!AP408+FUNCALLOC!AP569+FUNCALLOC!AP244*ROR -> 22950131.39 | AP76: =+FUNCALLOC!AQ408+FUNCALLOC!AQ569+FUNCALLOC!AQ244*ROR -> 18029.36397 | AQ76: =+FUNCALLOC!AR408+FUNCALLOC!AR569+FUNCALLOC!AR244*ROR -> 9427772.899 | AR76: =+FUNCALLOC!AS408+FUNCALLOC!AS569+FUNCALLOC!AS244*ROR -> -1607327.67 | AS76: =+FUNCALLOC!AT408+FUNCALLOC!AT569+FUNCALLOC!AT244*ROR -> -5266063.842 | AT76: =+FUNCALLOC!AU408+FUNCALLOC!AU569+FUNCALLOC!AU244*ROR -> 26282714.61 | AU76: =+FUNCALLOC!AV408+FUNCALLOC!AV569+FUNCALLOC!AV244*ROR -> 32319641.28 | AV76: =+FUNCALLOC!AW408+FUNCALLOC!AW569+FUNCALLOC!AW244*ROR -> 13115031.3 | AW76: =+FUNCALLOC!AX408+FUNCALLOC!AX569+FUNCALLOC!AX244*ROR -> 3167986.694 | AX76: =+FUNCALLOC!AY408+FUNCALLOC!AY569+FUNCALLOC!AY244*ROR -> 84174.05772 | AY76: =+FUNCALLOC!AZ408+FUNCALLOC!AZ569+FUNCALLOC!AZ244*ROR -> 0 | AZ76: =+FUNCALLOC!BA408+FUNCALLOC!BA569+FUNCALLOC!BA244*ROR -> 0 | BA76: =+FUNCALLOC!BB408+FUNCALLOC!BB569+FUNCALLOC!BB244*ROR -> 0 | BB76: =+FUNCALLOC!BC408+FUNCALLOC!BC569+FUNCALLOC!BC244*ROR -> 0 | BC76: =+FUNCALLOC!BD408+FUNCALLOC!BD569+FUNCALLOC!BD244*ROR -> 0 | BD76: =+FUNCALLOC!BE408+FUNCALLOC!BE569+FUNCALLOC!BE244*ROR -> 0 | BE76: =+FUNCALLOC!BF408+FUNCALLOC!BF569+FUNCALLOC!BF244*ROR -> 0 | BF76: =+FUNCALLOC!BG408+FUNCALLOC!BG569+FUNCALLOC!BG244*ROR -> 0 | BG76: =+FUNCALLOC!BH408+FUNCALLOC!BH569+FUNCALLOC!BH244*ROR -> 0 | BH76: =+FUNCALLOC!BI408+FUNCALLOC!BI569+FUNCALLOC!BI244*ROR -> 0 | BI76: =+FUNCALLOC!BJ408+FUNCALLOC!BJ569+FUNCALLOC!BJ244*ROR -> 0 | BJ76: =+FUNCALLOC!BK408+FUNCALLOC!BK569+FUNCALLOC!BK244*ROR -> 0 | BK76: =+FUNCALLOC!BL408+FUNCALLOC!BL569+FUNCALLOC!BL244*ROR -> 0 | BL76: =+FUNCALLOC!BM408+FUNCALLOC!BM569+FUNCALLOC!BM244*ROR -> 0 | BM76: =+FUNCALLOC!BN408+FUNCALLOC!BN569+FUNCALLOC!BN244*ROR -> 0 | BN76: =+FUNCALLOC!BO408+FUNCALLOC!BO569+FUNCALLOC!BO244*ROR -> 0 | BO76: =+FUNCALLOC!BP408+FUNCALLOC!BP569+FUNCALLOC!BP244*ROR -> 0 | BP76: =+FUNCALLOC!BQ408+FUNCALLOC!BQ569+FUNCALLOC!BQ244*ROR -> 0 | BQ76: =+FUNCALLOC!BR408+FUNCALLOC!BR569+FUNCALLOC!BR244*ROR -> 0 | BR76: =+FUNCALLOC!BS408+FUNCALLOC!BS569+FUNCALLOC!BS244*ROR -> 0 | BS76: =+FUNCALLOC!BT408+FUNCALLOC!BT569+FUNCALLOC!BT244*ROR -> 0 | BT76: =+FUNCALLOC!BU408+FUNCALLOC!BU569+FUNCALLOC!BU244*ROR -> 0 | BU76: =+FUNCALLOC!BV408+FUNCALLOC!BV569+FUNCALLOC!BV244*ROR -> 0 | BV76: =+FUNCALLOC!BW408+FUNCALLOC!BW569+FUNCALLOC!BW244*ROR -> 0 | BW76: =+FUNCALLOC!BX408+FUNCALLOC!BX569+FUNCALLOC!BX244*ROR -> 0 | BX76: =+FUNCALLOC!BY408+FUNCALLOC!BY569+FUNCALLOC!BY244*ROR -> 0 | BY76: =+FUNCALLOC!BZ408+FUNCALLOC!BZ569+FUNCALLOC!BZ244*ROR -> 0
D77: =IF((D76=0)*OR($C76=0),0,D76/$C76) -> 2.63043733e-06 | E77: 0.1350327766 | F77: 0.003693871164 | G77: 0.00246666866 | H77: 0.0001018828213 | I77: 0.001492808166 | J77: 0.008028536802 | K77: 2.643803362e-05 | L77: 0.0002800763861 | M77: 0.00179072835 | N77: 0.0181076354 | O77: 0.04220730045 | P77: 0.0002487446425 | Q77: 0.06852494542 | R77: 0.001808986834 | S77: 0 | T77: 0 | U77: 0 | V77: -4.85362319e-09 | W77: -5.680106179e-06 | X77: -0.0004295977956 | Y77: -9.283857433e-05 | Z77: -0.0003869594761 | AA77: 0.000253092553 | AB77: 0 | AC77: 0.5756660476 | AD77: 0.01574755602 | AE77: 0.01051579797 | AF77: 0.03422692005 | AG77: 0 | AH77: 1.121396967e-05 | AI77: 0 | AJ77: 0.006776605927 | AK77: 0.0128194588 | AL77: 0.0001843242371 | AM77: 0.001639077878 | AN77: 0.005336405455 | AO77: 0.01231515347 | AP77: 9.674645454e-06 | AQ77: 0.005058989345 | AR77: =IF((AR76=0)*OR($C76=0),0,AR76/$C76) -> -0.0008624999397 | AS77: -0.00282579578 | AT77: 0.01410343403 | AU77: 0.0173428786 | AV77: 0.007037590354 | AW77: 0.001699957254 | AX77: 4.516821372e-05 | AY77: 0 | AZ77: 0 | BA77: =IF((BA76=0)*OR($C76=0),0,BA76/$C76) -> 0 | BB77: 0 | BC77: 0 | BD77: 0 | BE77: 0 | BF77: 0 | BG77: 0 | BH77: 0 | BI77: 0 | BJ77: 0 | BK77: 0 | BL77: 0 | BM77: 0 | BN77: 0 | BO77: 0 | BP77: 0 | BQ77: 0 | BR77: 0 | BS77: 0 | BT77: 0 | BU77: 0 | BV77: 0 | BW77: 0 | BX77: 0 | BY77: 0
A79: SW.T | B79: Salary & Wages - Total | C79: =SUM(D79:BA79) -> 86018658 | D79: =SUM(FUNCALLOC!E530) -> 0 | E79: =SUM(FUNCALLOC!F530) -> 6385388.534 | F79: =SUM(FUNCALLOC!G530) -> 464763.453 | G79: =SUM(FUNCALLOC!H530) -> 388098.5808 | H79: =SUM(FUNCALLOC!I530) -> 15558.50512 | I79: =SUM(FUNCALLOC!J530) -> 244924.8816 | J79: =SUM(FUNCALLOC!K530) -> 1070641.464 | K79: =SUM(FUNCALLOC!L530) -> 4037.346789 | L79: =SUM(FUNCALLOC!M530) -> 49904.21099 | M79: =SUM(FUNCALLOC!N530) -> 241062.1669 | N79: =SUM(FUNCALLOC!O530) -> 2968448.491 | O79: =SUM(FUNCALLOC!P530) -> 4968609.745 | P79: =SUM(FUNCALLOC!Q530) -> 24460.6583 | Q79: =SUM(FUNCALLOC!R530) -> 11607886.56 | R79: =SUM(FUNCALLOC!S530) -> 244544.9294 | S79: =SUM(FUNCALLOC!T530) -> 0 | T79: =SUM(FUNCALLOC!U530) -> 0 | U79: =SUM(FUNCALLOC!V530) -> 0 | V79: =SUM(FUNCALLOC!W530) -> 0 | W79: =SUM(FUNCALLOC!X530) -> 0 | X79: =SUM(FUNCALLOC!Y530) -> 0 | Y79: =SUM(FUNCALLOC!Z530) -> 0 | Z79: =SUM(FUNCALLOC!AA530) -> 0 | AA79: =SUM(FUNCALLOC!AB530) -> 0 | AB79: =SUM(FUNCALLOC!AC530) -> 0 | AC79: =SUM(FUNCALLOC!AD530) -> 27221919.54 | AD79: =SUM(FUNCALLOC!AE530) -> 1981359.984 | AE79: =SUM(FUNCALLOC!AF530) -> 1654525.529 | AF79: =SUM(FUNCALLOC!AG530) -> 4564313.609 | AG79: =SUM(FUNCALLOC!AH530) -> 0 | AH79: =SUM(FUNCALLOC!AI530) -> 0 | AI79: =SUM(FUNCALLOC!AJ530) -> 0 | AJ79: =SUM(FUNCALLOC!AK530) -> 1333581.198 | AK79: =SUM(FUNCALLOC!AL530) -> 2522765.733 | AL79: =SUM(FUNCALLOC!AM530) -> 36273.51799 | AM79: =SUM(FUNCALLOC!AN530) -> 404254.4674 | AN79: =SUM(FUNCALLOC!AO530) -> 1316145.971 | AO79: =SUM(FUNCALLOC!AP530) -> 1228264.119 | AP79: =SUM(FUNCALLOC!AQ530) -> 6188.369088 | AQ79: =SUM(FUNCALLOC!AR530) -> 644367.4353 | AR79: =SUM(FUNCALLOC!AS530) -> 0 | AS79: =SUM(FUNCALLOC!AT530) -> 0 | AT79: =SUM(FUNCALLOC!AU530) -> 4862734.891 | AU79: =SUM(FUNCALLOC!AV530) -> 5979665.71 | AV79: =SUM(FUNCALLOC!AW530) -> 2426496.701 | AW79: =SUM(FUNCALLOC!AX530) -> 1157471.698 | AX79: =SUM(FUNCALLOC!AY530) -> 0 | AY79: =SUM(FUNCALLOC!AZ530) -> 0 | AZ79: =SUM(FUNCALLOC!BA530) -> 0 | BA79: =SUM(FUNCALLOC!BB530) -> 0 | BB79: =SUM(FUNCALLOC!BC530) -> 0 | BC79: =SUM(FUNCALLOC!BD530) -> 0 | BD79: =SUM(FUNCALLOC!BE530) -> 0 | BE79: =SUM(FUNCALLOC!BF530) -> 0 | BF79: =SUM(FUNCALLOC!BG530) -> 0 | BG79: =SUM(FUNCALLOC!BH530) -> 0 | BH79: =SUM(FUNCALLOC!BI530) -> 0 | BI79: =SUM(FUNCALLOC!BJ530) -> 0 | BJ79: =SUM(FUNCALLOC!BK530) -> 0 | BK79: =SUM(FUNCALLOC!BL530) -> 0 | BL79: =SUM(FUNCALLOC!BM530) -> 0 | BM79: =SUM(FUNCALLOC!BN530) -> 0 | BN79: =SUM(FUNCALLOC!BO530) -> 0 | BO79: =SUM(FUNCALLOC!BP530) -> 0 | BP79: =SUM(FUNCALLOC!BQ530) -> 0 | BQ79: =SUM(FUNCALLOC!BR530) -> 0 | BR79: =SUM(FUNCALLOC!BS530) -> 0 | BS79: =SUM(FUNCALLOC!BT530) -> 0 | BT79: =SUM(FUNCALLOC!BU530) -> 0 | BU79: =SUM(FUNCALLOC!BV530) -> 0 | BV79: =SUM(FUNCALLOC!BW530) -> 0 | BW79: =SUM(FUNCALLOC!BX530) -> 0 | BX79: =SUM(FUNCALLOC!BY530) -> 0 | BY79: =SUM(FUNCALLOC!BZ530) -> 0
D80: =IF((D79=0)*OR($C79=0),0,D79/$C79) -> 0 | E80: 0.07423259886 | F80: 0.005403053987 | G80: 0.004511795346 | H80: 0.0001808736091 | I80: 0.002847345998 | J80: 0.01244661901 | K80: 4.693571003e-05 | L80: 0.0005801556563 | M80: 0.002802440454 | N80: 0.03450935599 | O80: 0.05776200025 | P80: 0.0002843645654 | Q80: 0.1349461481 | R80: 0.002842928907 | S80: 0 | T80: 0 | U80: 0 | V80: 0 | W80: 0 | X80: 0 | Y80: 0 | Z80: 0 | AA80: 0 | AB80: 0 | AC80: 0.3164652899 | AD80: 0.02303407226 | AE80: 0.01923449595 | AF80: 0.0530619021 | AG80: 0 | AH80: 0 | AI80: 0 | AJ80: 0.0155033946 | AK80: 0.02932812243 | AL80: 0.000421693605 | AM80: 0.004699613744 | AN80: 0.01530070338 | AO80: 0.01427904303 | AP80: 7.194217198e-05 | AQ80: 0.007491019394 | AR80: =IF((AR79=0)*OR($C79=0),0,AR79/$C79) -> 0 | AS80: 0 | AT80: 0.05653116433 | AU80: 0.06951591491 | AV80: 0.02820895789 | AW80: 0.01345605389 | AX80: 0 | AY80: 0 | AZ80: 0 | BA80: =IF((BA79=0)*OR($C79=0),0,BA79/$C79) -> 0 | BB80: 0 | BC80: 0 | BD80: 0 | BE80: 0 | BF80: 0 | BG80: 0 | BH80: 0 | BI80: 0 | BJ80: 0 | BK80: 0 | BL80: 0 | BM80: 0 | BN80: 0 | BO80: 0 | BP80: 0 | BQ80: 0 | BR80: 0 | BS80: 0 | BT80: 0 | BU80: 0 | BV80: 0 | BW80: 0 | BX80: 0 | BY80: 0
A82: SWPTD.T | B82: Salary & Wages - PTD Subtotal | C82: =SUM(D82:BA82) -> 48634586 | D82: =SUM(FUNCALLOC!E422,FUNCALLOC!E455,FUNCALLOC!E468) -> 0 | E82: =SUM(FUNCALLOC!F422,FUNCALLOC!F455,FUNCALLOC!F468) -> 4404539.91 | F82: =SUM(FUNCALLOC!G422,FUNCALLOC!G455,FUNCALLOC!G468) -> 323967.8713 | G82: =SUM(FUNCALLOC!H422,FUNCALLOC!H455,FUNCALLOC!H468) -> 270527.8787 | H82: =SUM(FUNCALLOC!I422,FUNCALLOC!I455,FUNCALLOC!I468) -> 10405.01134 | I82: =SUM(FUNCALLOC!J422,FUNCALLOC!J455,FUNCALLOC!J468) -> 163797.6239 | J82: =SUM(FUNCALLOC!K422,FUNCALLOC!K455,FUNCALLOC!K468) -> 716009.4419 | K82: =SUM(FUNCALLOC!L422,FUNCALLOC!L455,FUNCALLOC!L468) -> 2700.043403 | L82: =SUM(FUNCALLOC!M422,FUNCALLOC!M455,FUNCALLOC!M468) -> 33374.27838 | M82: =SUM(FUNCALLOC!N422,FUNCALLOC!N455,FUNCALLOC!N468) -> 161214.3686 | N82: =SUM(FUNCALLOC!O422,FUNCALLOC!O455,FUNCALLOC!O468) -> 1985199.732 | O82: =SUM(FUNCALLOC!P422,FUNCALLOC!P455,FUNCALLOC!P468) -> 3322841.129 | P82: =SUM(FUNCALLOC!Q422,FUNCALLOC!Q455,FUNCALLOC!Q468) -> 16358.47563 | Q82: =SUM(FUNCALLOC!R422,FUNCALLOC!R455,FUNCALLOC!R468) -> 7762968.891 | R82: =SUM(FUNCALLOC!S422,FUNCALLOC!S455,FUNCALLOC!S468) -> 163543.5244 | S82: =SUM(FUNCALLOC!T422,FUNCALLOC!T455,FUNCALLOC!T468) -> 0 | T82: =SUM(FUNCALLOC!U422,FUNCALLOC!U455,FUNCALLOC!U468) -> 0 | U82: =SUM(FUNCALLOC!V422,FUNCALLOC!V455,FUNCALLOC!V468) -> 0 | V82: =SUM(FUNCALLOC!W422,FUNCALLOC!W455,FUNCALLOC!W468) -> 0 | W82: =SUM(FUNCALLOC!X422,FUNCALLOC!X455,FUNCALLOC!X468) -> 0 | X82: =SUM(FUNCALLOC!Y422,FUNCALLOC!Y455,FUNCALLOC!Y468) -> 0 | Y82: =SUM(FUNCALLOC!Z422,FUNCALLOC!Z455,FUNCALLOC!Z468) -> 0 | Z82: =SUM(FUNCALLOC!AA422,FUNCALLOC!AA455,FUNCALLOC!AA468) -> 0 | AA82: =SUM(FUNCALLOC!AB422,FUNCALLOC!AB455,FUNCALLOC!AB468) -> 0 | AB82: =SUM(FUNCALLOC!AC422,FUNCALLOC!AC455,FUNCALLOC!AC468) -> 0 | AC82: =SUM(FUNCALLOC!AD422,FUNCALLOC!AD455,FUNCALLOC!AD468) -> 18777249.09 | AD82: =SUM(FUNCALLOC!AE422,FUNCALLOC!AE455,FUNCALLOC!AE468) -> 1381126.188 | AE82: =SUM(FUNCALLOC!AF422,FUNCALLOC!AF455,FUNCALLOC!AF468) -> 1153303.062 | AF82: =SUM(FUNCALLOC!AG422,FUNCALLOC!AG455,FUNCALLOC!AG468) -> 3052461.305 | AG82: =SUM(FUNCALLOC!AH422,FUNCALLOC!AH455,FUNCALLOC!AH468) -> 0 | AH82: =SUM(FUNCALLOC!AI422,FUNCALLOC!AI455,FUNCALLOC!AI468) -> 0 | AI82: =SUM(FUNCALLOC!AJ422,FUNCALLOC!AJ455,FUNCALLOC!AJ468) -> 0 | AJ82: =SUM(FUNCALLOC!AK422,FUNCALLOC!AK455,FUNCALLOC!AK468) -> 891854.8008 | AK82: =SUM(FUNCALLOC!AL422,FUNCALLOC!AL455,FUNCALLOC!AL468) -> 1687141.91 | AL82: =SUM(FUNCALLOC!AM422,FUNCALLOC!AM455,FUNCALLOC!AM468) -> 24258.52374 | AM82: =SUM(FUNCALLOC!AN422,FUNCALLOC!AN455,FUNCALLOC!AN468) -> 270351.9576 | AN82: =SUM(FUNCALLOC!AO422,FUNCALLOC!AO455,FUNCALLOC!AO468) -> 880194.7001 | AO82: =SUM(FUNCALLOC!AP422,FUNCALLOC!AP455,FUNCALLOC!AP468) -> 821422.2373 | AP82: =SUM(FUNCALLOC!AQ422,FUNCALLOC!AQ455,FUNCALLOC!AQ468) -> 4138.575654 | AQ82: =SUM(FUNCALLOC!AR422,FUNCALLOC!AR455,FUNCALLOC!AR468) -> 353635.4692 | AR82: =SUM(FUNCALLOC!AS422,FUNCALLOC!AS455,FUNCALLOC!AS468) -> 0 | AS82: =SUM(FUNCALLOC!AT422,FUNCALLOC!AT455,FUNCALLOC!AT468) -> 0 | AT82: =SUM(FUNCALLOC!AU422,FUNCALLOC!AU455,FUNCALLOC!AU468) -> 0 | AU82: =SUM(FUNCALLOC!AV422,FUNCALLOC!AV455,FUNCALLOC!AV468) -> 0 | AV82: =SUM(FUNCALLOC!AW422,FUNCALLOC!AW455,FUNCALLOC!AW468) -> 0 | AW82: =SUM(FUNCALLOC!AX422,FUNCALLOC!AX455,FUNCALLOC!AX468) -> 0 | AX82: =SUM(FUNCALLOC!AY422,FUNCALLOC!AY455,FUNCALLOC!AY468) -> 0 | AY82: =SUM(FUNCALLOC!AZ422,FUNCALLOC!AZ455,FUNCALLOC!AZ468) -> 0 | AZ82: =SUM(FUNCALLOC!BA422,FUNCALLOC!BA455,FUNCALLOC!BA468) -> 0 | BA82: =SUM(FUNCALLOC!BB422,FUNCALLOC!BB455,FUNCALLOC!BB468) -> 0 | BB82: =SUM(FUNCALLOC!BC422,FUNCALLOC!BC455,FUNCALLOC!BC468) -> 0 | BC82: =SUM(FUNCALLOC!BD422,FUNCALLOC!BD455,FUNCALLOC!BD468) -> 0 | BD82: =SUM(FUNCALLOC!BE422,FUNCALLOC!BE455,FUNCALLOC!BE468) -> 0 | BE82: =SUM(FUNCALLOC!BF422,FUNCALLOC!BF455,FUNCALLOC!BF468) -> 0 | BF82: =SUM(FUNCALLOC!BG422,FUNCALLOC!BG455,FUNCALLOC!BG468) -> 0 | BG82: =SUM(FUNCALLOC!BH422,FUNCALLOC!BH455,FUNCALLOC!BH468) -> 0 | BH82: =SUM(FUNCALLOC!BI422,FUNCALLOC!BI455,FUNCALLOC!BI468) -> 0 | BI82: =SUM(FUNCALLOC!BJ422,FUNCALLOC!BJ455,FUNCALLOC!BJ468) -> 0 | BJ82: =SUM(FUNCALLOC!BK422,FUNCALLOC!BK455,FUNCALLOC!BK468) -> 0 | BK82: =SUM(FUNCALLOC!BL422,FUNCALLOC!BL455,FUNCALLOC!BL468) -> 0 | BL82: =SUM(FUNCALLOC!BM422,FUNCALLOC!BM455,FUNCALLOC!BM468) -> 0 | BM82: =SUM(FUNCALLOC!BN422,FUNCALLOC!BN455,FUNCALLOC!BN468) -> 0 | BN82: =SUM(FUNCALLOC!BO422,FUNCALLOC!BO455,FUNCALLOC!BO468) -> 0 | BO82: =SUM(FUNCALLOC!BP422,FUNCALLOC!BP455,FUNCALLOC!BP468) -> 0 | BP82: =SUM(FUNCALLOC!BQ422,FUNCALLOC!BQ455,FUNCALLOC!BQ468) -> 0 | BQ82: =SUM(FUNCALLOC!BR422,FUNCALLOC!BR455,FUNCALLOC!BR468) -> 0 | BR82: =SUM(FUNCALLOC!BS422,FUNCALLOC!BS455,FUNCALLOC!BS468) -> 0 | BS82: =SUM(FUNCALLOC!BT422,FUNCALLOC!BT455,FUNCALLOC!BT468) -> 0 | BT82: =SUM(FUNCALLOC!BU422,FUNCALLOC!BU455,FUNCALLOC!BU468) -> 0 | BU82: =SUM(FUNCALLOC!BV422,FUNCALLOC!BV455,FUNCALLOC!BV468) -> 0 | BV82: =SUM(FUNCALLOC!BW422,FUNCALLOC!BW455,FUNCALLOC!BW468) -> 0 | BW82: =SUM(FUNCALLOC!BX422,FUNCALLOC!BX455,FUNCALLOC!BX468) -> 0 | BX82: =SUM(FUNCALLOC!BY422,FUNCALLOC!BY455,FUNCALLOC!BY468) -> 0 | BY82: =SUM(FUNCALLOC!BZ422,FUNCALLOC!BZ455,FUNCALLOC!BZ468) -> 0
D83: =IF((D82=0)*OR($C82=0),0,D82/$C82) -> 0 | E83: 0.09056394373 | F83: 0.006661265118 | G83: 0.005562458756 | H83: 0.000213942632 | I83: 0.003367924709 | J83: 0.01472222755 | K83: 5.551694021e-05 | L83: 0.0006862251974 | M83: 0.003314809108 | N83: 0.04081868266 | O83: 0.06832259514 | P83: 0.0003363547833 | Q83: 0.1596182785 | R83: 0.003362700043 | S83: 0 | T83: 0 | U83: 0 | V83: 0 | W83: 0 | X83: 0 | Y83: 0 | Z83: 0 | AA83: 0 | AB83: 0 | AC83: 0.3860883917 | AD83: 0.02839802498 | AE83: 0.02371363996 | AF83: 0.06276318061 | AG83: 0 | AH83: 0 | AI83: 0 | AJ83: 0.01833787175 | AK83: 0.034690167 | AL83: 0.000498791616 | AM83: 0.005558841553 | AN83: 0.0180981226 | AO83: 0.01688967266 | AP83: 8.509531991e-05 | AQ83: 0.007271275409 | AR83: =IF((AR82=0)*OR($C82=0),0,AR82/$C82) -> 0 | AS83: 0 | AT83: 0 | AU83: 0 | AV83: 0 | AW83: 0 | AX83: 0 | AY83: 0 | AZ83: 0 | BA83: =IF((BA82=0)*OR($C82=0),0,BA82/$C82) -> 0 | BB83: 0 | BC83: 0 | BD83: 0 | BE83: 0 | BF83: 0 | BG83: 0 | BH83: 0 | BI83: 0 | BJ83: 0 | BK83: 0 | BL83: 0 | BM83: 0 | BN83: 0 | BO83: 0 | BP83: 0 | BQ83: 0 | BR83: 0 | BS83: 0 | BT83: 0 | BU83: 0 | BV83: 0 | BW83: 0 | BX83: 0 | BY83: 0
A85: TDP.T | B85: Total Transmission & Distribution Plant | C85: =SUM(D85:BA85) -> 3881485958 | D85: =SUM(FUNCALLOC!E39,FUNCALLOC!E71) -> 0 | E85: =SUM(FUNCALLOC!F39,FUNCALLOC!F71) -> 0 | F85: =SUM(FUNCALLOC!G39,FUNCALLOC!G71) -> 44013329 | G85: =SUM(FUNCALLOC!H39,FUNCALLOC!H71) -> 36753127.66 | H85: =SUM(FUNCALLOC!I39,FUNCALLOC!I71) -> 1611005.222 | I85: =SUM(FUNCALLOC!J39,FUNCALLOC!J71) -> 25360743.86 | J85: =SUM(FUNCALLOC!K39,FUNCALLOC!K71) -> 110859557.2 | K85: =SUM(FUNCALLOC!L39,FUNCALLOC!L71) -> 418047.0237 | L85: =SUM(FUNCALLOC!M39,FUNCALLOC!M71) -> 5167330.914 | M85: =SUM(FUNCALLOC!N39,FUNCALLOC!N71) -> 24960779.12 | N85: =SUM(FUNCALLOC!O39,FUNCALLOC!O71) -> 307367962.6 | O85: =SUM(FUNCALLOC!P39,FUNCALLOC!P71) -> 514474635.1 | P85: =SUM(FUNCALLOC!Q39,FUNCALLOC!Q71) -> 2532778.563 | Q85: =SUM(FUNCALLOC!R39,FUNCALLOC!R71) -> 1201938471 | R85: =SUM(FUNCALLOC!S39,FUNCALLOC!S71) -> 25321401.71 | S85: =SUM(FUNCALLOC!T39,FUNCALLOC!T71) -> 0 | T85: =SUM(FUNCALLOC!U39,FUNCALLOC!U71) -> 0 | U85: =SUM(FUNCALLOC!V39,FUNCALLOC!V71) -> 0 | V85: =SUM(FUNCALLOC!W39,FUNCALLOC!W71) -> 0 | W85: =SUM(FUNCALLOC!X39,FUNCALLOC!X71) -> 0 | X85: =SUM(FUNCALLOC!Y39,FUNCALLOC!Y71) -> 0 | Y85: =SUM(FUNCALLOC!Z39,FUNCALLOC!Z71) -> 0 | Z85: =SUM(FUNCALLOC!AA39,FUNCALLOC!AA71) -> 0 | AA85: =SUM(FUNCALLOC!AB39,FUNCALLOC!AB71) -> 0 | AB85: =SUM(FUNCALLOC!AC39,FUNCALLOC!AC71) -> 0 | AC85: =SUM(FUNCALLOC!AD39,FUNCALLOC!AD71) -> 0 | AD85: =SUM(FUNCALLOC!AE39,FUNCALLOC!AE71) -> 187635771 | AE85: =SUM(FUNCALLOC!AF39,FUNCALLOC!AF71) -> 156684386.3 | AF85: =SUM(FUNCALLOC!AG39,FUNCALLOC!AG71) -> 472611796.7 | AG85: =SUM(FUNCALLOC!AH39,FUNCALLOC!AH71) -> 0 | AH85: =SUM(FUNCALLOC!AI39,FUNCALLOC!AI71) -> 0 | AI85: =SUM(FUNCALLOC!AJ39,FUNCALLOC!AJ71) -> 0 | AJ85: =SUM(FUNCALLOC!AK39,FUNCALLOC!AK71) -> 138085648.8 | AK85: =SUM(FUNCALLOC!AL39,FUNCALLOC!AL71) -> 261219746.9 | AL85: =SUM(FUNCALLOC!AM39,FUNCALLOC!AM71) -> 3755940.975 | AM85: =SUM(FUNCALLOC!AN39,FUNCALLOC!AN71) -> 41858523.86 | AN85: =SUM(FUNCALLOC!AO39,FUNCALLOC!AO71) -> 136280318.4 | AO85: =SUM(FUNCALLOC!AP39,FUNCALLOC!AP71) -> 127180593.2 | AP85: =SUM(FUNCALLOC!AQ39,FUNCALLOC!AQ71) -> 640774.6012 | AQ85: =SUM(FUNCALLOC!AR39,FUNCALLOC!AR71) -> 54753288.5 | AR85: =SUM(FUNCALLOC!AS39,FUNCALLOC!AS71) -> 0 | AS85: =SUM(FUNCALLOC!AT39,FUNCALLOC!AT71) -> 0 | AT85: =SUM(FUNCALLOC!AU39,FUNCALLOC!AU71) -> 0 | AU85: =SUM(FUNCALLOC!AV39,FUNCALLOC!AV71) -> 0 | AV85: =SUM(FUNCALLOC!AW39,FUNCALLOC!AW71) -> 0 | AW85: =SUM(FUNCALLOC!AX39,FUNCALLOC!AX71) -> 0 | AX85: =SUM(FUNCALLOC!AY39,FUNCALLOC!AY71) -> 0 | AY85: =SUM(FUNCALLOC!AZ39,FUNCALLOC!AZ71) -> 0 | AZ85: =SUM(FUNCALLOC!BA39,FUNCALLOC!BA71) -> 0 | BA85: =SUM(FUNCALLOC!BB39,FUNCALLOC!BB71) -> 0 | BB85: =SUM(FUNCALLOC!BC39,FUNCALLOC!BC71) -> 0 | BC85: =SUM(FUNCALLOC!BD39,FUNCALLOC!BD71) -> 0 | BD85: =SUM(FUNCALLOC!BE39,FUNCALLOC!BE71) -> 0 | BE85: =SUM(FUNCALLOC!BF39,FUNCALLOC!BF71) -> 0 | BF85: =SUM(FUNCALLOC!BG39,FUNCALLOC!BG71) -> 0 | BG85: =SUM(FUNCALLOC!BH39,FUNCALLOC!BH71) -> 0 | BH85: =SUM(FUNCALLOC!BI39,FUNCALLOC!BI71) -> 0 | BI85: =SUM(FUNCALLOC!BJ39,FUNCALLOC!BJ71) -> 0 | BJ85: =SUM(FUNCALLOC!BK39,FUNCALLOC!BK71) -> 0 | BK85: =SUM(FUNCALLOC!BL39,FUNCALLOC!BL71) -> 0 | BL85: =SUM(FUNCALLOC!BM39,FUNCALLOC!BM71) -> 0 | BM85: =SUM(FUNCALLOC!BN39,FUNCALLOC!BN71) -> 0 | BN85: =SUM(FUNCALLOC!BO39,FUNCALLOC!BO71) -> 0 | BO85: =SUM(FUNCALLOC!BP39,FUNCALLOC!BP71) -> 0 | BP85: =SUM(FUNCALLOC!BQ39,FUNCALLOC!BQ71) -> 0 | BQ85: =SUM(FUNCALLOC!BR39,FUNCALLOC!BR71) -> 0 | BR85: =SUM(FUNCALLOC!BS39,FUNCALLOC!BS71) -> 0 | BS85: =SUM(FUNCALLOC!BT39,FUNCALLOC!BT71) -> 0 | BT85: =SUM(FUNCALLOC!BU39,FUNCALLOC!BU71) -> 0 | BU85: =SUM(FUNCALLOC!BV39,FUNCALLOC!BV71) -> 0 | BV85: =SUM(FUNCALLOC!BW39,FUNCALLOC!BW71) -> 0 | BW85: =SUM(FUNCALLOC!BX39,FUNCALLOC!BX71) -> 0 | BX85: =SUM(FUNCALLOC!BY39,FUNCALLOC!BY71) -> 0 | BY85: =SUM(FUNCALLOC!BZ39,FUNCALLOC!BZ71) -> 0
D86: =IF((D85=0)*OR($C85=0),0,D85/$C85) -> 0 | E86: 0 | F86: 0.01133929878 | G86: 0.00946882922 | H86: 0.0004150485765 | I86: 0.006533771894 | J86: 0.02856111253 | K86: 0.0001077028304 | L86: 0.001331276467 | M86: 0.006430727661 | N86: 0.07918821963 | O86: 0.1325457932 | P86: 0.0006525280757 | Q86: 0.3096593635 | R86: 0.006523636046 | S86: 0 | T86: 0 | U86: 0 | V86: 0 | W86: 0 | X86: 0 | Y86: 0 | Z86: 0 | AA86: 0 | AB86: 0 | AC86: 0 | AD86: 0.04834122112 | AE86: 0.04036711404 | AF86: 0.1217605324 | AG86: 0 | AH86: 0 | AI86: 0 | AJ86: 0.03557546009 | AK86: 0.06729890296 | AL86: 0.0009676554327 | AM86: 0.01078414924 | AN86: 0.03511034688 | AO86: 0.03276595472 | AP86: 0.0001650848691 | AQ86: 0.01410626989 | AR86: =IF((AR85=0)*OR($C85=0),0,AR85/$C85) -> 0 | AS86: 0 | AT86: 0 | AU86: 0 | AV86: 0 | AW86: 0 | AX86: 0 | AY86: 0 | AZ86: 0 | BA86: =IF((BA85=0)*OR($C85=0),0,BA85/$C85) -> 0 | BB86: 0 | BC86: 0 | BD86: 0 | BE86: 0 | BF86: 0 | BG86: 0 | BH86: 0 | BI86: 0 | BJ86: 0 | BK86: 0 | BL86: 0 | BM86: 0 | BN86: 0 | BO86: 0 | BP86: 0 | BQ86: 0 | BR86: 0 | BS86: 0 | BT86: 0 | BU86: 0 | BV86: 0 | BW86: 0 | BX86: 0 | BY86: 0
A88: EBFIT.T | B88: Total Expenses Before FIT | C88: =SUM(D88:BA88) -> 1609230016 | D88: =SUM(FUNCALLOC!E408,FUNCALLOC!E569,FUNCALLOC!E582) -> 5104.729817 | E88: =SUM(FUNCALLOC!F408,FUNCALLOC!F569,FUNCALLOC!F582) -> 230628459.5 | F88: =SUM(FUNCALLOC!G408,FUNCALLOC!G569,FUNCALLOC!G582) -> 3694750.748 | G88: =SUM(FUNCALLOC!H408,FUNCALLOC!H569,FUNCALLOC!H582) -> 3037663.999 | H88: =SUM(FUNCALLOC!I408,FUNCALLOC!I569,FUNCALLOC!I582) -> 85786.5205 | I88: =SUM(FUNCALLOC!J408,FUNCALLOC!J569,FUNCALLOC!J582) -> 1341908.642 | J88: =SUM(FUNCALLOC!K408,FUNCALLOC!K569,FUNCALLOC!K582) -> 10426194.89 | K88: =SUM(FUNCALLOC!L408,FUNCALLOC!L569,FUNCALLOC!L582) -> 22261.1318 | L88: =SUM(FUNCALLOC!M408,FUNCALLOC!M569,FUNCALLOC!M582) -> 271561.6079 | M88: =SUM(FUNCALLOC!N408,FUNCALLOC!N569,FUNCALLOC!N582) -> 1740903.873 | N88: =SUM(FUNCALLOC!O408,FUNCALLOC!O569,FUNCALLOC!O582) -> 21133629.56 | O88: =SUM(FUNCALLOC!P408,FUNCALLOC!P569,FUNCALLOC!P582) -> 61737298.81 | P88: =SUM(FUNCALLOC!Q408,FUNCALLOC!Q569,FUNCALLOC!Q582) -> 307091.6605 | Q88: =SUM(FUNCALLOC!R408,FUNCALLOC!R569,FUNCALLOC!R582) -> 81954908.73 | R88: =SUM(FUNCALLOC!S408,FUNCALLOC!S569,FUNCALLOC!S582) -> 1754714.005 | S88: =SUM(FUNCALLOC!T408,FUNCALLOC!T569,FUNCALLOC!T582) -> 0 | T88: =SUM(FUNCALLOC!U408,FUNCALLOC!U569,FUNCALLOC!U582) -> 0 | U88: =SUM(FUNCALLOC!V408,FUNCALLOC!V569,FUNCALLOC!V582) -> 0 | V88: =SUM(FUNCALLOC!W408,FUNCALLOC!W569,FUNCALLOC!W582) -> -0.374072451 | W88: =SUM(FUNCALLOC!X408,FUNCALLOC!X569,FUNCALLOC!X582) -> -437.770127 | X88: =SUM(FUNCALLOC!Y408,FUNCALLOC!Y569,FUNCALLOC!Y582) -> -33109.43063 | Y88: =SUM(FUNCALLOC!Z408,FUNCALLOC!Z569,FUNCALLOC!Z582) -> -7155.139921 | Z88: =SUM(FUNCALLOC!AA408,FUNCALLOC!AA569,FUNCALLOC!AA582) -> -29823.26275 | AA88: =SUM(FUNCALLOC!AB408,FUNCALLOC!AB569,FUNCALLOC!AB582) -> 491161.3316 | AB88: =SUM(FUNCALLOC!AC408,FUNCALLOC!AC569,FUNCALLOC!AC582) -> 0 | AC88: =SUM(FUNCALLOC!AD408,FUNCALLOC!AD569,FUNCALLOC!AD582) -> 983205537.8 | AD88: =SUM(FUNCALLOC!AE408,FUNCALLOC!AE569,FUNCALLOC!AE582) -> 15751305.82 | AE88: =SUM(FUNCALLOC!AF408,FUNCALLOC!AF569,FUNCALLOC!AF582) -> 12950041.26 | AF88: =SUM(FUNCALLOC!AG408,FUNCALLOC!AG569,FUNCALLOC!AG582) -> 44448515.04 | AG88: =SUM(FUNCALLOC!AH408,FUNCALLOC!AH569,FUNCALLOC!AH582) -> 0 | AH88: =SUM(FUNCALLOC!AI408,FUNCALLOC!AI569,FUNCALLOC!AI582) -> 21762.26922 | AI88: =SUM(FUNCALLOC!AJ408,FUNCALLOC!AJ569,FUNCALLOC!AJ582) -> 1647662 | AJ88: =SUM(FUNCALLOC!AK408,FUNCALLOC!AK569,FUNCALLOC!AK582) -> 7304150.826 | AK88: =SUM(FUNCALLOC!AL408,FUNCALLOC!AL569,FUNCALLOC!AL582) -> 13817427.42 | AL88: =SUM(FUNCALLOC!AM408,FUNCALLOC!AM569,FUNCALLOC!AM582) -> 198673.5017 | AM88: =SUM(FUNCALLOC!AN408,FUNCALLOC!AN569,FUNCALLOC!AN582) -> 2151281.898 | AN88: =SUM(FUNCALLOC!AO408,FUNCALLOC!AO569,FUNCALLOC!AO582) -> 7004006.712 | AO88: =SUM(FUNCALLOC!AP408,FUNCALLOC!AP569,FUNCALLOC!AP582) -> 18148109.81 | AP88: =SUM(FUNCALLOC!AQ408,FUNCALLOC!AQ569,FUNCALLOC!AQ582) -> 31743.88163 | AQ88: =SUM(FUNCALLOC!AR408,FUNCALLOC!AR569,FUNCALLOC!AR582) -> 7872725.482 | AR88: =SUM(FUNCALLOC!AS408,FUNCALLOC!AS569,FUNCALLOC!AS582) -> -66473.52994 | AS88: =SUM(FUNCALLOC!AT408,FUNCALLOC!AT569,FUNCALLOC!AT582) -> -217786.2417 | AT88: =SUM(FUNCALLOC!AU408,FUNCALLOC!AU569,FUNCALLOC!AU582) -> 26806235.84 | AU88: =SUM(FUNCALLOC!AV408,FUNCALLOC!AV569,FUNCALLOC!AV582) -> 32963411.1 | AV88: =SUM(FUNCALLOC!AW408,FUNCALLOC!AW569,FUNCALLOC!AW582) -> 13376267.53 | AW88: =SUM(FUNCALLOC!AX408,FUNCALLOC!AX569,FUNCALLOC!AX582) -> 3164888.377 | AX88: =SUM(FUNCALLOC!AY408,FUNCALLOC!AY569,FUNCALLOC!AY582) -> 87655.2065 | AY88: =SUM(FUNCALLOC!AZ408,FUNCALLOC!AZ569,FUNCALLOC!AZ582) -> 0 | AZ88: =SUM(FUNCALLOC!BA408,FUNCALLOC!BA569,FUNCALLOC!BA582) -> 0 | BA88: =SUM(FUNCALLOC!BB408,FUNCALLOC!BB569,FUNCALLOC!BB582) -> 0 | BB88: =SUM(FUNCALLOC!BC408,FUNCALLOC!BC569,FUNCALLOC!BC582) -> 0 | BC88: =SUM(FUNCALLOC!BD408,FUNCALLOC!BD569,FUNCALLOC!BD582) -> 0 | BD88: =SUM(FUNCALLOC!BE408,FUNCALLOC!BE569,FUNCALLOC!BE582) -> 0 | BE88: =SUM(FUNCALLOC!BF408,FUNCALLOC!BF569,FUNCALLOC!BF582) -> 0 | BF88: =SUM(FUNCALLOC!BG408,FUNCALLOC!BG569,FUNCALLOC!BG582) -> 0 | BG88: =SUM(FUNCALLOC!BH408,FUNCALLOC!BH569,FUNCALLOC!BH582) -> 0 | BH88: =SUM(FUNCALLOC!BI408,FUNCALLOC!BI569,FUNCALLOC!BI582) -> 0 | BI88: =SUM(FUNCALLOC!BJ408,FUNCALLOC!BJ569,FUNCALLOC!BJ582) -> 0 | BJ88: =SUM(FUNCALLOC!BK408,FUNCALLOC!BK569,FUNCALLOC!BK582) -> 0 | BK88: =SUM(FUNCALLOC!BL408,FUNCALLOC!BL569,FUNCALLOC!BL582) -> 0 | BL88: =SUM(FUNCALLOC!BM408,FUNCALLOC!BM569,FUNCALLOC!BM582) -> 0 | BM88: =SUM(FUNCALLOC!BN408,FUNCALLOC!BN569,FUNCALLOC!BN582) -> 0 | BN88: =SUM(FUNCALLOC!BO408,FUNCALLOC!BO569,FUNCALLOC!BO582) -> 0 | BO88: =SUM(FUNCALLOC!BP408,FUNCALLOC!BP569,FUNCALLOC!BP582) -> 0 | BP88: =SUM(FUNCALLOC!BQ408,FUNCALLOC!BQ569,FUNCALLOC!BQ582) -> 0 | BQ88: =SUM(FUNCALLOC!BR408,FUNCALLOC!BR569,FUNCALLOC!BR582) -> 0 | BR88: =SUM(FUNCALLOC!BS408,FUNCALLOC!BS569,FUNCALLOC!BS582) -> 0 | BS88: =SUM(FUNCALLOC!BT408,FUNCALLOC!BT569,FUNCALLOC!BT582) -> 0 | BT88: =SUM(FUNCALLOC!BU408,FUNCALLOC!BU569,FUNCALLOC!BU582) -> 0 | BU88: =SUM(FUNCALLOC!BV408,FUNCALLOC!BV569,FUNCALLOC!BV582) -> 0 | BV88: =SUM(FUNCALLOC!BW408,FUNCALLOC!BW569,FUNCALLOC!BW582) -> 0 | BW88: =SUM(FUNCALLOC!BX408,FUNCALLOC!BX569,FUNCALLOC!BX582) -> 0 | BX88: =SUM(FUNCALLOC!BY408,FUNCALLOC!BY569,FUNCALLOC!BY582) -> 0 | BY88: =SUM(FUNCALLOC!BZ408,FUNCALLOC!BZ569,FUNCALLOC!BZ582) -> 0
D89: =IF((D88=0)*OR($C88=0),0,D88/$C88) -> 3.172156725e-06 | E89: 0.1433160314 | F89: 0.002295974293 | G89: 0.001887650597 | H89: 5.330904822e-05 | I89: 0.0008338824338 | J89: 0.006478996032 | K89: 1.383340578e-05 | L89: 0.0001687525122 | M89: 0.001081824137 | N89: 0.01313275875 | O89: 0.03836449619 | P89: 0.0001908314271 | Q89: 0.0509280264 | R89: 0.001090405963 | S89: 0 | T89: 0 | U89: 0 | V89: -2.324543088e-10 | W89: -2.720370132e-07 | X89: -2.057470362e-05 | Y89: -4.44631274e-06 | Z89: -1.853262893e-05 | AA89: 0.0003052151196 | AB89: 0 | AC89: 0.6109788708 | AD89: 0.009788100935 | AE89: 0.008047352544 | AF89: 0.02762098308 | AG89: 0 | AH89: 1.352340499e-05 | AI89: 0.001023882219 | AJ89: =IF((AJ88=0)*OR($C88=0),0,AJ88/$C88) -> 0.004538910383 | AK89: 0.008586359492 | AL89: 0.0001234587347 | AM89: 0.001336839282 | AN89: 0.004352396266 | AO89: 0.01127751138 | AP89: 1.972613071e-05 | AQ89: 0.004892231319 | AR89: -4.130766223e-05 | AS89: -0.000135335682 | AT89: 0.01665780254 | AU89: 0.02048396486 | AV89: 0.00831221603 | AW89: 0.001966709759 | AX89: 5.447027811e-05 | AY89: 0 | AZ89: 0 | BA89: 0 | BB89: 0 | BC89: 0 | BD89: 0 | BE89: 0 | BF89: 0 | BG89: 0 | BH89: 0 | BI89: 0 | BJ89: 0 | BK89: 0 | BL89: 0 | BM89: 0 | BN89: 0 | BO89: 0 | BP89: =IF((BP88=0)*OR($C88=0),0,BP88/$C88) -> 0 | BQ89: 0 | BR89: 0 | BS89: 0 | BT89: 0 | BU89: 0 | BV89: 0 | BW89: 0 | BX89: 0 | BY89: 0
A91: TP.T | B91: Total Transmission Plant | C91: =SUM(D91:BA91) -> 425086614 | D91: =SUM(FUNCALLOC!E39) -> 0 | E91: =SUM(FUNCALLOC!F39) -> 0 | F91: =SUM(FUNCALLOC!G39) -> 44013329 | G91: =SUM(FUNCALLOC!H39) -> 36753127.66 | H91: =SUM(FUNCALLOC!I39) -> 0 | I91: =SUM(FUNCALLOC!J39) -> 0 | J91: =SUM(FUNCALLOC!K39) -> 0 | K91: =SUM(FUNCALLOC!L39) -> 0 | L91: =SUM(FUNCALLOC!M39) -> 0 | M91: =SUM(FUNCALLOC!N39) -> 0 | N91: =SUM(FUNCALLOC!O39) -> 0 | O91: =SUM(FUNCALLOC!P39) -> 0 | P91: =SUM(FUNCALLOC!Q39) -> 0 | Q91: =SUM(FUNCALLOC!R39) -> 0 | R91: =SUM(FUNCALLOC!S39) -> 0 | S91: =SUM(FUNCALLOC!T39) -> 0 | T91: =SUM(FUNCALLOC!U39) -> 0 | U91: =SUM(FUNCALLOC!V39) -> 0 | V91: =SUM(FUNCALLOC!W39) -> 0 | W91: =SUM(FUNCALLOC!X39) -> 0 | X91: =SUM(FUNCALLOC!Y39) -> 0 | Y91: =SUM(FUNCALLOC!Z39) -> 0 | Z91: =SUM(FUNCALLOC!AA39) -> 0 | AA91: =SUM(FUNCALLOC!AB39) -> 0 | AB91: =SUM(FUNCALLOC!AC39) -> 0 | AC91: =SUM(FUNCALLOC!AD39) -> 0 | AD91: =SUM(FUNCALLOC!AE39) -> 187635771 | AE91: =SUM(FUNCALLOC!AF39) -> 156684386.3 | AF91: =SUM(FUNCALLOC!AG39) -> 0 | AG91: =SUM(FUNCALLOC!AH39) -> 0 | AH91: =SUM(FUNCALLOC!AI39) -> 0 | AI91: =SUM(FUNCALLOC!AJ39) -> 0 | AJ91: =SUM(FUNCALLOC!AK39) -> 0 | AK91: =SUM(FUNCALLOC!AL39) -> 0 | AL91: =SUM(FUNCALLOC!AM39) -> 0 | AM91: =SUM(FUNCALLOC!AN39) -> 0 | AN91: =SUM(FUNCALLOC!AO39) -> 0 | AO91: =SUM(FUNCALLOC!AP39) -> 0 | AP91: =SUM(FUNCALLOC!AQ39) -> 0 | AQ91: =SUM(FUNCALLOC!AR39) -> 0 | AR91: =SUM(FUNCALLOC!AS39) -> 0 | AS91: =SUM(FUNCALLOC!AT39) -> 0 | AT91: =SUM(FUNCALLOC!AU39) -> 0 | AU91: =SUM(FUNCALLOC!AV39) -> 0 | AV91: =SUM(FUNCALLOC!AW39) -> 0 | AW91: =SUM(FUNCALLOC!AX39) -> 0 | AX91: =SUM(FUNCALLOC!AY39) -> 0 | AY91: =SUM(FUNCALLOC!AZ39) -> 0 | AZ91: =SUM(FUNCALLOC!BA39) -> 0 | BA91: =SUM(FUNCALLOC!BB39) -> 0 | BB91: =SUM(FUNCALLOC!BC39) -> 0 | BC91: =SUM(FUNCALLOC!BD39) -> 0 | BD91: =SUM(FUNCALLOC!BE39) -> 0 | BE91: =SUM(FUNCALLOC!BF39) -> 0 | BF91: =SUM(FUNCALLOC!BG39) -> 0 | BG91: =SUM(FUNCALLOC!BH39) -> 0 | BH91: =SUM(FUNCALLOC!BI39) -> 0 | BI91: =SUM(FUNCALLOC!BJ39) -> 0 | BJ91: =SUM(FUNCALLOC!BK39) -> 0 | BK91: =SUM(FUNCALLOC!BL39) -> 0 | BL91: =SUM(FUNCALLOC!BM39) -> 0 | BM91: =SUM(FUNCALLOC!BN39) -> 0 | BN91: =SUM(FUNCALLOC!BO39) -> 0 | BO91: =SUM(FUNCALLOC!BP39) -> 0 | BP91: =SUM(FUNCALLOC!BQ39) -> 0 | BQ91: =SUM(FUNCALLOC!BR39) -> 0 | BR91: =SUM(FUNCALLOC!BS39) -> 0 | BS91: =SUM(FUNCALLOC!BT39) -> 0 | BT91: =SUM(FUNCALLOC!BU39) -> 0 | BU91: =SUM(FUNCALLOC!BV39) -> 0 | BV91: =SUM(FUNCALLOC!BW39) -> 0 | BW91: =SUM(FUNCALLOC!BX39) -> 0 | BX91: =SUM(FUNCALLOC!BY39) -> 0 | BY91: =SUM(FUNCALLOC!BZ39) -> 0
D92: =IF((D91=0)*OR($C91=0),0,D91/$C91) -> 0 | E92: 0 | F92: 0.103539673 | G92: 0.08646032702 | H92: 0 | I92: 0 | J92: 0 | K92: 0 | L92: 0 | M92: 0 | N92: 0 | O92: 0 | P92: 0 | Q92: 0 | R92: 0 | S92: 0 | T92: 0 | U92: 0 | V92: 0 | W92: 0 | X92: 0 | Y92: 0 | Z92: 0 | AA92: 0 | AB92: 0 | AC92: 0 | AD92: 0.4414059743 | AE92: 0.3685940257 | AF92: 0 | AG92: 0 | AH92: 0 | AI92: 0 | AJ92: =IF((AJ91=0)*OR($C91=0),0,AJ91/$C91) -> 0 | AK92: 0 | AL92: 0 | AM92: 0 | AN92: 0 | AO92: 0 | AP92: 0 | AQ92: 0 | AR92: 0 | AS92: 0 | AT92: 0 | AU92: 0 | AV92: 0 | AW92: 0 | AX92: 0 | AY92: 0 | AZ92: 0 | BA92: 0 | BB92: 0 | BC92: 0 | BD92: 0 | BE92: 0 | BF92: 0 | BG92: 0 | BH92: 0 | BI92: 0 | BJ92: 0 | BK92: 0 | BL92: 0 | BM92: 0 | BN92: 0 | BO92: 0 | BP92: =IF((BP91=0)*OR($C91=0),0,BP91/$C91) -> 0 | BQ92: 0 | BR92: 0 | BS92: 0 | BT92: 0 | BU92: 0 | BV92: 0 | BW92: 0 | BX92: 0 | BY92: 0
A94: PTDE.T | B94: Prod Trans Dist Exp Allocation Factor | C94: =SUM(D94:BA94) -> 1051293157 | D94: =SUM(FUNCALLOC!E260,FUNCALLOC!E269,FUNCALLOC!E275,FUNCALLOC!E284,FUNCALLOC!E299,FUNCALLOC!E315,FUNCALLOC!E392) -> 0 | E94: =SUM(FUNCALLOC!F260,FUNCALLOC!F269,FUNCALLOC!F275,FUNCALLOC!F284,FUNCALLOC!F299,FUNCALLOC!F315,FUNCALLOC!F392) -> 181890816.9 | F94: =SUM(FUNCALLOC!G260,FUNCALLOC!G269,FUNCALLOC!G275,FUNCALLOC!G284,FUNCALLOC!G299,FUNCALLOC!G315,FUNCALLOC!G392) -> 1236999.655 | G94: =SUM(FUNCALLOC!H260,FUNCALLOC!H269,FUNCALLOC!H275,FUNCALLOC!H284,FUNCALLOC!H299,FUNCALLOC!H315,FUNCALLOC!H392) -> 1032950.865 | H94: =SUM(FUNCALLOC!I260,FUNCALLOC!I269,FUNCALLOC!I275,FUNCALLOC!I284,FUNCALLOC!I299,FUNCALLOC!I315,FUNCALLOC!I392) -> 0 | I94: =SUM(FUNCALLOC!J260,FUNCALLOC!J269,FUNCALLOC!J275,FUNCALLOC!J284,FUNCALLOC!J299,FUNCALLOC!J315,FUNCALLOC!J392) -> 0 | J94: =SUM(FUNCALLOC!K260,FUNCALLOC!K269,FUNCALLOC!K275,FUNCALLOC!K284,FUNCALLOC!K299,FUNCALLOC!K315,FUNCALLOC!K392) -> 3721884.12 | K94: =SUM(FUNCALLOC!L260,FUNCALLOC!L269,FUNCALLOC!L275,FUNCALLOC!L284,FUNCALLOC!L299,FUNCALLOC!L315,FUNCALLOC!L392) -> 0 | L94: =SUM(FUNCALLOC!M260,FUNCALLOC!M269,FUNCALLOC!M275,FUNCALLOC!M284,FUNCALLOC!M299,FUNCALLOC!M315,FUNCALLOC!M392) -> 0 | M94: =SUM(FUNCALLOC!N260,FUNCALLOC!N269,FUNCALLOC!N275,FUNCALLOC!N284,FUNCALLOC!N299,FUNCALLOC!N315,FUNCALLOC!N392) -> 331101.8097 | N94: =SUM(FUNCALLOC!O260,FUNCALLOC!O269,FUNCALLOC!O275,FUNCALLOC!O284,FUNCALLOC!O299,FUNCALLOC!O315,FUNCALLOC!O392) -> 4077200.001 | O94: =SUM(FUNCALLOC!P260,FUNCALLOC!P269,FUNCALLOC!P275,FUNCALLOC!P284,FUNCALLOC!P299,FUNCALLOC!P315,FUNCALLOC!P392) -> 28133984.5 | P94: =SUM(FUNCALLOC!Q260,FUNCALLOC!Q269,FUNCALLOC!Q275,FUNCALLOC!Q284,FUNCALLOC!Q299,FUNCALLOC!Q315,FUNCALLOC!Q392) -> 138504.6958 | Q94: =SUM(FUNCALLOC!R260,FUNCALLOC!R269,FUNCALLOC!R275,FUNCALLOC!R284,FUNCALLOC!R299,FUNCALLOC!R315,FUNCALLOC!R392) -> 15516063.11 | R94: =SUM(FUNCALLOC!S260,FUNCALLOC!S269,FUNCALLOC!S275,FUNCALLOC!S284,FUNCALLOC!S299,FUNCALLOC!S315,FUNCALLOC!S392) -> 326879.0178 | S94: =SUM(FUNCALLOC!T260,FUNCALLOC!T269,FUNCALLOC!T275,FUNCALLOC!T284,FUNCALLOC!T299,FUNCALLOC!T315,FUNCALLOC!T392) -> 0 | T94: =SUM(FUNCALLOC!U260,FUNCALLOC!U269,FUNCALLOC!U275,FUNCALLOC!U284,FUNCALLOC!U299,FUNCALLOC!U315,FUNCALLOC!U392) -> 0 | U94: =SUM(FUNCALLOC!V260,FUNCALLOC!V269,FUNCALLOC!V275,FUNCALLOC!V284,FUNCALLOC!V299,FUNCALLOC!V315,FUNCALLOC!V392) -> 0 | V94: =SUM(FUNCALLOC!W260,FUNCALLOC!W269,FUNCALLOC!W275,FUNCALLOC!W284,FUNCALLOC!W299,FUNCALLOC!W315,FUNCALLOC!W392) -> 0 | W94: =SUM(FUNCALLOC!X260,FUNCALLOC!X269,FUNCALLOC!X275,FUNCALLOC!X284,FUNCALLOC!X299,FUNCALLOC!X315,FUNCALLOC!X392) -> 0 | X94: =SUM(FUNCALLOC!Y260,FUNCALLOC!Y269,FUNCALLOC!Y275,FUNCALLOC!Y284,FUNCALLOC!Y299,FUNCALLOC!Y315,FUNCALLOC!Y392) -> 0 | Y94: =SUM(FUNCALLOC!Z260,FUNCALLOC!Z269,FUNCALLOC!Z275,FUNCALLOC!Z284,FUNCALLOC!Z299,FUNCALLOC!Z315,FUNCALLOC!Z392) -> 0 | Z94: =SUM(FUNCALLOC!AA260,FUNCALLOC!AA269,FUNCALLOC!AA275,FUNCALLOC!AA284,FUNCALLOC!AA299,FUNCALLOC!AA315,FUNCALLOC!AA392) -> 0 | AA94: =SUM(FUNCALLOC!AB260,FUNCALLOC!AB269,FUNCALLOC!AB275,FUNCALLOC!AB284,FUNCALLOC!AB299,FUNCALLOC!AB315,FUNCALLOC!AB392) -> 469038 | AB94: =SUM(FUNCALLOC!AC260,FUNCALLOC!AC269,FUNCALLOC!AC275,FUNCALLOC!AC284,FUNCALLOC!AC299,FUNCALLOC!AC315,FUNCALLOC!AC392) -> 0 | AC94: =SUM(FUNCALLOC!AD260,FUNCALLOC!AD269,FUNCALLOC!AD275,FUNCALLOC!AD284,FUNCALLOC!AD299,FUNCALLOC!AD315,FUNCALLOC!AD392) -> 775429272.1 | AD94: =SUM(FUNCALLOC!AE260,FUNCALLOC!AE269,FUNCALLOC!AE275,FUNCALLOC!AE284,FUNCALLOC!AE299,FUNCALLOC!AE315,FUNCALLOC!AE392) -> 5273524.846 | AE94: =SUM(FUNCALLOC!AF260,FUNCALLOC!AF269,FUNCALLOC!AF275,FUNCALLOC!AF284,FUNCALLOC!AF299,FUNCALLOC!AF315,FUNCALLOC!AF392) -> 4403632.634 | AF94: =SUM(FUNCALLOC!AG260,FUNCALLOC!AG269,FUNCALLOC!AG275,FUNCALLOC!AG284,FUNCALLOC!AG299,FUNCALLOC!AG315,FUNCALLOC!AG392) -> 15866979.67 | AG94: =SUM(FUNCALLOC!AH260,FUNCALLOC!AH269,FUNCALLOC!AH275,FUNCALLOC!AH284,FUNCALLOC!AH299,FUNCALLOC!AH315,FUNCALLOC!AH392) -> 0 | AH94: =SUM(FUNCALLOC!AI260,FUNCALLOC!AI269,FUNCALLOC!AI275,FUNCALLOC!AI284,FUNCALLOC!AI299,FUNCALLOC!AI315,FUNCALLOC!AI392) -> 0 | AI94: =SUM(FUNCALLOC!AJ260,FUNCALLOC!AJ269,FUNCALLOC!AJ275,FUNCALLOC!AJ284,FUNCALLOC!AJ299,FUNCALLOC!AJ315,FUNCALLOC!AJ392) -> 0 | AJ94: =SUM(FUNCALLOC!AK260,FUNCALLOC!AK269,FUNCALLOC!AK275,FUNCALLOC!AK284,FUNCALLOC!AK299,FUNCALLOC!AK315,FUNCALLOC!AK392) -> 85259.19473 | AK94: =SUM(FUNCALLOC!AL260,FUNCALLOC!AL269,FUNCALLOC!AL275,FUNCALLOC!AL284,FUNCALLOC!AL299,FUNCALLOC!AL315,FUNCALLOC!AL392) -> 161286.7482 | AL94: =SUM(FUNCALLOC!AM260,FUNCALLOC!AM269,FUNCALLOC!AM275,FUNCALLOC!AM284,FUNCALLOC!AM299,FUNCALLOC!AM315,FUNCALLOC!AM392) -> 2319.057091 | AM94: =SUM(FUNCALLOC!AN260,FUNCALLOC!AN269,FUNCALLOC!AN275,FUNCALLOC!AN284,FUNCALLOC!AN299,FUNCALLOC!AN315,FUNCALLOC!AN392) -> 0 | AN94: =SUM(FUNCALLOC!AO260,FUNCALLOC!AO269,FUNCALLOC!AO275,FUNCALLOC!AO284,FUNCALLOC!AO299,FUNCALLOC!AO315,FUNCALLOC!AO392) -> 0 | AO94: =SUM(FUNCALLOC!AP260,FUNCALLOC!AP269,FUNCALLOC!AP275,FUNCALLOC!AP284,FUNCALLOC!AP299,FUNCALLOC!AP315,FUNCALLOC!AP392) -> 9250526.329 | AP94: =SUM(FUNCALLOC!AQ260,FUNCALLOC!AQ269,FUNCALLOC!AQ275,FUNCALLOC!AQ284,FUNCALLOC!AQ299,FUNCALLOC!AQ315,FUNCALLOC!AQ392) -> 0 | AQ94: =SUM(FUNCALLOC!AR260,FUNCALLOC!AR269,FUNCALLOC!AR275,FUNCALLOC!AR284,FUNCALLOC!AR299,FUNCALLOC!AR315,FUNCALLOC!AR392) -> 3944933.752 | AR94: =SUM(FUNCALLOC!AS260,FUNCALLOC!AS269,FUNCALLOC!AS275,FUNCALLOC!AS284,FUNCALLOC!AS299,FUNCALLOC!AS315,FUNCALLOC!AS392) -> 0 | AS94: =SUM(FUNCALLOC!AT260,FUNCALLOC!AT269,FUNCALLOC!AT275,FUNCALLOC!AT284,FUNCALLOC!AT299,FUNCALLOC!AT315,FUNCALLOC!AT392) -> 0 | AT94: =SUM(FUNCALLOC!AU260,FUNCALLOC!AU269,FUNCALLOC!AU275,FUNCALLOC!AU284,FUNCALLOC!AU299,FUNCALLOC!AU315,FUNCALLOC!AU392) -> 0 | AU94: =SUM(FUNCALLOC!AV260,FUNCALLOC!AV269,FUNCALLOC!AV275,FUNCALLOC!AV284,FUNCALLOC!AV299,FUNCALLOC!AV315,FUNCALLOC!AV392) -> 0 | AV94: =SUM(FUNCALLOC!AW260,FUNCALLOC!AW269,FUNCALLOC!AW275,FUNCALLOC!AW284,FUNCALLOC!AW299,FUNCALLOC!AW315,FUNCALLOC!AW392) -> 0 | AW94: =SUM(FUNCALLOC!AX260,FUNCALLOC!AX269,FUNCALLOC!AX275,FUNCALLOC!AX284,FUNCALLOC!AX299,FUNCALLOC!AX315,FUNCALLOC!AX392) -> 0 | AX94: =SUM(FUNCALLOC!AY260,FUNCALLOC!AY269,FUNCALLOC!AY275,FUNCALLOC!AY284,FUNCALLOC!AY299,FUNCALLOC!AY315,FUNCALLOC!AY392) -> 0 | AY94: =SUM(FUNCALLOC!AZ260,FUNCALLOC!AZ269,FUNCALLOC!AZ275,FUNCALLOC!AZ284,FUNCALLOC!AZ299,FUNCALLOC!AZ315,FUNCALLOC!AZ392) -> 0 | AZ94: =SUM(FUNCALLOC!BA260,FUNCALLOC!BA269,FUNCALLOC!BA275,FUNCALLOC!BA284,FUNCALLOC!BA299,FUNCALLOC!BA315,FUNCALLOC!BA392) -> 0 | BA94: =SUM(FUNCALLOC!BB260,FUNCALLOC!BB269,FUNCALLOC!BB275,FUNCALLOC!BB284,FUNCALLOC!BB299,FUNCALLOC!BB315,FUNCALLOC!BB392) -> 0 | BB94: =SUM(FUNCALLOC!BC260,FUNCALLOC!BC269,FUNCALLOC!BC275,FUNCALLOC!BC284,FUNCALLOC!BC299,FUNCALLOC!BC315,FUNCALLOC!BC392) -> 0 | BC94: =SUM(FUNCALLOC!BD260,FUNCALLOC!BD269,FUNCALLOC!BD275,FUNCALLOC!BD284,FUNCALLOC!BD299,FUNCALLOC!BD315,FUNCALLOC!BD392) -> 0 | BD94: =SUM(FUNCALLOC!BE260,FUNCALLOC!BE269,FUNCALLOC!BE275,FUNCALLOC!BE284,FUNCALLOC!BE299,FUNCALLOC!BE315,FUNCALLOC!BE392) -> 0 | BE94: =SUM(FUNCALLOC!BF260,FUNCALLOC!BF269,FUNCALLOC!BF275,FUNCALLOC!BF284,FUNCALLOC!BF299,FUNCALLOC!BF315,FUNCALLOC!BF392) -> 0 | BF94: =SUM(FUNCALLOC!BG260,FUNCALLOC!BG269,FUNCALLOC!BG275,FUNCALLOC!BG284,FUNCALLOC!BG299,FUNCALLOC!BG315,FUNCALLOC!BG392) -> 0 | BG94: =SUM(FUNCALLOC!BH260,FUNCALLOC!BH269,FUNCALLOC!BH275,FUNCALLOC!BH284,FUNCALLOC!BH299,FUNCALLOC!BH315,FUNCALLOC!BH392) -> 0 | BH94: =SUM(FUNCALLOC!BI260,FUNCALLOC!BI269,FUNCALLOC!BI275,FUNCALLOC!BI284,FUNCALLOC!BI299,FUNCALLOC!BI315,FUNCALLOC!BI392) -> 0 | BI94: =SUM(FUNCALLOC!BJ260,FUNCALLOC!BJ269,FUNCALLOC!BJ275,FUNCALLOC!BJ284,FUNCALLOC!BJ299,FUNCALLOC!BJ315,FUNCALLOC!BJ392) -> 0 | BJ94: =SUM(FUNCALLOC!BK260,FUNCALLOC!BK269,FUNCALLOC!BK275,FUNCALLOC!BK284,FUNCALLOC!BK299,FUNCALLOC!BK315,FUNCALLOC!BK392) -> 0 | BK94: =SUM(FUNCALLOC!BL260,FUNCALLOC!BL269,FUNCALLOC!BL275,FUNCALLOC!BL284,FUNCALLOC!BL299,FUNCALLOC!BL315,FUNCALLOC!BL392) -> 0 | BL94: =SUM(FUNCALLOC!BM260,FUNCALLOC!BM269,FUNCALLOC!BM275,FUNCALLOC!BM284,FUNCALLOC!BM299,FUNCALLOC!BM315,FUNCALLOC!BM392) -> 0 | BM94: =SUM(FUNCALLOC!BN260,FUNCALLOC!BN269,FUNCALLOC!BN275,FUNCALLOC!BN284,FUNCALLOC!BN299,FUNCALLOC!BN315,FUNCALLOC!BN392) -> 0 | BN94: =SUM(FUNCALLOC!BO260,FUNCALLOC!BO269,FUNCALLOC!BO275,FUNCALLOC!BO284,FUNCALLOC!BO299,FUNCALLOC!BO315,FUNCALLOC!BO392) -> 0 | BO94: =SUM(FUNCALLOC!BP260,FUNCALLOC!BP269,FUNCALLOC!BP275,FUNCALLOC!BP284,FUNCALLOC!BP299,FUNCALLOC!BP315,FUNCALLOC!BP392) -> 0 | BP94: =SUM(FUNCALLOC!BQ260,FUNCALLOC!BQ269,FUNCALLOC!BQ275,FUNCALLOC!BQ284,FUNCALLOC!BQ299,FUNCALLOC!BQ315,FUNCALLOC!BQ392) -> 0 | BQ94: =SUM(FUNCALLOC!BR260,FUNCALLOC!BR269,FUNCALLOC!BR275,FUNCALLOC!BR284,FUNCALLOC!BR299,FUNCALLOC!BR315,FUNCALLOC!BR392) -> 0 | BR94: =SUM(FUNCALLOC!BS260,FUNCALLOC!BS269,FUNCALLOC!BS275,FUNCALLOC!BS284,FUNCALLOC!BS299,FUNCALLOC!BS315,FUNCALLOC!BS392) -> 0 | BS94: =SUM(FUNCALLOC!BT260,FUNCALLOC!BT269,FUNCALLOC!BT275,FUNCALLOC!BT284,FUNCALLOC!BT299,FUNCALLOC!BT315,FUNCALLOC!BT392) -> 0 | BT94: =SUM(FUNCALLOC!BU260,FUNCALLOC!BU269,FUNCALLOC!BU275,FUNCALLOC!BU284,FUNCALLOC!BU299,FUNCALLOC!BU315,FUNCALLOC!BU392) -> 0 | BU94: =SUM(FUNCALLOC!BV260,FUNCALLOC!BV269,FUNCALLOC!BV275,FUNCALLOC!BV284,FUNCALLOC!BV299,FUNCALLOC!BV315,FUNCALLOC!BV392) -> 0 | BV94: =SUM(FUNCALLOC!BW260,FUNCALLOC!BW269,FUNCALLOC!BW275,FUNCALLOC!BW284,FUNCALLOC!BW299,FUNCALLOC!BW315,FUNCALLOC!BW392) -> 0 | BW94: =SUM(FUNCALLOC!BX260,FUNCALLOC!BX269,FUNCALLOC!BX275,FUNCALLOC!BX284,FUNCALLOC!BX299,FUNCALLOC!BX315,FUNCALLOC!BX392) -> 0 | BX94: =SUM(FUNCALLOC!BY260,FUNCALLOC!BY269,FUNCALLOC!BY275,FUNCALLOC!BY284,FUNCALLOC!BY299,FUNCALLOC!BY315,FUNCALLOC!BY392) -> 0 | BY94: =SUM(FUNCALLOC!BZ260,FUNCALLOC!BZ269,FUNCALLOC!BZ275,FUNCALLOC!BZ284,FUNCALLOC!BZ299,FUNCALLOC!BZ315,FUNCALLOC!BZ392) -> 0
D95: =IF((D94=0)*OR($C94=0),0,D94/$C94) -> 0 | E95: 0.1730162664 | F95: 0.001176645779 | G95: 0.000982552638 | H95: 0 | I95: 0 | J95: 0.003540291397 | K95: 0 | L95: 0 | M95: 0.0003149471748 | N95: 0.003878271226 | O95: 0.0267613123 | P95: 0.0001317469774 | Q95: 0.01475902607 | R95: 0.0003109304152 | S95: 0 | T95: 0 | U95: 0 | V95: 0 | W95: 0 | X95: 0 | Y95: 0 | Z95: 0 | AA95: 0.0004461533844 | AB95: 0 | AC95: 0.737595662 | AD95: 0.005016226741 | AE95: 0.004188777035 | AF95: 0.01509282122 | AG95: 0 | AH95: 0 | AI95: 0 | AJ95: 8.109935289e-05 | AK95: 0.0001534174812 | AL95: 2.205909051e-06 | AM95: 0 | AN95: 0 | AO95: 0.008799188187 | AP95: 0 | AQ95: 0.003752458318 | AR95: 0 | AS95: 0 | AT95: 0 | AU95: 0 | AV95: 0 | AW95: 0 | AX95: 0 | AY95: 0 | AZ95: 0 | BA95: 0 | BB95: 0 | BC95: 0 | BD95: 0 | BE95: 0 | BF95: 0 | BG95: 0 | BH95: 0 | BI95: 0 | BJ95: 0 | BK95: 0 | BL95: 0 | BM95: 0 | BN95: 0 | BO95: 0 | BP95: =IF((BP94=0)*OR($C94=0),0,BP94/$C94) -> 0 | BQ95: 0 | BR95: 0 | BS95: 0 | BT95: 0 | BU95: 0 | BV95: 0 | BW95: 0 | BX95: 0 | BY95: 0
A97: ~ | C97: =SUM(D97:BA97) -> 0
A98: ~ | D98: =IF((D97=0)*OR($C97=0),0,D97/$C97) -> 0 | E98: 0 | F98: 0 | G98: 0 | H98: 0 | I98: 0 | J98: 0 | K98: 0 | L98: 0 | M98: 0 | N98: 0 | O98: 0 | P98: 0 | Q98: 0 | R98: 0 | S98: 0 | T98: 0 | U98: 0 | V98: 0 | W98: 0 | X98: 0 | Y98: 0 | Z98: 0 | AA98: 0 | AB98: 0 | AC98: 0 | AD98: 0 | AE98: 0 | AF98: 0 | AG98: 0 | AH98: 0 | AI98: 0 | AJ98: =IF((AJ97=0)*OR($C97=0),0,AJ97/$C97) -> 0 | AK98: 0 | AL98: 0 | AM98: 0 | AN98: 0 | AO98: 0 | AP98: 0 | AQ98: 0 | AR98: =IF((AR97=0)*OR($C97=0),0,AR97/$C97) -> 0 | AS98: 0 | AT98: 0 | AU98: 0 | AV98: 0 | AW98: 0 | AX98: 0 | AY98: 0 | AZ98: 0 | BA98: =IF((BA97=0)*OR($C97=0),0,BA97/$C97) -> 0 | BB98: 0 | BC98: 0 | BD98: 0 | BE98: 0 | BF98: 0 | BG98: 0 | BH98: 0 | BI98: 0 | BJ98: 0 | BK98: 0 | BL98: 0 | BM98: 0 | BN98: 0 | BO98: 0 | BP98: 0 | BQ98: 0 | BR98: 0 | BS98: 0 | BT98: 0 | BU98: 0 | BV98: 0 | BW98: 0 | BX98: 0 | BY98: 0
A99: ~
A100: ~ | C100: =SUM(D100:BA100) -> 0
A101: ~ | D101: =IF((D100=0)*OR($C100=0),0,D100/$C100) -> 0 | E101: 0 | F101: 0 | G101: 0 | H101: 0 | I101: 0 | J101: 0 | K101: 0 | L101: 0 | M101: 0 | N101: 0 | O101: 0 | P101: 0 | Q101: 0 | R101: 0 | S101: 0 | T101: 0 | U101: 0 | V101: 0 | W101: 0 | X101: 0 | Y101: 0 | Z101: 0 | AA101: 0 | AB101: 0 | AC101: 0 | AD101: 0 | AE101: 0 | AF101: 0 | AG101: 0 | AH101: 0 | AI101: 0 | AJ101: =IF((AJ100=0)*OR($C100=0),0,AJ100/$C100) -> 0 | AK101: 0 | AL101: 0 | AM101: 0 | AN101: 0 | AO101: 0 | AP101: 0 | AQ101: 0 | AR101: =IF((AR100=0)*OR($C100=0),0,AR100/$C100) -> 0 | AS101: 0 | AT101: 0 | AU101: 0 | AV101: 0 | AW101: 0 | AX101: 0 | AY101: 0 | AZ101: 0 | BA101: =IF((BA100=0)*OR($C100=0),0,BA100/$C100) -> 0 | BB101: 0 | BC101: 0 | BD101: 0 | BE101: 0 | BF101: 0 | BG101: 0 | BH101: 0 | BI101: 0 | BJ101: 0 | BK101: 0 | BL101: 0 | BM101: 0 | BN101: 0 | BO101: 0 | BP101: 0 | BQ101: 0 | BR101: 0 | BS101: 0 | BT101: 0 | BU101: 0 | BV101: 0 | BW101: 0 | BX101: 0 | BY101: 0
A102: ~
A103: ~ | C103: =SUM(D103:BA103) -> 0
A104: ~ | D104: =IF((D103=0)*OR($C103=0),0,D103/$C103) -> 0 | E104: 0 | F104: 0 | G104: 0 | H104: 0 | I104: 0 | J104: 0 | K104: 0 | L104: 0 | M104: 0 | N104: 0 | O104: 0 | P104: 0 | Q104: 0 | R104: 0 | S104: 0 | T104: 0 | U104: 0 | V104: 0 | W104: 0 | X104: 0 | Y104: 0 | Z104: 0 | AA104: 0 | AB104: 0 | AC104: 0 | AD104: 0 | AE104: 0 | AF104: 0 | AG104: 0 | AH104: 0 | AI104: 0 | AJ104: =IF((AJ103=0)*OR($C103=0),0,AJ103/$C103) -> 0 | AK104: 0 | AL104: 0 | AM104: 0 | AN104: 0 | AO104: 0 | AP104: 0 | AQ104: 0 | AR104: =IF((AR103=0)*OR($C103=0),0,AR103/$C103) -> 0 | AS104: 0 | AT104: 0 | AU104: 0 | AV104: 0 | AW104: 0 | AX104: 0 | AY104: 0 | AZ104: 0 | BA104: =IF((BA103=0)*OR($C103=0),0,BA103/$C103) -> 0 | BB104: 0 | BC104: 0 | BD104: 0 | BE104: 0 | BF104: 0 | BG104: 0 | BH104: 0 | BI104: 0 | BJ104: 0 | BK104: 0 | BL104: 0 | BM104: 0 | BN104: 0 | BO104: 0 | BP104: 0 | BQ104: 0 | BR104: 0 | BS104: 0 | BT104: 0 | BU104: 0 | BV104: 0 | BW104: 0 | BX104: 0 | BY104: 0
A105: ~
A106: ~ | C106: =SUM(D106:BA106) -> 0
A107: ~ | D107: =IF((D106=0)*OR($C106=0),0,D106/$C106) -> 0 | E107: 0 | F107: 0 | G107: 0 | H107: 0 | I107: 0 | J107: 0 | K107: 0 | L107: 0 | M107: 0 | N107: 0 | O107: 0 | P107: 0 | Q107: 0 | R107: 0 | S107: 0 | T107: 0 | U107: 0 | V107: 0 | W107: 0 | X107: 0 | Y107: 0 | Z107: 0 | AA107: 0 | AB107: 0 | AC107: 0 | AD107: 0 | AE107: 0 | AF107: 0 | AG107: 0 | AH107: 0 | AI107: 0 | AJ107: =IF((AJ106=0)*OR($C106=0),0,AJ106/$C106) -> 0 | AK107: 0 | AL107: 0 | AM107: 0 | AN107: 0 | AO107: 0 | AP107: 0 | AQ107: 0 | AR107: =IF((AR106=0)*OR($C106=0),0,AR106/$C106) -> 0 | AS107: 0 | AT107: 0 | AU107: 0 | AV107: 0 | AW107: 0 | AX107: 0 | AY107: 0 | AZ107: 0 | BA107: =IF((BA106=0)*OR($C106=0),0,BA106/$C106) -> 0 | BB107: 0 | BC107: 0 | BD107: 0 | BE107: 0 | BF107: 0 | BG107: 0 | BH107: 0 | BI107: 0 | BJ107: 0 | BK107: 0 | BL107: 0 | BM107: 0 | BN107: 0 | BO107: 0 | BP107: 0 | BQ107: 0 | BR107: 0 | BS107: 0 | BT107: 0 | BU107: 0 | BV107: 0 | BW107: 0 | BX107: 0 | BY107: 0
A108: ~
A109: ~ | C109: =SUM(D109:BA109) -> 0
A110: ~ | D110: =IF((D109=0)*OR($C109=0),0,D109/$C109) -> 0 | E110: 0 | F110: 0 | G110: 0 | H110: 0 | I110: 0 | J110: 0 | K110: 0 | L110: 0 | M110: 0 | N110: 0 | O110: 0 | P110: 0 | Q110: 0 | R110: 0 | S110: 0 | T110: 0 | U110: 0 | V110: 0 | W110: 0 | X110: 0 | Y110: 0 | Z110: 0 | AA110: 0 | AB110: 0 | AC110: 0 | AD110: 0 | AE110: 0 | AF110: 0 | AG110: 0 | AH110: 0 | AI110: 0 | AJ110: =IF((AJ109=0)*OR($C109=0),0,AJ109/$C109) -> 0 | AK110: 0 | AL110: 0 | AM110: 0 | AN110: 0 | AO110: 0 | AP110: 0 | AQ110: 0 | AR110: =IF((AR109=0)*OR($C109=0),0,AR109/$C109) -> 0 | AS110: 0 | AT110: 0 | AU110: 0 | AV110: 0 | AW110: 0 | AX110: 0 | AY110: 0 | AZ110: 0 | BA110: =IF((BA109=0)*OR($C109=0),0,BA109/$C109) -> 0 | BB110: 0 | BC110: 0 | BD110: 0 | BE110: 0 | BF110: 0 | BG110: 0 | BH110: 0 | BI110: 0 | BJ110: 0 | BK110: 0 | BL110: 0 | BM110: 0 | BN110: 0 | BO110: 0 | BP110: 0 | BQ110: 0 | BR110: 0 | BS110: 0 | BT110: 0 | BU110: 0 | BV110: 0 | BW110: 0 | BX110: 0 | BY110: 0
A111: ~
A112: ~ | C112: =SUM(D112:BA112) -> 0
A113: ~ | D113: =IF((D112=0)*OR($C112=0),0,D112/$C112) -> 0 | E113: 0 | F113: 0 | G113: 0 | H113: 0 | I113: 0 | J113: 0 | K113: 0 | L113: 0 | M113: 0 | N113: 0 | O113: 0 | P113: 0 | Q113: 0 | R113: 0 | S113: 0 | T113: 0 | U113: 0 | V113: 0 | W113: 0 | X113: 0 | Y113: 0 | Z113: 0 | AA113: 0 | AB113: 0 | AC113: 0 | AD113: 0 | AE113: 0 | AF113: 0 | AG113: 0 | AH113: 0 | AI113: 0 | AJ113: =IF((AJ112=0)*OR($C112=0),0,AJ112/$C112) -> 0 | AK113: 0 | AL113: 0 | AM113: 0 | AN113: 0 | AO113: 0 | AP113: 0 | AQ113: 0 | AR113: =IF((AR112=0)*OR($C112=0),0,AR112/$C112) -> 0 | AS113: 0 | AT113: 0 | AU113: 0 | AV113: 0 | AW113: 0 | AX113: 0 | AY113: 0 | AZ113: 0 | BA113: =IF((BA112=0)*OR($C112=0),0,BA112/$C112) -> 0 | BB113: 0 | BC113: 0 | BD113: 0 | BE113: 0 | BF113: 0 | BG113: 0 | BH113: 0 | BI113: 0 | BJ113: 0 | BK113: 0 | BL113: 0 | BM113: 0 | BN113: 0 | BO113: 0 | BP113: 0 | BQ113: 0 | BR113: 0 | BS113: 0 | BT113: 0 | BU113: 0 | BV113: 0 | BW113: 0 | BX113: 0 | BY113: 0
A114: ~

Sheet ACCOUNTS
A1: Account Inputs
A3: No. | B3: Account Description | D3: =+INPUTS!B5 -> Historic Test Year Twelve Months ended December 2010 | E3: Pro Forma Adjustments | F3: Rate Increase Related Adjustments | G3: =INPUTS!B6 -> Adjusted Test Year Twelve Months ended December 2010 @ Proforma Rev Requirement | I3: Function | J3: Classifier | K3: =INPUTS!$B$42 -> DEM | L3: =INPUTS!$B$43 -> NRG | M3: =INPUTS!$B$44 -> CUS | N3: =INPUTS!$B$45 -> ~ | O3: =INPUTS!$B$46 -> ~ | P3: =INPUTS!$B$47 -> ~ | R3: Internal
A5: RATE BASE
A7: Plant-in-Service
B9: Intangible Plant
A10: 300 | B10: Production Plant | C10: =CHOOSE(INPUTS!$C$11,SUM($D10),SUM($D10,$E10),SUM($D10,$E10,$F10),$G10,$G10) -> 52790811 | D10: 52790811 | G10: =D10+E10+F10 -> 52790811 | R10: PP.T
A11: 300.01 | B11: General Plant | C11: =CHOOSE(INPUTS!$C$11,SUM($D11),SUM($D11,$E11),SUM($D11,$E11,$F11),$G11,$G11) -> 136762676 | D11: 136762676 | G11: =D11+E11+F11 -> 136762676 | R11: GP.T
A12: ~ | B12: ~ | C12: =CHOOSE(INPUTS!$C$11,SUM($D12),SUM($D12,$E12),SUM($D12,$E12,$F12),$G12,$G12) -> 0 | D12: 0 | G12: =D12+E12+F12 -> 0
B13: Sub-total | C13: =SUM(C10:C12) -> 189553487 | D13: =SUM(D10:D12) -> 189553487 | E13: =SUM(E10:E12) -> 0 | F13: =SUM(F10:F12) -> 0 | G13: =SUM(G10:G12) -> 189553487
B15: Production Plant
A16: 310 | B16: Thermal Baseload Generation | C16: =CHOOSE(INPUTS!$C$11,SUM($D16),SUM($D16,$E16),SUM($D16,$E16,$F16),$G16,$G16) -> 1108157180 | D16: 1131920639 | E16: -23763459 | G16: =D16+E16+F16 -> 1108157180 | I16: F_PRODU | J16: PC4 | K16: DEM_2B | L16: ENERGY_2
A17: 330 | B17: Hydro Baseload Generation | C17: =CHOOSE(INPUTS!$C$11,SUM($D17),SUM($D17,$E17),SUM($D17,$E17,$F17),$G17,$G17) -> 265007486 | D17: 270690339 | E17: -5682853 | G17: 265007486 | I17: F_PRODU | J17: PC4 | K17: DEM_2B | L17: ENERGY_2
A18: 340 | B18: Other Production Generation | C18: =CHOOSE(INPUTS!$C$11,SUM($D18),SUM($D18,$E18),SUM($D18,$E18,$F18),$G18,$G18) -> 1885899257 | D18: 1159678702 | E18: 726220555 | G18: 1885899257 | I18: F_PRODU | J18: PC4 | K18: DEM_2B | L18: ENERGY_2
A19: ~ | B19: ~ | C19: =CHOOSE(INPUTS!$C$11,SUM($D19),SUM($D19,$E19),SUM($D19,$E19,$F19),$G19,$G19) -> 0 | D19: 0 | G19: 0
A20: ~ | B20: ~ | C20: =CHOOSE(INPUTS!$C$11,SUM($D20),SUM($D20,$E20),SUM($D20,$E20,$F20),$G20,$G20) -> 0 | D20: 0 | G20: 0
A21: ~ | B21: ~ | C21: =CHOOSE(INPUTS!$C$11,SUM($D21),SUM($D21,$E21),SUM($D21,$E21,$F21),$G21,$G21) -> 0 | D21: 0 | G21: 0
A22: ~ | B22: ~ | C22: =CHOOSE(INPUTS!$C$11,SUM($D22),SUM($D22,$E22),SUM($D22,$E22,$F22),$G22,$G22) -> 0 | D22: 0 | G22: 0
A23: ~ | B23: ~ | C23: =CHOOSE(INPUTS!$C$11,SUM($D23),SUM($D23,$E23),SUM($D23,$E23,$F23),$G23,$G23) -> 0 | D23: 0 | G23: 0
A24: ~ | B24: ~ | C24: =CHOOSE(INPUTS!$C$11,SUM($D24),SUM($D24,$E24),SUM($D24,$E24,$F24),$G24,$G24) -> 0 | D24: 0 | G24: 0
A25: ~ | B25: ~ | C25: =CHOOSE(INPUTS!$C$11,SUM($D25),SUM($D25,$E25),SUM($D25,$E25,$F25),$G25,$G25) -> 0 | D25: 0 | G25: 0
A26: ~ | B26: ~ | C26: =CHOOSE(INPUTS!$C$11,SUM($D26),SUM($D26,$E26),SUM($D26,$E26,$F26),$G26,$G26) -> 0 | D26: 0 | G26: 0
A27: ~ | B27: ~ | C27: =CHOOSE(INPUTS!$C$11,SUM($D27),SUM($D27,$E27),SUM($D27,$E27,$F27),$G27,$G27) -> 0 | D27: 0 | G27: 0
B28: Sub-total | C28: =SUM(C16:C27) -> 3259063923 | D28: =SUM(D16:D27) -> 2562289680 | E28: =SUM(E16:E27) -> 696774243 | F28: =SUM(F16:F27) -> 0 | G28: =SUM(G16:G27) -> 3259063923
B30: Transmission Plant
A31: 350 | B31: Transmission Plant - Integrated Generation | C31: =CHOOSE(INPUTS!$C$11,SUM($D31),SUM($D31,$E31),SUM($D31,$E31,$F31),$G31,$G31) -> 231649100 | D31: 231649100 | G31: =D31+E31+F31 -> 231649100 | I31: F_TRANS | J31: PC4 | K31: DEM_2B | L31: ENERGY_2
A32: 350.01 | B32: Bulk Transmission Plant (>230 kV) | C32: =CHOOSE(INPUTS!$C$11,SUM($D32),SUM($D32,$E32),SUM($D32,$E32,$F32),$G32,$G32) -> 178367968 | D32: 178367968 | G32: 178367968 | I32: F_TRANS | J32: PC3 | K32: DEM_2A | L32: ENERGY_1
A33: 350.02 | B33: Sub Transmission Plant (<230 kV) | C33: =CHOOSE(INPUTS!$C$11,SUM($D33),SUM($D33,$E33),SUM($D33,$E33,$F33),$G33,$G33) -> 15069546 | D33: 15069546 | G33: 15069546 | I33: F_TRANS | J33: PC3 | K33: DEM_2A | L33: ENERGY_1
A34: ~ | B34: ~ | C34: =CHOOSE(INPUTS!$C$11,SUM($D34),SUM($D34,$E34),SUM($D34,$E34,$F34),$G34,$G34) -> 0 | D34: 0 | E34: 0 | F34: 0 | G34: 0
A35: ~ | B35: ~ | C35: =CHOOSE(INPUTS!$C$11,SUM($D35),SUM($D35,$E35),SUM($D35,$E35,$F35),$G35,$G35) -> 0 | D35: 0 | E35: 0 | F35: 0 | G35: 0
A36: ~ | B36: ~ | C36: =CHOOSE(INPUTS!$C$11,SUM($D36),SUM($D36,$E36),SUM($D36,$E36,$F36),$G36,$G36) -> 0 | D36: 0 | E36: 0 | F36: 0 | G36: 0
A37: ~ | B37: ~ | C37: =CHOOSE(INPUTS!$C$11,SUM($D37),SUM($D37,$E37),SUM($D37,$E37,$F37),$G37,$G37) -> 0 | D37: 0 | E37: 0 | F37: 0 | G37: 0
A38: ~ | B38: ~ | C38: =CHOOSE(INPUTS!$C$11,SUM($D38),SUM($D38,$E38),SUM($D38,$E38,$F38),$G38,$G38) -> 0 | D38: 0 | E38: 0 | F38: 0 | G38: 0
B39: Sub-total | C39: =SUM(C31:C38) -> 425086614 | D39: =SUM(D31:D38) -> 425086614 | E39: =SUM(E31:E38) -> 0 | F39: =SUM(F31:F38) -> 0 | G39: =SUM(G31:G38) -> 425086614
B41: Distribution Plant
A42: 360.01 | B42: Land & Land Rights - Assigned | C42: =CHOOSE(INPUTS!$C$11,SUM($D42),SUM($D42,$E42),SUM($D42,$E42,$F42),$G42,$G42) -> 1611005.222 | D42: 1611005.222 | G42: =D42+E42+F42 -> 1611005.222 | I42: F_DISTR | J42: DEM | K42: DIR360.01
A43: 360.02 | B43: Land & Land Rights - Allocated | C43: =CHOOSE(INPUTS!$C$11,SUM($D43),SUM($D43,$E43),SUM($D43,$E43,$F43),$G43,$G43) -> 25360743.86 | D43: 25360743.86 | G43: 25360743.86 | I43: F_DISTR | J43: DEM | K43: NCP_360
A44: 360.03 | B44: Land & Land Rights - - HV Distribution | C44: =CHOOSE(INPUTS!$C$11,SUM($D44),SUM($D44,$E44),SUM($D44,$E44,$F44),$G44,$G44) -> 51635827.15 | D44: 51635827.15 | G44: 51635827.15 | I44: F_DISTR | J44: PC3 | K44: DEM_2A | L44: ENERGY_1
A45: 361.01 | B45: Structures & Improve - Assigned | C45: =CHOOSE(INPUTS!$C$11,SUM($D45),SUM($D45,$E45),SUM($D45,$E45,$F45),$G45,$G45) -> 418047.0237 | D45: 418047.0237 | G45: 418047.0237 | I45: F_DISTR | J45: DEM | K45: DIR361.01
A46: 361.02 | B46: Structures & Improve - Allocated | C46: =CHOOSE(INPUTS!$C$11,SUM($D46),SUM($D46,$E46),SUM($D46,$E46,$F46),$G46,$G46) -> 5167330.914 | D46: 5167330.914 | G46: 5167330.914 | I46: F_DISTR | J46: DEM | K46: NCP_361
A47: 361.03 | B47: Structures & Improve - - HV Distribution | C47: =CHOOSE(INPUTS!$C$11,SUM($D47),SUM($D47,$E47),SUM($D47,$E47,$F47),$G47,$G47) -> 2460704.51 | D47: 2460704.51 | G47: 2460704.51 | I47: F_DISTR | J47: PC3 | K47: DEM_2A | L47: ENERGY_1
A48: 362.01 | B48: Station Equipment - Assigned | C48: =CHOOSE(INPUTS!$C$11,SUM($D48),SUM($D48,$E48),SUM($D48,$E48,$F48),$G48,$G48) -> 24960779.12 | D48: 24960779.12 | G48: 24960779.12 | I48: F_DISTR | J48: DEM | K48: DIR362.01
A49: 362.02 | B49: Station Equipment - Allocated | C49: =CHOOSE(INPUTS!$C$11,SUM($D49),SUM($D49,$E49),SUM($D49,$E49,$F49),$G49,$G49) -> 307367962.6 | D49: 307496209.6 | E49: -128247 | G49: 307367962.6 | I49: F_DISTR | J49: DEM | K49: NCP_362
A50: 362.03 | B50: Station Equipment - - HV Distribution | C50: =CHOOSE(INPUTS!$C$11,SUM($D50),SUM($D50,$E50),SUM($D50,$E50,$F50),$G50,$G50) -> 222299815.5 | D50: 222299815.5 | G50: 222299815.5 | I50: F_DISTR | J50: PC3 | K50: DEM_2A | L50: ENERGY_1
A51: 364 | B51: Poles Towers & Fixtures | C51: =CHOOSE(INPUTS!$C$11,SUM($D51),SUM($D51,$E51),SUM($D51,$E51,$F51),$G51,$G51) -> 231436538.4 | D51: 231498463.4 | E51: -61925 | G51: 231436538.4 | I51: F_DISTR | J51: DEM | K51: OH_NCP
A52: 364.01 | B52: Poles Towers & Fixtures - HV Distribution | C52: =CHOOSE(INPUTS!$C$11,SUM($D52),SUM($D52,$E52),SUM($D52,$E52,$F52),$G52,$G52) -> 170912245 | D52: 170912245 | G52: =D52+E52+F52 -> 170912245 | I52: F_DISTR | J52: PC3 | K52: DEM_2A | L52: ENERGY_1
A53: 365 | B53: OH Lines Direct Assignment | C53: =CHOOSE(INPUTS!$C$11,SUM($D53),SUM($D53,$E53),SUM($D53,$E53,$F53),$G53,$G53) -> 2527587.36 | D53: 2527587.36 | G53: 2527587.36 | I53: F_DISTR | J53: DEM | K53: DIR364.01
A54: 365.01 | B54: OVHD Cond & Devices | C54: =CHOOSE(INPUTS!$C$11,SUM($D54),SUM($D54,$E54),SUM($D54,$E54,$F54),$G54,$G54) -> 281983625.3 | D54: 282059012.3 | E54: -75387 | G54: 281983625.3 | I54: F_DISTR | J54: DEM | K54: OH_NCP
A55: 365.03 | B55: OVHD Cond & Devices - HV Distribution | C55: =CHOOSE(INPUTS!$C$11,SUM($D55),SUM($D55,$E55),SUM($D55,$E55,$F55),$G55,$G55) -> 131895724.2 | D55: 131895724.2 | G55: =D55+E55+F55 -> 131895724.2 | I55: F_DISTR | J55: PC3 | K55: DEM_2A | L55: ENERGY_1
A56: 366 | B56: UG Conduit | C56: =CHOOSE(INPUTS!$C$11,SUM($D56),SUM($D56,$E56),SUM($D56,$E56,$F56),$G56,$G56) -> 551772558.7 | D56: 551791405.7 | E56: -18847 | G56: 551772558.7 | I56: F_DISTR | J56: DEM | K56: UG_NCP
A57: 366.01 | B57: UG Conduit - HV Distribution | C57: =CHOOSE(INPUTS!$C$11,SUM($D57),SUM($D57,$E57),SUM($D57,$E57,$F57),$G57,$G57) -> 700574.85 | D57: 700574.85 | G57: =D57+E57+F57 -> 700574.85 | I57: F_DISTR | J57: PC3 | K57: DEM_2A | L57: ENERGY_1
A58: 366.02 | B58: UG Conduit Direct Assignment | C58: =CHOOSE(INPUTS!$C$11,SUM($D58),SUM($D58,$E58),SUM($D58,$E58,$F58),$G58,$G58) -> 25269502.76 | D58: 25269502.76 | G58: 25269502.76 | I58: F_DISTR | J58: DEM | K58: DIR366.01
A59: 367 | B59: UG Conductor & Devices | C59: =CHOOSE(INPUTS!$C$11,SUM($D59),SUM($D59,$E59),SUM($D59,$E59,$F59),$G59,$G59) -> 647702409.8 | D59: 647702409.8 | G59: 647702409.8 | I59: F_DISTR | J59: DEM | K59: UG_NCP
A60: 367.01 | B60: UG Conductor & Devices - HV Distribution | C60: =CHOOSE(INPUTS!$C$11,SUM($D60),SUM($D60,$E60),SUM($D60,$E60,$F60),$G60,$G60) -> 2937079.22 | D60: 2937079.22 | G60: =D60+E60+F60 -> 2937079.22 | I60: F_DISTR | J60: PC3 | K60: DEM_2A | L60: ENERGY_1
A61: 368.OH | B61: Line Transf OVHD | C61: =CHOOSE(INPUTS!$C$11,SUM($D61),SUM($D61,$E61),SUM($D61,$E61,$F61),$G61,$G61) -> 138085648.8 | D61: 138085648.8 | G61: 138085648.8 | I61: F_DISTR | J61: TFR | K61: OH_TFMR | M61: OH_TFMRC
A62: 368.UG | B62: Line Transf UNGD | C62: =CHOOSE(INPUTS!$C$11,SUM($D62),SUM($D62,$E62),SUM($D62,$E62,$F62),$G62,$G62) -> 261219746.9 | D62: 261219746.9 | G62: 261219746.9 | I62: F_DISTR | J62: TFR | K62: UG_TFMR | M62: UG_TFMRC
A63: 368.03 | B63: Line Transf Assigned | C63: =CHOOSE(INPUTS!$C$11,SUM($D63),SUM($D63,$E63),SUM($D63,$E63,$F63),$G63,$G63) -> 3755940.975 | D63: 3755940.975 | G63: 3755940.975 | I63: F_DISTR | J63: TFR | K63: DIR368.03 | M63: DIR368.03C
A64: 369.OH | B64: Services - OVHD | C64: =CHOOSE(INPUTS!$C$11,SUM($D64),SUM($D64,$E64),SUM($D64,$E64,$F64),$G64,$G64) -> 41858523.86 | D64: 41858523.86 | G64: 41858523.86 | I64: F_DISTR | J64: CUS | M64: OH_SVC
A65: 369.UG | B65: Services - UNGD | C65: =CHOOSE(INPUTS!$C$11,SUM($D65),SUM($D65,$E65),SUM($D65,$E65,$F65),$G65,$G65) -> 136280318.4 | D65: 136280318.4 | G65: 136280318.4 | I65: F_DISTR | J65: CUS | M65: RESID
A66: 370 | B66: Meters | C66: =CHOOSE(INPUTS!$C$11,SUM($D66),SUM($D66,$E66),SUM($D66,$E66,$F66),$G66,$G66) -> 127180593.2 | D66: 127180593.2 | G66: 127180593.2 | I66: F_DISTR | J66: CUS | M66: METER
A67: 372 | B67: Leased Prop Assigned - Water Htrs | C67: =CHOOSE(INPUTS!$C$11,SUM($D67),SUM($D67,$E67),SUM($D67,$E67,$F67),$G67,$G67) -> 640774.6012 | D67: 640774.6012 | G67: 640774.6012 | I67: F_DISTR | J67: CUS | M67: DIR372.00
A68: 373 | B68: Str & Area Lighting Sys | C68: =CHOOSE(INPUTS!$C$11,SUM($D68),SUM($D68,$E68),SUM($D68,$E68,$F68),$G68,$G68) -> 54753288.5 | D68: 54753288.5 | G68: 54753288.5 | I68: F_DISTR | J68: CUS | M68: DIR373.00
A69: 374 | B69: Asset Retirement Obligation | C69: =CHOOSE(INPUTS!$C$11,SUM($D69),SUM($D69,$E69),SUM($D69,$E69,$F69),$G69,$G69) -> 4204447.658 | D69: 4204447.658 | G69: 4204447.658 | R69: LINE.T
A70: ~ | B70: ~ | C70: =CHOOSE(INPUTS!$C$11,SUM($D70),SUM($D70,$E70),SUM($D70,$E70,$F70),$G70,$G70) -> 0 | D70: 0 | E70: 0 | F70: 0 | G70: 0
B71: Sub-total | C71: =SUM(C42:C70) -> 3456399344 | D71: =SUM(D42:D70) -> 3456683750 | E71: =SUM(E42:E70) -> -284406 | F71: =SUM(F42:F70) -> 0 | G71: =SUM(G42:G70) -> 3456399344
B73: General Plant
A74: 389 | B74: Land & Land Rights | C74: =CHOOSE(INPUTS!$C$11,SUM($D74),SUM($D74,$E74),SUM($D74,$E74,$F74),$G74,$G74) -> 7549078 | D74: 7549078 | G74: =D74+E74+F74 -> 7549078 | R74: SW.T
A75: 390 | B75: Structures & Improvements | C75: =CHOOSE(INPUTS!$C$11,SUM($D75),SUM($D75,$E75),SUM($D75,$E75,$F75),$G75,$G75) -> 136331046 | D75: 136331046 | G75: 136331046 | R75: SW.T
A76: 391 | B76: Office Furniture & Equip | C76: =CHOOSE(INPUTS!$C$11,SUM($D76),SUM($D76,$E76),SUM($D76,$E76,$F76),$G76,$G76) -> 60368671 | D76: 60368671 | G76: 60368671 | R76: SW.T
A77: 392 | B77: Transportation Equip | C77: =CHOOSE(INPUTS!$C$11,SUM($D77),SUM($D77,$E77),SUM($D77,$E77,$F77),$G77,$G77) -> 12487124 | D77: 12487124 | G77: 12487124 | R77: SW.T
A78: 393 | B78: Stores Equip | C78: =CHOOSE(INPUTS!$C$11,SUM($D78),SUM($D78,$E78),SUM($D78,$E78,$F78),$G78,$G78) -> 618669 | D78: 618669 | G78: 618669 | R78: PTDP.T
A79: 394 | B79: Tools & Shop & Garage Equip | C79: =CHOOSE(INPUTS!$C$11,SUM($D79),SUM($D79,$E79),SUM($D79,$E79,$F79),$G79,$G79) -> 6254753 | D79: 6254753 | G79: 6254753 | R79: SWPTD.T
A80: 395 | B80: Lab Equip | C80: =CHOOSE(INPUTS!$C$11,SUM($D80),SUM($D80,$E80),SUM($D80,$E80,$F80),$G80,$G80) -> 10399480 | D80: 10399480 | G80: 10399480 | R80: SWPTD.T
A81: 396 | B81: Power Operated Equip | C81: =CHOOSE(INPUTS!$C$11,SUM($D81),SUM($D81,$E81),SUM($D81,$E81,$F81),$G81,$G81) -> 5795732 | D81: 5795732 | G81: 5795732 | R81: SWPTD.T
A82: 397 | B82: Communication Equip | C82: =CHOOSE(INPUTS!$C$11,SUM($D82),SUM($D82,$E82),SUM($D82,$E82,$F82),$G82,$G82) -> 58817546 | D82: 58817546 | G82: 58817546 | R82: SW.T
A83: 398 | B83: Miscellaneous Equip | C83: =CHOOSE(INPUTS!$C$11,SUM($D83),SUM($D83,$E83),SUM($D83,$E83,$F83),$G83,$G83) -> 815052 | D83: 815052 | G83: 815052 | R83: SW.T
A84: 399 | B84: Other Tangible Property | C84: =CHOOSE(INPUTS!$C$11,SUM($D84),SUM($D84,$E84),SUM($D84,$E84,$F84),$G84,$G84) -> 41998 | D84: 41998 | G84: =D84+E84+F84 -> 41998 | R84: SW.T
A85: ~ | B85: ~ | C85: =CHOOSE(INPUTS!$C$11,SUM($D85),SUM($D85,$E85),SUM($D85,$E85,$F85),$G85,$G85) -> 0 | D85: 0 | E85: 0 | F85: 0 | G85: 0
A86: ~ | B86: ~ | C86: =CHOOSE(INPUTS!$C$11,SUM($D86),SUM($D86,$E86),SUM($D86,$E86,$F86),$G86,$G86) -> 0 | D86: 0 | E86: 0 | F86: 0 | G86: 0
B87: Sub-total | C87: =SUM(C74:C86) -> 299479149 | D87: =SUM(D74:D86) -> 299479149 | E87: =SUM(E74:E86) -> 0 | F87: =SUM(F74:F86) -> 0 | G87: =SUM(G74:G86) -> 299479149
B89: TOTAL PLANT-IN-SERVICE | C89: =SUM(C87,C71,C39,C28,C13) -> 7629582517 | D89: =SUM(D87,D71,D39,D28,D13) -> 6933092680 | E89: =SUM(E87,E71,E39,E28,E13) -> 696489837 | F89: =SUM(F87,F71,F39,F28,F13) -> 0 | G89: =SUM(G87,G71,G39,G28,G13) -> 7629582517
A91: Accumulated Reserve for Depreciation
B93: Intangible Plant
A94: 111 | B94: Accum Amortization - Production | C94: =CHOOSE(INPUTS!$C$11,SUM($D94),SUM($D94,$E94),SUM($D94,$E94,$F94),$G94,$G94) -> -3373943 | D94: -3373943 | G94: =D94+E94+F94 -> -3373943 | R94: PP.T
A95: 111.01 | B95: Accum Amortization - General | C95: =CHOOSE(INPUTS!$C$11,SUM($D95),SUM($D95,$E95),SUM($D95,$E95,$F95),$G95,$G95) -> -92452881 | D95: -92452881 | F95: 0 | G95: =D95+E95+F95 -> -92452881 | R95: GP.T
A96: ~ | B96: ~ | C96: =CHOOSE(INPUTS!$C$11,SUM($D96),SUM($D96,$E96),SUM($D96,$E96,$F96),$G96,$G96) -> 0 | D96: 0 | E96: 0 | F96: 0 | G96: =D96+E96+F96 -> 0
B97: Sub-total | C97: =SUM(C94:C96) -> -95826824 | D97: =SUM(D94:D96) -> -95826824 | E97: =SUM(E94:E96) -> 0 | F97: =SUM(F94:F96) -> 0 | G97: =SUM(G94:G96) -> -95826824
B99: Production Plant
A100: 108.01 | B100: Accum Depreciation Thermal Baseload Generation | C100: =CHOOSE(INPUTS!$C$11,SUM($D100),SUM($D100,$E100),SUM($D100,$E100,$F100),$G100,$G100) -> -645044172 | D100: -658912477 | E100: 13868305 | F100: 0 | G100: =D100+E100+F100 -> -645044172 | R100: PP.T
A101: 108.02 | B101: Accum Depreciation Hydro Baseload Generation | C101: =CHOOSE(INPUTS!$C$11,SUM($D101),SUM($D101,$E101),SUM($D101,$E101,$F101),$G101,$G101) -> -144523308 | D101: -147630527 | E101: 3107219 | F101: 0 | G101: -144523308 | R101: PP.T
A102: 108.03 | B102: Accum Depreciation Other Production Generation | C102: =CHOOSE(INPUTS!$C$11,SUM($D102),SUM($D102,$E102),SUM($D102,$E102,$F102),$G102,$G102) -> -380319711 | D102: -366952714 | E102: -13366997 | F102: 0 | G102: -380319711 | R102: PP.T
A103: ~ | B103: ~ | C103: =CHOOSE(INPUTS!$C$11,SUM($D103),SUM($D103,$E103),SUM($D103,$E103,$F103),$G103,$G103) -> 0 | D103: 0 | E103: 0 | F103: 0 | G103: 0
A104: ~ | B104: ~ | C104: =CHOOSE(INPUTS!$C$11,SUM($D104),SUM($D104,$E104),SUM($D104,$E104,$F104),$G104,$G104) -> 0 | D104: 0 | E104: 0 | F104: 0 | G104: 0
A105: ~ | B105: ~ | C105: =CHOOSE(INPUTS!$C$11,SUM($D105),SUM($D105,$E105),SUM($D105,$E105,$F105),$G105,$G105) -> 0 | D105: 0 | E105: 0 | F105: 0 | G105: 0
A106: ~ | B106: ~ | C106: =CHOOSE(INPUTS!$C$11,SUM($D106),SUM($D106,$E106),SUM($D106,$E106,$F106),$G106,$G106) -> 0 | D106: 0 | E106: 0 | F106: 0 | G106: 0
A107: ~ | B107: ~ | C107: =CHOOSE(INPUTS!$C$11,SUM($D107),SUM($D107,$E107),SUM($D107,$E107,$F107),$G107,$G107) -> 0 | D107: 0 | E107: 0 | F107: 0 | G107: 0
A108: ~ | B108: ~ | C108: =CHOOSE(INPUTS!$C$11,SUM($D108),SUM($D108,$E108),SUM($D108,$E108,$F108),$G108,$G108) -> 0 | D108: 0 | E108: 0 | F108: 0 | G108: 0
A109: ~ | B109: ~ | C109: =CHOOSE(INPUTS!$C$11,SUM($D109),SUM($D109,$E109),SUM($D109,$E109,$F109),$G109,$G109) -> 0 | D109: 0 | E109: 0 | F109: 0 | G109: 0
A110: ~ | B110: ~ | C110: =CHOOSE(INPUTS!$C$11,SUM($D110),SUM($D110,$E110),SUM($D110,$E110,$F110),$G110,$G110) -> 0 | D110: 0 | E110: 0 | F110: 0 | G110: 0
A111: ~ | B111: ~ | C111: =CHOOSE(INPUTS!$C$11,SUM($D111),SUM($D111,$E111),SUM($D111,$E111,$F111),$G111,$G111) -> 0 | D111: 0 | E111: 0 | F111: 0 | G111: 0
B112: Sub-total | C112: =SUM(C100:C111) -> -1169887191 | D112: =SUM(D100:D111) -> -1173495718 | E112: =SUM(E100:E111) -> 3608527 | F112: =SUM(F100:F111) -> 0 | G112: =SUM(G100:G111) -> -1169887191
B114: Transmisson Plant
A115: 108.04_IG | B115: Accum Depreciation Integrating Gen Transmisson Plant | C115: =CHOOSE(INPUTS!$C$11,SUM($D115),SUM($D115,$E115),SUM($D115,$E115,$F115),$G115,$G115) -> -95119778 | D115: -95119778 | G115: =D115+E115+F115 -> -95119778 | I115: F_TRANS | J115: PC4 | K115: DEM_2B | L115: ENERGY_2
A116: 108.04_BT | B116: Accum Depreciation Bulk Transmisson Plant >230kV | C116: =CHOOSE(INPUTS!$C$11,SUM($D116),SUM($D116,$E116),SUM($D116,$E116,$F116),$G116,$G116) -> -52064525 | D116: -52064525 | E116: 0 | F116: 0 | G116: -52064525 | I116: F_TRANS | J116: PC3 | K116: DEM_2A | L116: ENERGY_1
A117: 108.04_ST | B117: Accum Depreciation Sub Transmisson Plant <230kV | C117: =CHOOSE(INPUTS!$C$11,SUM($D117),SUM($D117,$E117),SUM($D117,$E117,$F117),$G117,$G117) -> -3100548 | D117: -3100548 | E117: 0 | F117: 0 | G117: -3100548 | I117: F_TRANS | J117: PC3 | K117: DEM_2A | L117: ENERGY_1
A118: ~ | B118: ~ | C118: =CHOOSE(INPUTS!$C$11,SUM($D118),SUM($D118,$E118),SUM($D118,$E118,$F118),$G118,$G118) -> 0 | D118: 0 | E118: 0 | F118: 0 | G118: 0
A119: ~ | B119: ~ | C119: =CHOOSE(INPUTS!$C$11,SUM($D119),SUM($D119,$E119),SUM($D119,$E119,$F119),$G119,$G119) -> 0 | D119: 0 | E119: 0 | F119: 0 | G119: 0
A120: ~ | B120: ~ | C120: =CHOOSE(INPUTS!$C$11,SUM($D120),SUM($D120,$E120),SUM($D120,$E120,$F120),$G120,$G120) -> 0 | D120: 0 | E120: 0 | F120: 0 | G120: 0
A121: ~ | B121: ~ | C121: =CHOOSE(INPUTS!$C$11,SUM($D121),SUM($D121,$E121),SUM($D121,$E121,$F121),$G121,$G121) -> 0 | D121: 0 | E121: 0 | F121: 0 | G121: 0
A122: ~ | B122: ~ | C122: =CHOOSE(INPUTS!$C$11,SUM($D122),SUM($D122,$E122),SUM($D122,$E122,$F122),$G122,$G122) -> 0 | D122: 0 | E122: 0 | F122: 0 | G122: 0
B123: Sub-total | C123: =SUM(C115:C122) -> -150284851 | D123: =SUM(D115:D122) -> -150284851 | E123: =SUM(E115:E122) -> 0 | F123: =SUM(F115:F122) -> 0 | G123: =SUM(G115:G122) -> -150284851
B125: Distribution Plant
A126: 108.05_360a | B126: Land Rights - Assigned | C126: =CHOOSE(INPUTS!$C$11,SUM($D126),SUM($D126,$E126),SUM($D126,$E126,$F126),$G126,$G126) -> -115.962295 | D126: -115.962295 | F126: 0 | G126: =D126+E126+F126 -> -115.962295 | I126: F_DISTR | J126: DEM | K126: DIR108.360
A127: 108.05_360b | B127: Land Rights - Allocated | C127: =CHOOSE(INPUTS!$C$11,SUM($D127),SUM($D127,$E127),SUM($D127,$E127,$F127),$G127,$G127) -> -2653199.61 | D127: -2653199.61 | F127: 0 | G127: =D127+E127+F127 -> -2653199.61 | I127: F_DISTR | J127: DEM | K127: NCP_360
A128: 108.05_360c | B128: Land Rights - HV Distribution | C128: =CHOOSE(INPUTS!$C$11,SUM($D128),SUM($D128,$E128),SUM($D128,$E128,$F128),$G128,$G128) -> -7126614.28 | D128: -7126614.28 | F128: 0 | G128: =D128+E128+F128 -> -7126614.28 | I128: F_DISTR | J128: PC3 | K128: DEM_2A | L128: ENERGY_1
A129: 108.05_361a | B129: Structures & Improve - Assigned | C129: =CHOOSE(INPUTS!$C$11,SUM($D129),SUM($D129,$E129),SUM($D129,$E129,$F129),$G129,$G129) -> -135708.5465 | D129: -135708.5465 | F129: 0 | G129: -135708.5465 | I129: F_DISTR | J129: DEM | K129: DIR108.361
A130: 108.05_361b | B130: Structures & Improve - Allocated | C130: =CHOOSE(INPUTS!$C$11,SUM($D130),SUM($D130,$E130),SUM($D130,$E130,$F130),$G130,$G130) -> -1116104.658 | D130: -1116104.658 | F130: 0 | G130: =D130+E130+F130 -> -1116104.658 | I130: F_DISTR | J130: DEM | K130: NCP_361
A131: 108.05_361c | B131: Structures & Improve - HV Distribution | C131: =CHOOSE(INPUTS!$C$11,SUM($D131),SUM($D131,$E131),SUM($D131,$E131,$F131),$G131,$G131) -> -1142919.39 | D131: -1142919.39 | F131: 0 | G131: =D131+E131+F131 -> -1142919.39 | I131: F_DISTR | J131: PC3 | K131: DEM_2A | L131: ENERGY_1
A132: 108.05_362a | B132: Station Equipment - Assigned | C132: =CHOOSE(INPUTS!$C$11,SUM($D132),SUM($D132,$E132),SUM($D132,$E132,$F132),$G132,$G132) -> -10263908.91 | D132: -10263908.91 | F132: 0 | G132: =D132+E132+F132 -> -10263908.91 | I132: F_DISTR | J132: DEM | K132: DIR108.362
A133: 108.05_362b | B133: Station Equipment - Allocated | C133: =CHOOSE(INPUTS!$C$11,SUM($D133),SUM($D133,$E133),SUM($D133,$E133,$F133),$G133,$G133) -> -94216767.02 | D133: -94230402.02 | E133: 13635 | F133: 0 | G133: -94216767.02 | I133: F_DISTR | J133: DEM | K133: NCP_362
A134: 108.05_362c | B134: Station Equipment - HV Distribution | C134: =CHOOSE(INPUTS!$C$11,SUM($D134),SUM($D134,$E134),SUM($D134,$E134,$F134),$G134,$G134) -> -70157723.85 | D134: -70157723.85 | F134: 0 | G134: -70157723.85 | I134: F_DISTR | J134: PC3 | K134: DEM_2A | L134: ENERGY_1
A135: 108.10_364a | B135: Poles Towers & Fixtures | C135: =CHOOSE(INPUTS!$C$11,SUM($D135),SUM($D135,$E135),SUM($D135,$E135,$F135),$G135,$G135) -> -81822774.53 | D135: -81826479.53 | E135: 3705 | F135: 0 | G135: -81822774.53 | I135: F_DISTR | J135: DEM | K135: OH_NCP
A136: 108.10_364b | B136: Poles Towers & Fixtures - HV Distribution | C136: =CHOOSE(INPUTS!$C$11,SUM($D136),SUM($D136,$E136),SUM($D136,$E136,$F136),$G136,$G136) -> -33613605.13 | D136: -33613605.13 | F136: 0 | G136: -33613605.13 | I136: F_DISTR | J136: PC3 | K136: DEM_2A | L136: ENERGY_1
A137: 108.10_364c | B137: Poles & OH Conductor - Assigned | C137: =CHOOSE(INPUTS!$C$11,SUM($D137),SUM($D137,$E137),SUM($D137,$E137,$F137),$G137,$G137) -> -2218090.224 | D137: -2218090.224 | F137: 0 | G137: =D137+E137+F137 -> -2218090.224 | I137: F_DISTR | J137: DEM | K137: DIR108.364
A138: 108.10_365a | B138: OVHD Cond & Devices | C138: =CHOOSE(INPUTS!$C$11,SUM($D138),SUM($D138,$E138),SUM($D138,$E138,$F138),$G138,$G138) -> -116942254.7 | D138: -116943074.7 | E138: 820 | F138: 0 | G138: =D138+E138+F138 -> -116942254.7 | I138: F_DISTR | J138: DEM | K138: OH_NCP
A139: 108.10_365b | B139: OVHD Cond & Devices - HV Distribution | C139: =CHOOSE(INPUTS!$C$11,SUM($D139),SUM($D139,$E139),SUM($D139,$E139,$F139),$G139,$G139) -> -57157053.35 | D139: -57157053.35 | F139: 0 | G139: =D139+E139+F139 -> -57157053.35 | I139: F_DISTR | J139: PC3 | K139: DEM_2A | L139: ENERGY_1
A140: 108.10_366a | B140: UNGD Conduit | C140: =CHOOSE(INPUTS!$C$11,SUM($D140),SUM($D140,$E140),SUM($D140,$E140,$F140),$G140,$G140) -> -178851778.2 | D140: -178852836.2 | E140: 1058 | F140: 0 | G140: =D140+E140+F140 -> -178851778.2 | I140: F_DISTR | J140: DEM | K140: UG_NCP
A141: 108.10_366b | B141: UNGD Conduit - HV Distribution | C141: =CHOOSE(INPUTS!$C$11,SUM($D141),SUM($D141,$E141),SUM($D141,$E141,$F141),$G141,$G141) -> -284426.74 | D141: -284426.74 | F141: 0 | G141: =D141+E141+F141 -> -284426.74 | I141: F_DISTR | J141: PC3 | K141: DEM_2A | L141: ENERGY_1
A142: 108.10_366c | B142: UG Conduit & Conductor - Assigned | C142: =CHOOSE(INPUTS!$C$11,SUM($D142),SUM($D142,$E142),SUM($D142,$E142,$F142),$G142,$G142) -> -9245198.315 | D142: -9245198.315 | F142: 0 | G142: -9245198.315 | I142: F_DISTR | J142: DEM | K142: DIR108.366
A143: 108.10_367a | B143: UNGDCond & Devices | C143: =CHOOSE(INPUTS!$C$11,SUM($D143),SUM($D143,$E143),SUM($D143,$E143,$F143),$G143,$G143) -> -235499958.6 | D143: -235499958.6 | F143: 0 | G143: -235499958.6 | I143: F_DISTR | J143: DEM | K143: UG_NCP
A144: 108.10_367b | B144: UNGDCond & Devices - HV Distribution | C144: =CHOOSE(INPUTS!$C$11,SUM($D144),SUM($D144,$E144),SUM($D144,$E144,$F144),$G144,$G144) -> -1922520.53 | D144: -1922520.53 | F144: 0 | G144: -1922520.53 | I144: F_DISTR | J144: PC3 | K144: DEM_2A | L144: ENERGY_1
A145: 108.10_368 | B145: Line Transformers | C145: =CHOOSE(INPUTS!$C$11,SUM($D145),SUM($D145,$E145),SUM($D145,$E145,$F145),$G145,$G145) -> -140230940.7 | D145: -140230940.7 | F145: 0 | G145: -140230940.7 | R145: D368.T
A146: 108.10_369 | B146: Services | C146: =CHOOSE(INPUTS!$C$11,SUM($D146),SUM($D146,$E146),SUM($D146,$E146,$F146),$G146,$G146) -> -102504204 | D146: -102504204 | F146: 0 | G146: -102504204 | R146: D369.T
A147: 108.10_370 | B147: Meters | C147: =CHOOSE(INPUTS!$C$11,SUM($D147),SUM($D147,$E147),SUM($D147,$E147,$F147),$G147,$G147) -> -39554358 | D147: -39554358 | F147: 0 | G147: -39554358 | R147: D370.T
A148: 108.10_372 | B148: Leased Prop Assigned - Water Htrs | C148: =CHOOSE(INPUTS!$C$11,SUM($D148),SUM($D148,$E148),SUM($D148,$E148,$F148),$G148,$G148) -> -737043.0954 | D148: -737043.0954 | F148: 0 | G148: -737043.0954 | I148: F_DISTR | J148: CUS | M148: DIR372.00
A149: 108.10_373 | B149: Str & Area Lighting Sys | C149: =CHOOSE(INPUTS!$C$11,SUM($D149),SUM($D149,$E149),SUM($D149,$E149,$F149),$G149,$G149) -> -24008418.44 | D149: -24008418.44 | F149: 0 | G149: -24008418.44 | I149: F_DISTR | J149: CUS | M149: DIR373.00
A150: 108.10_374 | B150: Asset Retirement Obligation | C150: =CHOOSE(INPUTS!$C$11,SUM($D150),SUM($D150,$E150),SUM($D150,$E150,$F150),$G150,$G150) -> -3565319.376 | D150: -3565319.376 | F150: 0 | G150: -3565319.376 | R150: LINE.T
A151: ~ | B151: ~ | C151: =CHOOSE(INPUTS!$C$11,SUM($D151),SUM($D151,$E151),SUM($D151,$E151,$F151),$G151,$G151) -> 0 | D151: 0 | E151: 0 | F151: 0 | G151: 0
A152: ~ | B152: ~ | C152: =CHOOSE(INPUTS!$C$11,SUM($D152),SUM($D152,$E152),SUM($D152,$E152,$F152),$G152,$G152) -> 0 | D152: 0 | E152: 0 | F152: 0 | G152: 0
A153: ~ | B153: ~ | C153: =CHOOSE(INPUTS!$C$11,SUM($D153),SUM($D153,$E153),SUM($D153,$E153,$F153),$G153,$G153) -> 0 | D153: 0 | E153: 0 | F153: 0 | G153: 0
A154: ~ | B154: ~ | C154: =CHOOSE(INPUTS!$C$11,SUM($D154),SUM($D154,$E154),SUM($D154,$E154,$F154),$G154,$G154) -> 0 | D154: 0 | E154: 0 | F154: 0 | G154: 0
B155: Sub-total | C155: =SUM(C126:C154) -> -1214971006 | D155: =SUM(D126:D154) -> -1214990224 | E155: =SUM(E126:E154) -> 19218 | F155: =SUM(F126:F154) -> 0 | G155: =SUM(G126:G154) -> -1214971006
B157: General Plant
A158: 108.06 | B158: Accum Depreciation General Plant | C158: =CHOOSE(INPUTS!$C$11,SUM($D158),SUM($D158,$E158),SUM($D158,$E158,$F158),$G158,$G158) -> -75827762 | D158: -75468118 | E158: -359644 | G158: =D158+E158+F158 -> -75827762 | R158: GP.T
A159: 108.07 | B159: RWIP | C159: =CHOOSE(INPUTS!$C$11,SUM($D159),SUM($D159,$E159),SUM($D159,$E159,$F159),$G159,$G159) -> 7210608 | D159: 7210608 | G159: 7210608 | R159: PTDGP.T
A160: ~ | B160: ~ | C160: =CHOOSE(INPUTS!$C$11,SUM($D160),SUM($D160,$E160),SUM($D160,$E160,$F160),$G160,$G160) -> 0 | D160: 0 | E160: 0 | F160: 0 | G160: =D160+E160+F160 -> 0
A161: ~ | B161: ~ | C161: =CHOOSE(INPUTS!$C$11,SUM($D161),SUM($D161,$E161),SUM($D161,$E161,$F161),$G161,$G161) -> 0 | D161: 0 | E161: 0 | F161: 0 | G161: 0
A162: ~ | B162: ~ | C162: =CHOOSE(INPUTS!$C$11,SUM($D162),SUM($D162,$E162),SUM($D162,$E162,$F162),$G162,$G162) -> 0 | D162: 0 | E162: 0 | F162: 0 | G162: 0
A163: ~ | B163: ~ | C163: =CHOOSE(INPUTS!$C$11,SUM($D163),SUM($D163,$E163),SUM($D163,$E163,$F163),$G163,$G163) -> 0 | D163: 0 | E163: 0 | F163: 0 | G163: 0
A164: ~ | B164: ~ | C164: =CHOOSE(INPUTS!$C$11,SUM($D164),SUM($D164,$E164),SUM($D164,$E164,$F164),$G164,$G164) -> 0 | D164: 0 | E164: 0 | F164: 0 | G164: 0
A165: ~ | B165: ~ | C165: =CHOOSE(INPUTS!$C$11,SUM($D165),SUM($D165,$E165),SUM($D165,$E165,$F165),$G165,$G165) -> 0 | D165: 0 | E165: 0 | F165: 0 | G165: 0
A166: ~ | B166: ~ | C166: =CHOOSE(INPUTS!$C$11,SUM($D166),SUM($D166,$E166),SUM($D166,$E166,$F166),$G166,$G166) -> 0 | D166: 0 | E166: 0 | F166: 0 | G166: 0
A167: ~ | B167: ~ | C167: =CHOOSE(INPUTS!$C$11,SUM($D167),SUM($D167,$E167),SUM($D167,$E167,$F167),$G167,$G167) -> 0 | D167: 0 | E167: 0 | F167: 0 | G167: 0
A168: ~ | B168: ~ | C168: =CHOOSE(INPUTS!$C$11,SUM($D168),SUM($D168,$E168),SUM($D168,$E168,$F168),$G168,$G168) -> 0 | D168: 0 | E168: 0 | F168: 0 | G168: 0
A169: ~ | B169: ~ | C169: =CHOOSE(INPUTS!$C$11,SUM($D169),SUM($D169,$E169),SUM($D169,$E169,$F169),$G169,$G169) -> 0 | D169: 0 | E169: 0 | F169: 0 | G169: 0
A170: ~ | B170: ~ | C170: =CHOOSE(INPUTS!$C$11,SUM($D170),SUM($D170,$E170),SUM($D170,$E170,$F170),$G170,$G170) -> 0 | D170: 0 | E170: 0 | F170: 0 | G170: 0
B171: Sub-total | C171: =SUM(C158:C170) -> -68617154 | D171: =SUM(D158:D170) -> -68257510 | E171: =SUM(E158:E170) -> -359644 | F171: =SUM(F158:F170) -> 0 | G171: =SUM(G158:G170) -> -68617154
B173: TOTAL ACCUMULATED RESERVE FOR DEPRECIATION | C173: =SUM(C171,C155,C123,C112,C97) -> -2699587026 | D173: =SUM(D171,D155,D123,D112,D97) -> -2702855127 | E173: =SUM(E171,E155,E123,E112,E97) -> 3268101 | F173: =SUM(F171,F155,F123,F112,F97) -> 0 | G173: =SUM(G171,G155,G123,G112,G97) -> -2699587026
A175: Rate Base Adjustments and Working Capital
B177: Construction Complete, Not Classified
A178: ~ | B178: ~ | C178: =CHOOSE(INPUTS!$C$11,SUM($D178),SUM($D178,$E178),SUM($D178,$E178,$F178),$G178,$G178) -> 0 | D178: 0 | E178: 0 | F178: 0 | G178: =D178+E178+F178 -> 0
A179: ~ | B179: ~ | C179: =CHOOSE(INPUTS!$C$11,SUM($D179),SUM($D179,$E179),SUM($D179,$E179,$F179),$G179,$G179) -> 0 | D179: 0 | E179: 0 | F179: 0 | G179: 0
A180: ~ | B180: ~ | C180: =CHOOSE(INPUTS!$C$11,SUM($D180),SUM($D180,$E180),SUM($D180,$E180,$F180),$G180,$G180) -> 0 | D180: 0 | E180: 0 | F180: 0 | G180: 0
A181: ~ | B181: ~ | C181: =CHOOSE(INPUTS!$C$11,SUM($D181),SUM($D181,$E181),SUM($D181,$E181,$F181),$G181,$G181) -> 0 | D181: 0 | E181: 0 | F181: 0 | G181: 0
A182: ~ | B182: ~ | C182: =CHOOSE(INPUTS!$C$11,SUM($D182),SUM($D182,$E182),SUM($D182,$E182,$F182),$G182,$G182) -> 0 | D182: 0 | E182: 0 | F182: 0 | G182: 0
A183: ~ | B183: ~ | C183: =CHOOSE(INPUTS!$C$11,SUM($D183),SUM($D183,$E183),SUM($D183,$E183,$F183),$G183,$G183) -> 0 | D183: 0 | E183: 0 | F183: 0 | G183: 0
B184: Sub-total | C184: =SUM(C178:C183) -> 0 | D184: =SUM(D178:D183) -> 0 | E184: =SUM(E178:E183) -> 0 | F184: =SUM(F178:F183) -> 0 | G184: =SUM(G178:G183) -> 0
B186: Working Capital Assets
A187: WC | B187: Working Capital | C187: =CHOOSE(INPUTS!$C$11,SUM($D187),SUM($D187,$E187),SUM($D187,$E187,$F187),$G187,$G187) -> 203573761 | D187: 204952589 | E187: -1378828 | G187: =D187+E187+F187 -> 203573761 | R187: EPIS.T
A188: ~ | B188: ~ | C188: =CHOOSE(INPUTS!$C$11,SUM($D188),SUM($D188,$E188),SUM($D188,$E188,$F188),$G188,$G188) -> 0 | D188: 0 | E188: 0 | F188: 0 | G188: 0
A189: ~ | B189: ~ | C189: =CHOOSE(INPUTS!$C$11,SUM($D189),SUM($D189,$E189),SUM($D189,$E189,$F189),$G189,$G189) -> 0 | D189: 0 | E189: 0 | F189: 0 | G189: 0
A190: ~ | B190: ~ | C190: =CHOOSE(INPUTS!$C$11,SUM($D190),SUM($D190,$E190),SUM($D190,$E190,$F190),$G190,$G190) -> 0 | D190: 0 | E190: 0 | F190: 0 | G190: 0
A191: ~ | B191: ~ | C191: =CHOOSE(INPUTS!$C$11,SUM($D191),SUM($D191,$E191),SUM($D191,$E191,$F191),$G191,$G191) -> 0 | D191: 0 | E191: 0 | F191: 0 | G191: 0
A192: ~ | B192: ~ | C192: =CHOOSE(INPUTS!$C$11,SUM($D192),SUM($D192,$E192),SUM($D192,$E192,$F192),$G192,$G192) -> 0 | D192: 0 | E192: 0 | F192: 0 | G192: 0
A193: ~ | B193: ~ | C193: =CHOOSE(INPUTS!$C$11,SUM($D193),SUM($D193,$E193),SUM($D193,$E193,$F193),$G193,$G193) -> 0 | D193: 0 | E193: 0 | F193: 0 | G193: 0
A194: ~ | B194: ~ | C194: =CHOOSE(INPUTS!$C$11,SUM($D194),SUM($D194,$E194),SUM($D194,$E194,$F194),$G194,$G194) -> 0 | D194: 0 | E194: 0 | F194: 0 | G194: 0
A195: ~ | B195: ~ | C195: =CHOOSE(INPUTS!$C$11,SUM($D195),SUM($D195,$E195),SUM($D195,$E195,$F195),$G195,$G195) -> 0 | D195: 0 | E195: 0 | F195: 0 | G195: 0
A196: ~ | B196: ~ | C196: =CHOOSE(INPUTS!$C$11,SUM($D196),SUM($D196,$E196),SUM($D196,$E196,$F196),$G196,$G196) -> 0 | D196: 0 | E196: 0 | F196: 0 | G196: 0
A197: ~ | B197: ~ | C197: =CHOOSE(INPUTS!$C$11,SUM($D197),SUM($D197,$E197),SUM($D197,$E197,$F197),$G197,$G197) -> 0 | D197: 0 | E197: 0 | F197: 0 | G197: 0
A198: ~ | B198: ~ | C198: =CHOOSE(INPUTS!$C$11,SUM($D198),SUM($D198,$E198),SUM($D198,$E198,$F198),$G198,$G198) -> 0 | D198: 0 | E198: 0 | F198: 0 | G198: 0
A199: ~ | B199: ~ | C199: =CHOOSE(INPUTS!$C$11,SUM($D199),SUM($D199,$E199),SUM($D199,$E199,$F199),$G199,$G199) -> 0 | D199: 0 | E199: 0 | F199: 0 | G199: 0
A200: ~ | B200: ~ | C200: =CHOOSE(INPUTS!$C$11,SUM($D200),SUM($D200,$E200),SUM($D200,$E200,$F200),$G200,$G200) -> 0 | D200: 0 | E200: 0 | F200: 0 | G200: 0
A201: ~ | B201: ~ | C201: =CHOOSE(INPUTS!$C$11,SUM($D201),SUM($D201,$E201),SUM($D201,$E201,$F201),$G201,$G201) -> 0 | D201: 0 | E201: 0 | F201: 0 | G201: 0
A202: ~ | B202: ~ | C202: =CHOOSE(INPUTS!$C$11,SUM($D202),SUM($D202,$E202),SUM($D202,$E202,$F202),$G202,$G202) -> 0 | D202: 0 | E202: 0 | F202: 0 | G202: 0
B203: Sub-total | C203: =SUM(C187:C202) -> 203573761 | D203: =SUM(D187:D202) -> 204952589 | E203: =SUM(E187:E202) -> -1378828 | F203: =SUM(F187:F202) -> 0 | G203: =SUM(G187:G202) -> 203573761
B205: Other Items
A206: 182.01 | B206: Misc Def Debits - Production | C206: =CHOOSE(INPUTS!$C$11,SUM($D206),SUM($D206,$E206),SUM($D206,$E206,$F206),$G206,$G206) -> 234576391.9 | D206: 231894002.9 | E206: 2682389 | G206: =D206+E206+F206 -> 234576391.9 | I206: F_PRODU | J206: PC4 | K206: DEM_2B | L206: ENERGY_2
A207: 182.02 | B207: Misc Def Debits - Transmission | C207: =CHOOSE(INPUTS!$C$11,SUM($D207),SUM($D207,$E207),SUM($D207,$E207,$F207),$G207,$G207) -> 126136837 | D207: 9314020 | E207: 116822817 | G207: 126136837 | I207: F_TRANS | J207: PC4 | K207: DEM_2B | L207: ENERGY_2
A208: 282 | B208: Accum Deferred Income Tax - Prod | C208: =CHOOSE(INPUTS!$C$11,SUM($D208),SUM($D208,$E208),SUM($D208,$E208,$F208),$G208,$G208) -> -97260926 | D208: -36913960 | E208: -60346966 | G208: -97260926 | R208: PP.T
A209: 282.01 | B209: Accum Deferred Income Tax - General | C209: =CHOOSE(INPUTS!$C$11,SUM($D209),SUM($D209,$E209),SUM($D209,$E209,$F209),$G209,$G209) -> -619618722 | D209: -619744597 | E209: 125875 | G209: -619618722 | R209: PTDP.T
A210: 235 | B210: Customer Deposits | C210: =CHOOSE(INPUTS!$C$11,SUM($D210),SUM($D210,$E210),SUM($D210,$E210,$F210),$G210,$G210) -> -18134171 | D210: -18134171 | G210: -18134171 | I210: F_DISTR | J210: CUS | M210: DIR235.00
A211: 235.01 | B211: Customer Deposits - Transmission | C211: =CHOOSE(INPUTS!$C$11,SUM($D211),SUM($D211,$E211),SUM($D211,$E211,$F211),$G211,$G211) -> -2472594 | D211: -2472594 | G211: -2472594 | I211: F_DISTR | J211: CUS | M211: DIR235.00
A212: 252 | B212: Customer Advances | C212: =CHOOSE(INPUTS!$C$11,SUM($D212),SUM($D212,$E212),SUM($D212,$E212,$F212),$G212,$G212) -> -67513639 | D212: -67513639 | G212: -67513639 | I212: F_DISTR | J212: CUS | M212: DIR252.00
A213: 253 | B213: Landlord Incentive | C213: =CHOOSE(INPUTS!$C$11,SUM($D213),SUM($D213,$E213),SUM($D213,$E213,$F213),$G213,$G213) -> -6715753 | D213: -6715753 | G213: -6715753 | R213: SW.T
A214: 114.01 | B214: Acquisition Adjustment - Production | C214: =CHOOSE(INPUTS!$C$11,SUM($D214),SUM($D214,$E214),SUM($D214,$E214,$F214),$G214,$G214) -> 245239108 | D214: =250524822-3 -> 250524819 | E214: =-5285711 -> -5285711 | F214: 0 | G214: 245239108 | R214: PP.T
A215: 114.02 | B215: Acquisition Adjustment - Transmission | C215: =CHOOSE(INPUTS!$C$11,SUM($D215),SUM($D215,$E215),SUM($D215,$E215,$F215),$G215,$G215) -> 946172 | D215: 946172 | E215: 0 | F215: 0 | G215: 946172 | I215: F_TRANS | J215: PC4 | K215: DEM_2B | L215: ENERGY_2
A216: 114.03 | B216: Acquisition Adjustment - Distribution | C216: =CHOOSE(INPUTS!$C$11,SUM($D216),SUM($D216,$E216),SUM($D216,$E216,$F216),$G216,$G216) -> 302358 | D216: 302358 | E216: 0 | F216: 0 | G216: 302358 | R216: DP.T
A217: 115.01 | B217: Accum Amort Acquition Adj - Production | C217: =CHOOSE(INPUTS!$C$11,SUM($D217),SUM($D217,$E217),SUM($D217,$E217,$F217),$G217,$G217) -> -54306612 | D217: -54306612 | E217: 0 | F217: 0 | G217: -54306612 | R217: PP.T
A218: 115.02 | B218: Accum Amort Acquition Adj - Transmission | C218: =CHOOSE(INPUTS!$C$11,SUM($D218),SUM($D218,$E218),SUM($D218,$E218,$F218),$G218,$G218) -> -731889 | D218: -731889 | E218: 0 | F218: 0 | G218: -731889 | I218: F_TRANS | J218: PC4 | K218: DEM_2B | L218: ENERGY_2
A219: 115.03 | B219: Accum Amort Acquition Adj - Distribution | C219: =CHOOSE(INPUTS!$C$11,SUM($D219),SUM($D219,$E219),SUM($D219,$E219,$F219),$G219,$G219) -> -288399 | D219: -288399 | E219: 0 | F219: 0 | G219: -288399 | R219: DP.T
A220: 230 | B220: ARO - Production | C220: =CHOOSE(INPUTS!$C$11,SUM($D220),SUM($D220,$E220),SUM($D220,$E220,$F220),$G220,$G220) -> -5526317 | D220: -5526317 | G220: =D220+E220+F220 -> -5526317 | R220: PP.T
... 389 more rows

Sheet CLASS
A1: Classification
A2: =CHOOSE(INPUTS!$C$11,INPUTS!$B$5,INPUTS!$B$6,INPUTS!$B$7,INPUTS!$B$8,INPUTS!$B$9) -> Adjusted Test Year Twelve Months ended December 2010 @ Proforma Rev Requirement | C2: Line Ref. | E2: 4 | F2: =E2+1 -> 5 | G2: =F2+1 -> 6 | H2: =G2+1 -> 7 | I2: =H2+1 -> 8 | J2: =I2+1 -> 9
A3: No. | B3: Account Description | C3: Amount | E3: =CLASSIFIERS!D3 -> DEM | F3: =CLASSIFIERS!E3 -> NRG | G3: =CLASSIFIERS!F3 -> CUS | H3: =CLASSIFIERS!G3 -> ~ | I3: =CLASSIFIERS!H3 -> ~ | J3: =CLASSIFIERS!I3 -> ~ | L3: Internal | N3: =E3 -> DEM | O3: NRG | P3: CUS | Q3: ~ | R3: ~ | S3: ~
D4: =SUM(E4:L4)-C4 -> 0
A5: =ACCOUNTS!A5 -> RATE BASE | D5: 0
D6: 0
A7: =ACCOUNTS!A7 -> Plant-in-Service | D7: 0
D8: 0 | N8: F_PRODU_DEM_2A
B9: =ACCOUNTS!B9 -> Intangible Plant | D9: 0
A10: =ACCOUNTS!A10 -> 300 | B10: =ACCOUNTS!B10 -> Production Plant | C10: =ACCOUNTS!C10 -> 52790811 | D10: 0 | E10: =IF(ACCOUNTS!$J10="",0,$C10*(INDEX(INDIRECT(ACCOUNTS!$J10),1,E$2))) -> 0 | F10: =IF(ACCOUNTS!$J10="",0,$C10*(INDEX(INDIRECT(ACCOUNTS!$J10),1,F$2))) -> 0 | G10: =IF(ACCOUNTS!$J10="",0,$C10*(INDEX(INDIRECT(ACCOUNTS!$J10),1,G$2))) -> 0 | H10: =IF(ACCOUNTS!$J10="",0,$C10*(INDEX(INDIRECT(ACCOUNTS!$J10),1,H$2))) -> 0 | I10: =IF(ACCOUNTS!$J10="",0,$C10*(INDEX(INDIRECT(ACCOUNTS!$J10),1,I$2))) -> 0 | J10: =IF(ACCOUNTS!$J10="",0,$C10*(INDEX(INDIRECT(ACCOUNTS!$J10),1,J$2))) -> 0 | L10: =IF(ACCOUNTS!$R10="",0,$C10) -> 52790811 | N10: =IF(ACCOUNTS!K10<>"",CONCATENATE(ACCOUNTS!$I10,"_",ACCOUNTS!K10)," ") ->  | O10: =IF(ACCOUNTS!L10<>"",CONCATENATE(ACCOUNTS!$I10,"_",ACCOUNTS!L10)," ") ->  | P10: =IF(ACCOUNTS!M10<>"",CONCATENATE(ACCOUNTS!$I10,"_",ACCOUNTS!M10)," ") ->  | Q10: =IF(ACCOUNTS!N10<>"",CONCATENATE(ACCOUNTS!$I10,"_",ACCOUNTS!N10)," ") ->  | R10: =IF(ACCOUNTS!O10<>"",CONCATENATE(ACCOUNTS!$I10,"_",ACCOUNTS!O10)," ") ->  | S10: =IF(ACCOUNTS!P10<>"",CONCATENATE(ACCOUNTS!$I10,"_",ACCOUNTS!P10)," ") -> 
A11: =ACCOUNTS!A11 -> 300.01 | B11: =ACCOUNTS!B11 -> General Plant | C11: =ACCOUNTS!C11 -> 136762676 | D11: 0 | E11: =IF(ACCOUNTS!$J11="",0,$C11*(INDEX(INDIRECT(ACCOUNTS!$J11),1,E$2))) -> 0 | F11: =IF(ACCOUNTS!$J11="",0,$C11*(INDEX(INDIRECT(ACCOUNTS!$J11),1,F$2))) -> 0 | G11: =IF(ACCOUNTS!$J11="",0,$C11*(INDEX(INDIRECT(ACCOUNTS!$J11),1,G$2))) -> 0 | H11: =IF(ACCOUNTS!$J11="",0,$C11*(INDEX(INDIRECT(ACCOUNTS!$J11),1,H$2))) -> 0 | I11: =IF(ACCOUNTS!$J11="",0,$C11*(INDEX(INDIRECT(ACCOUNTS!$J11),1,I$2))) -> 0 | J11: =IF(ACCOUNTS!$J11="",0,$C11*(INDEX(INDIRECT(ACCOUNTS!$J11),1,J$2))) -> 0 | L11: =IF(ACCOUNTS!$R11="",0,$C11) -> 136762676 | N11: =IF(ACCOUNTS!K11<>"",CONCATENATE(ACCOUNTS!$I11,"_",ACCOUNTS!K11)," ") ->  | O11: =IF(ACCOUNTS!L11<>"",CONCATENATE(ACCOUNTS!$I11,"_",ACCOUNTS!L11)," ") ->  | P11: =IF(ACCOUNTS!M11<>"",CONCATENATE(ACCOUNTS!$I11,"_",ACCOUNTS!M11)," ") ->  | Q11: =IF(ACCOUNTS!N11<>"",CONCATENATE(ACCOUNTS!$I11,"_",ACCOUNTS!N11)," ") ->  | R11: =IF(ACCOUNTS!O11<>"",CONCATENATE(ACCOUNTS!$I11,"_",ACCOUNTS!O11)," ") ->  | S11: =IF(ACCOUNTS!P11<>"",CONCATENATE(ACCOUNTS!$I11,"_",ACCOUNTS!P11)," ") -> 
A12: =ACCOUNTS!A12 -> ~ | B12: =ACCOUNTS!B12 -> ~ | C12: =ACCOUNTS!C12 -> 0 | D12: 0 | E12: =IF(ACCOUNTS!$J12="",0,$C12*(INDEX(INDIRECT(ACCOUNTS!$J12),1,E$2))) -> 0 | F12: =IF(ACCOUNTS!$J12="",0,$C12*(INDEX(INDIRECT(ACCOUNTS!$J12),1,F$2))) -> 0 | G12: =IF(ACCOUNTS!$J12="",0,$C12*(INDEX(INDIRECT(ACCOUNTS!$J12),1,G$2))) -> 0 | H12: =IF(ACCOUNTS!$J12="",0,$C12*(INDEX(INDIRECT(ACCOUNTS!$J12),1,H$2))) -> 0 | I12: =IF(ACCOUNTS!$J12="",0,$C12*(INDEX(INDIRECT(ACCOUNTS!$J12),1,I$2))) -> 0 | J12: =IF(ACCOUNTS!$J12="",0,$C12*(INDEX(INDIRECT(ACCOUNTS!$J12),1,J$2))) -> 0 | L12: =IF(ACCOUNTS!$R12="",0,$C12) -> 0 | N12: =IF(ACCOUNTS!K12<>"",CONCATENATE(ACCOUNTS!$I12,"_",ACCOUNTS!K12)," ") ->  | O12: =IF(ACCOUNTS!L12<>"",CONCATENATE(ACCOUNTS!$I12,"_",ACCOUNTS!L12)," ") ->  | P12: =IF(ACCOUNTS!M12<>"",CONCATENATE(ACCOUNTS!$I12,"_",ACCOUNTS!M12)," ") ->  | Q12: =IF(ACCOUNTS!N12<>"",CONCATENATE(ACCOUNTS!$I12,"_",ACCOUNTS!N12)," ") ->  | R12: =IF(ACCOUNTS!O12<>"",CONCATENATE(ACCOUNTS!$I12,"_",ACCOUNTS!O12)," ") ->  | S12: =IF(ACCOUNTS!P12<>"",CONCATENATE(ACCOUNTS!$I12,"_",ACCOUNTS!P12)," ") -> 
B13: =ACCOUNTS!B13 -> Sub-total | C13: =SUM(C10:C12) -> 189553487 | D13: 0 | E13: =SUM(E10:E12) -> 0 | F13: 0 | G13: 0 | H13: 0 | I13: 0 | J13: 0 | L13: 189553487
D14: 0
B15: =ACCOUNTS!B15 -> Production Plant | D15: 0
A16: =ACCOUNTS!A16 -> 310 | B16: =ACCOUNTS!B16 -> Thermal Baseload Generation | C16: =ACCOUNTS!C16 -> 1108157180 | D16: =SUM(E16:L16)-C16 -> 0 | E16: =IF(ACCOUNTS!$J16="",0,$C16*(INDEX(INDIRECT(ACCOUNTS!$J16),1,E$2))) -> 210549864.2 | F16: =IF(ACCOUNTS!$J16="",0,$C16*(INDEX(INDIRECT(ACCOUNTS!$J16),1,F$2))) -> 897607315.8 | G16: =IF(ACCOUNTS!$J16="",0,$C16*(INDEX(INDIRECT(ACCOUNTS!$J16),1,G$2))) -> 0 | H16: =IF(ACCOUNTS!$J16="",0,$C16*(INDEX(INDIRECT(ACCOUNTS!$J16),1,H$2))) -> 0 | I16: =IF(ACCOUNTS!$J16="",0,$C16*(INDEX(INDIRECT(ACCOUNTS!$J16),1,I$2))) -> 0 | J16: =IF(ACCOUNTS!$J16="",0,$C16*(INDEX(INDIRECT(ACCOUNTS!$J16),1,J$2))) -> 0 | L16: =IF(ACCOUNTS!$R16="",0,$C16) -> 0 | N16: =IF(ACCOUNTS!K16<>"",CONCATENATE(ACCOUNTS!$I16,"_",ACCOUNTS!K16)," ") -> F_PRODU_DEM_2B | O16: =IF(ACCOUNTS!L16<>"",CONCATENATE(ACCOUNTS!$I16,"_",ACCOUNTS!L16)," ") -> F_PRODU_ENERGY_2 | P16: =IF(ACCOUNTS!M16<>"",CONCATENATE(ACCOUNTS!$I16,"_",ACCOUNTS!M16)," ") ->  | Q16: =IF(ACCOUNTS!N16<>"",CONCATENATE(ACCOUNTS!$I16,"_",ACCOUNTS!N16)," ") ->  | R16: =IF(ACCOUNTS!O16<>"",CONCATENATE(ACCOUNTS!$I16,"_",ACCOUNTS!O16)," ") ->  | S16: =IF(ACCOUNTS!P16<>"",CONCATENATE(ACCOUNTS!$I16,"_",ACCOUNTS!P16)," ") -> 
A17: =ACCOUNTS!A17 -> 330 | B17: =ACCOUNTS!B17 -> Hydro Baseload Generation | C17: =ACCOUNTS!C17 -> 265007486 | D17: 0 | E17: =IF(ACCOUNTS!$J17="",0,$C17*(INDEX(INDIRECT(ACCOUNTS!$J17),1,E$2))) -> 50351422.34 | F17: =IF(ACCOUNTS!$J17="",0,$C17*(INDEX(INDIRECT(ACCOUNTS!$J17),1,F$2))) -> 214656063.7 | G17: =IF(ACCOUNTS!$J17="",0,$C17*(INDEX(INDIRECT(ACCOUNTS!$J17),1,G$2))) -> 0 | H17: =IF(ACCOUNTS!$J17="",0,$C17*(INDEX(INDIRECT(ACCOUNTS!$J17),1,H$2))) -> 0 | I17: =IF(ACCOUNTS!$J17="",0,$C17*(INDEX(INDIRECT(ACCOUNTS!$J17),1,I$2))) -> 0 | J17: =IF(ACCOUNTS!$J17="",0,$C17*(INDEX(INDIRECT(ACCOUNTS!$J17),1,J$2))) -> 0 | L17: =IF(ACCOUNTS!$R17="",0,$C17) -> 0 | N17: =IF(ACCOUNTS!K17<>"",CONCATENATE(ACCOUNTS!$I17,"_",ACCOUNTS!K17)," ") -> F_PRODU_DEM_2B | O17: =IF(ACCOUNTS!L17<>"",CONCATENATE(ACCOUNTS!$I17,"_",ACCOUNTS!L17)," ") -> F_PRODU_ENERGY_2 | P17: =IF(ACCOUNTS!M17<>"",CONCATENATE(ACCOUNTS!$I17,"_",ACCOUNTS!M17)," ") ->  | Q17: =IF(ACCOUNTS!N17<>"",CONCATENATE(ACCOUNTS!$I17,"_",ACCOUNTS!N17)," ") ->  | R17: =IF(ACCOUNTS!O17<>"",CONCATENATE(ACCOUNTS!$I17,"_",ACCOUNTS!O17)," ") ->  | S17: =IF(ACCOUNTS!P17<>"",CONCATENATE(ACCOUNTS!$I17,"_",ACCOUNTS!P17)," ") -> 
A18: =ACCOUNTS!A18 -> 340 | B18: =ACCOUNTS!B18 -> Other Production Generation | C18: =ACCOUNTS!C18 -> 1885899257 | D18: 0 | E18: =IF(ACCOUNTS!$J18="",0,$C18*(INDEX(INDIRECT(ACCOUNTS!$J18),1,E$2))) -> 358320858.8 | F18: =IF(ACCOUNTS!$J18="",0,$C18*(INDEX(INDIRECT(ACCOUNTS!$J18),1,F$2))) -> 1527578398 | G18: =IF(ACCOUNTS!$J18="",0,$C18*(INDEX(INDIRECT(ACCOUNTS!$J18),1,G$2))) -> 0 | H18: =IF(ACCOUNTS!$J18="",0,$C18*(INDEX(INDIRECT(ACCOUNTS!$J18),1,H$2))) -> 0 | I18: =IF(ACCOUNTS!$J18="",0,$C18*(INDEX(INDIRECT(ACCOUNTS!$J18),1,I$2))) -> 0 | J18: =IF(ACCOUNTS!$J18="",0,$C18*(INDEX(INDIRECT(ACCOUNTS!$J18),1,J$2))) -> 0 | L18: =IF(ACCOUNTS!$R18="",0,$C18) -> 0 | N18: =IF(ACCOUNTS!K18<>"",CONCATENATE(ACCOUNTS!$I18,"_",ACCOUNTS!K18)," ") -> F_PRODU_DEM_2B | O18: =IF(ACCOUNTS!L18<>"",CONCATENATE(ACCOUNTS!$I18,"_",ACCOUNTS!L18)," ") -> F_PRODU_ENERGY_2 | P18: =IF(ACCOUNTS!M18<>"",CONCATENATE(ACCOUNTS!$I18,"_",ACCOUNTS!M18)," ") ->  | Q18: =IF(ACCOUNTS!N18<>"",CONCATENATE(ACCOUNTS!$I18,"_",ACCOUNTS!N18)," ") ->  | R18: =IF(ACCOUNTS!O18<>"",CONCATENATE(ACCOUNTS!$I18,"_",ACCOUNTS!O18)," ") ->  | S18: =IF(ACCOUNTS!P18<>"",CONCATENATE(ACCOUNTS!$I18,"_",ACCOUNTS!P18)," ") -> 
A19: =ACCOUNTS!A19 -> ~ | B19: =ACCOUNTS!B19 -> ~ | C19: =ACCOUNTS!C19 -> 0 | D19: 0 | E19: =IF(ACCOUNTS!$J19="",0,$C19*(INDEX(INDIRECT(ACCOUNTS!$J19),1,E$2))) -> 0 | F19: =IF(ACCOUNTS!$J19="",0,$C19*(INDEX(INDIRECT(ACCOUNTS!$J19),1,F$2))) -> 0 | G19: =IF(ACCOUNTS!$J19="",0,$C19*(INDEX(INDIRECT(ACCOUNTS!$J19),1,G$2))) -> 0 | H19: =IF(ACCOUNTS!$J19="",0,$C19*(INDEX(INDIRECT(ACCOUNTS!$J19),1,H$2))) -> 0 | I19: =IF(ACCOUNTS!$J19="",0,$C19*(INDEX(INDIRECT(ACCOUNTS!$J19),1,I$2))) -> 0 | J19: =IF(ACCOUNTS!$J19="",0,$C19*(INDEX(INDIRECT(ACCOUNTS!$J19),1,J$2))) -> 0 | L19: =IF(ACCOUNTS!$R19="",0,$C19) -> 0 | N19: =IF(ACCOUNTS!K19<>"",CONCATENATE(ACCOUNTS!$I19,"_",ACCOUNTS!K19)," ") ->  | O19: =IF(ACCOUNTS!L19<>"",CONCATENATE(ACCOUNTS!$I19,"_",ACCOUNTS!L19)," ") ->  | P19: =IF(ACCOUNTS!M19<>"",CONCATENATE(ACCOUNTS!$I19,"_",ACCOUNTS!M19)," ") ->  | Q19: =IF(ACCOUNTS!N19<>"",CONCATENATE(ACCOUNTS!$I19,"_",ACCOUNTS!N19)," ") ->  | R19: =IF(ACCOUNTS!O19<>"",CONCATENATE(ACCOUNTS!$I19,"_",ACCOUNTS!O19)," ") ->  | S19: =IF(ACCOUNTS!P19<>"",CONCATENATE(ACCOUNTS!$I19,"_",ACCOUNTS!P19)," ") -> 
A20: =ACCOUNTS!A20 -> ~ | B20: =ACCOUNTS!B20 -> ~ | C20: =ACCOUNTS!C20 -> 0 | D20: 0 | E20: =IF(ACCOUNTS!$J20="",0,$C20*(INDEX(INDIRECT(ACCOUNTS!$J20),1,E$2))) -> 0 | F20: =IF(ACCOUNTS!$J20="",0,$C20*(INDEX(INDIRECT(ACCOUNTS!$J20),1,F$2))) -> 0 | G20: =IF(ACCOUNTS!$J20="",0,$C20*(INDEX(INDIRECT(ACCOUNTS!$J20),1,G$2))) -> 0 | H20: =IF(ACCOUNTS!$J20="",0,$C20*(INDEX(INDIRECT(ACCOUNTS!$J20),1,H$2))) -> 0 | I20: =IF(ACCOUNTS!$J20="",0,$C20*(INDEX(INDIRECT(ACCOUNTS!$J20),1,I$2))) -> 0 | J20: =IF(ACCOUNTS!$J20="",0,$C20*(INDEX(INDIRECT(ACCOUNTS!$J20),1,J$2))) -> 0 | L20: =IF(ACCOUNTS!$R20="",0,$C20) -> 0 | N20: =IF(ACCOUNTS!K20<>"",CONCATENATE(ACCOUNTS!$I20,"_",ACCOUNTS!K20)," ") ->  | O20: =IF(ACCOUNTS!L20<>"",CONCATENATE(ACCOUNTS!$I20,"_",ACCOUNTS!L20)," ") ->  | P20: =IF(ACCOUNTS!M20<>"",CONCATENATE(ACCOUNTS!$I20,"_",ACCOUNTS!M20)," ") ->  | Q20: =IF(ACCOUNTS!N20<>"",CONCATENATE(ACCOUNTS!$I20,"_",ACCOUNTS!N20)," ") ->  | R20: =IF(ACCOUNTS!O20<>"",CONCATENATE(ACCOUNTS!$I20,"_",ACCOUNTS!O20)," ") ->  | S20: =IF(ACCOUNTS!P20<>"",CONCATENATE(ACCOUNTS!$I20,"_",ACCOUNTS!P20)," ") -> 
A21: =ACCOUNTS!A21 -> ~ | B21: =ACCOUNTS!B21 -> ~ | C21: =ACCOUNTS!C21 -> 0 | D21: 0 | E21: =IF(ACCOUNTS!$J21="",0,$C21*(INDEX(INDIRECT(ACCOUNTS!$J21),1,E$2))) -> 0 | F21: =IF(ACCOUNTS!$J21="",0,$C21*(INDEX(INDIRECT(ACCOUNTS!$J21),1,F$2))) -> 0 | G21: =IF(ACCOUNTS!$J21="",0,$C21*(INDEX(INDIRECT(ACCOUNTS!$J21),1,G$2))) -> 0 | H21: =IF(ACCOUNTS!$J21="",0,$C21*(INDEX(INDIRECT(ACCOUNTS!$J21),1,H$2))) -> 0 | I21: =IF(ACCOUNTS!$J21="",0,$C21*(INDEX(INDIRECT(ACCOUNTS!$J21),1,I$2))) -> 0 | J21: =IF(ACCOUNTS!$J21="",0,$C21*(INDEX(INDIRECT(ACCOUNTS!$J21),1,J$2))) -> 0 | L21: =IF(ACCOUNTS!$R21="",0,$C21) -> 0 | N21: =IF(ACCOUNTS!K21<>"",CONCATENATE(ACCOUNTS!$I21,"_",ACCOUNTS!K21)," ") ->  | O21: =IF(ACCOUNTS!L21<>"",CONCATENATE(ACCOUNTS!$I21,"_",ACCOUNTS!L21)," ") ->  | P21: =IF(ACCOUNTS!M21<>"",CONCATENATE(ACCOUNTS!$I21,"_",ACCOUNTS!M21)," ") ->  | Q21: =IF(ACCOUNTS!N21<>"",CONCATENATE(ACCOUNTS!$I21,"_",ACCOUNTS!N21)," ") ->  | R21: =IF(ACCOUNTS!O21<>"",CONCATENATE(ACCOUNTS!$I21,"_",ACCOUNTS!O21)," ") ->  | S21: =IF(ACCOUNTS!P21<>"",CONCATENATE(ACCOUNTS!$I21,"_",ACCOUNTS!P21)," ") -> 
A22: =ACCOUNTS!A22 -> ~ | B22: =ACCOUNTS!B22 -> ~ | C22: =ACCOUNTS!C22 -> 0 | D22: 0 | E22: =IF(ACCOUNTS!$J22="",0,$C22*(INDEX(INDIRECT(ACCOUNTS!$J22),1,E$2))) -> 0 | F22: =IF(ACCOUNTS!$J22="",0,$C22*(INDEX(INDIRECT(ACCOUNTS!$J22),1,F$2))) -> 0 | G22: =IF(ACCOUNTS!$J22="",0,$C22*(INDEX(INDIRECT(ACCOUNTS!$J22),1,G$2))) -> 0 | H22: =IF(ACCOUNTS!$J22="",0,$C22*(INDEX(INDIRECT(ACCOUNTS!$J22),1,H$2))) -> 0 | I22: =IF(ACCOUNTS!$J22="",0,$C22*(INDEX(INDIRECT(ACCOUNTS!$J22),1,I$2))) -> 0 | J22: =IF(ACCOUNTS!$J22="",0,$C22*(INDEX(INDIRECT(ACCOUNTS!$J22),1,J$2))) -> 0 | L22: =IF(ACCOUNTS!$R22="",0,$C22) -> 0 | N22: =IF(ACCOUNTS!K22<>"",CONCATENATE(ACCOUNTS!$I22,"_",ACCOUNTS!K22)," ") ->  | O22: =IF(ACCOUNTS!L22<>"",CONCATENATE(ACCOUNTS!$I22,"_",ACCOUNTS!L22)," ") ->  | P22: =IF(ACCOUNTS!M22<>"",CONCATENATE(ACCOUNTS!$I22,"_",ACCOUNTS!M22)," ") ->  | Q22: =IF(ACCOUNTS!N22<>"",CONCATENATE(ACCOUNTS!$I22,"_",ACCOUNTS!N22)," ") ->  | R22: =IF(ACCOUNTS!O22<>"",CONCATENATE(ACCOUNTS!$I22,"_",ACCOUNTS!O22)," ") ->  | S22: =IF(ACCOUNTS!P22<>"",CONCATENATE(ACCOUNTS!$I22,"_",ACCOUNTS!P22)," ") -> 
A23: =ACCOUNTS!A23 -> ~ | B23: =ACCOUNTS!B23 -> ~ | C23: =ACCOUNTS!C23 -> 0 | D23: 0 | E23: =IF(ACCOUNTS!$J23="",0,$C23*(INDEX(INDIRECT(ACCOUNTS!$J23),1,E$2))) -> 0 | F23: =IF(ACCOUNTS!$J23="",0,$C23*(INDEX(INDIRECT(ACCOUNTS!$J23),1,F$2))) -> 0 | G23: =IF(ACCOUNTS!$J23="",0,$C23*(INDEX(INDIRECT(ACCOUNTS!$J23),1,G$2))) -> 0 | H23: =IF(ACCOUNTS!$J23="",0,$C23*(INDEX(INDIRECT(ACCOUNTS!$J23),1,H$2))) -> 0 | I23: =IF(ACCOUNTS!$J23="",0,$C23*(INDEX(INDIRECT(ACCOUNTS!$J23),1,I$2))) -> 0 | J23: =IF(ACCOUNTS!$J23="",0,$C23*(INDEX(INDIRECT(ACCOUNTS!$J23),1,J$2))) -> 0 | L23: =IF(ACCOUNTS!$R23="",0,$C23) -> 0 | N23: =IF(ACCOUNTS!K23<>"",CONCATENATE(ACCOUNTS!$I23,"_",ACCOUNTS!K23)," ") ->  | O23: =IF(ACCOUNTS!L23<>"",CONCATENATE(ACCOUNTS!$I23,"_",ACCOUNTS!L23)," ") ->  | P23: =IF(ACCOUNTS!M23<>"",CONCATENATE(ACCOUNTS!$I23,"_",ACCOUNTS!M23)," ") ->  | Q23: =IF(ACCOUNTS!N23<>"",CONCATENATE(ACCOUNTS!$I23,"_",ACCOUNTS!N23)," ") ->  | R23: =IF(ACCOUNTS!O23<>"",CONCATENATE(ACCOUNTS!$I23,"_",ACCOUNTS!O23)," ") ->  | S23: =IF(ACCOUNTS!P23<>"",CONCATENATE(ACCOUNTS!$I23,"_",ACCOUNTS!P23)," ") -> 
A24: =ACCOUNTS!A24 -> ~ | B24: =ACCOUNTS!B24 -> ~ | C24: =ACCOUNTS!C24 -> 0 | D24: 0 | E24: =IF(ACCOUNTS!$J24="",0,$C24*(INDEX(INDIRECT(ACCOUNTS!$J24),1,E$2))) -> 0 | F24: =IF(ACCOUNTS!$J24="",0,$C24*(INDEX(INDIRECT(ACCOUNTS!$J24),1,F$2))) -> 0 | G24: =IF(ACCOUNTS!$J24="",0,$C24*(INDEX(INDIRECT(ACCOUNTS!$J24),1,G$2))) -> 0 | H24: =IF(ACCOUNTS!$J24="",0,$C24*(INDEX(INDIRECT(ACCOUNTS!$J24),1,H$2))) -> 0 | I24: =IF(ACCOUNTS!$J24="",0,$C24*(INDEX(INDIRECT(ACCOUNTS!$J24),1,I$2))) -> 0 | J24: =IF(ACCOUNTS!$J24="",0,$C24*(INDEX(INDIRECT(ACCOUNTS!$J24),1,J$2))) -> 0 | L24: =IF(ACCOUNTS!$R24="",0,$C24) -> 0 | N24: =IF(ACCOUNTS!K24<>"",CONCATENATE(ACCOUNTS!$I24,"_",ACCOUNTS!K24)," ") ->  | O24: =IF(ACCOUNTS!L24<>"",CONCATENATE(ACCOUNTS!$I24,"_",ACCOUNTS!L24)," ") ->  | P24: =IF(ACCOUNTS!M24<>"",CONCATENATE(ACCOUNTS!$I24,"_",ACCOUNTS!M24)," ") ->  | Q24: =IF(ACCOUNTS!N24<>"",CONCATENATE(ACCOUNTS!$I24,"_",ACCOUNTS!N24)," ") ->  | R24: =IF(ACCOUNTS!O24<>"",CONCATENATE(ACCOUNTS!$I24,"_",ACCOUNTS!O24)," ") ->  | S24: =IF(ACCOUNTS!P24<>"",CONCATENATE(ACCOUNTS!$I24,"_",ACCOUNTS!P24)," ") -> 
A25: =ACCOUNTS!A25 -> ~ | B25: =ACCOUNTS!B25 -> ~ | C25: =ACCOUNTS!C25 -> 0 | D25: 0 | E25: =IF(ACCOUNTS!$J25="",0,$C25*(INDEX(INDIRECT(ACCOUNTS!$J25),1,E$2))) -> 0 | F25: =IF(ACCOUNTS!$J25="",0,$C25*(INDEX(INDIRECT(ACCOUNTS!$J25),1,F$2))) -> 0 | G25: =IF(ACCOUNTS!$J25="",0,$C25*(INDEX(INDIRECT(ACCOUNTS!$J25),1,G$2))) -> 0 | H25: =IF(ACCOUNTS!$J25="",0,$C25*(INDEX(INDIRECT(ACCOUNTS!$J25),1,H$2))) -> 0 | I25: =IF(ACCOUNTS!$J25="",0,$C25*(INDEX(INDIRECT(ACCOUNTS!$J25),1,I$2))) -> 0 | J25: =IF(ACCOUNTS!$J25="",0,$C25*(INDEX(INDIRECT(ACCOUNTS!$J25),1,J$2))) -> 0 | L25: =IF(ACCOUNTS!$R25="",0,$C25) -> 0 | N25: =IF(ACCOUNTS!K25<>"",CONCATENATE(ACCOUNTS!$I25,"_",ACCOUNTS!K25)," ") ->  | O25: =IF(ACCOUNTS!L25<>"",CONCATENATE(ACCOUNTS!$I25,"_",ACCOUNTS!L25)," ") ->  | P25: =IF(ACCOUNTS!M25<>"",CONCATENATE(ACCOUNTS!$I25,"_",ACCOUNTS!M25)," ") ->  | Q25: =IF(ACCOUNTS!N25<>"",CONCATENATE(ACCOUNTS!$I25,"_",ACCOUNTS!N25)," ") ->  | R25: =IF(ACCOUNTS!O25<>"",CONCATENATE(ACCOUNTS!$I25,"_",ACCOUNTS!O25)," ") ->  | S25: =IF(ACCOUNTS!P25<>"",CONCATENATE(ACCOUNTS!$I25,"_",ACCOUNTS!P25)," ") -> 
A26: =ACCOUNTS!A26 -> ~ | B26: =ACCOUNTS!B26 -> ~ | C26: =ACCOUNTS!C26 -> 0 | D26: 0 | E26: =IF(ACCOUNTS!$J26="",0,$C26*(INDEX(INDIRECT(ACCOUNTS!$J26),1,E$2))) -> 0 | F26: =IF(ACCOUNTS!$J26="",0,$C26*(INDEX(INDIRECT(ACCOUNTS!$J26),1,F$2))) -> 0 | G26: =IF(ACCOUNTS!$J26="",0,$C26*(INDEX(INDIRECT(ACCOUNTS!$J26),1,G$2))) -> 0 | H26: =IF(ACCOUNTS!$J26="",0,$C26*(INDEX(INDIRECT(ACCOUNTS!$J26),1,H$2))) -> 0 | I26: =IF(ACCOUNTS!$J26="",0,$C26*(INDEX(INDIRECT(ACCOUNTS!$J26),1,I$2))) -> 0 | J26: =IF(ACCOUNTS!$J26="",0,$C26*(INDEX(INDIRECT(ACCOUNTS!$J26),1,J$2))) -> 0 | L26: =IF(ACCOUNTS!$R26="",0,$C26) -> 0 | N26: =IF(ACCOUNTS!K26<>"",CONCATENATE(ACCOUNTS!$I26,"_",ACCOUNTS!K26)," ") ->  | O26: =IF(ACCOUNTS!L26<>"",CONCATENATE(ACCOUNTS!$I26,"_",ACCOUNTS!L26)," ") ->  | P26: =IF(ACCOUNTS!M26<>"",CONCATENATE(ACCOUNTS!$I26,"_",ACCOUNTS!M26)," ") ->  | Q26: =IF(ACCOUNTS!N26<>"",CONCATENATE(ACCOUNTS!$I26,"_",ACCOUNTS!N26)," ") ->  | R26: =IF(ACCOUNTS!O26<>"",CONCATENATE(ACCOUNTS!$I26,"_",ACCOUNTS!O26)," ") ->  | S26: =IF(ACCOUNTS!P26<>"",CONCATENATE(ACCOUNTS!$I26,"_",ACCOUNTS!P26)," ") -> 
A27: =ACCOUNTS!A27 -> ~ | B27: =ACCOUNTS!B27 -> ~ | C27: =ACCOUNTS!C27 -> 0 | D27: 0 | E27: =IF(ACCOUNTS!$J27="",0,$C27*(INDEX(INDIRECT(ACCOUNTS!$J27),1,E$2))) -> 0 | F27: =IF(ACCOUNTS!$J27="",0,$C27*(INDEX(INDIRECT(ACCOUNTS!$J27),1,F$2))) -> 0 | G27: =IF(ACCOUNTS!$J27="",0,$C27*(INDEX(INDIRECT(ACCOUNTS!$J27),1,G$2))) -> 0 | H27: =IF(ACCOUNTS!$J27="",0,$C27*(INDEX(INDIRECT(ACCOUNTS!$J27),1,H$2))) -> 0 | I27: =IF(ACCOUNTS!$J27="",0,$C27*(INDEX(INDIRECT(ACCOUNTS!$J27),1,I$2))) -> 0 | J27: =IF(ACCOUNTS!$J27="",0,$C27*(INDEX(INDIRECT(ACCOUNTS!$J27),1,J$2))) -> 0 | L27: =IF(ACCOUNTS!$R27="",0,$C27) -> 0 | N27: =IF(ACCOUNTS!K27<>"",CONCATENATE(ACCOUNTS!$I27,"_",ACCOUNTS!K27)," ") ->  | O27: =IF(ACCOUNTS!L27<>"",CONCATENATE(ACCOUNTS!$I27,"_",ACCOUNTS!L27)," ") ->  | P27: =IF(ACCOUNTS!M27<>"",CONCATENATE(ACCOUNTS!$I27,"_",ACCOUNTS!M27)," ") ->  | Q27: =IF(ACCOUNTS!N27<>"",CONCATENATE(ACCOUNTS!$I27,"_",ACCOUNTS!N27)," ") ->  | R27: =IF(ACCOUNTS!O27<>"",CONCATENATE(ACCOUNTS!$I27,"_",ACCOUNTS!O27)," ") ->  | S27: =IF(ACCOUNTS!P27<>"",CONCATENATE(ACCOUNTS!$I27,"_",ACCOUNTS!P27)," ") -> 
B28: =ACCOUNTS!B28 -> Sub-total | C28: =SUM(C16:C27) -> 3259063923 | D28: =SUM(E28:L28)-C28 -> 0 | E28: =SUM(E16:E27) -> 619222145.4 | F28: =SUM(F16:F27) -> 2639841778 | G28: 0 | H28: 0 | I28: 0 | J28: 0 | L28: 0
D29: 0
B30: =ACCOUNTS!B30 -> Transmission Plant | D30: 0
A31: =ACCOUNTS!A31 -> 350 | B31: =ACCOUNTS!B31 -> Transmission Plant - Integrated Generation | C31: =ACCOUNTS!C31 -> 231649100 | D31: 0 | E31: =IF(ACCOUNTS!$J31="",0,$C31*(INDEX(INDIRECT(ACCOUNTS!$J31),1,E$2))) -> 44013329 | F31: =IF(ACCOUNTS!$J31="",0,$C31*(INDEX(INDIRECT(ACCOUNTS!$J31),1,F$2))) -> 187635771 | G31: =IF(ACCOUNTS!$J31="",0,$C31*(INDEX(INDIRECT(ACCOUNTS!$J31),1,G$2))) -> 0 | H31: =IF(ACCOUNTS!$J31="",0,$C31*(INDEX(INDIRECT(ACCOUNTS!$J31),1,H$2))) -> 0 | I31: =IF(ACCOUNTS!$J31="",0,$C31*(INDEX(INDIRECT(ACCOUNTS!$J31),1,I$2))) -> 0 | J31: =IF(ACCOUNTS!$J31="",0,$C31*(INDEX(INDIRECT(ACCOUNTS!$J31),1,J$2))) -> 0 | L31: =IF(ACCOUNTS!$R31="",0,$C31) -> 0 | N31: =IF(ACCOUNTS!K31<>"",CONCATENATE(ACCOUNTS!$I31,"_",ACCOUNTS!K31)," ") -> F_TRANS_DEM_2B | O31: =IF(ACCOUNTS!L31<>"",CONCATENATE(ACCOUNTS!$I31,"_",ACCOUNTS!L31)," ") -> F_TRANS_ENERGY_2 | P31: =IF(ACCOUNTS!M31<>"",CONCATENATE(ACCOUNTS!$I31,"_",ACCOUNTS!M31)," ") ->  | Q31: =IF(ACCOUNTS!N31<>"",CONCATENATE(ACCOUNTS!$I31,"_",ACCOUNTS!N31)," ") ->  | R31: =IF(ACCOUNTS!O31<>"",CONCATENATE(ACCOUNTS!$I31,"_",ACCOUNTS!O31)," ") ->  | S31: =IF(ACCOUNTS!P31<>"",CONCATENATE(ACCOUNTS!$I31,"_",ACCOUNTS!P31)," ") -> 
A32: =ACCOUNTS!A32 -> 350.01 | B32: =ACCOUNTS!B32 -> Bulk Transmission Plant (>230 kV) | C32: =ACCOUNTS!C32 -> 178367968 | D32: 0 | E32: =IF(ACCOUNTS!$J32="",0,$C32*(INDEX(INDIRECT(ACCOUNTS!$J32),1,E$2))) -> 33889913.92 | F32: =IF(ACCOUNTS!$J32="",0,$C32*(INDEX(INDIRECT(ACCOUNTS!$J32),1,F$2))) -> 144478054.1 | G32: =IF(ACCOUNTS!$J32="",0,$C32*(INDEX(INDIRECT(ACCOUNTS!$J32),1,G$2))) -> 0 | H32: =IF(ACCOUNTS!$J32="",0,$C32*(INDEX(INDIRECT(ACCOUNTS!$J32),1,H$2))) -> 0 | I32: =IF(ACCOUNTS!$J32="",0,$C32*(INDEX(INDIRECT(ACCOUNTS!$J32),1,I$2))) -> 0 | J32: =IF(ACCOUNTS!$J32="",0,$C32*(INDEX(INDIRECT(ACCOUNTS!$J32),1,J$2))) -> 0 | L32: =IF(ACCOUNTS!$R32="",0,$C32) -> 0 | N32: =IF(ACCOUNTS!K32<>"",CONCATENATE(ACCOUNTS!$I32,"_",ACCOUNTS!K32)," ") -> F_TRANS_DEM_2A | O32: =IF(ACCOUNTS!L32<>"",CONCATENATE(ACCOUNTS!$I32,"_",ACCOUNTS!L32)," ") -> F_TRANS_ENERGY_1 | P32: =IF(ACCOUNTS!M32<>"",CONCATENATE(ACCOUNTS!$I32,"_",ACCOUNTS!M32)," ") ->  | Q32: =IF(ACCOUNTS!N32<>"",CONCATENATE(ACCOUNTS!$I32,"_",ACCOUNTS!N32)," ") ->  | R32: =IF(ACCOUNTS!O32<>"",CONCATENATE(ACCOUNTS!$I32,"_",ACCOUNTS!O32)," ") ->  | S32: =IF(ACCOUNTS!P32<>"",CONCATENATE(ACCOUNTS!$I32,"_",ACCOUNTS!P32)," ") -> 
A33: =ACCOUNTS!A33 -> 350.02 | B33: =ACCOUNTS!B33 -> Sub Transmission Plant (<230 kV) | C33: =ACCOUNTS!C33 -> 15069546 | D33: =SUM(E33:L33)-C33 -> 0 | E33: =IF(ACCOUNTS!$J33="",0,$C33*(INDEX(INDIRECT(ACCOUNTS!$J33),1,E$2))) -> 2863213.74 | F33: =IF(ACCOUNTS!$J33="",0,$C33*(INDEX(INDIRECT(ACCOUNTS!$J33),1,F$2))) -> 12206332.26 | G33: =IF(ACCOUNTS!$J33="",0,$C33*(INDEX(INDIRECT(ACCOUNTS!$J33),1,G$2))) -> 0 | H33: =IF(ACCOUNTS!$J33="",0,$C33*(INDEX(INDIRECT(ACCOUNTS!$J33),1,H$2))) -> 0 | I33: =IF(ACCOUNTS!$J33="",0,$C33*(INDEX(INDIRECT(ACCOUNTS!$J33),1,I$2))) -> 0 | J33: =IF(ACCOUNTS!$J33="",0,$C33*(INDEX(INDIRECT(ACCOUNTS!$J33),1,J$2))) -> 0 | L33: =IF(ACCOUNTS!$R33="",0,$C33) -> 0 | N33: =IF(ACCOUNTS!K33<>"",CONCATENATE(ACCOUNTS!$I33,"_",ACCOUNTS!K33)," ") -> F_TRANS_DEM_2A | O33: =IF(ACCOUNTS!L33<>"",CONCATENATE(ACCOUNTS!$I33,"_",ACCOUNTS!L33)," ") -> F_TRANS_ENERGY_1 | P33: =IF(ACCOUNTS!M33<>"",CONCATENATE(ACCOUNTS!$I33,"_",ACCOUNTS!M33)," ") ->  | Q33: =IF(ACCOUNTS!N33<>"",CONCATENATE(ACCOUNTS!$I33,"_",ACCOUNTS!N33)," ") ->  | R33: =IF(ACCOUNTS!O33<>"",CONCATENATE(ACCOUNTS!$I33,"_",ACCOUNTS!O33)," ") ->  | S33: =IF(ACCOUNTS!P33<>"",CONCATENATE(ACCOUNTS!$I33,"_",ACCOUNTS!P33)," ") -> 
A34: =ACCOUNTS!A34 -> ~ | B34: =ACCOUNTS!B34 -> ~ | C34: =ACCOUNTS!C34 -> 0 | D34: =SUM(E34:L34)-C34 -> 0 | E34: =IF(ACCOUNTS!$J34="",0,$C34*(INDEX(INDIRECT(ACCOUNTS!$J34),1,E$2))) -> 0 | F34: =IF(ACCOUNTS!$J34="",0,$C34*(INDEX(INDIRECT(ACCOUNTS!$J34),1,F$2))) -> 0 | G34: =IF(ACCOUNTS!$J34="",0,$C34*(INDEX(INDIRECT(ACCOUNTS!$J34),1,G$2))) -> 0 | H34: =IF(ACCOUNTS!$J34="",0,$C34*(INDEX(INDIRECT(ACCOUNTS!$J34),1,H$2))) -> 0 | I34: =IF(ACCOUNTS!$J34="",0,$C34*(INDEX(INDIRECT(ACCOUNTS!$J34),1,I$2))) -> 0 | J34: =IF(ACCOUNTS!$J34="",0,$C34*(INDEX(INDIRECT(ACCOUNTS!$J34),1,J$2))) -> 0 | L34: =IF(ACCOUNTS!$R34="",0,$C34) -> 0 | N34: =IF(ACCOUNTS!K34<>"",CONCATENATE(ACCOUNTS!$I34,"_",ACCOUNTS!K34)," ") ->  | O34: =IF(ACCOUNTS!L34<>"",CONCATENATE(ACCOUNTS!$I34,"_",ACCOUNTS!L34)," ") ->  | P34: =IF(ACCOUNTS!M34<>"",CONCATENATE(ACCOUNTS!$I34,"_",ACCOUNTS!M34)," ") ->  | Q34: =IF(ACCOUNTS!N34<>"",CONCATENATE(ACCOUNTS!$I34,"_",ACCOUNTS!N34)," ") ->  | R34: =IF(ACCOUNTS!O34<>"",CONCATENATE(ACCOUNTS!$I34,"_",ACCOUNTS!O34)," ") ->  | S34: =IF(ACCOUNTS!P34<>"",CONCATENATE(ACCOUNTS!$I34,"_",ACCOUNTS!P34)," ") -> 
A35: =ACCOUNTS!A35 -> ~ | B35: =ACCOUNTS!B35 -> ~ | C35: =ACCOUNTS!C35 -> 0 | D35: =SUM(E35:L35)-C35 -> 0 | E35: =IF(ACCOUNTS!$J35="",0,$C35*(INDEX(INDIRECT(ACCOUNTS!$J35),1,E$2))) -> 0 | F35: =IF(ACCOUNTS!$J35="",0,$C35*(INDEX(INDIRECT(ACCOUNTS!$J35),1,F$2))) -> 0 | G35: =IF(ACCOUNTS!$J35="",0,$C35*(INDEX(INDIRECT(ACCOUNTS!$J35),1,G$2))) -> 0 | H35: =IF(ACCOUNTS!$J35="",0,$C35*(INDEX(INDIRECT(ACCOUNTS!$J35),1,H$2))) -> 0 | I35: =IF(ACCOUNTS!$J35="",0,$C35*(INDEX(INDIRECT(ACCOUNTS!$J35),1,I$2))) -> 0 | J35: =IF(ACCOUNTS!$J35="",0,$C35*(INDEX(INDIRECT(ACCOUNTS!$J35),1,J$2))) -> 0 | L35: =IF(ACCOUNTS!$R35="",0,$C35) -> 0 | N35: =IF(ACCOUNTS!K35<>"",CONCATENATE(ACCOUNTS!$I35,"_",ACCOUNTS!K35)," ") ->  | O35: =IF(ACCOUNTS!L35<>"",CONCATENATE(ACCOUNTS!$I35,"_",ACCOUNTS!L35)," ") ->  | P35: =IF(ACCOUNTS!M35<>"",CONCATENATE(ACCOUNTS!$I35,"_",ACCOUNTS!M35)," ") ->  | Q35: =IF(ACCOUNTS!N35<>"",CONCATENATE(ACCOUNTS!$I35,"_",ACCOUNTS!N35)," ") ->  | R35: =IF(ACCOUNTS!O35<>"",CONCATENATE(ACCOUNTS!$I35,"_",ACCOUNTS!O35)," ") ->  | S35: =IF(ACCOUNTS!P35<>"",CONCATENATE(ACCOUNTS!$I35,"_",ACCOUNTS!P35)," ") -> 
A36: =ACCOUNTS!A36 -> ~ | B36: =ACCOUNTS!B36 -> ~ | C36: =ACCOUNTS!C36 -> 0 | D36: 0 | E36: =IF(ACCOUNTS!$J36="",0,$C36*(INDEX(INDIRECT(ACCOUNTS!$J36),1,E$2))) -> 0 | F36: =IF(ACCOUNTS!$J36="",0,$C36*(INDEX(INDIRECT(ACCOUNTS!$J36),1,F$2))) -> 0 | G36: =IF(ACCOUNTS!$J36="",0,$C36*(INDEX(INDIRECT(ACCOUNTS!$J36),1,G$2))) -> 0 | H36: =IF(ACCOUNTS!$J36="",0,$C36*(INDEX(INDIRECT(ACCOUNTS!$J36),1,H$2))) -> 0 | I36: =IF(ACCOUNTS!$J36="",0,$C36*(INDEX(INDIRECT(ACCOUNTS!$J36),1,I$2))) -> 0 | J36: =IF(ACCOUNTS!$J36="",0,$C36*(INDEX(INDIRECT(ACCOUNTS!$J36),1,J$2))) -> 0 | L36: =IF(ACCOUNTS!$R36="",0,$C36) -> 0 | N36: =IF(ACCOUNTS!K36<>"",CONCATENATE(ACCOUNTS!$I36,"_",ACCOUNTS!K36)," ") ->  | O36: =IF(ACCOUNTS!L36<>"",CONCATENATE(ACCOUNTS!$I36,"_",ACCOUNTS!L36)," ") ->  | P36: =IF(ACCOUNTS!M36<>"",CONCATENATE(ACCOUNTS!$I36,"_",ACCOUNTS!M36)," ") ->  | Q36: =IF(ACCOUNTS!N36<>"",CONCATENATE(ACCOUNTS!$I36,"_",ACCOUNTS!N36)," ") ->  | R36: =IF(ACCOUNTS!O36<>"",CONCATENATE(ACCOUNTS!$I36,"_",ACCOUNTS!O36)," ") ->  | S36: =IF(ACCOUNTS!P36<>"",CONCATENATE(ACCOUNTS!$I36,"_",ACCOUNTS!P36)," ") -> 
A37: =ACCOUNTS!A37 -> ~ | B37: =ACCOUNTS!B37 -> ~ | C37: =ACCOUNTS!C37 -> 0 | D37: 0 | E37: =IF(ACCOUNTS!$J37="",0,$C37*(INDEX(INDIRECT(ACCOUNTS!$J37),1,E$2))) -> 0 | F37: =IF(ACCOUNTS!$J37="",0,$C37*(INDEX(INDIRECT(ACCOUNTS!$J37),1,F$2))) -> 0 | G37: =IF(ACCOUNTS!$J37="",0,$C37*(INDEX(INDIRECT(ACCOUNTS!$J37),1,G$2))) -> 0 | H37: =IF(ACCOUNTS!$J37="",0,$C37*(INDEX(INDIRECT(ACCOUNTS!$J37),1,H$2))) -> 0 | I37: =IF(ACCOUNTS!$J37="",0,$C37*(INDEX(INDIRECT(ACCOUNTS!$J37),1,I$2))) -> 0 | J37: =IF(ACCOUNTS!$J37="",0,$C37*(INDEX(INDIRECT(ACCOUNTS!$J37),1,J$2))) -> 0 | L37: =IF(ACCOUNTS!$R37="",0,$C37) -> 0 | N37: =IF(ACCOUNTS!K37<>"",CONCATENATE(ACCOUNTS!$I37,"_",ACCOUNTS!K37)," ") ->  | O37: =IF(ACCOUNTS!L37<>"",CONCATENATE(ACCOUNTS!$I37,"_",ACCOUNTS!L37)," ") ->  | P37: =IF(ACCOUNTS!M37<>"",CONCATENATE(ACCOUNTS!$I37,"_",ACCOUNTS!M37)," ") ->  | Q37: =IF(ACCOUNTS!N37<>"",CONCATENATE(ACCOUNTS!$I37,"_",ACCOUNTS!N37)," ") ->  | R37: =IF(ACCOUNTS!O37<>"",CONCATENATE(ACCOUNTS!$I37,"_",ACCOUNTS!O37)," ") ->  | S37: =IF(ACCOUNTS!P37<>"",CONCATENATE(ACCOUNTS!$I37,"_",ACCOUNTS!P37)," ") -> 
A38: =ACCOUNTS!A38 -> ~ | B38: =ACCOUNTS!B38 -> ~ | C38: =ACCOUNTS!C38 -> 0 | D38: 0 | E38: =IF(ACCOUNTS!$J38="",0,$C38*(INDEX(INDIRECT(ACCOUNTS!$J38),1,E$2))) -> 0 | F38: =IF(ACCOUNTS!$J38="",0,$C38*(INDEX(INDIRECT(ACCOUNTS!$J38),1,F$2))) -> 0 | G38: =IF(ACCOUNTS!$J38="",0,$C38*(INDEX(INDIRECT(ACCOUNTS!$J38),1,G$2))) -> 0 | H38: =IF(ACCOUNTS!$J38="",0,$C38*(INDEX(INDIRECT(ACCOUNTS!$J38),1,H$2))) -> 0 | I38: =IF(ACCOUNTS!$J38="",0,$C38*(INDEX(INDIRECT(ACCOUNTS!$J38),1,I$2))) -> 0 | J38: =IF(ACCOUNTS!$J38="",0,$C38*(INDEX(INDIRECT(ACCOUNTS!$J38),1,J$2))) -> 0 | L38: =IF(ACCOUNTS!$R38="",0,$C38) -> 0 | N38: =IF(ACCOUNTS!K38<>"",CONCATENATE(ACCOUNTS!$I38,"_",ACCOUNTS!K38)," ") ->  | O38: =IF(ACCOUNTS!L38<>"",CONCATENATE(ACCOUNTS!$I38,"_",ACCOUNTS!L38)," ") ->  | P38: =IF(ACCOUNTS!M38<>"",CONCATENATE(ACCOUNTS!$I38,"_",ACCOUNTS!M38)," ") ->  | Q38: =IF(ACCOUNTS!N38<>"",CONCATENATE(ACCOUNTS!$I38,"_",ACCOUNTS!N38)," ") ->  | R38: =IF(ACCOUNTS!O38<>"",CONCATENATE(ACCOUNTS!$I38,"_",ACCOUNTS!O38)," ") ->  | S38: =IF(ACCOUNTS!P38<>"",CONCATENATE(ACCOUNTS!$I38,"_",ACCOUNTS!P38)," ") -> 
B39: =ACCOUNTS!B39 -> Sub-total | C39: =SUM(C31:C38) -> 425086614 | D39: =SUM(E39:L39)-C39 -> 0 | E39: =SUM(E31:E38) -> 80766456.66 | F39: 344320157.3 | G39: 0 | H39: 0 | I39: 0 | J39: 0 | L39: 0
D40: 0
B41: =ACCOUNTS!B41 -> Distribution Plant | D41: 0
A42: =ACCOUNTS!A42 -> 360.01 | B42: =ACCOUNTS!B42 -> Land & Land Rights - Assigned | C42: =ACCOUNTS!C42 -> 1611005.222 | D42: 0 | E42: =IF(ACCOUNTS!$J42="",0,$C42*(INDEX(INDIRECT(ACCOUNTS!$J42),1,E$2))) -> 1611005.222 | F42: =IF(ACCOUNTS!$J42="",0,$C42*(INDEX(INDIRECT(ACCOUNTS!$J42),1,F$2))) -> 0 | G42: =IF(ACCOUNTS!$J42="",0,$C42*(INDEX(INDIRECT(ACCOUNTS!$J42),1,G$2))) -> 0 | H42: =IF(ACCOUNTS!$J42="",0,$C42*(INDEX(INDIRECT(ACCOUNTS!$J42),1,H$2))) -> 0 | I42: =IF(ACCOUNTS!$J42="",0,$C42*(INDEX(INDIRECT(ACCOUNTS!$J42),1,I$2))) -> 0 | J42: =IF(ACCOUNTS!$J42="",0,$C42*(INDEX(INDIRECT(ACCOUNTS!$J42),1,J$2))) -> 0 | L42: =IF(ACCOUNTS!$R42="",0,$C42) -> 0 | N42: =IF(ACCOUNTS!K42<>"",CONCATENATE(ACCOUNTS!$I42,"_",ACCOUNTS!K42)," ") -> F_DISTR_DIR360.01 | O42: =IF(ACCOUNTS!L42<>"",CONCATENATE(ACCOUNTS!$I42,"_",ACCOUNTS!L42)," ") ->  | P42: =IF(ACCOUNTS!M42<>"",CONCATENATE(ACCOUNTS!$I42,"_",ACCOUNTS!M42)," ") ->  | Q42: =IF(ACCOUNTS!N42<>"",CONCATENATE(ACCOUNTS!$I42,"_",ACCOUNTS!N42)," ") ->  | R42: =IF(ACCOUNTS!O42<>"",CONCATENATE(ACCOUNTS!$I42,"_",ACCOUNTS!O42)," ") ->  | S42: =IF(ACCOUNTS!P42<>"",CONCATENATE(ACCOUNTS!$I42,"_",ACCOUNTS!P42)," ") -> 
A43: =ACCOUNTS!A43 -> 360.02 | B43: =ACCOUNTS!B43 -> Land & Land Rights - Allocated | C43: =ACCOUNTS!C43 -> 25360743.86 | D43: 0 | E43: =IF(ACCOUNTS!$J43="",0,$C43*(INDEX(INDIRECT(ACCOUNTS!$J43),1,E$2))) -> 25360743.86 | F43: =IF(ACCOUNTS!$J43="",0,$C43*(INDEX(INDIRECT(ACCOUNTS!$J43),1,F$2))) -> 0 | G43: =IF(ACCOUNTS!$J43="",0,$C43*(INDEX(INDIRECT(ACCOUNTS!$J43),1,G$2))) -> 0 | H43: =IF(ACCOUNTS!$J43="",0,$C43*(INDEX(INDIRECT(ACCOUNTS!$J43),1,H$2))) -> 0 | I43: =IF(ACCOUNTS!$J43="",0,$C43*(INDEX(INDIRECT(ACCOUNTS!$J43),1,I$2))) -> 0 | J43: =IF(ACCOUNTS!$J43="",0,$C43*(INDEX(INDIRECT(ACCOUNTS!$J43),1,J$2))) -> 0 | L43: =IF(ACCOUNTS!$R43="",0,$C43) -> 0 | N43: =IF(ACCOUNTS!K43<>"",CONCATENATE(ACCOUNTS!$I43,"_",ACCOUNTS!K43)," ") -> F_DISTR_NCP_360 | O43: =IF(ACCOUNTS!L43<>"",CONCATENATE(ACCOUNTS!$I43,"_",ACCOUNTS!L43)," ") ->  | P43: =IF(ACCOUNTS!M43<>"",CONCATENATE(ACCOUNTS!$I43,"_",ACCOUNTS!M43)," ") ->  | Q43: =IF(ACCOUNTS!N43<>"",CONCATENATE(ACCOUNTS!$I43,"_",ACCOUNTS!N43)," ") ->  | R43: =IF(ACCOUNTS!O43<>"",CONCATENATE(ACCOUNTS!$I43,"_",ACCOUNTS!O43)," ") ->  | S43: =IF(ACCOUNTS!P43<>"",CONCATENATE(ACCOUNTS!$I43,"_",ACCOUNTS!P43)," ") -> 
A44: =ACCOUNTS!A44 -> 360.03 | B44: =ACCOUNTS!B44 -> Land & Land Rights - - HV Distribution | C44: =ACCOUNTS!C44 -> 51635827.15 | D44: 0 | E44: =IF(ACCOUNTS!$J44="",0,$C44*(INDEX(INDIRECT(ACCOUNTS!$J44),1,E$2))) -> 9810807.158 | F44: =IF(ACCOUNTS!$J44="",0,$C44*(INDEX(INDIRECT(ACCOUNTS!$J44),1,F$2))) -> 41825019.99 | G44: =IF(ACCOUNTS!$J44="",0,$C44*(INDEX(INDIRECT(ACCOUNTS!$J44),1,G$2))) -> 0 | H44: =IF(ACCOUNTS!$J44="",0,$C44*(INDEX(INDIRECT(ACCOUNTS!$J44),1,H$2))) -> 0 | I44: =IF(ACCOUNTS!$J44="",0,$C44*(INDEX(INDIRECT(ACCOUNTS!$J44),1,I$2))) -> 0 | J44: =IF(ACCOUNTS!$J44="",0,$C44*(INDEX(INDIRECT(ACCOUNTS!$J44),1,J$2))) -> 0 | L44: =IF(ACCOUNTS!$R44="",0,$C44) -> 0 | N44: =IF(ACCOUNTS!K44<>"",CONCATENATE(ACCOUNTS!$I44,"_",ACCOUNTS!K44)," ") -> F_DISTR_DEM_2A | O44: =IF(ACCOUNTS!L44<>"",CONCATENATE(ACCOUNTS!$I44,"_",ACCOUNTS!L44)," ") -> F_DISTR_ENERGY_1 | P44: =IF(ACCOUNTS!M44<>"",CONCATENATE(ACCOUNTS!$I44,"_",ACCOUNTS!M44)," ") ->  | Q44: =IF(ACCOUNTS!N44<>"",CONCATENATE(ACCOUNTS!$I44,"_",ACCOUNTS!N44)," ") ->  | R44: =IF(ACCOUNTS!O44<>"",CONCATENATE(ACCOUNTS!$I44,"_",ACCOUNTS!O44)," ") ->  | S44: =IF(ACCOUNTS!P44<>"",CONCATENATE(ACCOUNTS!$I44,"_",ACCOUNTS!P44)," ") -> 
A45: =ACCOUNTS!A45 -> 361.01 | B45: =ACCOUNTS!B45 -> Structures & Improve - Assigned | C45: =ACCOUNTS!C45 -> 418047.0237 | D45: 0 | E45: =IF(ACCOUNTS!$J45="",0,$C45*(INDEX(INDIRECT(ACCOUNTS!$J45),1,E$2))) -> 418047.0237 | F45: =IF(ACCOUNTS!$J45="",0,$C45*(INDEX(INDIRECT(ACCOUNTS!$J45),1,F$2))) -> 0 | G45: =IF(ACCOUNTS!$J45="",0,$C45*(INDEX(INDIRECT(ACCOUNTS!$J45),1,G$2))) -> 0 | H45: =IF(ACCOUNTS!$J45="",0,$C45*(INDEX(INDIRECT(ACCOUNTS!$J45),1,H$2))) -> 0 | I45: =IF(ACCOUNTS!$J45="",0,$C45*(INDEX(INDIRECT(ACCOUNTS!$J45),1,I$2))) -> 0 | J45: =IF(ACCOUNTS!$J45="",0,$C45*(INDEX(INDIRECT(ACCOUNTS!$J45),1,J$2))) -> 0 | L45: =IF(ACCOUNTS!$R45="",0,$C45) -> 0 | N45: =IF(ACCOUNTS!K45<>"",CONCATENATE(ACCOUNTS!$I45,"_",ACCOUNTS!K45)," ") -> F_DISTR_DIR361.01 | O45: =IF(ACCOUNTS!L45<>"",CONCATENATE(ACCOUNTS!$I45,"_",ACCOUNTS!L45)," ") ->  | P45: =IF(ACCOUNTS!M45<>"",CONCATENATE(ACCOUNTS!$I45,"_",ACCOUNTS!M45)," ") ->  | Q45: =IF(ACCOUNTS!N45<>"",CONCATENATE(ACCOUNTS!$I45,"_",ACCOUNTS!N45)," ") ->  | R45: =IF(ACCOUNTS!O45<>"",CONCATENATE(ACCOUNTS!$I45,"_",ACCOUNTS!O45)," ") ->  | S45: =IF(ACCOUNTS!P45<>"",CONCATENATE(ACCOUNTS!$I45,"_",ACCOUNTS!P45)," ") -> 
A46: =ACCOUNTS!A46 -> 361.02 | B46: =ACCOUNTS!B46 -> Structures & Improve - Allocated | C46: =ACCOUNTS!C46 -> 5167330.914 | D46: 0 | E46: =IF(ACCOUNTS!$J46="",0,$C46*(INDEX(INDIRECT(ACCOUNTS!$J46),1,E$2))) -> 5167330.914 | F46: =IF(ACCOUNTS!$J46="",0,$C46*(INDEX(INDIRECT(ACCOUNTS!$J46),1,F$2))) -> 0 | G46: =IF(ACCOUNTS!$J46="",0,$C46*(INDEX(INDIRECT(ACCOUNTS!$J46),1,G$2))) -> 0 | H46: =IF(ACCOUNTS!$J46="",0,$C46*(INDEX(INDIRECT(ACCOUNTS!$J46),1,H$2))) -> 0 | I46: =IF(ACCOUNTS!$J46="",0,$C46*(INDEX(INDIRECT(ACCOUNTS!$J46),1,I$2))) -> 0 | J46: =IF(ACCOUNTS!$J46="",0,$C46*(INDEX(INDIRECT(ACCOUNTS!$J46),1,J$2))) -> 0 | L46: =IF(ACCOUNTS!$R46="",0,$C46) -> 0 | N46: =IF(ACCOUNTS!K46<>"",CONCATENATE(ACCOUNTS!$I46,"_",ACCOUNTS!K46)," ") -> F_DISTR_NCP_361 | O46: =IF(ACCOUNTS!L46<>"",CONCATENATE(ACCOUNTS!$I46,"_",ACCOUNTS!L46)," ") ->  | P46: =IF(ACCOUNTS!M46<>"",CONCATENATE(ACCOUNTS!$I46,"_",ACCOUNTS!M46)," ") ->  | Q46: =IF(ACCOUNTS!N46<>"",CONCATENATE(ACCOUNTS!$I46,"_",ACCOUNTS!N46)," ") ->  | R46: =IF(ACCOUNTS!O46<>"",CONCATENATE(ACCOUNTS!$I46,"_",ACCOUNTS!O46)," ") ->  | S46: =IF(ACCOUNTS!P46<>"",CONCATENATE(ACCOUNTS!$I46,"_",ACCOUNTS!P46)," ") -> 
A47: =ACCOUNTS!A47 -> 361.03 | B47: =ACCOUNTS!B47 -> Structures & Improve - - HV Distribution | C47: =ACCOUNTS!C47 -> 2460704.51 | D47: 0 | E47: =IF(ACCOUNTS!$J47="",0,$C47*(INDEX(INDIRECT(ACCOUNTS!$J47),1,E$2))) -> 467533.8569 | F47: =IF(ACCOUNTS!$J47="",0,$C47*(INDEX(INDIRECT(ACCOUNTS!$J47),1,F$2))) -> 1993170.653 | G47: =IF(ACCOUNTS!$J47="",0,$C47*(INDEX(INDIRECT(ACCOUNTS!$J47),1,G$2))) -> 0 | H47: =IF(ACCOUNTS!$J47="",0,$C47*(INDEX(INDIRECT(ACCOUNTS!$J47),1,H$2))) -> 0 | I47: =IF(ACCOUNTS!$J47="",0,$C47*(INDEX(INDIRECT(ACCOUNTS!$J47),1,I$2))) -> 0 | J47: =IF(ACCOUNTS!$J47="",0,$C47*(INDEX(INDIRECT(ACCOUNTS!$J47),1,J$2))) -> 0 | L47: =IF(ACCOUNTS!$R47="",0,$C47) -> 0 | N47: =IF(ACCOUNTS!K47<>"",CONCATENATE(ACCOUNTS!$I47,"_",ACCOUNTS!K47)," ") -> F_DISTR_DEM_2A | O47: =IF(ACCOUNTS!L47<>"",CONCATENATE(ACCOUNTS!$I47,"_",ACCOUNTS!L47)," ") -> F_DISTR_ENERGY_1 | P47: =IF(ACCOUNTS!M47<>"",CONCATENATE(ACCOUNTS!$I47,"_",ACCOUNTS!M47)," ") ->  | Q47: =IF(ACCOUNTS!N47<>"",CONCATENATE(ACCOUNTS!$I47,"_",ACCOUNTS!N47)," ") ->  | R47: =IF(ACCOUNTS!O47<>"",CONCATENATE(ACCOUNTS!$I47,"_",ACCOUNTS!O47)," ") ->  | S47: =IF(ACCOUNTS!P47<>"",CONCATENATE(ACCOUNTS!$I47,"_",ACCOUNTS!P47)," ") -> 
A48: =ACCOUNTS!A48 -> 362.01 | B48: =ACCOUNTS!B48 -> Station Equipment - Assigned | C48: =ACCOUNTS!C48 -> 24960779.12 | D48: 0 | E48: =IF(ACCOUNTS!$J48="",0,$C48*(INDEX(INDIRECT(ACCOUNTS!$J48),1,E$2))) -> 24960779.12 | F48: =IF(ACCOUNTS!$J48="",0,$C48*(INDEX(INDIRECT(ACCOUNTS!$J48),1,F$2))) -> 0 | G48: =IF(ACCOUNTS!$J48="",0,$C48*(INDEX(INDIRECT(ACCOUNTS!$J48),1,G$2))) -> 0 | H48: =IF(ACCOUNTS!$J48="",0,$C48*(INDEX(INDIRECT(ACCOUNTS!$J48),1,H$2))) -> 0 | I48: =IF(ACCOUNTS!$J48="",0,$C48*(INDEX(INDIRECT(ACCOUNTS!$J48),1,I$2))) -> 0 | J48: =IF(ACCOUNTS!$J48="",0,$C48*(INDEX(INDIRECT(ACCOUNTS!$J48),1,J$2))) -> 0 | L48: =IF(ACCOUNTS!$R48="",0,$C48) -> 0 | N48: =IF(ACCOUNTS!K48<>"",CONCATENATE(ACCOUNTS!$I48,"_",ACCOUNTS!K48)," ") -> F_DISTR_DIR362.01 | O48: =IF(ACCOUNTS!L48<>"",CONCATENATE(ACCOUNTS!$I48,"_",ACCOUNTS!L48)," ") ->  | P48: =IF(ACCOUNTS!M48<>"",CONCATENATE(ACCOUNTS!$I48,"_",ACCOUNTS!M48)," ") ->  | Q48: =IF(ACCOUNTS!N48<>"",CONCATENATE(ACCOUNTS!$I48,"_",ACCOUNTS!N48)," ") ->  | R48: =IF(ACCOUNTS!O48<>"",CONCATENATE(ACCOUNTS!$I48,"_",ACCOUNTS!O48)," ") ->  | S48: =IF(ACCOUNTS!P48<>"",CONCATENATE(ACCOUNTS!$I48,"_",ACCOUNTS!P48)," ") -> 
A49: =ACCOUNTS!A49 -> 362.02 | B49: =ACCOUNTS!B49 -> Station Equipment - Allocated | C49: =ACCOUNTS!C49 -> 307367962.6 | D49: 0 | E49: =IF(ACCOUNTS!$J49="",0,$C49*(INDEX(INDIRECT(ACCOUNTS!$J49),1,E$2))) -> 307367962.6 | F49: =IF(ACCOUNTS!$J49="",0,$C49*(INDEX(INDIRECT(ACCOUNTS!$J49),1,F$2))) -> 0 | G49: =IF(ACCOUNTS!$J49="",0,$C49*(INDEX(INDIRECT(ACCOUNTS!$J49),1,G$2))) -> 0 | H49: =IF(ACCOUNTS!$J49="",0,$C49*(INDEX(INDIRECT(ACCOUNTS!$J49),1,H$2))) -> 0 | I49: =IF(ACCOUNTS!$J49="",0,$C49*(INDEX(INDIRECT(ACCOUNTS!$J49),1,I$2))) -> 0 | J49: =IF(ACCOUNTS!$J49="",0,$C49*(INDEX(INDIRECT(ACCOUNTS!$J49),1,J$2))) -> 0 | L49: =IF(ACCOUNTS!$R49="",0,$C49) -> 0 | N49: =IF(ACCOUNTS!K49<>"",CONCATENATE(ACCOUNTS!$I49,"_",ACCOUNTS!K49)," ") -> F_DISTR_NCP_362 | O49: =IF(ACCOUNTS!L49<>"",CONCATENATE(ACCOUNTS!$I49,"_",ACCOUNTS!L49)," ") ->  | P49: =IF(ACCOUNTS!M49<>"",CONCATENATE(ACCOUNTS!$I49,"_",ACCOUNTS!M49)," ") ->  | Q49: =IF(ACCOUNTS!N49<>"",CONCATENATE(ACCOUNTS!$I49,"_",ACCOUNTS!N49)," ") ->  | R49: =IF(ACCOUNTS!O49<>"",CONCATENATE(ACCOUNTS!$I49,"_",ACCOUNTS!O49)," ") ->  | S49: =IF(ACCOUNTS!P49<>"",CONCATENATE(ACCOUNTS!$I49,"_",ACCOUNTS!P49)," ") -> 
A50: =ACCOUNTS!A50 -> 362.03 | B50: =ACCOUNTS!B50 -> Station Equipment - - HV Distribution | C50: =ACCOUNTS!C50 -> 222299815.5 | D50: 0 | E50: =IF(ACCOUNTS!$J50="",0,$C50*(INDEX(INDIRECT(ACCOUNTS!$J50),1,E$2))) -> 42236964.95 | F50: =IF(ACCOUNTS!$J50="",0,$C50*(INDEX(INDIRECT(ACCOUNTS!$J50),1,F$2))) -> 180062850.6 | G50: =IF(ACCOUNTS!$J50="",0,$C50*(INDEX(INDIRECT(ACCOUNTS!$J50),1,G$2))) -> 0 | H50: =IF(ACCOUNTS!$J50="",0,$C50*(INDEX(INDIRECT(ACCOUNTS!$J50),1,H$2))) -> 0 | I50: =IF(ACCOUNTS!$J50="",0,$C50*(INDEX(INDIRECT(ACCOUNTS!$J50),1,I$2))) -> 0 | J50: =IF(ACCOUNTS!$J50="",0,$C50*(INDEX(INDIRECT(ACCOUNTS!$J50),1,J$2))) -> 0 | L50: =IF(ACCOUNTS!$R50="",0,$C50) -> 0 | N50: =IF(ACCOUNTS!K50<>"",CONCATENATE(ACCOUNTS!$I50,"_",ACCOUNTS!K50)," ") -> F_DISTR_DEM_2A | O50: =IF(ACCOUNTS!L50<>"",CONCATENATE(ACCOUNTS!$I50,"_",ACCOUNTS!L50)," ") -> F_DISTR_ENERGY_1 | P50: =IF(ACCOUNTS!M50<>"",CONCATENATE(ACCOUNTS!$I50,"_",ACCOUNTS!M50)," ") ->  | Q50: =IF(ACCOUNTS!N50<>"",CONCATENATE(ACCOUNTS!$I50,"_",ACCOUNTS!N50)," ") ->  | R50: =IF(ACCOUNTS!O50<>"",CONCATENATE(ACCOUNTS!$I50,"_",ACCOUNTS!O50)," ") ->  | S50: =IF(ACCOUNTS!P50<>"",CONCATENATE(ACCOUNTS!$I50,"_",ACCOUNTS!P50)," ") -> 
A51: =ACCOUNTS!A51 -> 364 | B51: =ACCOUNTS!B51 -> Poles Towers & Fixtures | C51: =ACCOUNTS!C51 -> 231436538.4 | D51: 0 | E51: =IF(ACCOUNTS!$J51="",0,$C51*(INDEX(INDIRECT(ACCOUNTS!$J51),1,E$2))) -> 231436538.4 | F51: =IF(ACCOUNTS!$J51="",0,$C51*(INDEX(INDIRECT(ACCOUNTS!$J51),1,F$2))) -> 0 | G51: =IF(ACCOUNTS!$J51="",0,$C51*(INDEX(INDIRECT(ACCOUNTS!$J51),1,G$2))) -> 0 | H51: =IF(ACCOUNTS!$J51="",0,$C51*(INDEX(INDIRECT(ACCOUNTS!$J51),1,H$2))) -> 0 | I51: =IF(ACCOUNTS!$J51="",0,$C51*(INDEX(INDIRECT(ACCOUNTS!$J51),1,I$2))) -> 0 | J51: =IF(ACCOUNTS!$J51="",0,$C51*(INDEX(INDIRECT(ACCOUNTS!$J51),1,J$2))) -> 0 | L51: =IF(ACCOUNTS!$R51="",0,$C51) -> 0 | N51: =IF(ACCOUNTS!K51<>"",CONCATENATE(ACCOUNTS!$I51,"_",ACCOUNTS!K51)," ") -> F_DISTR_OH_NCP | O51: =IF(ACCOUNTS!L51<>"",CONCATENATE(ACCOUNTS!$I51,"_",ACCOUNTS!L51)," ") ->  | P51: =IF(ACCOUNTS!M51<>"",CONCATENATE(ACCOUNTS!$I51,"_",ACCOUNTS!M51)," ") ->  | Q51: =IF(ACCOUNTS!N51<>"",CONCATENATE(ACCOUNTS!$I51,"_",ACCOUNTS!N51)," ") ->  | R51: =IF(ACCOUNTS!O51<>"",CONCATENATE(ACCOUNTS!$I51,"_",ACCOUNTS!O51)," ") ->  | S51: =IF(ACCOUNTS!P51<>"",CONCATENATE(ACCOUNTS!$I51,"_",ACCOUNTS!P51)," ") -> 
A52: =ACCOUNTS!A52 -> 364.01 | B52: =ACCOUNTS!B52 -> Poles Towers & Fixtures - HV Distribution | C52: =ACCOUNTS!C52 -> 170912245 | D52: 0 | E52: =IF(ACCOUNTS!$J52="",0,$C52*(INDEX(INDIRECT(ACCOUNTS!$J52),1,E$2))) -> 32473326.56 | F52: =IF(ACCOUNTS!$J52="",0,$C52*(INDEX(INDIRECT(ACCOUNTS!$J52),1,F$2))) -> 138438918.5 | G52: =IF(ACCOUNTS!$J52="",0,$C52*(INDEX(INDIRECT(ACCOUNTS!$J52),1,G$2))) -> 0 | H52: =IF(ACCOUNTS!$J52="",0,$C52*(INDEX(INDIRECT(ACCOUNTS!$J52),1,H$2))) -> 0 | I52: =IF(ACCOUNTS!$J52="",0,$C52*(INDEX(INDIRECT(ACCOUNTS!$J52),1,I$2))) -> 0 | J52: =IF(ACCOUNTS!$J52="",0,$C52*(INDEX(INDIRECT(ACCOUNTS!$J52),1,J$2))) -> 0 | L52: =IF(ACCOUNTS!$R52="",0,$C52) -> 0 | N52: =IF(ACCOUNTS!K52<>"",CONCATENATE(ACCOUNTS!$I52,"_",ACCOUNTS!K52)," ") -> F_DISTR_DEM_2A | O52: =IF(ACCOUNTS!L52<>"",CONCATENATE(ACCOUNTS!$I52,"_",ACCOUNTS!L52)," ") -> F_DISTR_ENERGY_1 | P52: =IF(ACCOUNTS!M52<>"",CONCATENATE(ACCOUNTS!$I52,"_",ACCOUNTS!M52)," ") ->  | Q52: =IF(ACCOUNTS!N52<>"",CONCATENATE(ACCOUNTS!$I52,"_",ACCOUNTS!N52)," ") ->  | R52: =IF(ACCOUNTS!O52<>"",CONCATENATE(ACCOUNTS!$I52,"_",ACCOUNTS!O52)," ") ->  | S52: =IF(ACCOUNTS!P52<>"",CONCATENATE(ACCOUNTS!$I52,"_",ACCOUNTS!P52)," ") -> 
A53: =ACCOUNTS!A53 -> 365 | B53: =ACCOUNTS!B53 -> OH Lines Direct Assignment | C53: =ACCOUNTS!C53 -> 2527587.36 | D53: 0 | E53: =IF(ACCOUNTS!$J53="",0,$C53*(INDEX(INDIRECT(ACCOUNTS!$J53),1,E$2))) -> 2527587.36 | F53: =IF(ACCOUNTS!$J53="",0,$C53*(INDEX(INDIRECT(ACCOUNTS!$J53),1,F$2))) -> 0 | G53: =IF(ACCOUNTS!$J53="",0,$C53*(INDEX(INDIRECT(ACCOUNTS!$J53),1,G$2))) -> 0 | H53: =IF(ACCOUNTS!$J53="",0,$C53*(INDEX(INDIRECT(ACCOUNTS!$J53),1,H$2))) -> 0 | I53: =IF(ACCOUNTS!$J53="",0,$C53*(INDEX(INDIRECT(ACCOUNTS!$J53),1,I$2))) -> 0 | J53: =IF(ACCOUNTS!$J53="",0,$C53*(INDEX(INDIRECT(ACCOUNTS!$J53),1,J$2))) -> 0 | L53: =IF(ACCOUNTS!$R53="",0,$C53) -> 0 | N53: =IF(ACCOUNTS!K53<>"",CONCATENATE(ACCOUNTS!$I53,"_",ACCOUNTS!K53)," ") -> F_DISTR_DIR364.01 | O53: =IF(ACCOUNTS!L53<>"",CONCATENATE(ACCOUNTS!$I53,"_",ACCOUNTS!L53)," ") ->  | P53: =IF(ACCOUNTS!M53<>"",CONCATENATE(ACCOUNTS!$I53,"_",ACCOUNTS!M53)," ") ->  | Q53: =IF(ACCOUNTS!N53<>"",CONCATENATE(ACCOUNTS!$I53,"_",ACCOUNTS!N53)," ") ->  | R53: =IF(ACCOUNTS!O53<>"",CONCATENATE(ACCOUNTS!$I53,"_",ACCOUNTS!O53)," ") ->  | S53: =IF(ACCOUNTS!P53<>"",CONCATENATE(ACCOUNTS!$I53,"_",ACCOUNTS!P53)," ") -> 
A54: =ACCOUNTS!A54 -> 365.01 | B54: =ACCOUNTS!B54 -> OVHD Cond & Devices | C54: =ACCOUNTS!C54 -> 281983625.3 | D54: 0 | E54: =IF(ACCOUNTS!$J54="",0,$C54*(INDEX(INDIRECT(ACCOUNTS!$J54),1,E$2))) -> 281983625.3 | F54: =IF(ACCOUNTS!$J54="",0,$C54*(INDEX(INDIRECT(ACCOUNTS!$J54),1,F$2))) -> 0 | G54: =IF(ACCOUNTS!$J54="",0,$C54*(INDEX(INDIRECT(ACCOUNTS!$J54),1,G$2))) -> 0 | H54: =IF(ACCOUNTS!$J54="",0,$C54*(INDEX(INDIRECT(ACCOUNTS!$J54),1,H$2))) -> 0 | I54: =IF(ACCOUNTS!$J54="",0,$C54*(INDEX(INDIRECT(ACCOUNTS!$J54),1,I$2))) -> 0 | J54: =IF(ACCOUNTS!$J54="",0,$C54*(INDEX(INDIRECT(ACCOUNTS!$J54),1,J$2))) -> 0 | L54: =IF(ACCOUNTS!$R54="",0,$C54) -> 0 | N54: =IF(ACCOUNTS!K54<>"",CONCATENATE(ACCOUNTS!$I54,"_",ACCOUNTS!K54)," ") -> F_DISTR_OH_NCP | O54: =IF(ACCOUNTS!L54<>"",CONCATENATE(ACCOUNTS!$I54,"_",ACCOUNTS!L54)," ") ->  | P54: =IF(ACCOUNTS!M54<>"",CONCATENATE(ACCOUNTS!$I54,"_",ACCOUNTS!M54)," ") ->  | Q54: =IF(ACCOUNTS!N54<>"",CONCATENATE(ACCOUNTS!$I54,"_",ACCOUNTS!N54)," ") ->  | R54: =IF(ACCOUNTS!O54<>"",CONCATENATE(ACCOUNTS!$I54,"_",ACCOUNTS!O54)," ") ->  | S54: =IF(ACCOUNTS!P54<>"",CONCATENATE(ACCOUNTS!$I54,"_",ACCOUNTS!P54)," ") -> 
A55: =ACCOUNTS!A55 -> 365.03 | B55: =ACCOUNTS!B55 -> OVHD Cond & Devices - HV Distribution | C55: =ACCOUNTS!C55 -> 131895724.2 | D55: 0 | E55: =IF(ACCOUNTS!$J55="",0,$C55*(INDEX(INDIRECT(ACCOUNTS!$J55),1,E$2))) -> 25060187.59 | F55: =IF(ACCOUNTS!$J55="",0,$C55*(INDEX(INDIRECT(ACCOUNTS!$J55),1,F$2))) -> 106835536.6 | G55: =IF(ACCOUNTS!$J55="",0,$C55*(INDEX(INDIRECT(ACCOUNTS!$J55),1,G$2))) -> 0 | H55: =IF(ACCOUNTS!$J55="",0,$C55*(INDEX(INDIRECT(ACCOUNTS!$J55),1,H$2))) -> 0 | I55: =IF(ACCOUNTS!$J55="",0,$C55*(INDEX(INDIRECT(ACCOUNTS!$J55),1,I$2))) -> 0 | J55: =IF(ACCOUNTS!$J55="",0,$C55*(INDEX(INDIRECT(ACCOUNTS!$J55),1,J$2))) -> 0 | L55: =IF(ACCOUNTS!$R55="",0,$C55) -> 0 | N55: =IF(ACCOUNTS!K55<>"",CONCATENATE(ACCOUNTS!$I55,"_",ACCOUNTS!K55)," ") -> F_DISTR_DEM_2A | O55: =IF(ACCOUNTS!L55<>"",CONCATENATE(ACCOUNTS!$I55,"_",ACCOUNTS!L55)," ") -> F_DISTR_ENERGY_1 | P55: =IF(ACCOUNTS!M55<>"",CONCATENATE(ACCOUNTS!$I55,"_",ACCOUNTS!M55)," ") ->  | Q55: =IF(ACCOUNTS!N55<>"",CONCATENATE(ACCOUNTS!$I55,"_",ACCOUNTS!N55)," ") ->  | R55: =IF(ACCOUNTS!O55<>"",CONCATENATE(ACCOUNTS!$I55,"_",ACCOUNTS!O55)," ") ->  | S55: =IF(ACCOUNTS!P55<>"",CONCATENATE(ACCOUNTS!$I55,"_",ACCOUNTS!P55)," ") -> 
A56: =ACCOUNTS!A56 -> 366 | B56: =ACCOUNTS!B56 -> UG Conduit | C56: =ACCOUNTS!C56 -> 551772558.7 | D56: 0 | E56: =IF(ACCOUNTS!$J56="",0,$C56*(INDEX(INDIRECT(ACCOUNTS!$J56),1,E$2))) -> 551772558.7 | F56: =IF(ACCOUNTS!$J56="",0,$C56*(INDEX(INDIRECT(ACCOUNTS!$J56),1,F$2))) -> 0 | G56: =IF(ACCOUNTS!$J56="",0,$C56*(INDEX(INDIRECT(ACCOUNTS!$J56),1,G$2))) -> 0 | H56: =IF(ACCOUNTS!$J56="",0,$C56*(INDEX(INDIRECT(ACCOUNTS!$J56),1,H$2))) -> 0 | I56: =IF(ACCOUNTS!$J56="",0,$C56*(INDEX(INDIRECT(ACCOUNTS!$J56),1,I$2))) -> 0 | J56: =IF(ACCOUNTS!$J56="",0,$C56*(INDEX(INDIRECT(ACCOUNTS!$J56),1,J$2))) -> 0 | L56: =IF(ACCOUNTS!$R56="",0,$C56) -> 0 | N56: =IF(ACCOUNTS!K56<>"",CONCATENATE(ACCOUNTS!$I56,"_",ACCOUNTS!K56)," ") -> F_DISTR_UG_NCP | O56: =IF(ACCOUNTS!L56<>"",CONCATENATE(ACCOUNTS!$I56,"_",ACCOUNTS!L56)," ") ->  | P56: =IF(ACCOUNTS!M56<>"",CONCATENATE(ACCOUNTS!$I56,"_",ACCOUNTS!M56)," ") ->  | Q56: =IF(ACCOUNTS!N56<>"",CONCATENATE(ACCOUNTS!$I56,"_",ACCOUNTS!N56)," ") ->  | R56: =IF(ACCOUNTS!O56<>"",CONCATENATE(ACCOUNTS!$I56,"_",ACCOUNTS!O56)," ") ->  | S56: =IF(ACCOUNTS!P56<>"",CONCATENATE(ACCOUNTS!$I56,"_",ACCOUNTS!P56)," ") -> 
A57: =ACCOUNTS!A57 -> 366.01 | B57: =ACCOUNTS!B57 -> UG Conduit - HV Distribution | C57: =ACCOUNTS!C57 -> 700574.85 | D57: 0 | E57: =IF(ACCOUNTS!$J57="",0,$C57*(INDEX(INDIRECT(ACCOUNTS!$J57),1,E$2))) -> 133109.2215 | F57: =IF(ACCOUNTS!$J57="",0,$C57*(INDEX(INDIRECT(ACCOUNTS!$J57),1,F$2))) -> 567465.6285 | G57: =IF(ACCOUNTS!$J57="",0,$C57*(INDEX(INDIRECT(ACCOUNTS!$J57),1,G$2))) -> 0 | H57: =IF(ACCOUNTS!$J57="",0,$C57*(INDEX(INDIRECT(ACCOUNTS!$J57),1,H$2))) -> 0 | I57: =IF(ACCOUNTS!$J57="",0,$C57*(INDEX(INDIRECT(ACCOUNTS!$J57),1,I$2))) -> 0 | J57: =IF(ACCOUNTS!$J57="",0,$C57*(INDEX(INDIRECT(ACCOUNTS!$J57),1,J$2))) -> 0 | L57: =IF(ACCOUNTS!$R57="",0,$C57) -> 0 | N57: =IF(ACCOUNTS!K57<>"",CONCATENATE(ACCOUNTS!$I57,"_",ACCOUNTS!K57)," ") -> F_DISTR_DEM_2A | O57: =IF(ACCOUNTS!L57<>"",CONCATENATE(ACCOUNTS!$I57,"_",ACCOUNTS!L57)," ") -> F_DISTR_ENERGY_1 | P57: =IF(ACCOUNTS!M57<>"",CONCATENATE(ACCOUNTS!$I57,"_",ACCOUNTS!M57)," ") ->  | Q57: =IF(ACCOUNTS!N57<>"",CONCATENATE(ACCOUNTS!$I57,"_",ACCOUNTS!N57)," ") ->  | R57: =IF(ACCOUNTS!O57<>"",CONCATENATE(ACCOUNTS!$I57,"_",ACCOUNTS!O57)," ") ->  | S57: =IF(ACCOUNTS!P57<>"",CONCATENATE(ACCOUNTS!$I57,"_",ACCOUNTS!P57)," ") -> 
A58: =ACCOUNTS!A58 -> 366.02 | B58: =ACCOUNTS!B58 -> UG Conduit Direct Assignment | C58: =ACCOUNTS!C58 -> 25269502.76 | D58: 0 | E58: =IF(ACCOUNTS!$J58="",0,$C58*(INDEX(INDIRECT(ACCOUNTS!$J58),1,E$2))) -> 25269502.76 | F58: =IF(ACCOUNTS!$J58="",0,$C58*(INDEX(INDIRECT(ACCOUNTS!$J58),1,F$2))) -> 0 | G58: =IF(ACCOUNTS!$J58="",0,$C58*(INDEX(INDIRECT(ACCOUNTS!$J58),1,G$2))) -> 0 | H58: =IF(ACCOUNTS!$J58="",0,$C58*(INDEX(INDIRECT(ACCOUNTS!$J58),1,H$2))) -> 0 | I58: =IF(ACCOUNTS!$J58="",0,$C58*(INDEX(INDIRECT(ACCOUNTS!$J58),1,I$2))) -> 0 | J58: =IF(ACCOUNTS!$J58="",0,$C58*(INDEX(INDIRECT(ACCOUNTS!$J58),1,J$2))) -> 0 | L58: =IF(ACCOUNTS!$R58="",0,$C58) -> 0 | N58: =IF(ACCOUNTS!K58<>"",CONCATENATE(ACCOUNTS!$I58,"_",ACCOUNTS!K58)," ") -> F_DISTR_DIR366.01 | O58: =IF(ACCOUNTS!L58<>"",CONCATENATE(ACCOUNTS!$I58,"_",ACCOUNTS!L58)," ") ->  | P58: =IF(ACCOUNTS!M58<>"",CONCATENATE(ACCOUNTS!$I58,"_",ACCOUNTS!M58)," ") ->  | Q58: =IF(ACCOUNTS!N58<>"",CONCATENATE(ACCOUNTS!$I58,"_",ACCOUNTS!N58)," ") ->  | R58: =IF(ACCOUNTS!O58<>"",CONCATENATE(ACCOUNTS!$I58,"_",ACCOUNTS!O58)," ") ->  | S58: =IF(ACCOUNTS!P58<>"",CONCATENATE(ACCOUNTS!$I58,"_",ACCOUNTS!P58)," ") -> 
A59: =ACCOUNTS!A59 -> 367 | B59: =ACCOUNTS!B59 -> UG Conductor & Devices | C59: =ACCOUNTS!C59 -> 647702409.8 | D59: 0 | E59: =IF(ACCOUNTS!$J59="",0,$C59*(INDEX(INDIRECT(ACCOUNTS!$J59),1,E$2))) -> 647702409.8 | F59: =IF(ACCOUNTS!$J59="",0,$C59*(INDEX(INDIRECT(ACCOUNTS!$J59),1,F$2))) -> 0 | G59: =IF(ACCOUNTS!$J59="",0,$C59*(INDEX(INDIRECT(ACCOUNTS!$J59),1,G$2))) -> 0 | H59: =IF(ACCOUNTS!$J59="",0,$C59*(INDEX(INDIRECT(ACCOUNTS!$J59),1,H$2))) -> 0 | I59: =IF(ACCOUNTS!$J59="",0,$C59*(INDEX(INDIRECT(ACCOUNTS!$J59),1,I$2))) -> 0 | J59: =IF(ACCOUNTS!$J59="",0,$C59*(INDEX(INDIRECT(ACCOUNTS!$J59),1,J$2))) -> 0 | L59: =IF(ACCOUNTS!$R59="",0,$C59) -> 0 | N59: =IF(ACCOUNTS!K59<>"",CONCATENATE(ACCOUNTS!$I59,"_",ACCOUNTS!K59)," ") -> F_DISTR_UG_NCP | O59: =IF(ACCOUNTS!L59<>"",CONCATENATE(ACCOUNTS!$I59,"_",ACCOUNTS!L59)," ") ->  | P59: =IF(ACCOUNTS!M59<>"",CONCATENATE(ACCOUNTS!$I59,"_",ACCOUNTS!M59)," ") ->  | Q59: =IF(ACCOUNTS!N59<>"",CONCATENATE(ACCOUNTS!$I59,"_",ACCOUNTS!N59)," ") ->  | R59: =IF(ACCOUNTS!O59<>"",CONCATENATE(ACCOUNTS!$I59,"_",ACCOUNTS!O59)," ") ->  | S59: =IF(ACCOUNTS!P59<>"",CONCATENATE(ACCOUNTS!$I59,"_",ACCOUNTS!P59)," ") -> 
A60: =ACCOUNTS!A60 -> 367.01 | B60: =ACCOUNTS!B60 -> UG Conductor & Devices - HV Distribution | C60: =ACCOUNTS!C60 -> 2937079.22 | D60: 0 | E60: =IF(ACCOUNTS!$J60="",0,$C60*(INDEX(INDIRECT(ACCOUNTS!$J60),1,E$2))) -> 558045.0518 | F60: =IF(ACCOUNTS!$J60="",0,$C60*(INDEX(INDIRECT(ACCOUNTS!$J60),1,F$2))) -> 2379034.168 | G60: =IF(ACCOUNTS!$J60="",0,$C60*(INDEX(INDIRECT(ACCOUNTS!$J60),1,G$2))) -> 0 | H60: =IF(ACCOUNTS!$J60="",0,$C60*(INDEX(INDIRECT(ACCOUNTS!$J60),1,H$2))) -> 0 | I60: =IF(ACCOUNTS!$J60="",0,$C60*(INDEX(INDIRECT(ACCOUNTS!$J60),1,I$2))) -> 0 | J60: =IF(ACCOUNTS!$J60="",0,$C60*(INDEX(INDIRECT(ACCOUNTS!$J60),1,J$2))) -> 0 | L60: =IF(ACCOUNTS!$R60="",0,$C60) -> 0 | N60: =IF(ACCOUNTS!K60<>"",CONCATENATE(ACCOUNTS!$I60,"_",ACCOUNTS!K60)," ") -> F_DISTR_DEM_2A | O60: =IF(ACCOUNTS!L60<>"",CONCATENATE(ACCOUNTS!$I60,"_",ACCOUNTS!L60)," ") -> F_DISTR_ENERGY_1 | P60: =IF(ACCOUNTS!M60<>"",CONCATENATE(ACCOUNTS!$I60,"_",ACCOUNTS!M60)," ") ->  | Q60: =IF(ACCOUNTS!N60<>"",CONCATENATE(ACCOUNTS!$I60,"_",ACCOUNTS!N60)," ") ->  | R60: =IF(ACCOUNTS!O60<>"",CONCATENATE(ACCOUNTS!$I60,"_",ACCOUNTS!O60)," ") ->  | S60: =IF(ACCOUNTS!P60<>"",CONCATENATE(ACCOUNTS!$I60,"_",ACCOUNTS!P60)," ") -> 
A61: =ACCOUNTS!A61 -> 368.OH | B61: =ACCOUNTS!B61 -> Line Transf OVHD | C61: =ACCOUNTS!C61 -> 138085648.8 | D61: 0 | E61: =IF(ACCOUNTS!$J61="",0,$C61*(INDEX(INDIRECT(ACCOUNTS!$J61),1,E$2))) -> 0 | F61: =IF(ACCOUNTS!$J61="",0,$C61*(INDEX(INDIRECT(ACCOUNTS!$J61),1,F$2))) -> 0 | G61: =IF(ACCOUNTS!$J61="",0,$C61*(INDEX(INDIRECT(ACCOUNTS!$J61),1,G$2))) -> 138085648.8 | H61: =IF(ACCOUNTS!$J61="",0,$C61*(INDEX(INDIRECT(ACCOUNTS!$J61),1,H$2))) -> 0 | I61: =IF(ACCOUNTS!$J61="",0,$C61*(INDEX(INDIRECT(ACCOUNTS!$J61),1,I$2))) -> 0 | J61: =IF(ACCOUNTS!$J61="",0,$C61*(INDEX(INDIRECT(ACCOUNTS!$J61),1,J$2))) -> 0 | L61: =IF(ACCOUNTS!$R61="",0,$C61) -> 0 | N61: =IF(ACCOUNTS!K61<>"",CONCATENATE(ACCOUNTS!$I61,"_",ACCOUNTS!K61)," ") -> F_DISTR_OH_TFMR | O61: =IF(ACCOUNTS!L61<>"",CONCATENATE(ACCOUNTS!$I61,"_",ACCOUNTS!L61)," ") ->  | P61: =IF(ACCOUNTS!M61<>"",CONCATENATE(ACCOUNTS!$I61,"_",ACCOUNTS!M61)," ") -> F_DISTR_OH_TFMRC | Q61: =IF(ACCOUNTS!N61<>"",CONCATENATE(ACCOUNTS!$I61,"_",ACCOUNTS!N61)," ") ->  | R61: =IF(ACCOUNTS!O61<>"",CONCATENATE(ACCOUNTS!$I61,"_",ACCOUNTS!O61)," ") ->  | S61: =IF(ACCOUNTS!P61<>"",CONCATENATE(ACCOUNTS!$I61,"_",ACCOUNTS!P61)," ") -> 
